Workbook

Sheet Loonadministratie
I7: Loonadministratie
F16: Indien de macro geblokkeerd wordt kun je de blokkade opheffen. Sluit het bestand eerst. Klik daarna met rechtermuis-kop op het bestand en kies "Eigenschappen" en zet een vink bij ‘Blokkering opheffen’.

Sheet LS
A2: Grondig B.V.
A3: Lage weide 419 | F3: Januari
A4: 3599 ZZ, Utrecht | F4: Februari
F5: Maart
F6: April
F7: Mei
A8: =_xlfn.XLOOKUP(D8, personeelsoverzicht!E:E, personeelsoverzicht!E:E) -> Marc Bakker | C8: Medewerker: | D8: Marc Bakker | F8: =IF(D8="Naam","Kies een naam of voer een naam in!","") -> 
A9: =_xlfn.XLOOKUP(D8, personeelsoverzicht!E:E, personeelsoverzicht!I:I) -> Rijnlaan 68 | C9: Periode | D9: 2024-01-01 | F9: Augustus
A10: =_xlfn.XLOOKUP(D8, personeelsoverzicht!E:E, CONCATENATE(personeelsoverzicht!J:J, " ", personeelsoverzicht!K:K)) -> 3880 EF Nieuwegein | C10: Datum van | D10: =D9 -> 2024-01-01 | F10: September | G10: index | H10: =IF(D10>=DATE(2026,1,1), 1.035, IF(D10>=DATE(2025,1,1), 1, IF(D10>=DATE(2024,7,1), 1/(1.035*1.02), IF(D10>=DATE(2024,1,1), 1/(1.035*1.02*1.035), IF(D10>=DATE(2023,7,1), 1/(1.035*1.02*1.035*1.035), 1/(1.035*1.02*1.035*1.035*1.02))))))*100 -> 91.5206569
C11: Datum t/m | D11: =DATE(YEAR(D10),MONTH(D10)+1,1)-1 -> 2024-01-31 | F11: Oktober | G11: inhouding | H11: =IF((E24+E25)*12<=38441, (E24+E25)*35.82%, IF((E24+E25)*12<=76817, (E24+E25)*37.48%, IF((E24+E25)*12<=76817, (E24+E25)*49.5%))) -> 0
A12: LOONSTROOK | F12: November
F13: December
A14: Medewerkernummer: | B14: =_xlfn.XLOOKUP(D8, personeelsoverzicht!E:E, personeelsoverzicht!A:A) -> EMP00066
A15: Datum in dienst: | B15: =_xlfn.XLOOKUP(D8, personeelsoverzicht!E:E, personeelsoverzicht!N:N) -> 2012-08-10
A16: Functie: | B16: =_xlfn.XLOOKUP(D8, personeelsoverzicht!E:E,personeelsoverzicht!M:M) -> Voorman
A17: Afdeling: | B17: =_xlfn.XLOOKUP(D8, personeelsoverzicht!E:E,personeelsoverzicht!L:L) -> Uitvoering
A18: Printdatum | B18: =TODAY() -> 2025-06-09
A22: Omschrijving | B22: Aantal | D22: Basis | E22: Bruto/Netto
A23: Salaris (Uit uren gewerkt) | B23: =_xlfn.XLOOKUP(D8,personeelsoverzicht!E:E,personeelsoverzicht!T:T)*174.8 -> 157.32 | E23: =_xlfn.XLOOKUP(D8, personeelsoverzicht!E:E,personeelsoverzicht!X:X)*(H10/100) -> 3886.511237
A24: =IF(MONTH(D9)=5, "Vakantiegeld", "") ->  | E24: =IF(MONTH(D9)=5, _xlfn.XLOOKUP(D8, personeelsoverzicht!E:E,personeelsoverzicht!Z:Z)*12, 0) -> 0
A25: =IF(MONTH(D9)=12, "Dertiende maand", "") ->  | E25: =IF(MONTH(D9)=12, E23, 0) -> 0
A26: Brutoloon | E26: =E23+E24+E25 -> 3886.511237
A27: Premie WW/WGA | B27: 0.0008 | E27: =_xlfn.XLOOKUP(D8, personeelsoverzicht!E:E,personeelsoverzicht!AE:AE) -> -3.397275648
A28: Pensioen | B28: 0.094 | E28: =_xlfn.XLOOKUP(D8, personeelsoverzicht!E:E, personeelsoverzicht!AF:AF) -> -287.724046
A29: Loonheffing | D29: =E26+E27+E28 -> 3595.389915 | E29: =_xlfn.XLOOKUP(D8, personeelsoverzicht!E:E, personeelsoverzicht!AI:AI)+D41-H11 -> -914.4404631
A31: Netto loon | E31: =E26+E27+E28+E29 -> 2680.949452
A32: Te betalen loon | E32: =E31 -> 2680.949452
A38: Vaste gegevens | D38: Grondslagen | E38: Reserveringen:
A40: tabelkleur: | B40: Wit | C40: Loon LH: | D40: =D29 -> 3595.389915 | E40: Vakantietoeslag:
A41: Loontijdvak: | B41: Maand | C41: Arbeidskorting | D41: =_xlfn.XLOOKUP(D8, personeelsoverzicht!E:E, personeelsoverzicht!AC:AC) -> 400.752427 | E41: =E23*8% -> 310.920899
A42: Minimumloon: | B42: =_xlfn.XLOOKUP(D8, personeelsoverzicht!E:E, personeelsoverzicht!AJ:AJ) -> 20.85 | E42: Dertiende maand:
A43: Percentage BT: | C43: Loonheffing | E43: =E23/12 -> 323.8759364
A44: Heffingskorting: | B44: Toepassen | C44: Normaal tarief: | D44: =+E29 -> -914.4404631
C45: Bijzonder tarief:
A48: Dienstverband | B48: Kostenplaats | C48: Type contract | D48: U/week | E48: PT%
A49: =_xlfn.XLOOKUP(D8, personeelsoverzicht!E:E,personeelsoverzicht!R:R) -> Onbepaalde tijd | B49: =B17 -> Uitvoering | C49: onbepaalde tijd | D49: =40*E49 -> 36 | E49: =_xlfn.XLOOKUP(D8, personeelsoverzicht!E:E,personeelsoverzicht!T:T) -> 0.9
A51: Loonschaal | B51: Trede | D51: Salaris | E51: Uurloon
A52: =_xlfn.XLOOKUP(D8, personeelsoverzicht!E:E,personeelsoverzicht!V:V) -> E | D52: =E26 -> 3886.511237 | E52: =E23/B23 -> 24.70449553

Sheet JO
B2: Jaaropgave | C2: =E7 -> 2024
B7: Elise Dijkstra | C7: =IF(B7="Naam","Kies een naam of voer een naam in!","") ->  | D7: Kies een jaar | E7: 2024
B8: =_xlfn.XLOOKUP(B7, personeelsoverzicht!E:E, personeelsoverzicht!I:I) -> Laan van Vollenhove 189
B9: =_xlfn.XLOOKUP(B7, personeelsoverzicht!E:E, CONCATENATE(personeelsoverzicht!J:J, " ", personeelsoverzicht!K:K)) -> 3519 GH Driebergen-Rijsenburg | D9: index | E9: =IF(E7=2023, 0.9265, IF(E7=2024, 0.95, IF(E7=2025, 1, IF(E7=2026, 1.04, "")))) -> 0.95
A12: Gegevens werknemer
A14: Personeelsnummer | B14: =_xlfn.XLOOKUP(B7, personeelsoverzicht!E:E,personeelsoverzicht!A:A) -> EMP00100
A15: Geboortedatum | B15: =_xlfn.XLOOKUP(B7,personeelsoverzicht!E:E,personeelsoverzicht!G:G) -> 1987-12-09
A17: Datum in dienst | B17: =_xlfn.XLOOKUP(B7,personeelsoverzicht!E:E,personeelsoverzicht!N:N) -> 2022-03-25
A18: Datum uit dienst
A20: Gegevens werkgever
A22: Bedrijf | B22: Grondig B.V.
A23: Adres | B23: Lage Weide 419
A24: Plaats | B24: 3599 ZZ Utrecht
A28: Loon loonbelasting / volksverzekering | B28: Ingehouden loonbelasting / premie volksverzekering | C28: Verrekende Arbeidskorting
A29: =_xlfn.XLOOKUP(B7,personeelsoverzicht!E:E,personeelsoverzicht!AD:AD)*E9 -> 28474.01382 | B29: =ABS(_xlfn.XLOOKUP(B7,personeelsoverzicht!E:E,personeelsoverzicht!AI:AI)*12)*E9 -> 6219.227545 | C29: =_xlfn.XLOOKUP(B7,personeelsoverzicht!E:E,personeelsoverzicht!AC:AC)*12*E9 -> 5038.039344
A31: Loon Zorgverzekeringswet | B31: Inh. bijdrage Zorgverzekeringswet | C31: Ziektekostenverzekering
A32: =A29 -> 28474.01382 | B32: =MIN(A29,71628)*0.0657 -> 1870.742708 | C32: 0
A34: Loonheffingskorting
A35: m.i.v. 01.01 Ja
A37: Werkgeversbijdrage Werknemersverzekering | B37: Werkgersbijdrage Zorgverzekeringswet
A38: =MIN(A29,75860) * (2.74% + 6.28% + 0.72% + 0.32% + 6.51%) -> 4718.144089 | B38: =MIN(A29,758600)*0.0651 -> 1853.658299

Sheet PK
B3: Personeelskosten per medewerker | K3: Januari
K4: Februari
K5: April
B6: Gegevens medewerker | C6: Elise Dijkstra | E6: =IF(C6="Naam","Kies een naam of voer een naam in!","") ->  | K6: Oktober | O6: Pensioengrondslag | Q6: =#REF!-#REF! -> 
K7: November
B8: Medewerkernummer: | D8: =_xlfn.XLOOKUP(C6, personeelsoverzicht!E:E, personeelsoverzicht!A:A) -> EMP00100 | K8: December
B9: Datum in dienst: | D9: =_xlfn.XLOOKUP(C6, personeelsoverzicht!E:E, personeelsoverzicht!N:N) -> 2022-03-25 | E9: Functie: | F9: =_xlfn.XLOOKUP(C6, personeelsoverzicht!E:E,personeelsoverzicht!M:M) -> Secretaresse | K9: December
B10: Schaal: | D10: =_xlfn.XLOOKUP(C6,personeelsoverzicht!E:E,personeelsoverzicht!V:V) -> UTA 3 | E10: Afdeling: | F10: =_xlfn.XLOOKUP(C6, personeelsoverzicht!E:E,personeelsoverzicht!L:L) -> Commercie en financïen
B12: Arbeidsvoorwaarden
B14: Loon | D14: =_xlfn.XLOOKUP(C6,personeelsoverzicht!E:E,personeelsoverzicht!AD:AD) -> 29972.64612
B15: Vakantiegeld: | D15: =D14*8% -> 2397.81169
B16: Loon incl. Vakantiegeld: | D16: =D14+D15 -> 32370.45781
B17: Zorgverzekeringswet: | D17: =D16*6.51% -> 2107.316804
B18: Awf:
B19: Aof: | D19: =D16*2.74% -> 886.950544
B20: Whk: | D20: =D16*1.13% -> 365.7861733
B21: Pensioen bpfBouw: | D21: =((_xlfn.XLOOKUP(C6,personeelsoverzicht!E:E,personeelsoverzicht!AD:AD)*1.08)-18475)*16.3282% -> 2268.878142
B22: Opleidingsfonds: | D22: =IF(OR(D10="A", D10="B", D10="C", D10="D", D10="E"), D16*1.5%, D16*0.752%) -> 243.4258427
B25: Totaal personeelsosten | D25: =SUM(D16:D22) -> 38242.81532

Sheet personeelsoverzicht (hidden)
A1: Medewerker ID | B1: Voornaam | C1: Tussenv. | D1: Achternaam | E1: Naam | F1: Geslacht | G1: Geboortedatum | H1: Leeftijd | I1: Adres | J1: Postcode | K1: Woonplaats | L1: Afdeling | M1: Functietitel | N1: Datum in dienst | O1: Aantal dienstjaren | P1: Type contract | Q1: Afgeronde dienstjaren | R1: Einde contract | S1: Aantal contracten | T1: FTE | U1: Uren per week | V1: CAO-schaal | W1: Uurloon | X1: Bruto maandsalaris | Y1: Jaarlijkse salarisstijging | Z1: Vakantiegeld | AA1: vakantie uren | AB1: Start datum ziekte | AC1: Arbeidskorting | AD1: Jaarsalaris | AE1: inhouding premie | AF1: Inhouding pensioen | AG1: Heffingskorting | AH1: Belastbaar maandsalaris | AI1: Loonheffing | AJ1: Minimumloon
A2: EMP00005 | B2: Marco | D2: Willems | E2: =B2 & IF(C2="", " ", " " & C2 & " ") & D2 -> Marco Willems | F2: M | G2: 1997-01-13 | H2: =(TODAY()-Tabel1[[#This Row],[Geboortedatum]])/365.25 -> 28.40246407 | I2: Rijnlaan 164 | J2: 3622 EF | K2: Culemborg | L2: Commercie en financïen | M2: Accountmanager | N2: 2020-03-12 | O2: =(TODAY()-Tabel1[[#This Row],[Datum in dienst]])/365.25 -> 5.242984257 | P2: Vast | Q2: =ROUNDDOWN(Tabel1[[#This Row],[Aantal dienstjaren]],0) -> 5 | R2: Onbepaalde tijd | S2: 3 | T2: 1 | U2: =40*Tabel1[[#This Row],[FTE]] -> 40 | V2: UTA 5 | W2: =(MIN(Lonen!C16*(Tabel1[[#This Row],[Jaarlijkse salarisstijging]])^Tabel1[[#This Row],[Aantal dienstjaren]],Lonen!D16))/174.08 -> 25.57363961 | X2: =(MIN(Lonen!C15*(personeelsoverzicht!Y2)^Tabel1[[#This Row],[Afgeronde dienstjaren]],Lonen!D15))*Tabel1[[#This Row],[FTE]] -> 3833.487509 | Y2: 1.03 | Z2: =Tabel1[[#This Row],[Bruto maandsalaris]]*8% -> 306.6790007 | AB2: NVT | AC2: =ABS(IF(Tabel1[[#This Row],[Jaarsalaris]]<=12169,0.08053*Tabel1[[#This Row],[Jaarsalaris]],IF(Tabel1[[#This Row],[Jaarsalaris]]<=26288,980+0.3003*(Tabel1[[#This Row],[Jaarsalaris]]-12169),IF(Tabel1[[#This Row],[Jaarsalaris]]<=43071,5220+0.02258*(Tabel1[[#This Row],[Jaarsalaris]]-26288),IF(Tabel1[[#This Row],[Jaarsalaris]]<=129078,5599-0.0651*(Tabel1[[#This Row],[Jaarsalaris]]-43071),0)))))/12 -> 429.8868018 | AD2: =Tabel1[[#This Row],[Bruto maandsalaris]]*13 -> 49835.33762 | AE2: =-Tabel1[[#This Row],[Bruto maandsalaris]]*0.08% -> -3.066790007 | AF2: =-((Tabel1[[#This Row],[Jaarsalaris]]-18475)*9.4%)/12 -> -245.655978 | AG2: =IF(Tabel1[[#This Row],[Jaarsalaris]]<=28406, 3068, IF(AD2<=76817, 3068 - 0.06337 * (AD2 - 28406), 0))/12 -> 142.5019063 | AH2: =Tabel1[[#This Row],[Bruto maandsalaris]]+Tabel1[[#This Row],[inhouding premie]]+Tabel1[[#This Row],[Inhouding pensioen]] -> 3584.764741 | AI2: =-IF(Tabel1[[#This Row],[Belastbaar maandsalaris]]*12<=38441, Tabel1[[#This Row],[Belastbaar maandsalaris]]*0.3582, IF(Tabel1[[#This Row],[Belastbaar maandsalaris]]*12<=76817, (38441*0.3582 + (Tabel1[[#This Row],[Belastbaar maandsalaris]]*12-38441)*0.3748)/12, (38441*0.3582 + (76817-38441)*0.3748 + (Tabel1[[#This Row],[Belastbaar maandsalaris]]*12-76817)*0.495)/12))+Tabel1[[#This Row],[Heffingskorting ]] -> -1147.891202 | AJ2: =Lonen!C15/(40*4.33) -> 19.09237875
A3: EMP00095 | B3: Lucas | C3: de | D3: Boer | E3: Lucas de Boer | F3: M | G3: 1993-07-24 | H3: =(TODAY()-Tabel1[[#This Row],[Geboortedatum]])/365.25 -> 31.87679671 | I3: Zonstraat 21 | J3: 3772 GH | K3: IJsselstein | L3: Commercie en financïen | M3: Accountmanager | N3: 2020-01-24 | O3: =(TODAY()-Tabel1[[#This Row],[Datum in dienst]])/365.25 -> 5.374401095 | P3: Vast | Q3: =ROUNDDOWN(Tabel1[[#This Row],[Aantal dienstjaren]],0) -> 5 | R3: Onbepaalde tijd | S3: 3 | T3: 1 | U3: =40*Tabel1[[#This Row],[FTE]] -> 40 | V3: UTA 5 | W3: =(MIN(Lonen!C16*(Tabel1[[#This Row],[Jaarlijkse salarisstijging]])^Tabel1[[#This Row],[Aantal dienstjaren]],Lonen!D16))/174.08 -> 25.67317423 | X3: =(MIN(Lonen!C14*(Tabel1[[#This Row],[Jaarlijkse salarisstijging]])^Tabel1[[#This Row],[Aantal dienstjaren]],Lonen!D14))*Tabel1[[#This Row],[FTE]] -> 3421.003986 | Y3: 1.03 | Z3: =Tabel1[[#This Row],[Bruto maandsalaris]]*8% -> 273.6803189 | AB3: NVT | AC3: =ABS(IF(Tabel1[[#This Row],[Jaarsalaris]]<=12169,0.08053*Tabel1[[#This Row],[Jaarsalaris]],IF(Tabel1[[#This Row],[Jaarsalaris]]<=26288,980+0.3003*(Tabel1[[#This Row],[Jaarsalaris]]-12169),IF(Tabel1[[#This Row],[Jaarsalaris]]<=43071,5220+0.02258*(Tabel1[[#This Row],[Jaarsalaris]]-26288),IF(Tabel1[[#This Row],[Jaarsalaris]]<=129078,5599-0.0651*(Tabel1[[#This Row],[Jaarsalaris]]-43071),0)))))/12 -> 458.9772022 | AD3: =Tabel1[[#This Row],[Bruto maandsalaris]]*13 -> 44473.05182 | AE3: =-Tabel1[[#This Row],[Bruto maandsalaris]]*0.08% -> -2.736803189 | AF3: =-((Tabel1[[#This Row],[Jaarsalaris]]-18475)*9.4%)/12 -> -203.6514059 | AG3: =IF(Tabel1[[#This Row],[Jaarsalaris]]<=28406, 3068, IF(AD3<=76817, 3068 - 0.06337 * (AD3 - 28406), 0))/12 -> 170.8192438 | AH3: =Tabel1[[#This Row],[Bruto maandsalaris]]+Tabel1[[#This Row],[inhouding premie]]+Tabel1[[#This Row],[Inhouding pensioen]] -> 3214.615777 | AI3: =-IF(Tabel1[[#This Row],[Belastbaar maandsalaris]]*12<=38441, Tabel1[[#This Row],[Belastbaar maandsalaris]]*0.3582, IF(Tabel1[[#This Row],[Belastbaar maandsalaris]]*12<=76817, (38441*0.3582 + (Tabel1[[#This Row],[Belastbaar maandsalaris]]*12-38441)*0.3748)/12, (38441*0.3582 + (76817-38441)*0.3748 + (Tabel1[[#This Row],[Belastbaar maandsalaris]]*12-76817)*0.495)/12))+Tabel1[[#This Row],[Heffingskorting ]] -> -980.8420327 | AJ3: =Lonen!C14/(40*4.33) -> 16.85051963
A4: EMP00090 | B4: Elma | C4: de | D4: Vries | E4: Elma de Vries | F4: V | G4: 1998-12-02 | H4: =(TODAY()-Tabel1[[#This Row],[Geboortedatum]])/365.25 -> 26.51882272 | I4: Kastanjelaan 186 | J4: 3845 EF | K4: Leusden | L4: Commercie en financïen | M4: Administratief medewerker | N4: 2020-09-02 | O4: =(TODAY()-Tabel1[[#This Row],[Datum in dienst]])/365.25 -> 4.76659822 | P4: Vast | Q4: =ROUNDDOWN(Tabel1[[#This Row],[Aantal dienstjaren]],0) -> 4 | R4: Onbepaalde tijd | S4: 2 | T4: 0.8 | U4: =40*Tabel1[[#This Row],[FTE]] -> 32 | V4: UTA 5 | W4: =(MIN(Lonen!C16*(Tabel1[[#This Row],[Jaarlijkse salarisstijging]])^Tabel1[[#This Row],[Aantal dienstjaren]],Lonen!D16))/174.08 -> 25.21605053 | X4: =(MIN(Lonen!C3*(Tabel1[[#This Row],[Jaarlijkse salarisstijging]])^Tabel1[[#This Row],[Afgeronde dienstjaren]],Lonen!E3)*174.08)*Tabel1[[#This Row],[FTE]] -> 2595.661744 | Y4: 1.03 | Z4: =Tabel1[[#This Row],[Bruto maandsalaris]]*8% -> 207.6529395 | AB4: NVT | AC4: =ABS(IF(Tabel1[[#This Row],[Jaarsalaris]]<=12169,0.08053*Tabel1[[#This Row],[Jaarsalaris]],IF(Tabel1[[#This Row],[Jaarsalaris]]<=26288,980+0.3003*(Tabel1[[#This Row],[Jaarsalaris]]-12169),IF(Tabel1[[#This Row],[Jaarsalaris]]<=43071,5220+0.02258*(Tabel1[[#This Row],[Jaarsalaris]]-26288),IF(Tabel1[[#This Row],[Jaarsalaris]]<=129078,5599-0.0651*(Tabel1[[#This Row],[Jaarsalaris]]-43071),0)))))/12 -> 449.028959 | AD4: =Tabel1[[#This Row],[Bruto maandsalaris]]*13 -> 33743.60267 | AE4: =-Tabel1[[#This Row],[Bruto maandsalaris]]*0.08% -> -2.076529395 | AF4: =-((Tabel1[[#This Row],[Jaarsalaris]]-18475)*9.4%)/12 -> -119.6040542 | AG4: =IF(Tabel1[[#This Row],[Jaarsalaris]]<=28406, 3068, IF(AD4<=76817, 3068 - 0.06337 * (AD4 - 28406), 0))/12 -> 227.4796766 | AH4: =Tabel1[[#This Row],[Bruto maandsalaris]]+Tabel1[[#This Row],[inhouding premie]]+Tabel1[[#This Row],[Inhouding pensioen]] -> 2473.98116 | AI4: =-IF(Tabel1[[#This Row],[Belastbaar maandsalaris]]*12<=38441, Tabel1[[#This Row],[Belastbaar maandsalaris]]*0.3582, IF(Tabel1[[#This Row],[Belastbaar maandsalaris]]*12<=76817, (38441*0.3582 + (Tabel1[[#This Row],[Belastbaar maandsalaris]]*12-38441)*0.3748)/12, (38441*0.3582 + (76817-38441)*0.3748 + (Tabel1[[#This Row],[Belastbaar maandsalaris]]*12-76817)*0.495)/12))+Tabel1[[#This Row],[Heffingskorting ]] -> -658.7003749 | AJ4: =Lonen!C3 -> 16.56
A5: EMP00102 | B5: Sandra | D5: Jansen | E5: Sandra Jansen | F5: V | G5: 1994-12-10 | H5: =(TODAY()-Tabel1[[#This Row],[Geboortedatum]])/365.25 -> 30.49691992 | I5: Zonstraat 73 | J5: 3516 GH | K5: Nieuwegein | L5: Commercie en financïen | M5: Administratief medewerker | N5: 2023-10-26 | O5: =(TODAY()-Tabel1[[#This Row],[Datum in dienst]])/365.25 -> 1.620807666 | P5: Vast | Q5: =ROUNDDOWN(Tabel1[[#This Row],[Aantal dienstjaren]],0) -> 1 | R5: Onbepaalde tijd | S5: 3 | T5: 0.8 | U5: =40*Tabel1[[#This Row],[FTE]] -> 32 | V5: UTA 5 | W5: =(MIN(Lonen!C16*(Tabel1[[#This Row],[Jaarlijkse salarisstijging]])^Tabel1[[#This Row],[Aantal dienstjaren]],Lonen!D16))/174.08 -> 22.97702759 | X5: =(MIN(Lonen!C3*(Tabel1[[#This Row],[Jaarlijkse salarisstijging]])^Tabel1[[#This Row],[Afgeronde dienstjaren]],Lonen!E3)*174.08)*Tabel1[[#This Row],[FTE]] -> 2375.398195 | Y5: 1.03 | Z5: =Tabel1[[#This Row],[Bruto maandsalaris]]*8% -> 190.0318556 | AB5: NVT | AC5: =ABS(IF(Tabel1[[#This Row],[Jaarsalaris]]<=12169,0.08053*Tabel1[[#This Row],[Jaarsalaris]],IF(Tabel1[[#This Row],[Jaarsalaris]]<=26288,980+0.3003*(Tabel1[[#This Row],[Jaarsalaris]]-12169),IF(Tabel1[[#This Row],[Jaarsalaris]]<=43071,5220+0.02258*(Tabel1[[#This Row],[Jaarsalaris]]-26288),IF(Tabel1[[#This Row],[Jaarsalaris]]<=129078,5599-0.0651*(Tabel1[[#This Row],[Jaarsalaris]]-43071),0)))))/12 -> 443.6409455 | AD5: =Tabel1[[#This Row],[Bruto maandsalaris]]*13 -> 30880.17654 | AE5: =-Tabel1[[#This Row],[Bruto maandsalaris]]*0.08% -> -1.900318556 | AF5: =-((Tabel1[[#This Row],[Jaarsalaris]]-18475)*9.4%)/12 -> -97.17388288 | AG5: =IF(Tabel1[[#This Row],[Jaarsalaris]]<=28406, 3068, IF(AD5<=76817, 3068 - 0.06337 * (AD5 - 28406), 0))/12 -> 242.6009527 | AH5: =Tabel1[[#This Row],[Bruto maandsalaris]]+Tabel1[[#This Row],[inhouding premie]]+Tabel1[[#This Row],[Inhouding pensioen]] -> 2276.323994 | AI5: =-IF(Tabel1[[#This Row],[Belastbaar maandsalaris]]*12<=38441, Tabel1[[#This Row],[Belastbaar maandsalaris]]*0.3582, IF(Tabel1[[#This Row],[Belastbaar maandsalaris]]*12<=76817, (38441*0.3582 + (Tabel1[[#This Row],[Belastbaar maandsalaris]]*12-38441)*0.3748)/12, (38441*0.3582 + (76817-38441)*0.3748 + (Tabel1[[#This Row],[Belastbaar maandsalaris]]*12-76817)*0.495)/12))+Tabel1[[#This Row],[Heffingskorting ]] -> -572.7783018 | AJ5: =Lonen!C3 -> 16.56
A6: EMP00002 | B6: Eelco | D6: Bos | E6: Eelco Bos | F6: M | G6: 1972-06-08 | H6: =(TODAY()-Tabel1[[#This Row],[Geboortedatum]])/365.25 -> 53.00205339 | I6: Kerklaan 146 | J6: 3845 IJ | K6: Woerden | L6: Uitvoering | M6: All-round lasser buisleidingen | N6: 2011-03-08 | O6: =(TODAY()-Tabel1[[#This Row],[Datum in dienst]])/365.25 -> 14.25598905 | P6: Vast | Q6: =ROUNDDOWN(Tabel1[[#This Row],[Aantal dienstjaren]],0) -> 14 | R6: Onbepaalde tijd | S6: 2 | T6: 1 | U6: =40*Tabel1[[#This Row],[FTE]] -> 40 | V6: D | W6: =MIN(Lonen!C6*(Tabel1[[#This Row],[Jaarlijkse salarisstijging]])^Tabel1[[#This Row],[Afgeronde dienstjaren]],Lonen!E6) -> 25.831 | X6: =(MIN(Lonen!C6*(Tabel1[[#This Row],[Jaarlijkse salarisstijging]])^Tabel1[[#This Row],[Afgeronde dienstjaren]],Lonen!E6)*174.08)*Tabel1[[#This Row],[FTE]] -> 4496.66048 | Y6: 1.03 | Z6: =Tabel1[[#This Row],[Bruto maandsalaris]]*8% -> 359.7328384 | AB6: NVT | AC6: =ABS(IF(Tabel1[[#This Row],[Jaarsalaris]]<=12169,0.08053*Tabel1[[#This Row],[Jaarsalaris]],IF(Tabel1[[#This Row],[Jaarsalaris]]<=26288,980+0.3003*(Tabel1[[#This Row],[Jaarsalaris]]-12169),IF(Tabel1[[#This Row],[Jaarsalaris]]<=43071,5220+0.02258*(Tabel1[[#This Row],[Jaarsalaris]]-26288),IF(Tabel1[[#This Row],[Jaarsalaris]]<=129078,5599-0.0651*(Tabel1[[#This Row],[Jaarsalaris]]-43071),0)))))/12 -> 383.116528 | AD6: =Tabel1[[#This Row],[Bruto maandsalaris]]*13 -> 58456.58624 | AE6: =-Tabel1[[#This Row],[Bruto maandsalaris]]*0.08% -> -3.597328384 | AF6: =-((Tabel1[[#This Row],[Jaarsalaris]]-18475)*9.4%)/12 -> -313.1890922 | AG6: =IF(Tabel1[[#This Row],[Jaarsalaris]]<=28406, 3068, IF(AD6<=76817, 3068 - 0.06337 * (AD6 - 28406), 0))/12 -> 96.97452916 | AH6: =Tabel1[[#This Row],[Bruto maandsalaris]]+Tabel1[[#This Row],[inhouding premie]]+Tabel1[[#This Row],[Inhouding pensioen]] -> 4179.874059 | AI6: =-IF(Tabel1[[#This Row],[Belastbaar maandsalaris]]*12<=38441, Tabel1[[#This Row],[Belastbaar maandsalaris]]*0.3582, IF(Tabel1[[#This Row],[Belastbaar maandsalaris]]*12<=76817, (38441*0.3582 + (Tabel1[[#This Row],[Belastbaar maandsalaris]]*12-38441)*0.3748)/12, (38441*0.3582 + (76817-38441)*0.3748 + (Tabel1[[#This Row],[Belastbaar maandsalaris]]*12-76817)*0.495)/12))+Tabel1[[#This Row],[Heffingskorting ]] -> -1416.465552 | AJ6: =Lonen!C6 -> 19.87
A7: EMP00003 | B7: Ayoub | C7: van der | D7: Loo | E7: Ayoub van der Loo | F7: M | G7: 1978-06-04 | H7: =(TODAY()-Tabel1[[#This Row],[Geboortedatum]])/365.25 -> 47.01437372 | I7: Kastanjelaan 86 | J7: 3499 IJ | K7: Woudenberg | L7: Uitvoering | M7: All-round lasser buisleidingen | N7: 2010-10-15 | O7: =(TODAY()-Tabel1[[#This Row],[Datum in dienst]])/365.25 -> 14.65023956 | P7: Vast | Q7: =ROUNDDOWN(Tabel1[[#This Row],[Aantal dienstjaren]],0) -> 14 | R7: Onbepaalde tijd | S7: 3 | T7: 1 | U7: =40*Tabel1[[#This Row],[FTE]] -> 40 | V7: D | W7: =MIN(Lonen!C6*(Tabel1[[#This Row],[Jaarlijkse salarisstijging]])^Tabel1[[#This Row],[Afgeronde dienstjaren]],Lonen!E6) -> 25.831 | X7: =(MIN(Lonen!C6*(Tabel1[[#This Row],[Jaarlijkse salarisstijging]])^Tabel1[[#This Row],[Afgeronde dienstjaren]],Lonen!E6)*174.08)*Tabel1[[#This Row],[FTE]] -> 4496.66048 | Y7: 1.03 | Z7: =Tabel1[[#This Row],[Bruto maandsalaris]]*8% -> 359.7328384 | AB7: NVT | AC7: =ABS(IF(Tabel1[[#This Row],[Jaarsalaris]]<=12169,0.08053*Tabel1[[#This Row],[Jaarsalaris]],IF(Tabel1[[#This Row],[Jaarsalaris]]<=26288,980+0.3003*(Tabel1[[#This Row],[Jaarsalaris]]-12169),IF(Tabel1[[#This Row],[Jaarsalaris]]<=43071,5220+0.02258*(Tabel1[[#This Row],[Jaarsalaris]]-26288),IF(Tabel1[[#This Row],[Jaarsalaris]]<=129078,5599-0.0651*(Tabel1[[#This Row],[Jaarsalaris]]-43071),0)))))/12 -> 383.116528 | AD7: =Tabel1[[#This Row],[Bruto maandsalaris]]*13 -> 58456.58624 | AE7: =-Tabel1[[#This Row],[Bruto maandsalaris]]*0.08% -> -3.597328384 | AF7: =-((Tabel1[[#This Row],[Jaarsalaris]]-18475)*9.4%)/12 -> -313.1890922 | AG7: =IF(Tabel1[[#This Row],[Jaarsalaris]]<=28406, 3068, IF(AD7<=76817, 3068 - 0.06337 * (AD7 - 28406), 0))/12 -> 96.97452916 | AH7: =Tabel1[[#This Row],[Bruto maandsalaris]]+Tabel1[[#This Row],[inhouding premie]]+Tabel1[[#This Row],[Inhouding pensioen]] -> 4179.874059 | AI7: =-IF(Tabel1[[#This Row],[Belastbaar maandsalaris]]*12<=38441, Tabel1[[#This Row],[Belastbaar maandsalaris]]*0.3582, IF(Tabel1[[#This Row],[Belastbaar maandsalaris]]*12<=76817, (38441*0.3582 + (Tabel1[[#This Row],[Belastbaar maandsalaris]]*12-38441)*0.3748)/12, (38441*0.3582 + (76817-38441)*0.3748 + (Tabel1[[#This Row],[Belastbaar maandsalaris]]*12-76817)*0.495)/12))+Tabel1[[#This Row],[Heffingskorting ]] -> -1416.465552 | AJ7: =Lonen!C6 -> 19.87
A8: EMP00084 | B8: Sanne | D8: Jansen | E8: Sanne Jansen | F8: V | G8: 1979-04-04 | H8: =(TODAY()-Tabel1[[#This Row],[Geboortedatum]])/365.25 -> 46.18206708 | I8: Laan van Vollenhove 40 | J8: 3484 GH | K8: Vianen | L8: Staf | M8: Bedrijfsjurist | N8: 2012-07-18 | O8: =(TODAY()-Tabel1[[#This Row],[Datum in dienst]])/365.25 -> 12.89253936 | P8: Vast | Q8: =ROUNDDOWN(Tabel1[[#This Row],[Aantal dienstjaren]],0) -> 12 | R8: Onbepaalde tijd | S8: 3 | T8: 0.7 | U8: =40*Tabel1[[#This Row],[FTE]] -> 28 | V8: UTA 5 | W8: =(MIN(Lonen!C16*(Tabel1[[#This Row],[Jaarlijkse salarisstijging]])^Tabel1[[#This Row],[Aantal dienstjaren]],Lonen!D16))/174.08 -> 30.30261949 | X8: =(MIN(Lonen!C16*(Tabel1[[#This Row],[Jaarlijkse salarisstijging]])^Tabel1[[#This Row],[Aantal dienstjaren]],Lonen!D16))*Tabel1[[#This Row],[FTE]] -> 3692.556 | Y8: 1.03 | Z8: =Tabel1[[#This Row],[Bruto maandsalaris]]*8% -> 295.40448 | AB8: NVT | AC8: =ABS(IF(Tabel1[[#This Row],[Jaarsalaris]]<=12169,0.08053*Tabel1[[#This Row],[Jaarsalaris]],IF(Tabel1[[#This Row],[Jaarsalaris]]<=26288,980+0.3003*(Tabel1[[#This Row],[Jaarsalaris]]-12169),IF(Tabel1[[#This Row],[Jaarsalaris]]<=43071,5220+0.02258*(Tabel1[[#This Row],[Jaarsalaris]]-26288),IF(Tabel1[[#This Row],[Jaarsalaris]]<=129078,5599-0.0651*(Tabel1[[#This Row],[Jaarsalaris]]-43071),0)))))/12 -> 439.8259964 | AD8: =Tabel1[[#This Row],[Bruto maandsalaris]]*13 -> 48003.228 | AE8: =-Tabel1[[#This Row],[Bruto maandsalaris]]*0.08% -> -2.9540448 | AF8: =-((Tabel1[[#This Row],[Jaarsalaris]]-18475)*9.4%)/12 -> -231.3044527 | AG8: =IF(Tabel1[[#This Row],[Jaarsalaris]]<=28406, 3068, IF(AD8<=76817, 3068 - 0.06337 * (AD8 - 28406), 0))/12 -> 152.1769718 | AH8: =Tabel1[[#This Row],[Bruto maandsalaris]]+Tabel1[[#This Row],[inhouding premie]]+Tabel1[[#This Row],[Inhouding pensioen]] -> 3458.297503 | AI8: =-IF(Tabel1[[#This Row],[Belastbaar maandsalaris]]*12<=38441, Tabel1[[#This Row],[Belastbaar maandsalaris]]*0.3582, IF(Tabel1[[#This Row],[Belastbaar maandsalaris]]*12<=76817, (38441*0.3582 + (Tabel1[[#This Row],[Belastbaar maandsalaris]]*12-38441)*0.3748)/12, (38441*0.3582 + (76817-38441)*0.3748 + (Tabel1[[#This Row],[Belastbaar maandsalaris]]*12-76817)*0.495)/12))+Tabel1[[#This Row],[Heffingskorting ]] -> -1090.816215 | AJ8: =Lonen!C16/(40*4.33) -> 22.01345266
A9: EMP00093 | B9: Jan | D9: Bakker | E9: Jan Bakker | F9: M | G9: 1984-03-26 | H9: =(TODAY()-Tabel1[[#This Row],[Geboortedatum]])/365.25 -> 41.20465435 | I9: Kerklaan 146 | J9: 3925 AB | K9: Utrecht | L9: Staf | M9: Bedrijfsjurist | N9: 2010-03-21 | O9: =(TODAY()-Tabel1[[#This Row],[Datum in dienst]])/365.25 -> 15.21971253 | P9: Vast | Q9: =ROUNDDOWN(Tabel1[[#This Row],[Aantal dienstjaren]],0) -> 15 | R9: Onbepaalde tijd | S9: 3 | T9: 1 | U9: =40*Tabel1[[#This Row],[FTE]] -> 40 | V9: UTA 5 | W9: =(MIN(Lonen!C16*(Tabel1[[#This Row],[Jaarlijkse salarisstijging]])^Tabel1[[#This Row],[Aantal dienstjaren]],Lonen!D16))/174.08 -> 30.30261949 | X9: =(MIN(Lonen!C16*(Tabel1[[#This Row],[Jaarlijkse salarisstijging]])^Tabel1[[#This Row],[Aantal dienstjaren]],Lonen!D16))*Tabel1[[#This Row],[FTE]] -> 5275.08 | Y9: 1.03 | Z9: =Tabel1[[#This Row],[Bruto maandsalaris]]*8% -> 422.0064 | AB9: NVT | AC9: =ABS(IF(Tabel1[[#This Row],[Jaarsalaris]]<=12169,0.08053*Tabel1[[#This Row],[Jaarsalaris]],IF(Tabel1[[#This Row],[Jaarsalaris]]<=26288,980+0.3003*(Tabel1[[#This Row],[Jaarsalaris]]-12169),IF(Tabel1[[#This Row],[Jaarsalaris]]<=43071,5220+0.02258*(Tabel1[[#This Row],[Jaarsalaris]]-26288),IF(Tabel1[[#This Row],[Jaarsalaris]]<=129078,5599-0.0651*(Tabel1[[#This Row],[Jaarsalaris]]-43071),0)))))/12 -> 328.2184913 | AD9: =Tabel1[[#This Row],[Bruto maandsalaris]]*13 -> 68576.04 | AE9: =-Tabel1[[#This Row],[Bruto maandsalaris]]*0.08% -> -4.220064 | AF9: =-((Tabel1[[#This Row],[Jaarsalaris]]-18475)*9.4%)/12 -> -392.4581467 | AG9: =IF(Tabel1[[#This Row],[Jaarsalaris]]<=28406, 3068, IF(AD9<=76817, 3068 - 0.06337 * (AD9 - 28406), 0))/12 -> 43.53538043 | AH9: =Tabel1[[#This Row],[Bruto maandsalaris]]+Tabel1[[#This Row],[inhouding premie]]+Tabel1[[#This Row],[Inhouding pensioen]] -> 4878.401789 | AI9: =-IF(Tabel1[[#This Row],[Belastbaar maandsalaris]]*12<=38441, Tabel1[[#This Row],[Belastbaar maandsalaris]]*0.3582, IF(Tabel1[[#This Row],[Belastbaar maandsalaris]]*12<=76817, (38441*0.3582 + (Tabel1[[#This Row],[Belastbaar maandsalaris]]*12-38441)*0.3748)/12, (38441*0.3582 + (76817-38441)*0.3748 + (Tabel1[[#This Row],[Belastbaar maandsalaris]]*12-76817)*0.495)/12))+Tabel1[[#This Row],[Heffingskorting ]] -> -1731.712894 | AJ9: =Lonen!C16/(40*4.33) -> 22.01345266
A10: EMP00065 | B10: Bram | C10: de | D10: Boer | E10: Bram de Boer | F10: M | G10: 1976-02-15 | H10: =(TODAY()-Tabel1[[#This Row],[Geboortedatum]])/365.25 -> 49.31416838 | I10: Valkenierstraat 105 | J10: 3499 CD | K10: Woerden | L10: Uitvoering | M10: Beheerder magazijn | N10: 2009-05-21 | O10: =(TODAY()-Tabel1[[#This Row],[Datum in dienst]])/365.25 -> 16.05201916 | P10: Vast | Q10: =ROUNDDOWN(Tabel1[[#This Row],[Aantal dienstjaren]],0) -> 16 | R10: Onbepaalde tijd | S10: 3 | T10: 0.8 | U10: =40*Tabel1[[#This Row],[FTE]] -> 32 | V10: UTA 5 | W10: =(MIN(Lonen!C16*(Tabel1[[#This Row],[Jaarlijkse salarisstijging]])^Tabel1[[#This Row],[Aantal dienstjaren]],Lonen!D16))/174.08 -> 30.30261949 | X10: =(MIN(Lonen!C15*(personeelsoverzicht!Y2)^Tabel1[[#This Row],[Afgeronde dienstjaren]],Lonen!D15))*Tabel1[[#This Row],[FTE]] -> 3609.656 | Y10: 1.03 | Z10: =Tabel1[[#This Row],[Bruto maandsalaris]]*8% -> 288.77248 | AB10: NVT | AC10: =ABS(IF(Tabel1[[#This Row],[Jaarsalaris]]<=12169,0.08053*Tabel1[[#This Row],[Jaarsalaris]],IF(Tabel1[[#This Row],[Jaarsalaris]]<=26288,980+0.3003*(Tabel1[[#This Row],[Jaarsalaris]]-12169),IF(Tabel1[[#This Row],[Jaarsalaris]]<=43071,5220+0.02258*(Tabel1[[#This Row],[Jaarsalaris]]-26288),IF(Tabel1[[#This Row],[Jaarsalaris]]<=129078,5599-0.0651*(Tabel1[[#This Row],[Jaarsalaris]]-43071),0)))))/12 -> 445.6725189 | AD10: =Tabel1[[#This Row],[Bruto maandsalaris]]*13 -> 46925.528 | AE10: =-Tabel1[[#This Row],[Bruto maandsalaris]]*0.08% -> -2.8877248 | AF10: =-((Tabel1[[#This Row],[Jaarsalaris]]-18475)*9.4%)/12 -> -222.8624693 | AG10: =IF(Tabel1[[#This Row],[Jaarsalaris]]<=28406, 3068, IF(AD10<=76817, 3068 - 0.06337 * (AD10 - 28406), 0))/12 -> 157.8681259 | AH10: =Tabel1[[#This Row],[Bruto maandsalaris]]+Tabel1[[#This Row],[inhouding premie]]+Tabel1[[#This Row],[Inhouding pensioen]] -> 3383.905806 | AI10: =-IF(Tabel1[[#This Row],[Belastbaar maandsalaris]]*12<=38441, Tabel1[[#This Row],[Belastbaar maandsalaris]]*0.3582, IF(Tabel1[[#This Row],[Belastbaar maandsalaris]]*12<=76817, (38441*0.3582 + (Tabel1[[#This Row],[Belastbaar maandsalaris]]*12-38441)*0.3748)/12, (38441*0.3582 + (76817-38441)*0.3748 + (Tabel1[[#This Row],[Belastbaar maandsalaris]]*12-76817)*0.495)/12))+Tabel1[[#This Row],[Heffingskorting ]] -> -1057.243053 | AJ10: =Lonen!C15/(40*4.33) -> 19.09237875
A11: EMP00023 | B11: Jules | D11: Melet | E11: Jules Melet | F11: M | G11: 1966-07-21 | H11: =(TODAY()-Tabel1[[#This Row],[Geboortedatum]])/365.25 -> 58.88569473 | I11: Kastanjelaan 105 | J11: 3955 IJ | K11: Maarssen | L11: Uitvoering | M11: Beheerder materieel | N11: 2020-07-12 | O11: =(TODAY()-Tabel1[[#This Row],[Datum in dienst]])/365.25 -> 4.908966461 | P11: Vast | Q11: =ROUNDDOWN(Tabel1[[#This Row],[Aantal dienstjaren]],0) -> 4 | R11: Onbepaalde tijd | S11: 2 | T11: 0.6 | U11: =40*Tabel1[[#This Row],[FTE]] -> 24 | V11: UTA 3 | W11: =(MIN(Lonen!C14*(Tabel1[[#This Row],[Jaarlijkse salarisstijging]])^Tabel1[[#This Row],[Aantal dienstjaren]],Lonen!D14))/174.08 -> 19.38339354 | X11: =(MIN(Lonen!C12*(Tabel1[[#This Row],[Jaarlijkse salarisstijging]])^Tabel1[[#This Row],[Aantal dienstjaren]],Lonen!D12))*Tabel1[[#This Row],[FTE]] -> 1657.335204 | Y11: 1.03 | Z11: =Tabel1[[#This Row],[Bruto maandsalaris]]*8% -> 132.5868163 | AB11: NVT | AC11: =ABS(IF(Tabel1[[#This Row],[Jaarsalaris]]<=12169,0.08053*Tabel1[[#This Row],[Jaarsalaris]],IF(Tabel1[[#This Row],[Jaarsalaris]]<=26288,980+0.3003*(Tabel1[[#This Row],[Jaarsalaris]]-12169),IF(Tabel1[[#This Row],[Jaarsalaris]]<=43071,5220+0.02258*(Tabel1[[#This Row],[Jaarsalaris]]-26288),IF(Tabel1[[#This Row],[Jaarsalaris]]<=129078,5599-0.0651*(Tabel1[[#This Row],[Jaarsalaris]]-43071),0)))))/12 -> 316.3100169 | AD11: =Tabel1[[#This Row],[Bruto maandsalaris]]*13 -> 21545.35765 | AE11: =-Tabel1[[#This Row],[Bruto maandsalaris]]*0.08% -> -1.325868163 | AF11: =-((Tabel1[[#This Row],[Jaarsalaris]]-18475)*9.4%)/12 -> -24.05113493 | AG11: =IF(Tabel1[[#This Row],[Jaarsalaris]]<=28406, 3068, IF(AD11<=76817, 3068 - 0.06337 * (AD11 - 28406), 0))/12 -> 255.6666667 | AH11: =Tabel1[[#This Row],[Bruto maandsalaris]]+Tabel1[[#This Row],[inhouding premie]]+Tabel1[[#This Row],[Inhouding pensioen]] -> 1631.958201 | AI11: =-IF(Tabel1[[#This Row],[Belastbaar maandsalaris]]*12<=38441, Tabel1[[#This Row],[Belastbaar maandsalaris]]*0.3582, IF(Tabel1[[#This Row],[Belastbaar maandsalaris]]*12<=76817, (38441*0.3582 + (Tabel1[[#This Row],[Belastbaar maandsalaris]]*12-38441)*0.3748)/12, (38441*0.3582 + (76817-38441)*0.3748 + (Tabel1[[#This Row],[Belastbaar maandsalaris]]*12-76817)*0.495)/12))+Tabel1[[#This Row],[Heffingskorting ]] -> -328.9007609 | AJ11: =Lonen!C12/(40*4.33) -> 13.79411085
A12: EMP00014 | B12: Mano | C12: van | D12: Graven | E12: Mano van Graven | F12: M | G12: 1976-10-27 | H12: =(TODAY()-Tabel1[[#This Row],[Geboortedatum]])/365.25 -> 48.61601643 | I12: Prins Hendriklaan 35 | J12: 3827 IJ | K12: Leusden | L12: Uitvoering | M12: Betonstorter | N12: 2005-07-21 | O12: =(TODAY()-Tabel1[[#This Row],[Datum in dienst]])/365.25 -> 19.88501027 | P12: Vast | Q12: =ROUNDDOWN(Tabel1[[#This Row],[Aantal dienstjaren]],0) -> 19 | R12: Onbepaalde tijd | S12: 3 | T12: 1 | U12: =40*Tabel1[[#This Row],[FTE]] -> 40 | V12: C | W12: =MIN(Lonen!C5*(Tabel1[[#This Row],[Jaarlijkse salarisstijging]])^Tabel1[[#This Row],[Afgeronde dienstjaren]],Lonen!E5) -> 24.18 | X12: =(MIN(Lonen!C5*(Tabel1[[#This Row],[Jaarlijkse salarisstijging]])^Tabel1[[#This Row],[Afgeronde dienstjaren]],Lonen!E5)*174.08)*Tabel1[[#This Row],[FTE]] -> 4209.2544 | Y12: 1.03 | Z12: =Tabel1[[#This Row],[Bruto maandsalaris]]*8% -> 336.740352 | AB12: NVT | AC12: =ABS(IF(Tabel1[[#This Row],[Jaarsalaris]]<=12169,0.08053*Tabel1[[#This Row],[Jaarsalaris]],IF(Tabel1[[#This Row],[Jaarsalaris]]<=26288,980+0.3003*(Tabel1[[#This Row],[Jaarsalaris]]-12169),IF(Tabel1[[#This Row],[Jaarsalaris]]<=43071,5220+0.02258*(Tabel1[[#This Row],[Jaarsalaris]]-26288),IF(Tabel1[[#This Row],[Jaarsalaris]]<=129078,5599-0.0651*(Tabel1[[#This Row],[Jaarsalaris]]-43071),0)))))/12 -> 403.3858418 | AD12: =Tabel1[[#This Row],[Bruto maandsalaris]]*13 -> 54720.3072 | AE12: =-Tabel1[[#This Row],[Bruto maandsalaris]]*0.08% -> -3.36740352 | AF12: =-((Tabel1[[#This Row],[Jaarsalaris]]-18475)*9.4%)/12 -> -283.9215731 | AG12: =IF(Tabel1[[#This Row],[Jaarsalaris]]<=28406, 3068, IF(AD12<=76817, 3068 - 0.06337 * (AD12 - 28406), 0))/12 -> 116.7051961 | AH12: =Tabel1[[#This Row],[Bruto maandsalaris]]+Tabel1[[#This Row],[inhouding premie]]+Tabel1[[#This Row],[Inhouding pensioen]] -> 3921.965423 | AI12: =-IF(Tabel1[[#This Row],[Belastbaar maandsalaris]]*12<=38441, Tabel1[[#This Row],[Belastbaar maandsalaris]]*0.3582, IF(Tabel1[[#This Row],[Belastbaar maandsalaris]]*12<=76817, (38441*0.3582 + (Tabel1[[#This Row],[Belastbaar maandsalaris]]*12-38441)*0.3748)/12, (38441*0.3582 + (76817-38441)*0.3748 + (Tabel1[[#This Row],[Belastbaar maandsalaris]]*12-76817)*0.495)/12))+Tabel1[[#This Row],[Heffingskorting ]] -> -1300.070728 | AJ12: =Lonen!C5 -> 18.6
A13: EMP00036 | B13: Zack | D13: Louws | E13: Zack Louws | F13: M | G13: 1966-01-07 | H13: =(TODAY()-Tabel1[[#This Row],[Geboortedatum]])/365.25 -> 59.41957563 | I13: Waterstraat 40 | J13: 3924 IJ | K13: Amersfoort | L13: Uitvoering | M13: Betonstorter | N13: 2008-05-22 | O13: =(TODAY()-Tabel1[[#This Row],[Datum in dienst]])/365.25 -> 17.04859685 | P13: Vast | Q13: =ROUNDDOWN(Tabel1[[#This Row],[Aantal dienstjaren]],0) -> 17 | R13: Onbepaalde tijd | S13: 2 | T13: 0.8 | U13: =40*Tabel1[[#This Row],[FTE]] -> 32 | V13: C | W13: =MIN(Lonen!C5*(Tabel1[[#This Row],[Jaarlijkse salarisstijging]])^Tabel1[[#This Row],[Afgeronde dienstjaren]],Lonen!E5) -> 24.18 | X13: =(MIN(Lonen!C5*(Tabel1[[#This Row],[Jaarlijkse salarisstijging]])^Tabel1[[#This Row],[Afgeronde dienstjaren]],Lonen!E5)*174.08)*Tabel1[[#This Row],[FTE]] -> 3367.40352 | Y13: 1.03 | Z13: =Tabel1[[#This Row],[Bruto maandsalaris]]*8% -> 269.3922816 | AB13: NVT | AC13: =ABS(IF(Tabel1[[#This Row],[Jaarsalaris]]<=12169,0.08053*Tabel1[[#This Row],[Jaarsalaris]],IF(Tabel1[[#This Row],[Jaarsalaris]]<=26288,980+0.3003*(Tabel1[[#This Row],[Jaarsalaris]]-12169),IF(Tabel1[[#This Row],[Jaarsalaris]]<=43071,5220+0.02258*(Tabel1[[#This Row],[Jaarsalaris]]-26288),IF(Tabel1[[#This Row],[Jaarsalaris]]<=129078,5599-0.0651*(Tabel1[[#This Row],[Jaarsalaris]]-43071),0)))))/12 -> 462.7573751 | AD13: =Tabel1[[#This Row],[Bruto maandsalaris]]*13 -> 43776.24576 | AE13: =-Tabel1[[#This Row],[Bruto maandsalaris]]*0.08% -> -2.693922816 | AF13: =-((Tabel1[[#This Row],[Jaarsalaris]]-18475)*9.4%)/12 -> -198.1930918 | AG13: =IF(Tabel1[[#This Row],[Jaarsalaris]]<=28406, 3068, IF(AD13<=76817, 3068 - 0.06337 * (AD13 - 28406), 0))/12 -> 174.4989605 | AH13: =Tabel1[[#This Row],[Bruto maandsalaris]]+Tabel1[[#This Row],[inhouding premie]]+Tabel1[[#This Row],[Inhouding pensioen]] -> 3166.516505 | AI13: =-IF(Tabel1[[#This Row],[Belastbaar maandsalaris]]*12<=38441, Tabel1[[#This Row],[Belastbaar maandsalaris]]*0.3582, IF(Tabel1[[#This Row],[Belastbaar maandsalaris]]*12<=76817, (38441*0.3582 + (Tabel1[[#This Row],[Belastbaar maandsalaris]]*12-38441)*0.3748)/12, (38441*0.3582 + (76817-38441)*0.3748 + (Tabel1[[#This Row],[Belastbaar maandsalaris]]*12-76817)*0.495)/12))+Tabel1[[#This Row],[Heffingskorting ]] -> -959.7472517 | AJ13: =Lonen!C5 -> 18.6
A14: EMP00008 | B14: Michael | D14: Krabbe | E14: Michael Krabbe | F14: M | G14: 1977-06-07 | H14: =(TODAY()-Tabel1[[#This Row],[Geboortedatum]])/365.25 -> 48.0054757 | I14: Dorpsstraat 196 | J14: 3831 AB | K14: Woudenberg | L14: Uitvoering | M14: Betonwerker I | N14: 2014-02-10 | O14: =(TODAY()-Tabel1[[#This Row],[Datum in dienst]])/365.25 -> 11.32648871 | P14: Vast | Q14: =ROUNDDOWN(Tabel1[[#This Row],[Aantal dienstjaren]],0) -> 11 | R14: Onbepaalde tijd | S14: 3 | T14: 1 | U14: =40*Tabel1[[#This Row],[FTE]] -> 40 | V14: C | W14: =MIN(Lonen!C5*(Tabel1[[#This Row],[Jaarlijkse salarisstijging]])^Tabel1[[#This Row],[Afgeronde dienstjaren]],Lonen!E5) -> 24.18 | X14: =(MIN(Lonen!C5*(Tabel1[[#This Row],[Jaarlijkse salarisstijging]])^Tabel1[[#This Row],[Afgeronde dienstjaren]],Lonen!E5)*174.08)*Tabel1[[#This Row],[FTE]] -> 4209.2544 | Y14: 1.03 | Z14: =Tabel1[[#This Row],[Bruto maandsalaris]]*8% -> 336.740352 | AB14: NVT | AC14: =ABS(IF(Tabel1[[#This Row],[Jaarsalaris]]<=12169,0.08053*Tabel1[[#This Row],[Jaarsalaris]],IF(Tabel1[[#This Row],[Jaarsalaris]]<=26288,980+0.3003*(Tabel1[[#This Row],[Jaarsalaris]]-12169),IF(Tabel1[[#This Row],[Jaarsalaris]]<=43071,5220+0.02258*(Tabel1[[#This Row],[Jaarsalaris]]-26288),IF(Tabel1[[#This Row],[Jaarsalaris]]<=129078,5599-0.0651*(Tabel1[[#This Row],[Jaarsalaris]]-43071),0)))))/12 -> 403.3858418 | AD14: =Tabel1[[#This Row],[Bruto maandsalaris]]*13 -> 54720.3072 | AE14: =-Tabel1[[#This Row],[Bruto maandsalaris]]*0.08% -> -3.36740352 | AF14: =-((Tabel1[[#This Row],[Jaarsalaris]]-18475)*9.4%)/12 -> -283.9215731 | AG14: =IF(Tabel1[[#This Row],[Jaarsalaris]]<=28406, 3068, IF(AD14<=76817, 3068 - 0.06337 * (AD14 - 28406), 0))/12 -> 116.7051961 | AH14: =Tabel1[[#This Row],[Bruto maandsalaris]]+Tabel1[[#This Row],[inhouding premie]]+Tabel1[[#This Row],[Inhouding pensioen]] -> 3921.965423 | AI14: =-IF(Tabel1[[#This Row],[Belastbaar maandsalaris]]*12<=38441, Tabel1[[#This Row],[Belastbaar maandsalaris]]*0.3582, IF(Tabel1[[#This Row],[Belastbaar maandsalaris]]*12<=76817, (38441*0.3582 + (Tabel1[[#This Row],[Belastbaar maandsalaris]]*12-38441)*0.3748)/12, (38441*0.3582 + (76817-38441)*0.3748 + (Tabel1[[#This Row],[Belastbaar maandsalaris]]*12-76817)*0.495)/12))+Tabel1[[#This Row],[Heffingskorting ]] -> -1300.070728 | AJ14: =Lonen!C5 -> 18.6
A15: EMP00011 | B15: Luuk | D15: Belpere | E15: Luuk Belpere | F15: M | G15: 1988-04-12 | H15: =(TODAY()-Tabel1[[#This Row],[Geboortedatum]])/365.25 -> 37.15811088 | I15: Waterstraat 67 | J15: 3557 GH | K15: Bilthoven | L15: Uitvoering | M15: Betonwerker I | N15: 2017-08-27 | O15: =(TODAY()-Tabel1[[#This Row],[Datum in dienst]])/365.25 -> 7.783709788 | P15: Vast | Q15: =ROUNDDOWN(Tabel1[[#This Row],[Aantal dienstjaren]],0) -> 7 | R15: Onbepaalde tijd | S15: 3 | T15: 1 | U15: =40*Tabel1[[#This Row],[FTE]] -> 40 | V15: C | W15: =MIN(Lonen!C5*(Tabel1[[#This Row],[Jaarlijkse salarisstijging]])^Tabel1[[#This Row],[Afgeronde dienstjaren]],Lonen!E5) -> 22.8756539 | X15: =(MIN(Lonen!C5*(Tabel1[[#This Row],[Jaarlijkse salarisstijging]])^Tabel1[[#This Row],[Afgeronde dienstjaren]],Lonen!E5)*174.08)*Tabel1[[#This Row],[FTE]] -> 3982.19383 | Y15: 1.03 | Z15: =Tabel1[[#This Row],[Bruto maandsalaris]]*8% -> 318.5755064 | AB15: NVT | AC15: =ABS(IF(Tabel1[[#This Row],[Jaarsalaris]]<=12169,0.08053*Tabel1[[#This Row],[Jaarsalaris]],IF(Tabel1[[#This Row],[Jaarsalaris]]<=26288,980+0.3003*(Tabel1[[#This Row],[Jaarsalaris]]-12169),IF(Tabel1[[#This Row],[Jaarsalaris]]<=43071,5220+0.02258*(Tabel1[[#This Row],[Jaarsalaris]]-26288),IF(Tabel1[[#This Row],[Jaarsalaris]]<=129078,5599-0.0651*(Tabel1[[#This Row],[Jaarsalaris]]-43071),0)))))/12 -> 419.3992884 | AD15: =Tabel1[[#This Row],[Bruto maandsalaris]]*13 -> 51768.51979 | AE15: =-Tabel1[[#This Row],[Bruto maandsalaris]]*0.08% -> -3.185755064 | AF15: =-((Tabel1[[#This Row],[Jaarsalaris]]-18475)*9.4%)/12 -> -260.7992384 | AG15: =IF(Tabel1[[#This Row],[Jaarsalaris]]<=28406, 3068, IF(AD15<=76817, 3068 - 0.06337 * (AD15 - 28406), 0))/12 -> 132.2930934 | AH15: =Tabel1[[#This Row],[Bruto maandsalaris]]+Tabel1[[#This Row],[inhouding premie]]+Tabel1[[#This Row],[Inhouding pensioen]] -> 3718.208837 | AI15: =-IF(Tabel1[[#This Row],[Belastbaar maandsalaris]]*12<=38441, Tabel1[[#This Row],[Belastbaar maandsalaris]]*0.3582, IF(Tabel1[[#This Row],[Belastbaar maandsalaris]]*12<=76817, (38441*0.3582 + (Tabel1[[#This Row],[Belastbaar maandsalaris]]*12-38441)*0.3748)/12, (38441*0.3582 + (76817-38441)*0.3748 + (Tabel1[[#This Row],[Belastbaar maandsalaris]]*12-76817)*0.495)/12))+Tabel1[[#This Row],[Heffingskorting ]] -> -1208.114862 | AJ15: =Lonen!C5 -> 18.6
A16: EMP00015 | B16: Ewout | C16: van | D16: Geffen | E16: Ewout van Geffen | F16: M | G16: 1993-01-04 | H16: =(TODAY()-Tabel1[[#This Row],[Geboortedatum]])/365.25 -> 32.42710472 | I16: Waterstraat 9 | J16: 3663 EF | K16: Culemborg | L16: Uitvoering | M16: Betonwerker I | N16: 2023-04-14 | O16: =(TODAY()-Tabel1[[#This Row],[Datum in dienst]])/365.25 -> 2.154688569 | P16: Vast | Q16: =ROUNDDOWN(Tabel1[[#This Row],[Aantal dienstjaren]],0) -> 2 | R16: Onbepaalde tijd | S16: 3 | T16: 1 | U16: =40*Tabel1[[#This Row],[FTE]] -> 40 | V16: C | W16: =MIN(Lonen!C5*(Tabel1[[#This Row],[Jaarlijkse salarisstijging]])^Tabel1[[#This Row],[Afgeronde dienstjaren]],Lonen!E5) -> 19.73274 | X16: =(MIN(Lonen!C5*(Tabel1[[#This Row],[Jaarlijkse salarisstijging]])^Tabel1[[#This Row],[Afgeronde dienstjaren]],Lonen!E5)*174.08)*Tabel1[[#This Row],[FTE]] -> 3435.075379 | Y16: 1.03 | Z16: =Tabel1[[#This Row],[Bruto maandsalaris]]*8% -> 274.8060303 | AB16: NVT | AC16: =ABS(IF(Tabel1[[#This Row],[Jaarsalaris]]<=12169,0.08053*Tabel1[[#This Row],[Jaarsalaris]],IF(Tabel1[[#This Row],[Jaarsalaris]]<=26288,980+0.3003*(Tabel1[[#This Row],[Jaarsalaris]]-12169),IF(Tabel1[[#This Row],[Jaarsalaris]]<=43071,5220+0.02258*(Tabel1[[#This Row],[Jaarsalaris]]-26288),IF(Tabel1[[#This Row],[Jaarsalaris]]<=129078,5599-0.0651*(Tabel1[[#This Row],[Jaarsalaris]]-43071),0)))))/12 -> 457.9848172 | AD16: =Tabel1[[#This Row],[Bruto maandsalaris]]*13 -> 44655.97993 | AE16: =-Tabel1[[#This Row],[Bruto maandsalaris]]*0.08% -> -2.748060303 | AF16: =-((Tabel1[[#This Row],[Jaarsalaris]]-18475)*9.4%)/12 -> -205.0843428 | AG16: =IF(Tabel1[[#This Row],[Jaarsalaris]]<=28406, 3068, IF(AD16<=76817, 3068 - 0.06337 * (AD16 - 28406), 0))/12 -> 169.853231 | AH16: =Tabel1[[#This Row],[Bruto maandsalaris]]+Tabel1[[#This Row],[inhouding premie]]+Tabel1[[#This Row],[Inhouding pensioen]] -> 3227.242976 | AI16: =-IF(Tabel1[[#This Row],[Belastbaar maandsalaris]]*12<=38441, Tabel1[[#This Row],[Belastbaar maandsalaris]]*0.3582, IF(Tabel1[[#This Row],[Belastbaar maandsalaris]]*12<=76817, (38441*0.3582 + (Tabel1[[#This Row],[Belastbaar maandsalaris]]*12-38441)*0.3748)/12, (38441*0.3582 + (76817-38441)*0.3748 + (Tabel1[[#This Row],[Belastbaar maandsalaris]]*12-76817)*0.495)/12))+Tabel1[[#This Row],[Heffingskorting ]] -> -986.5407198 | AJ16: =Lonen!C5 -> 18.6
A17: EMP00018 | B17: Bryan | C17: van | D17: Bruchem | E17: Bryan van Bruchem | F17: M | G17: 1965-02-16 | H17: =(TODAY()-Tabel1[[#This Row],[Geboortedatum]])/365.25 -> 60.30937714 | I17: Laan van Vollenhove 51 | J17: 3906 CD | K17: Baarn | L17: Uitvoering | M17: Betonwerker II | N17: 2008-12-13 | O17: =(TODAY()-Tabel1[[#This Row],[Datum in dienst]])/365.25 -> 16.48733744 | P17: Vast | Q17: =ROUNDDOWN(Tabel1[[#This Row],[Aantal dienstjaren]],0) -> 16 | R17: Onbepaalde tijd | S17: 3 | T17: 0.8 | U17: =40*Tabel1[[#This Row],[FTE]] -> 32 | V17: B | W17: =MIN(Lonen!C4*(Tabel1[[#This Row],[Jaarlijkse salarisstijging]])^Tabel1[[#This Row],[Afgeronde dienstjaren]],Lonen!E4) -> 22.776 | X17: =(MIN(Lonen!C4*(Tabel1[[#This Row],[Jaarlijkse salarisstijging]])^Tabel1[[#This Row],[Afgeronde dienstjaren]],Lonen!E4)*174.08)*Tabel1[[#This Row],[FTE]] -> 3171.876864 | Y17: 1.03 | Z17: =Tabel1[[#This Row],[Bruto maandsalaris]]*8% -> 253.7501491 | AB17: NVT | AC17: =ABS(IF(Tabel1[[#This Row],[Jaarsalaris]]<=12169,0.08053*Tabel1[[#This Row],[Jaarsalaris]],IF(Tabel1[[#This Row],[Jaarsalaris]]<=26288,980+0.3003*(Tabel1[[#This Row],[Jaarsalaris]]-12169),IF(Tabel1[[#This Row],[Jaarsalaris]]<=43071,5220+0.02258*(Tabel1[[#This Row],[Jaarsalaris]]-26288),IF(Tabel1[[#This Row],[Jaarsalaris]]<=129078,5599-0.0651*(Tabel1[[#This Row],[Jaarsalaris]]-43071),0)))))/12 -> 463.1241412 | AD17: =Tabel1[[#This Row],[Bruto maandsalaris]]*13 -> 41234.39923 | AE17: =-Tabel1[[#This Row],[Bruto maandsalaris]]*0.08% -> -2.537501491 | AF17: =-((Tabel1[[#This Row],[Jaarsalaris]]-18475)*9.4%)/12 -> -178.2819607 | AG17: =IF(Tabel1[[#This Row],[Jaarsalaris]]<=28406, 3068, IF(AD17<=76817, 3068 - 0.06337 * (AD17 - 28406), 0))/12 -> 187.9220284 | AH17: =Tabel1[[#This Row],[Bruto maandsalaris]]+Tabel1[[#This Row],[inhouding premie]]+Tabel1[[#This Row],[Inhouding pensioen]] -> 2991.057402 | AI17: =-IF(Tabel1[[#This Row],[Belastbaar maandsalaris]]*12<=38441, Tabel1[[#This Row],[Belastbaar maandsalaris]]*0.3582, IF(Tabel1[[#This Row],[Belastbaar maandsalaris]]*12<=76817, (38441*0.3582 + (Tabel1[[#This Row],[Belastbaar maandsalaris]]*12-38441)*0.3748)/12, (38441*0.3582 + (76817-38441)*0.3748 + (Tabel1[[#This Row],[Belastbaar maandsalaris]]*12-76817)*0.495)/12))+Tabel1[[#This Row],[Heffingskorting ]] -> -883.474733 | AJ17: =Lonen!C4 -> 17.52
A18: EMP00024 | B18: Ismo | C18: de | D18: Bruijn | E18: Ismo de Bruijn | F18: M | G18: 1990-08-04 | H18: =(TODAY()-Tabel1[[#This Row],[Geboortedatum]])/365.25 -> 34.84736482 | I18: Kastanjelaan 190 | J18: 3775 IJ | K18: Houten | L18: Uitvoering | M18: Betonwerker II | N18: 2007-02-17 | O18: =(TODAY()-Tabel1[[#This Row],[Datum in dienst]])/365.25 -> 18.30800821 | P18: Vast | Q18: =ROUNDDOWN(Tabel1[[#This Row],[Aantal dienstjaren]],0) -> 18 | R18: Onbepaalde tijd | S18: 3 | T18: 0.7 | U18: =40*Tabel1[[#This Row],[FTE]] -> 28 | V18: B | W18: =MIN(Lonen!C4*(Tabel1[[#This Row],[Jaarlijkse salarisstijging]])^Tabel1[[#This Row],[Afgeronde dienstjaren]],Lonen!E4) -> 22.776 | X18: =(MIN(Lonen!C4*(Tabel1[[#This Row],[Jaarlijkse salarisstijging]])^Tabel1[[#This Row],[Afgeronde dienstjaren]],Lonen!E4)*174.08)*Tabel1[[#This Row],[FTE]] -> 2775.392256 | Y18: 1.03 | Z18: =Tabel1[[#This Row],[Bruto maandsalaris]]*8% -> 222.0313805 | AB18: NVT | AC18: =ABS(IF(Tabel1[[#This Row],[Jaarsalaris]]<=12169,0.08053*Tabel1[[#This Row],[Jaarsalaris]],IF(Tabel1[[#This Row],[Jaarsalaris]]<=26288,980+0.3003*(Tabel1[[#This Row],[Jaarsalaris]]-12169),IF(Tabel1[[#This Row],[Jaarsalaris]]<=43071,5220+0.02258*(Tabel1[[#This Row],[Jaarsalaris]]-26288),IF(Tabel1[[#This Row],[Jaarsalaris]]<=129078,5599-0.0651*(Tabel1[[#This Row],[Jaarsalaris]]-43071),0)))))/12 -> 453.4254669 | AD18: =Tabel1[[#This Row],[Bruto maandsalaris]]*13 -> 36080.09933 | AE18: =-Tabel1[[#This Row],[Bruto maandsalaris]]*0.08% -> -2.220313805 | AF18: =-((Tabel1[[#This Row],[Jaarsalaris]]-18475)*9.4%)/12 -> -137.9066114 | AG18: =IF(Tabel1[[#This Row],[Jaarsalaris]]<=28406, 3068, IF(AD18<=76817, 3068 - 0.06337 * (AD18 - 28406), 0))/12 -> 215.1410271 | AH18: =Tabel1[[#This Row],[Bruto maandsalaris]]+Tabel1[[#This Row],[inhouding premie]]+Tabel1[[#This Row],[Inhouding pensioen]] -> 2635.265331 | AI18: =-IF(Tabel1[[#This Row],[Belastbaar maandsalaris]]*12<=38441, Tabel1[[#This Row],[Belastbaar maandsalaris]]*0.3582, IF(Tabel1[[#This Row],[Belastbaar maandsalaris]]*12<=76817, (38441*0.3582 + (Tabel1[[#This Row],[Belastbaar maandsalaris]]*12-38441)*0.3748)/12, (38441*0.3582 + (76817-38441)*0.3748 + (Tabel1[[#This Row],[Belastbaar maandsalaris]]*12-76817)*0.495)/12))+Tabel1[[#This Row],[Heffingskorting ]] -> -728.8110144 | AJ18: =Lonen!C4 -> 17.52
A19: EMP00025 | B19: Rick | D19: Zwart | E19: Rick Zwart | F19: M | G19: 1979-12-01 | H19: =(TODAY()-Tabel1[[#This Row],[Geboortedatum]])/365.25 -> 45.52224504 | I19: Julianalaan 50 | J19: 3923 GH | K19: Vianen | L19: Uitvoering | M19: Betonwerker II | N19: 2006-09-13 | O19: =(TODAY()-Tabel1[[#This Row],[Datum in dienst]])/365.25 -> 18.73785079 | P19: Vast | Q19: =ROUNDDOWN(Tabel1[[#This Row],[Aantal dienstjaren]],0) -> 18 | R19: Onbepaalde tijd | S19: 3 | T19: 1 | U19: =40*Tabel1[[#This Row],[FTE]] -> 40 | V19: B | W19: =MIN(Lonen!C4*(Tabel1[[#This Row],[Jaarlijkse salarisstijging]])^Tabel1[[#This Row],[Afgeronde dienstjaren]],Lonen!E4) -> 22.776 | X19: =(MIN(Lonen!C4*(Tabel1[[#This Row],[Jaarlijkse salarisstijging]])^Tabel1[[#This Row],[Afgeronde dienstjaren]],Lonen!E4)*174.08)*Tabel1[[#This Row],[FTE]] -> 3964.84608 | Y19: 1.03 | Z19: =Tabel1[[#This Row],[Bruto maandsalaris]]*8% -> 317.1876864 | AB19: NVT | AC19: =ABS(IF(Tabel1[[#This Row],[Jaarsalaris]]<=12169,0.08053*Tabel1[[#This Row],[Jaarsalaris]],IF(Tabel1[[#This Row],[Jaarsalaris]]<=26288,980+0.3003*(Tabel1[[#This Row],[Jaarsalaris]]-12169),IF(Tabel1[[#This Row],[Jaarsalaris]]<=43071,5220+0.02258*(Tabel1[[#This Row],[Jaarsalaris]]-26288),IF(Tabel1[[#This Row],[Jaarsalaris]]<=129078,5599-0.0651*(Tabel1[[#This Row],[Jaarsalaris]]-43071),0)))))/12 -> 420.6227385 | AD19: =Tabel1[[#This Row],[Bruto maandsalaris]]*13 -> 51542.99904 | AE19: =-Tabel1[[#This Row],[Bruto maandsalaris]]*0.08% -> -3.171876864 | AF19: =-((Tabel1[[#This Row],[Jaarsalaris]]-18475)*9.4%)/12 -> -259.0326591 | AG19: =IF(Tabel1[[#This Row],[Jaarsalaris]]<=28406, 3068, IF(AD19<=76817, 3068 - 0.06337 * (AD19 - 28406), 0))/12 -> 133.4840309 | AH19: =Tabel1[[#This Row],[Bruto maandsalaris]]+Tabel1[[#This Row],[inhouding premie]]+Tabel1[[#This Row],[Inhouding pensioen]] -> 3702.641544 | AI19: =-IF(Tabel1[[#This Row],[Belastbaar maandsalaris]]*12<=38441, Tabel1[[#This Row],[Belastbaar maandsalaris]]*0.3582, IF(Tabel1[[#This Row],[Belastbaar maandsalaris]]*12<=76817, (38441*0.3582 + (Tabel1[[#This Row],[Belastbaar maandsalaris]]*12-38441)*0.3748)/12, (38441*0.3582 + (76817-38441)*0.3748 + (Tabel1[[#This Row],[Belastbaar maandsalaris]]*12-76817)*0.495)/12))+Tabel1[[#This Row],[Heffingskorting ]] -> -1201.089303 | AJ19: =Lonen!C4 -> 17.52
A20: EMP00028 | B20: Lenhart | C20: van | D20: Spreuwel | E20: Lenhart van Spreuwel | F20: M | G20: 1971-04-05 | H20: =(TODAY()-Tabel1[[#This Row],[Geboortedatum]])/365.25 -> 54.17932923 | I20: Stationsweg 176 | J20: 3613 EF | K20: Maarssen | L20: Uitvoering | M20: Betonwerker II | N20: 2021-11-09 | O20: =(TODAY()-Tabel1[[#This Row],[Datum in dienst]])/365.25 -> 3.58110883 | P20: Vast | Q20: =ROUNDDOWN(Tabel1[[#This Row],[Aantal dienstjaren]],0) -> 3 | R20: Onbepaalde tijd | S20: 3 | T20: 1 | U20: =40*Tabel1[[#This Row],[FTE]] -> 40 | V20: B | W20: =MIN(Lonen!C4*(Tabel1[[#This Row],[Jaarlijkse salarisstijging]])^Tabel1[[#This Row],[Afgeronde dienstjaren]],Lonen!E4) -> 19.14457704 | X20: =(MIN(Lonen!C4*(Tabel1[[#This Row],[Jaarlijkse salarisstijging]])^Tabel1[[#This Row],[Afgeronde dienstjaren]],Lonen!E4)*174.08)*Tabel1[[#This Row],[FTE]] -> 3332.687971 | Y20: 1.03 | Z20: =Tabel1[[#This Row],[Bruto maandsalaris]]*8% -> 266.6150377 | AB20: NVT | AC20: =ABS(IF(Tabel1[[#This Row],[Jaarsalaris]]<=12169,0.08053*Tabel1[[#This Row],[Jaarsalaris]],IF(Tabel1[[#This Row],[Jaarsalaris]]<=26288,980+0.3003*(Tabel1[[#This Row],[Jaarsalaris]]-12169),IF(Tabel1[[#This Row],[Jaarsalaris]]<=43071,5220+0.02258*(Tabel1[[#This Row],[Jaarsalaris]]-26288),IF(Tabel1[[#This Row],[Jaarsalaris]]<=129078,5599-0.0651*(Tabel1[[#This Row],[Jaarsalaris]]-43071),0)))))/12 -> 465.2056892 | AD20: =Tabel1[[#This Row],[Bruto maandsalaris]]*13 -> 43324.94362 | AE20: =-Tabel1[[#This Row],[Bruto maandsalaris]]*0.08% -> -2.666150377 | AF20: =-((Tabel1[[#This Row],[Jaarsalaris]]-18475)*9.4%)/12 -> -194.6578917 | AG20: =IF(Tabel1[[#This Row],[Jaarsalaris]]<=28406, 3068, IF(AD20<=76817, 3068 - 0.06337 * (AD20 - 28406), 0))/12 -> 176.8822119 | AH20: =Tabel1[[#This Row],[Bruto maandsalaris]]+Tabel1[[#This Row],[inhouding premie]]+Tabel1[[#This Row],[Inhouding pensioen]] -> 3135.363929 | AI20: =-IF(Tabel1[[#This Row],[Belastbaar maandsalaris]]*12<=38441, Tabel1[[#This Row],[Belastbaar maandsalaris]]*0.3582, IF(Tabel1[[#This Row],[Belastbaar maandsalaris]]*12<=76817, (38441*0.3582 + (Tabel1[[#This Row],[Belastbaar maandsalaris]]*12-38441)*0.3748)/12, (38441*0.3582 + (76817-38441)*0.3748 + (Tabel1[[#This Row],[Belastbaar maandsalaris]]*12-76817)*0.495)/12))+Tabel1[[#This Row],[Heffingskorting ]] -> -946.2051475 | AJ20: =Lonen!C4 -> 17.52
A21: EMP00037 | B21: Gijs | C21: de | D21: Hoogh | E21: Gijs de Hoogh | F21: M | G21: 1989-04-10 | H21: =(TODAY()-Tabel1[[#This Row],[Geboortedatum]])/365.25 -> 36.16427105 | I21: Julianalaan 30 | J21: 3766 IJ | K21: Zeist | L21: Uitvoering | M21: Betonwerker II | N21: 2018-07-07 | O21: =(TODAY()-Tabel1[[#This Row],[Datum in dienst]])/365.25 -> 6.924024641 | P21: Vast | Q21: =ROUNDDOWN(Tabel1[[#This Row],[Aantal dienstjaren]],0) -> 6 | R21: Onbepaalde tijd | S21: 3 | T21: 1 | U21: =40*Tabel1[[#This Row],[FTE]] -> 40 | V21: B | W21: =MIN(Lonen!C4*(Tabel1[[#This Row],[Jaarlijkse salarisstijging]])^Tabel1[[#This Row],[Afgeronde dienstjaren]],Lonen!E4) -> 20.91979624 | X21: =(MIN(Lonen!C4*(Tabel1[[#This Row],[Jaarlijkse salarisstijging]])^Tabel1[[#This Row],[Afgeronde dienstjaren]],Lonen!E4)*174.08)*Tabel1[[#This Row],[FTE]] -> 3641.718129 | Y21: 1.03 | Z21: =Tabel1[[#This Row],[Bruto maandsalaris]]*8% -> 291.3374503 | AB21: NVT | AC21: =ABS(IF(Tabel1[[#This Row],[Jaarsalaris]]<=12169,0.08053*Tabel1[[#This Row],[Jaarsalaris]],IF(Tabel1[[#This Row],[Jaarsalaris]]<=26288,980+0.3003*(Tabel1[[#This Row],[Jaarsalaris]]-12169),IF(Tabel1[[#This Row],[Jaarsalaris]]<=43071,5220+0.02258*(Tabel1[[#This Row],[Jaarsalaris]]-26288),IF(Tabel1[[#This Row],[Jaarsalaris]]<=129078,5599-0.0651*(Tabel1[[#This Row],[Jaarsalaris]]-43071),0)))))/12 -> 443.4113373 | AD21: =Tabel1[[#This Row],[Bruto maandsalaris]]*13 -> 47342.33567 | AE21: =-Tabel1[[#This Row],[Bruto maandsalaris]]*0.08% -> -2.913374503 | AF21: =-((Tabel1[[#This Row],[Jaarsalaris]]-18475)*9.4%)/12 -> -226.1274628 | AG21: =IF(Tabel1[[#This Row],[Jaarsalaris]]<=28406, 3068, IF(AD21<=76817, 3068 - 0.06337 * (AD21 - 28406), 0))/12 -> 155.667034 | AH21: =Tabel1[[#This Row],[Bruto maandsalaris]]+Tabel1[[#This Row],[inhouding premie]]+Tabel1[[#This Row],[Inhouding pensioen]] -> 3412.677291 | AI21: =-IF(Tabel1[[#This Row],[Belastbaar maandsalaris]]*12<=38441, Tabel1[[#This Row],[Belastbaar maandsalaris]]*0.3582, IF(Tabel1[[#This Row],[Belastbaar maandsalaris]]*12<=76817, (38441*0.3582 + (Tabel1[[#This Row],[Belastbaar maandsalaris]]*12-38441)*0.3748)/12, (38441*0.3582 + (76817-38441)*0.3748 + (Tabel1[[#This Row],[Belastbaar maandsalaris]]*12-76817)*0.495)/12))+Tabel1[[#This Row],[Heffingskorting ]] -> -1070.227698 | AJ21: =Lonen!C4 -> 17.52
A22: EMP00080 | B22: Lucas | D22: Adema | E22: Lucas Adema | F22: M | G22: 1975-01-07 | H22: =(TODAY()-Tabel1[[#This Row],[Geboortedatum]])/365.25 -> 50.4202601 | I22: Sportlaan 103 | J22: 3485 EF | K22: Vianen | L22: Uitvoering | M22: Boorassistent | N22: 2014-11-12 | O22: =(TODAY()-Tabel1[[#This Row],[Datum in dienst]])/365.25 -> 10.57357974 | P22: Vast | Q22: =ROUNDDOWN(Tabel1[[#This Row],[Aantal dienstjaren]],0) -> 10 | R22: Onbepaalde tijd | S22: 3 | T22: 1 | U22: =40*Tabel1[[#This Row],[FTE]] -> 40 | V22: A | W22: =MIN(Lonen!C3*(Tabel1[[#This Row],[Jaarlijkse salarisstijging]])^Tabel1[[#This Row],[Afgeronde dienstjaren]],Lonen!E3) -> 21.528 | X22: =(MIN(Lonen!C3*(Tabel1[[#This Row],[Jaarlijkse salarisstijging]])^Tabel1[[#This Row],[Afgeronde dienstjaren]],Lonen!E3)*174.08)*Tabel1[[#This Row],[FTE]] -> 3747.59424 | Y22: 1.03 | Z22: =Tabel1[[#This Row],[Bruto maandsalaris]]*8% -> 299.8075392 | AB22: NVT | AC22: =ABS(IF(Tabel1[[#This Row],[Jaarsalaris]]<=12169,0.08053*Tabel1[[#This Row],[Jaarsalaris]],IF(Tabel1[[#This Row],[Jaarsalaris]]<=26288,980+0.3003*(Tabel1[[#This Row],[Jaarsalaris]]-12169),IF(Tabel1[[#This Row],[Jaarsalaris]]<=43071,5220+0.02258*(Tabel1[[#This Row],[Jaarsalaris]]-26288),IF(Tabel1[[#This Row],[Jaarsalaris]]<=129078,5599-0.0651*(Tabel1[[#This Row],[Jaarsalaris]]-43071),0)))))/12 -> 435.9444246 | AD22: =Tabel1[[#This Row],[Bruto maandsalaris]]*13 -> 48718.72512 | AE22: =-Tabel1[[#This Row],[Bruto maandsalaris]]*0.08% -> -2.998075392 | AF22: =-((Tabel1[[#This Row],[Jaarsalaris]]-18475)*9.4%)/12 -> -236.9091801 | AG22: =IF(Tabel1[[#This Row],[Jaarsalaris]]<=28406, 3068, IF(AD22<=76817, 3068 - 0.06337 * (AD22 - 28406), 0))/12 -> 148.3985508 | AH22: =Tabel1[[#This Row],[Bruto maandsalaris]]+Tabel1[[#This Row],[inhouding premie]]+Tabel1[[#This Row],[Inhouding pensioen]] -> 3507.686985 | AI22: =-IF(Tabel1[[#This Row],[Belastbaar maandsalaris]]*12<=38441, Tabel1[[#This Row],[Belastbaar maandsalaris]]*0.3582, IF(Tabel1[[#This Row],[Belastbaar maandsalaris]]*12<=76817, (38441*0.3582 + (Tabel1[[#This Row],[Belastbaar maandsalaris]]*12-38441)*0.3748)/12, (38441*0.3582 + (76817-38441)*0.3748 + (Tabel1[[#This Row],[Belastbaar maandsalaris]]*12-76817)*0.495)/12))+Tabel1[[#This Row],[Heffingskorting ]] -> -1113.105814 | AJ22: =Lonen!C3 -> 16.56
A23: EMP00081 | B23: Sven | D23: Jansen | E23: Sven Jansen | F23: M | G23: 1991-01-06 | H23: =(TODAY()-Tabel1[[#This Row],[Geboortedatum]])/365.25 -> 34.42299795 | I23: Beatrixstraat 143 | J23: 3411 GH | K23: Bilthoven | L23: Uitvoering | M23: Boorassistent | N23: 2016-09-10 | O23: =(TODAY()-Tabel1[[#This Row],[Datum in dienst]])/365.25 -> 8.744695414 | P23: Vast | Q23: =ROUNDDOWN(Tabel1[[#This Row],[Aantal dienstjaren]],0) -> 8 | R23: Onbepaalde tijd | S23: 3 | T23: 1 | U23: =40*Tabel1[[#This Row],[FTE]] -> 40 | V23: A | W23: =MIN(Lonen!C3*(Tabel1[[#This Row],[Jaarlijkse salarisstijging]])^Tabel1[[#This Row],[Afgeronde dienstjaren]],Lonen!E3) -> 20.97771255 | X23: =(MIN(Lonen!C3*(Tabel1[[#This Row],[Jaarlijkse salarisstijging]])^Tabel1[[#This Row],[Afgeronde dienstjaren]],Lonen!E3)*174.08)*Tabel1[[#This Row],[FTE]] -> 3651.8002 | Y23: 1.03 | Z23: =Tabel1[[#This Row],[Bruto maandsalaris]]*8% -> 292.144016 | AB23: NVT | AC23: =ABS(IF(Tabel1[[#This Row],[Jaarsalaris]]<=12169,0.08053*Tabel1[[#This Row],[Jaarsalaris]],IF(Tabel1[[#This Row],[Jaarsalaris]]<=26288,980+0.3003*(Tabel1[[#This Row],[Jaarsalaris]]-12169),IF(Tabel1[[#This Row],[Jaarsalaris]]<=43071,5220+0.02258*(Tabel1[[#This Row],[Jaarsalaris]]-26288),IF(Tabel1[[#This Row],[Jaarsalaris]]<=129078,5599-0.0651*(Tabel1[[#This Row],[Jaarsalaris]]-43071),0)))))/12 -> 442.7002992 | AD23: =Tabel1[[#This Row],[Bruto maandsalaris]]*13 -> 47473.4026 | AE23: =-Tabel1[[#This Row],[Bruto maandsalaris]]*0.08% -> -2.92144016 | AF23: =-((Tabel1[[#This Row],[Jaarsalaris]]-18475)*9.4%)/12 -> -227.1541537 | AG23: =IF(Tabel1[[#This Row],[Jaarsalaris]]<=28406, 3068, IF(AD23<=76817, 3068 - 0.06337 * (AD23 - 28406), 0))/12 -> 154.9748914 | AH23: =Tabel1[[#This Row],[Bruto maandsalaris]]+Tabel1[[#This Row],[inhouding premie]]+Tabel1[[#This Row],[Inhouding pensioen]] -> 3421.724606 | AI23: =-IF(Tabel1[[#This Row],[Belastbaar maandsalaris]]*12<=38441, Tabel1[[#This Row],[Belastbaar maandsalaris]]*0.3582, IF(Tabel1[[#This Row],[Belastbaar maandsalaris]]*12<=76817, (38441*0.3582 + (Tabel1[[#This Row],[Belastbaar maandsalaris]]*12-38441)*0.3748)/12, (38441*0.3582 + (76817-38441)*0.3748 + (Tabel1[[#This Row],[Belastbaar maandsalaris]]*12-76817)*0.495)/12))+Tabel1[[#This Row],[Heffingskorting ]] -> -1074.310774 | AJ23: =Lonen!C3 -> 16.56
A24: EMP00085 | B24: Simon | D24: Bakker | E24: Simon Bakker | F24: M | G24: 1983-02-23 | H24: =(TODAY()-Tabel1[[#This Row],[Geboortedatum]])/365.25 -> 42.29158111 | I24: Laan van Vollenhove 64 | J24: 3861 CD | K24: Driebergen-Rijsenburg | L24: Uitvoering | M24: Boorassistent | N24: 2013-11-25 | O24: =(TODAY()-Tabel1[[#This Row],[Datum in dienst]])/365.25 -> 11.53730322 | P24: Vast | Q24: =ROUNDDOWN(Tabel1[[#This Row],[Aantal dienstjaren]],0) -> 11 | R24: Onbepaalde tijd | S24: 3 | T24: 1 | U24: =40*Tabel1[[#This Row],[FTE]] -> 40 | V24: A | W24: =MIN(Lonen!C3*(Tabel1[[#This Row],[Jaarlijkse salarisstijging]])^Tabel1[[#This Row],[Afgeronde dienstjaren]],Lonen!E3) -> 21.528 | X24: =(MIN(Lonen!C3*(Tabel1[[#This Row],[Jaarlijkse salarisstijging]])^Tabel1[[#This Row],[Afgeronde dienstjaren]],Lonen!E3)*174.08)*Tabel1[[#This Row],[FTE]] -> 3747.59424 | Y24: 1.03 | Z24: =Tabel1[[#This Row],[Bruto maandsalaris]]*8% -> 299.8075392 | AB24: NVT | AC24: =ABS(IF(Tabel1[[#This Row],[Jaarsalaris]]<=12169,0.08053*Tabel1[[#This Row],[Jaarsalaris]],IF(Tabel1[[#This Row],[Jaarsalaris]]<=26288,980+0.3003*(Tabel1[[#This Row],[Jaarsalaris]]-12169),IF(Tabel1[[#This Row],[Jaarsalaris]]<=43071,5220+0.02258*(Tabel1[[#This Row],[Jaarsalaris]]-26288),IF(Tabel1[[#This Row],[Jaarsalaris]]<=129078,5599-0.0651*(Tabel1[[#This Row],[Jaarsalaris]]-43071),0)))))/12 -> 435.9444246 | AD24: =Tabel1[[#This Row],[Bruto maandsalaris]]*13 -> 48718.72512 | AE24: =-Tabel1[[#This Row],[Bruto maandsalaris]]*0.08% -> -2.998075392 | AF24: =-((Tabel1[[#This Row],[Jaarsalaris]]-18475)*9.4%)/12 -> -236.9091801 | AG24: =IF(Tabel1[[#This Row],[Jaarsalaris]]<=28406, 3068, IF(AD24<=76817, 3068 - 0.06337 * (AD24 - 28406), 0))/12 -> 148.3985508 | AH24: =Tabel1[[#This Row],[Bruto maandsalaris]]+Tabel1[[#This Row],[inhouding premie]]+Tabel1[[#This Row],[Inhouding pensioen]] -> 3507.686985 | AI24: =-IF(Tabel1[[#This Row],[Belastbaar maandsalaris]]*12<=38441, Tabel1[[#This Row],[Belastbaar maandsalaris]]*0.3582, IF(Tabel1[[#This Row],[Belastbaar maandsalaris]]*12<=76817, (38441*0.3582 + (Tabel1[[#This Row],[Belastbaar maandsalaris]]*12-38441)*0.3748)/12, (38441*0.3582 + (76817-38441)*0.3748 + (Tabel1[[#This Row],[Belastbaar maandsalaris]]*12-76817)*0.495)/12))+Tabel1[[#This Row],[Heffingskorting ]] -> -1113.105814 | AJ24: =Lonen!C3 -> 16.56
A25: EMP00048 | B25: Jorrit | D25: Kremer | E25: Jorrit Kremer | F25: M | G25: 1977-03-10 | H25: =(TODAY()-Tabel1[[#This Row],[Geboortedatum]])/365.25 -> 48.24914442 | I25: Valkenierstraat 176 | J25: 3726 AB | K25: De Bilt | L25: Uitvoering | M25: Boormeester I | N25: 2012-06-04 | O25: =(TODAY()-Tabel1[[#This Row],[Datum in dienst]])/365.25 -> 13.01300479 | P25: Vast | Q25: =ROUNDDOWN(Tabel1[[#This Row],[Aantal dienstjaren]],0) -> 13 | R25: Onbepaalde tijd | S25: 3 | T25: 1 | U25: =40*Tabel1[[#This Row],[FTE]] -> 40 | V25: D | W25: =MIN(Lonen!C6*(Tabel1[[#This Row],[Jaarlijkse salarisstijging]])^Tabel1[[#This Row],[Afgeronde dienstjaren]],Lonen!E6) -> 25.831 | X25: =(MIN(Lonen!C6*(Tabel1[[#This Row],[Jaarlijkse salarisstijging]])^Tabel1[[#This Row],[Afgeronde dienstjaren]],Lonen!E6)*174.08)*Tabel1[[#This Row],[FTE]] -> 4496.66048 | Y25: 1.03 | Z25: =Tabel1[[#This Row],[Bruto maandsalaris]]*8% -> 359.7328384 | AB25: NVT | AC25: =ABS(IF(Tabel1[[#This Row],[Jaarsalaris]]<=12169,0.08053*Tabel1[[#This Row],[Jaarsalaris]],IF(Tabel1[[#This Row],[Jaarsalaris]]<=26288,980+0.3003*(Tabel1[[#This Row],[Jaarsalaris]]-12169),IF(Tabel1[[#This Row],[Jaarsalaris]]<=43071,5220+0.02258*(Tabel1[[#This Row],[Jaarsalaris]]-26288),IF(Tabel1[[#This Row],[Jaarsalaris]]<=129078,5599-0.0651*(Tabel1[[#This Row],[Jaarsalaris]]-43071),0)))))/12 -> 383.116528 | AD25: =Tabel1[[#This Row],[Bruto maandsalaris]]*13 -> 58456.58624 | AE25: =-Tabel1[[#This Row],[Bruto maandsalaris]]*0.08% -> -3.597328384 | AF25: =-((Tabel1[[#This Row],[Jaarsalaris]]-18475)*9.4%)/12 -> -313.1890922 | AG25: =IF(Tabel1[[#This Row],[Jaarsalaris]]<=28406, 3068, IF(AD25<=76817, 3068 - 0.06337 * (AD25 - 28406), 0))/12 -> 96.97452916 | AH25: =Tabel1[[#This Row],[Bruto maandsalaris]]+Tabel1[[#This Row],[inhouding premie]]+Tabel1[[#This Row],[Inhouding pensioen]] -> 4179.874059 | AI25: =-IF(Tabel1[[#This Row],[Belastbaar maandsalaris]]*12<=38441, Tabel1[[#This Row],[Belastbaar maandsalaris]]*0.3582, IF(Tabel1[[#This Row],[Belastbaar maandsalaris]]*12<=76817, (38441*0.3582 + (Tabel1[[#This Row],[Belastbaar maandsalaris]]*12-38441)*0.3748)/12, (38441*0.3582 + (76817-38441)*0.3748 + (Tabel1[[#This Row],[Belastbaar maandsalaris]]*12-76817)*0.495)/12))+Tabel1[[#This Row],[Heffingskorting ]] -> -1416.465552 | AJ25: =Lonen!C6 -> 19.87
A26: EMP00057 | B26: Jan | C26: de | D26: Vries | E26: Jan de Vries | F26: M | G26: 1969-07-21 | H26: =(TODAY()-Tabel1[[#This Row],[Geboortedatum]])/365.25 -> 55.88501027 | I26: Beatrixstraat 127 | J26: 3469 GH | K26: Baarn | L26: Uitvoering | M26: Boormeester I | N26: 2010-02-17 | O26: =(TODAY()-Tabel1[[#This Row],[Datum in dienst]])/365.25 -> 15.30732375 | P26: Vast | Q26: =ROUNDDOWN(Tabel1[[#This Row],[Aantal dienstjaren]],0) -> 15 | R26: Onbepaalde tijd | S26: 3 | T26: 0.8 | U26: =40*Tabel1[[#This Row],[FTE]] -> 32 | V26: D | W26: =MIN(Lonen!C6*(Tabel1[[#This Row],[Jaarlijkse salarisstijging]])^Tabel1[[#This Row],[Afgeronde dienstjaren]],Lonen!E6) -> 25.831 | X26: =(MIN(Lonen!C6*(Tabel1[[#This Row],[Jaarlijkse salarisstijging]])^Tabel1[[#This Row],[Afgeronde dienstjaren]],Lonen!E6)*174.08)*Tabel1[[#This Row],[FTE]] -> 3597.328384 | Y26: 1.03 | Z26: =Tabel1[[#This Row],[Bruto maandsalaris]]*8% -> 287.7862707 | AB26: NVT | AC26: =ABS(IF(Tabel1[[#This Row],[Jaarsalaris]]<=12169,0.08053*Tabel1[[#This Row],[Jaarsalaris]],IF(Tabel1[[#This Row],[Jaarsalaris]]<=26288,980+0.3003*(Tabel1[[#This Row],[Jaarsalaris]]-12169),IF(Tabel1[[#This Row],[Jaarsalaris]]<=43071,5220+0.02258*(Tabel1[[#This Row],[Jaarsalaris]]-26288),IF(Tabel1[[#This Row],[Jaarsalaris]]<=129078,5599-0.0651*(Tabel1[[#This Row],[Jaarsalaris]]-43071),0)))))/12 -> 446.5419241 | AD26: =Tabel1[[#This Row],[Bruto maandsalaris]]*13 -> 46765.26899 | AE26: =-Tabel1[[#This Row],[Bruto maandsalaris]]*0.08% -> -2.877862707 | AF26: =-((Tabel1[[#This Row],[Jaarsalaris]]-18475)*9.4%)/12 -> -221.6071071 | AG26: =IF(Tabel1[[#This Row],[Jaarsalaris]]<=28406, 3068, IF(AD26<=76817, 3068 - 0.06337 * (AD26 - 28406), 0))/12 -> 158.714427 | AH26: =Tabel1[[#This Row],[Bruto maandsalaris]]+Tabel1[[#This Row],[inhouding premie]]+Tabel1[[#This Row],[Inhouding pensioen]] -> 3372.843414 | AI26: =-IF(Tabel1[[#This Row],[Belastbaar maandsalaris]]*12<=38441, Tabel1[[#This Row],[Belastbaar maandsalaris]]*0.3582, IF(Tabel1[[#This Row],[Belastbaar maandsalaris]]*12<=76817, (38441*0.3582 + (Tabel1[[#This Row],[Belastbaar maandsalaris]]*12-38441)*0.3748)/12, (38441*0.3582 + (76817-38441)*0.3748 + (Tabel1[[#This Row],[Belastbaar maandsalaris]]*12-76817)*0.495)/12))+Tabel1[[#This Row],[Heffingskorting ]] -> -1052.250568 | AJ26: =Lonen!C6 -> 19.87
A27: EMP00051 | B27: Pieter | C27: de | D27: Boer | E27: Pieter de Boer | F27: M | G27: 1988-05-15 | H27: =(TODAY()-Tabel1[[#This Row],[Geboortedatum]])/365.25 -> 37.06776181 | I27: Sportlaan 151 | J27: 3967 IJ | K27: Leusden | L27: Uitvoering | M27: Boormeester II | N27: 2015-04-08 | O27: =(TODAY()-Tabel1[[#This Row],[Datum in dienst]])/365.25 -> 10.17111567 | P27: Vast | Q27: =ROUNDDOWN(Tabel1[[#This Row],[Aantal dienstjaren]],0) -> 10 | R27: Onbepaalde tijd | S27: 2 | T27: 0.9 | U27: =40*Tabel1[[#This Row],[FTE]] -> 36 | V27: C | W27: =MIN(Lonen!C5*(Tabel1[[#This Row],[Jaarlijkse salarisstijging]])^Tabel1[[#This Row],[Afgeronde dienstjaren]],Lonen!E5) -> 24.18 | X27: =(MIN(Lonen!C5*(Tabel1[[#This Row],[Jaarlijkse salarisstijging]])^Tabel1[[#This Row],[Afgeronde dienstjaren]],Lonen!E5)*174.08)*Tabel1[[#This Row],[FTE]] -> 3788.32896 | Y27: 1.03 | Z27: =Tabel1[[#This Row],[Bruto maandsalaris]]*8% -> 303.0663168 | AB27: NVT | AC27: =ABS(IF(Tabel1[[#This Row],[Jaarsalaris]]<=12169,0.08053*Tabel1[[#This Row],[Jaarsalaris]],IF(Tabel1[[#This Row],[Jaarsalaris]]<=26288,980+0.3003*(Tabel1[[#This Row],[Jaarsalaris]]-12169),IF(Tabel1[[#This Row],[Jaarsalaris]]<=43071,5220+0.02258*(Tabel1[[#This Row],[Jaarsalaris]]-26288),IF(Tabel1[[#This Row],[Jaarsalaris]]<=129078,5599-0.0651*(Tabel1[[#This Row],[Jaarsalaris]]-43071),0)))))/12 -> 433.0716084 | AD27: =Tabel1[[#This Row],[Bruto maandsalaris]]*13 -> 49248.27648 | AE27: =-Tabel1[[#This Row],[Bruto maandsalaris]]*0.08% -> -3.030663168 | AF27: =-((Tabel1[[#This Row],[Jaarsalaris]]-18475)*9.4%)/12 -> -241.0573324 | AG27: =IF(Tabel1[[#This Row],[Jaarsalaris]]<=28406, 3068, IF(AD27<=76817, 3068 - 0.06337 * (AD27 - 28406), 0))/12 -> 145.6020783 | AH27: =Tabel1[[#This Row],[Bruto maandsalaris]]+Tabel1[[#This Row],[inhouding premie]]+Tabel1[[#This Row],[Inhouding pensioen]] -> 3544.240964 | AI27: =-IF(Tabel1[[#This Row],[Belastbaar maandsalaris]]*12<=38441, Tabel1[[#This Row],[Belastbaar maandsalaris]]*0.3582, IF(Tabel1[[#This Row],[Belastbaar maandsalaris]]*12<=76817, (38441*0.3582 + (Tabel1[[#This Row],[Belastbaar maandsalaris]]*12-38441)*0.3748)/12, (38441*0.3582 + (76817-38441)*0.3748 + (Tabel1[[#This Row],[Belastbaar maandsalaris]]*12-76817)*0.495)/12))+Tabel1[[#This Row],[Heffingskorting ]] -> -1129.602719 | AJ27: =Lonen!C5 -> 18.6
A28: EMP00070 | B28: Evert | D28: Koning | E28: Evert Koning | F28: M | G28: 1967-06-19 | H28: =(TODAY()-Tabel1[[#This Row],[Geboortedatum]])/365.25 -> 57.97399042 | I28: Waterstraat 86 | J28: 3535 GH | K28: Culemborg | L28: Uitvoering | M28: Boormeester II | N28: 2019-06-12 | O28: =(TODAY()-Tabel1[[#This Row],[Datum in dienst]])/365.25 -> 5.993155373 | P28: Vast | Q28: =ROUNDDOWN(Tabel1[[#This Row],[Aantal dienstjaren]],0) -> 5 | R28: Onbepaalde tijd | S28: 3 | T28: 0.8 | U28: =40*Tabel1[[#This Row],[FTE]] -> 32 | V28: C | W28: =MIN(Lonen!C5*(Tabel1[[#This Row],[Jaarlijkse salarisstijging]])^Tabel1[[#This Row],[Afgeronde dienstjaren]],Lonen!E5) -> 21.56249778 | X28: =(MIN(Lonen!C5*(Tabel1[[#This Row],[Jaarlijkse salarisstijging]])^Tabel1[[#This Row],[Afgeronde dienstjaren]],Lonen!E5)*174.08)*Tabel1[[#This Row],[FTE]] -> 3002.879691 | Y28: 1.03 | Z28: =Tabel1[[#This Row],[Bruto maandsalaris]]*8% -> 240.2303753 | AB28: NVT | AC28: =ABS(IF(Tabel1[[#This Row],[Jaarsalaris]]<=12169,0.08053*Tabel1[[#This Row],[Jaarsalaris]],IF(Tabel1[[#This Row],[Jaarsalaris]]<=26288,980+0.3003*(Tabel1[[#This Row],[Jaarsalaris]]-12169),IF(Tabel1[[#This Row],[Jaarsalaris]]<=43071,5220+0.02258*(Tabel1[[#This Row],[Jaarsalaris]]-26288),IF(Tabel1[[#This Row],[Jaarsalaris]]<=129078,5599-0.0651*(Tabel1[[#This Row],[Jaarsalaris]]-43071),0)))))/12 -> 458.9901887 | AD28: =Tabel1[[#This Row],[Bruto maandsalaris]]*13 -> 39037.43598 | AE28: =-Tabel1[[#This Row],[Bruto maandsalaris]]*0.08% -> -2.402303753 | AF28: =-((Tabel1[[#This Row],[Jaarsalaris]]-18475)*9.4%)/12 -> -161.0724152 | AG28: =IF(Tabel1[[#This Row],[Jaarsalaris]]<=28406, 3068, IF(AD28<=76817, 3068 - 0.06337 * (AD28 - 28406), 0))/12 -> 199.5238251 | AH28: =Tabel1[[#This Row],[Bruto maandsalaris]]+Tabel1[[#This Row],[inhouding premie]]+Tabel1[[#This Row],[Inhouding pensioen]] -> 2839.404972 | AI28: =-IF(Tabel1[[#This Row],[Belastbaar maandsalaris]]*12<=38441, Tabel1[[#This Row],[Belastbaar maandsalaris]]*0.3582, IF(Tabel1[[#This Row],[Belastbaar maandsalaris]]*12<=76817, (38441*0.3582 + (Tabel1[[#This Row],[Belastbaar maandsalaris]]*12-38441)*0.3748)/12, (38441*0.3582 + (76817-38441)*0.3748 + (Tabel1[[#This Row],[Belastbaar maandsalaris]]*12-76817)*0.495)/12))+Tabel1[[#This Row],[Heffingskorting ]] -> -817.5510359 | AJ28: =Lonen!C5 -> 18.6
A29: EMP00006 | B29: Olaf | D29: Bellemans | E29: Olaf Bellemans | F29: M | G29: 1999-11-20 | H29: =(TODAY()-Tabel1[[#This Row],[Geboortedatum]])/365.25 -> 25.5523614 | I29: Waterstraat 174 | J29: 3639 AB | K29: Zeist | L29: Uitvoering | M29: Bouwhelper | N29: 2022-08-14 | O29: =(TODAY()-Tabel1[[#This Row],[Datum in dienst]])/365.25 -> 2.819986311 | P29: Vast | Q29: =ROUNDDOWN(Tabel1[[#This Row],[Aantal dienstjaren]],0) -> 2 | R29: Onbepaalde tijd | S29: 3 | T29: 1 | U29: =40*Tabel1[[#This Row],[FTE]] -> 40 | V29: A | W29: =MIN(Lonen!C3*(Tabel1[[#This Row],[Jaarlijkse salarisstijging]])^Tabel1[[#This Row],[Afgeronde dienstjaren]],Lonen!E3) -> 17.568504 | X29: =(MIN(Lonen!C3*(Tabel1[[#This Row],[Jaarlijkse salarisstijging]])^Tabel1[[#This Row],[Afgeronde dienstjaren]],Lonen!E3)*174.08)*Tabel1[[#This Row],[FTE]] -> 3058.325176 | Y29: 1.03 | Z29: =Tabel1[[#This Row],[Bruto maandsalaris]]*8% -> 244.6660141 | AB29: NVT | AC29: =ABS(IF(Tabel1[[#This Row],[Jaarsalaris]]<=12169,0.08053*Tabel1[[#This Row],[Jaarsalaris]],IF(Tabel1[[#This Row],[Jaarsalaris]]<=26288,980+0.3003*(Tabel1[[#This Row],[Jaarsalaris]]-12169),IF(Tabel1[[#This Row],[Jaarsalaris]]<=43071,5220+0.02258*(Tabel1[[#This Row],[Jaarsalaris]]-26288),IF(Tabel1[[#This Row],[Jaarsalaris]]<=129078,5599-0.0651*(Tabel1[[#This Row],[Jaarsalaris]]-43071),0)))))/12 -> 460.3464777 | AD29: =Tabel1[[#This Row],[Bruto maandsalaris]]*13 -> 39758.22729 | AE29: =-Tabel1[[#This Row],[Bruto maandsalaris]]*0.08% -> -2.446660141 | AF29: =-((Tabel1[[#This Row],[Jaarsalaris]]-18475)*9.4%)/12 -> -166.7186138 | AG29: =IF(Tabel1[[#This Row],[Jaarsalaris]]<=28406, 3068, IF(AD29<=76817, 3068 - 0.06337 * (AD29 - 28406), 0))/12 -> 195.7174464 | AH29: =Tabel1[[#This Row],[Bruto maandsalaris]]+Tabel1[[#This Row],[inhouding premie]]+Tabel1[[#This Row],[Inhouding pensioen]] -> 2889.159902 | AI29: =-IF(Tabel1[[#This Row],[Belastbaar maandsalaris]]*12<=38441, Tabel1[[#This Row],[Belastbaar maandsalaris]]*0.3582, IF(Tabel1[[#This Row],[Belastbaar maandsalaris]]*12<=76817, (38441*0.3582 + (Tabel1[[#This Row],[Belastbaar maandsalaris]]*12-38441)*0.3748)/12, (38441*0.3582 + (76817-38441)*0.3748 + (Tabel1[[#This Row],[Belastbaar maandsalaris]]*12-76817)*0.495)/12))+Tabel1[[#This Row],[Heffingskorting ]] -> -839.1796307 | AJ29: =Lonen!C3 -> 16.56
A30: EMP00010 | B30: Thijs | D30: Huberts | E30: Thijs Huberts | F30: M | G30: 1998-02-09 | H30: =(TODAY()-Tabel1[[#This Row],[Geboortedatum]])/365.25 -> 27.32922656 | I30: Julianalaan 159 | J30: 3749 IJ | K30: Bilthoven | L30: Uitvoering | M30: Bouwhelper | N30: 2021-11-02 | O30: =(TODAY()-Tabel1[[#This Row],[Datum in dienst]])/365.25 -> 3.600273785 | P30: Vast | Q30: =ROUNDDOWN(Tabel1[[#This Row],[Aantal dienstjaren]],0) -> 3 | R30: Onbepaalde tijd | S30: 3 | T30: 1 | U30: =40*Tabel1[[#This Row],[FTE]] -> 40 | V30: A | W30: =MIN(Lonen!C3*(Tabel1[[#This Row],[Jaarlijkse salarisstijging]])^Tabel1[[#This Row],[Afgeronde dienstjaren]],Lonen!E3) -> 18.09555912 | X30: =(MIN(Lonen!C3*(Tabel1[[#This Row],[Jaarlijkse salarisstijging]])^Tabel1[[#This Row],[Afgeronde dienstjaren]],Lonen!E3)*174.08)*Tabel1[[#This Row],[FTE]] -> 3150.074932 | Y30: 1.03 | Z30: =Tabel1[[#This Row],[Bruto maandsalaris]]*8% -> 252.0059945 | AB30: NVT | AC30: =ABS(IF(Tabel1[[#This Row],[Jaarsalaris]]<=12169,0.08053*Tabel1[[#This Row],[Jaarsalaris]],IF(Tabel1[[#This Row],[Jaarsalaris]]<=26288,980+0.3003*(Tabel1[[#This Row],[Jaarsalaris]]-12169),IF(Tabel1[[#This Row],[Jaarsalaris]]<=43071,5220+0.02258*(Tabel1[[#This Row],[Jaarsalaris]]-26288),IF(Tabel1[[#This Row],[Jaarsalaris]]<=129078,5599-0.0651*(Tabel1[[#This Row],[Jaarsalaris]]-43071),0)))))/12 -> 462.5908296 | AD30: =Tabel1[[#This Row],[Bruto maandsalaris]]*13 -> 40950.97411 | AE30: =-Tabel1[[#This Row],[Bruto maandsalaris]]*0.08% -> -2.520059945 | AF30: =-((Tabel1[[#This Row],[Jaarsalaris]]-18475)*9.4%)/12 -> -176.0617972 | AG30: =IF(Tabel1[[#This Row],[Jaarsalaris]]<=28406, 3068, IF(AD30<=76817, 3068 - 0.06337 * (AD30 - 28406), 0))/12 -> 189.4187492 | AH30: =Tabel1[[#This Row],[Bruto maandsalaris]]+Tabel1[[#This Row],[inhouding premie]]+Tabel1[[#This Row],[Inhouding pensioen]] -> 2971.493074 | AI30: =-IF(Tabel1[[#This Row],[Belastbaar maandsalaris]]*12<=38441, Tabel1[[#This Row],[Belastbaar maandsalaris]]*0.3582, IF(Tabel1[[#This Row],[Belastbaar maandsalaris]]*12<=76817, (38441*0.3582 + (Tabel1[[#This Row],[Belastbaar maandsalaris]]*12-38441)*0.3748)/12, (38441*0.3582 + (76817-38441)*0.3748 + (Tabel1[[#This Row],[Belastbaar maandsalaris]]*12-76817)*0.495)/12))+Tabel1[[#This Row],[Heffingskorting ]] -> -874.9700701 | AJ30: =Lonen!C3 -> 16.56
A31: EMP00016 | B31: Hamza | C31: van der | D31: Stael | E31: Hamza van der Stael | F31: M | G31: 2001-10-02 | H31: =(TODAY()-Tabel1[[#This Row],[Geboortedatum]])/365.25 -> 23.68514716 | I31: Prins Hendriklaan 119 | J31: 3478 EF | K31: Nieuwegein | L31: Uitvoering | M31: Bouwhelper | N31: 2023-07-20 | O31: =(TODAY()-Tabel1[[#This Row],[Datum in dienst]])/365.25 -> 1.889117043 | P31: Vast | Q31: =ROUNDDOWN(Tabel1[[#This Row],[Aantal dienstjaren]],0) -> 1 | R31: Onbepaalde tijd | S31: 3 | T31: 1 | U31: =40*Tabel1[[#This Row],[FTE]] -> 40 | V31: A | W31: =MIN(Lonen!C3*(Tabel1[[#This Row],[Jaarlijkse salarisstijging]])^Tabel1[[#This Row],[Afgeronde dienstjaren]],Lonen!E3) -> 17.0568 | X31: =(MIN(Lonen!C3*(Tabel1[[#This Row],[Jaarlijkse salarisstijging]])^Tabel1[[#This Row],[Afgeronde dienstjaren]],Lonen!E3)*174.08)*Tabel1[[#This Row],[FTE]] -> 2969.247744 | Y31: 1.03 | Z31: =Tabel1[[#This Row],[Bruto maandsalaris]]*8% -> 237.5398195 | AB31: NVT | AC31: =ABS(IF(Tabel1[[#This Row],[Jaarsalaris]]<=12169,0.08053*Tabel1[[#This Row],[Jaarsalaris]],IF(Tabel1[[#This Row],[Jaarsalaris]]<=26288,980+0.3003*(Tabel1[[#This Row],[Jaarsalaris]]-12169),IF(Tabel1[[#This Row],[Jaarsalaris]]<=43071,5220+0.02258*(Tabel1[[#This Row],[Jaarsalaris]]-26288),IF(Tabel1[[#This Row],[Jaarsalaris]]<=129078,5599-0.0651*(Tabel1[[#This Row],[Jaarsalaris]]-43071),0)))))/12 -> 458.1674952 | AD31: =Tabel1[[#This Row],[Bruto maandsalaris]]*13 -> 38600.22067 | AE31: =-Tabel1[[#This Row],[Bruto maandsalaris]]*0.08% -> -2.375398195 | AF31: =-((Tabel1[[#This Row],[Jaarsalaris]]-18475)*9.4%)/12 -> -157.6475619 | AG31: =IF(Tabel1[[#This Row],[Jaarsalaris]]<=28406, 3068, IF(AD31<=76817, 3068 - 0.06337 * (AD31 - 28406), 0))/12 -> 201.8326863 | AH31: =Tabel1[[#This Row],[Bruto maandsalaris]]+Tabel1[[#This Row],[inhouding premie]]+Tabel1[[#This Row],[Inhouding pensioen]] -> 2809.224784 | AI31: =-IF(Tabel1[[#This Row],[Belastbaar maandsalaris]]*12<=38441, Tabel1[[#This Row],[Belastbaar maandsalaris]]*0.3582, IF(Tabel1[[#This Row],[Belastbaar maandsalaris]]*12<=76817, (38441*0.3582 + (Tabel1[[#This Row],[Belastbaar maandsalaris]]*12-38441)*0.3748)/12, (38441*0.3582 + (76817-38441)*0.3748 + (Tabel1[[#This Row],[Belastbaar maandsalaris]]*12-76817)*0.495)/12))+Tabel1[[#This Row],[Heffingskorting ]] -> -804.4316312 | AJ31: =Lonen!C3 -> 16.56
A32: EMP00019 | B32: Adriaan | C32: van | D32: Geest | E32: Adriaan van Geest | F32: M | G32: 2000-06-25 | H32: =(TODAY()-Tabel1[[#This Row],[Geboortedatum]])/365.25 -> 24.95550992 | I32: Valkenierstraat 192 | J32: 3713 GH | K32: Baarn | L32: Uitvoering | M32: Bouwhelper | N32: 2024-02-20 | O32: =(TODAY()-Tabel1[[#This Row],[Datum in dienst]])/365.25 -> 1.300479124 | P32: Vast | Q32: =ROUNDDOWN(Tabel1[[#This Row],[Aantal dienstjaren]],0) -> 1 | R32: Onbepaalde tijd | S32: 3 | T32: 1 | U32: =40*Tabel1[[#This Row],[FTE]] -> 40 | V32: A | W32: =MIN(Lonen!C3*(Tabel1[[#This Row],[Jaarlijkse salarisstijging]])^Tabel1[[#This Row],[Afgeronde dienstjaren]],Lonen!E3) -> 17.0568 | X32: =(MIN(Lonen!C3*(Tabel1[[#This Row],[Jaarlijkse salarisstijging]])^Tabel1[[#This Row],[Afgeronde dienstjaren]],Lonen!E3)*174.08)*Tabel1[[#This Row],[FTE]] -> 2969.247744 | Y32: 1.03 | Z32: =Tabel1[[#This Row],[Bruto maandsalaris]]*8% -> 237.5398195 | AB32: NVT | AC32: =ABS(IF(Tabel1[[#This Row],[Jaarsalaris]]<=12169,0.08053*Tabel1[[#This Row],[Jaarsalaris]],IF(Tabel1[[#This Row],[Jaarsalaris]]<=26288,980+0.3003*(Tabel1[[#This Row],[Jaarsalaris]]-12169),IF(Tabel1[[#This Row],[Jaarsalaris]]<=43071,5220+0.02258*(Tabel1[[#This Row],[Jaarsalaris]]-26288),IF(Tabel1[[#This Row],[Jaarsalaris]]<=129078,5599-0.0651*(Tabel1[[#This Row],[Jaarsalaris]]-43071),0)))))/12 -> 458.1674952 | AD32: =Tabel1[[#This Row],[Bruto maandsalaris]]*13 -> 38600.22067 | AE32: =-Tabel1[[#This Row],[Bruto maandsalaris]]*0.08% -> -2.375398195 | AF32: =-((Tabel1[[#This Row],[Jaarsalaris]]-18475)*9.4%)/12 -> -157.6475619 | AG32: =IF(Tabel1[[#This Row],[Jaarsalaris]]<=28406, 3068, IF(AD32<=76817, 3068 - 0.06337 * (AD32 - 28406), 0))/12 -> 201.8326863 | AH32: =Tabel1[[#This Row],[Bruto maandsalaris]]+Tabel1[[#This Row],[inhouding premie]]+Tabel1[[#This Row],[Inhouding pensioen]] -> 2809.224784 | AI32: =-IF(Tabel1[[#This Row],[Belastbaar maandsalaris]]*12<=38441, Tabel1[[#This Row],[Belastbaar maandsalaris]]*0.3582, IF(Tabel1[[#This Row],[Belastbaar maandsalaris]]*12<=76817, (38441*0.3582 + (Tabel1[[#This Row],[Belastbaar maandsalaris]]*12-38441)*0.3748)/12, (38441*0.3582 + (76817-38441)*0.3748 + (Tabel1[[#This Row],[Belastbaar maandsalaris]]*12-76817)*0.495)/12))+Tabel1[[#This Row],[Heffingskorting ]] -> -804.4316312 | AJ32: =Lonen!C3 -> 16.56
A33: EMP00056 | B33: Hans | D33: Koning | E33: Hans Koning | F33: M | G33: 2001-12-22 | H33: =(TODAY()-Tabel1[[#This Row],[Geboortedatum]])/365.25 -> 23.46338125 | I33: Zonstraat 64 | J33: 3819 GH | K33: Amersfoort | L33: Uitvoering | M33: Bouwhelper | N33: 2021-02-28 | O33: =(TODAY()-Tabel1[[#This Row],[Datum in dienst]])/365.25 -> 4.27652293 | P33: Vast | Q33: =ROUNDDOWN(Tabel1[[#This Row],[Aantal dienstjaren]],0) -> 4 | R33: Onbepaalde tijd | S33: 3 | T33: 1 | U33: =40*Tabel1[[#This Row],[FTE]] -> 40 | V33: A | W33: =MIN(Lonen!C3*(Tabel1[[#This Row],[Jaarlijkse salarisstijging]])^Tabel1[[#This Row],[Afgeronde dienstjaren]],Lonen!E3) -> 18.63842589 | X33: =(MIN(Lonen!C3*(Tabel1[[#This Row],[Jaarlijkse salarisstijging]])^Tabel1[[#This Row],[Afgeronde dienstjaren]],Lonen!E3)*174.08)*Tabel1[[#This Row],[FTE]] -> 3244.57718 | Y33: 1.03 | Z33: =Tabel1[[#This Row],[Bruto maandsalaris]]*8% -> 259.5661744 | AB33: NVT | AC33: =ABS(IF(Tabel1[[#This Row],[Jaarsalaris]]<=12169,0.08053*Tabel1[[#This Row],[Jaarsalaris]],IF(Tabel1[[#This Row],[Jaarsalaris]]<=26288,980+0.3003*(Tabel1[[#This Row],[Jaarsalaris]]-12169),IF(Tabel1[[#This Row],[Jaarsalaris]]<=43071,5220+0.02258*(Tabel1[[#This Row],[Jaarsalaris]]-26288),IF(Tabel1[[#This Row],[Jaarsalaris]]<=129078,5599-0.0651*(Tabel1[[#This Row],[Jaarsalaris]]-43071),0)))))/12 -> 464.9025121 | AD33: =Tabel1[[#This Row],[Bruto maandsalaris]]*13 -> 42179.50333 | AE33: =-Tabel1[[#This Row],[Bruto maandsalaris]]*0.08% -> -2.595661744 | AF33: =-((Tabel1[[#This Row],[Jaarsalaris]]-18475)*9.4%)/12 -> -185.6852761 | AG33: =IF(Tabel1[[#This Row],[Jaarsalaris]]<=28406, 3068, IF(AD33<=76817, 3068 - 0.06337 * (AD33 - 28406), 0))/12 -> 182.9310911 | AH33: =Tabel1[[#This Row],[Bruto maandsalaris]]+Tabel1[[#This Row],[inhouding premie]]+Tabel1[[#This Row],[Inhouding pensioen]] -> 3056.296242 | AI33: =-IF(Tabel1[[#This Row],[Belastbaar maandsalaris]]*12<=38441, Tabel1[[#This Row],[Belastbaar maandsalaris]]*0.3582, IF(Tabel1[[#This Row],[Belastbaar maandsalaris]]*12<=76817, (38441*0.3582 + (Tabel1[[#This Row],[Belastbaar maandsalaris]]*12-38441)*0.3748)/12, (38441*0.3582 + (76817-38441)*0.3748 + (Tabel1[[#This Row],[Belastbaar maandsalaris]]*12-76817)*0.495)/12))+Tabel1[[#This Row],[Heffingskorting ]] -> -911.8342226 | AJ33: =Lonen!C3 -> 16.56
A34: EMP00007 | B34: Sepp | C34: van | D34: Bovene | E34: =B34 & IF(C34="", " ", " " & C34 & " ") & D34 -> Sepp van Bovene | F34: M | G34: 1985-09-22 | H34: =(TODAY()-Tabel1[[#This Row],[Geboortedatum]])/365.25 -> 39.71252567 | I34: Beatrixstraat 61 | J34: 3574 EF | K34: Baarn | L34: Voorbereiding | M34: Calculator/Kostendeskundige | N34: 2019-10-19 | O34: =(TODAY()-Tabel1[[#This Row],[Datum in dienst]])/365.25 -> 5.639972621 | P34: Vast | Q34: =ROUNDDOWN(Tabel1[[#This Row],[Aantal dienstjaren]],0) -> 5 | R34: Onbepaalde tijd | S34: 3 | T34: 1 | U34: =40*Tabel1[[#This Row],[FTE]] -> 40 | V34: UTA 3 | W34: =(MIN(Lonen!C14*(Tabel1[[#This Row],[Jaarlijkse salarisstijging]])^Tabel1[[#This Row],[Aantal dienstjaren]],Lonen!D14))/174.08 -> 19.80678118 | X34: =(MIN(Lonen!C14*(Tabel1[[#This Row],[Jaarlijkse salarisstijging]])^Tabel1[[#This Row],[Aantal dienstjaren]],Lonen!D14))*Tabel1[[#This Row],[FTE]] -> 3447.964467 | Y34: 1.03 | Z34: =Tabel1[[#This Row],[Bruto maandsalaris]]*8% -> 275.8371574 | AB34: NVT | AC34: =ABS(IF(Tabel1[[#This Row],[Jaarsalaris]]<=12169,0.08053*Tabel1[[#This Row],[Jaarsalaris]],IF(Tabel1[[#This Row],[Jaarsalaris]]<=26288,980+0.3003*(Tabel1[[#This Row],[Jaarsalaris]]-12169),IF(Tabel1[[#This Row],[Jaarsalaris]]<=43071,5220+0.02258*(Tabel1[[#This Row],[Jaarsalaris]]-26288),IF(Tabel1[[#This Row],[Jaarsalaris]]<=129078,5599-0.0651*(Tabel1[[#This Row],[Jaarsalaris]]-43071),0)))))/12 -> 457.0758143 | AD34: =Tabel1[[#This Row],[Bruto maandsalaris]]*13 -> 44823.53807 | AE34: =-Tabel1[[#This Row],[Bruto maandsalaris]]*0.08% -> -2.758371574 | AF34: =-((Tabel1[[#This Row],[Jaarsalaris]]-18475)*9.4%)/12 -> -206.3968816 | AG34: =IF(Tabel1[[#This Row],[Jaarsalaris]]<=28406, 3068, IF(AD34<=76817, 3068 - 0.06337 * (AD34 - 28406), 0))/12 -> 168.9683843 | AH34: =Tabel1[[#This Row],[Bruto maandsalaris]]+Tabel1[[#This Row],[inhouding premie]]+Tabel1[[#This Row],[Inhouding pensioen]] -> 3238.809214 | AI34: =-IF(Tabel1[[#This Row],[Belastbaar maandsalaris]]*12<=38441, Tabel1[[#This Row],[Belastbaar maandsalaris]]*0.3582, IF(Tabel1[[#This Row],[Belastbaar maandsalaris]]*12<=76817, (38441*0.3582 + (Tabel1[[#This Row],[Belastbaar maandsalaris]]*12-38441)*0.3748)/12, (38441*0.3582 + (76817-38441)*0.3748 + (Tabel1[[#This Row],[Belastbaar maandsalaris]]*12-76817)*0.495)/12))+Tabel1[[#This Row],[Heffingskorting ]] -> -991.7605924 | AJ34: =Lonen!C14/(40*4.33) -> 16.85051963
A35: EMP00061 | B35: Hans | C35: de | D35: Boer | E35: Hans de Boer | F35: M | G35: 1991-09-23 | H35: =(TODAY()-Tabel1[[#This Row],[Geboortedatum]])/365.25 -> 33.71115674 | I35: Dorpsstraat 152 | J35: 3935 AB | K35: Soest | L35: Voorbereiding | M35: Calculator/Kostendeskundige | N35: 2020-07-19 | O35: =(TODAY()-Tabel1[[#This Row],[Datum in dienst]])/365.25 -> 4.889801506 | P35: Vast | Q35: =ROUNDDOWN(Tabel1[[#This Row],[Aantal dienstjaren]],0) -> 4 | R35: Onbepaalde tijd | S35: 3 | T35: 1 | U35: =40*Tabel1[[#This Row],[FTE]] -> 40 | V35: UTA 3 | W35: =(MIN(Lonen!C14*(Tabel1[[#This Row],[Jaarlijkse salarisstijging]])^Tabel1[[#This Row],[Aantal dienstjaren]],Lonen!D14))/174.08 -> 19.37241609 | X35: =(MIN(Lonen!C14*(Tabel1[[#This Row],[Jaarlijkse salarisstijging]])^Tabel1[[#This Row],[Aantal dienstjaren]],Lonen!D14))*Tabel1[[#This Row],[FTE]] -> 3372.350192 | Y35: 1.03 | Z35: =Tabel1[[#This Row],[Bruto maandsalaris]]*8% -> 269.7880154 | AB35: NVT | AC35: =ABS(IF(Tabel1[[#This Row],[Jaarsalaris]]<=12169,0.08053*Tabel1[[#This Row],[Jaarsalaris]],IF(Tabel1[[#This Row],[Jaarsalaris]]<=26288,980+0.3003*(Tabel1[[#This Row],[Jaarsalaris]]-12169),IF(Tabel1[[#This Row],[Jaarsalaris]]<=43071,5220+0.02258*(Tabel1[[#This Row],[Jaarsalaris]]-26288),IF(Tabel1[[#This Row],[Jaarsalaris]]<=129078,5599-0.0651*(Tabel1[[#This Row],[Jaarsalaris]]-43071),0)))))/12 -> 462.408511 | AD35: =Tabel1[[#This Row],[Bruto maandsalaris]]*13 -> 43840.5525 | AE35: =-Tabel1[[#This Row],[Bruto maandsalaris]]*0.08% -> -2.697880154 | AF35: =-((Tabel1[[#This Row],[Jaarsalaris]]-18475)*9.4%)/12 -> -198.6968279 | AG35: =IF(Tabel1[[#This Row],[Jaarsalaris]]<=28406, 3068, IF(AD35<=76817, 3068 - 0.06337 * (AD35 - 28406), 0))/12 -> 174.1593673 | AH35: =Tabel1[[#This Row],[Bruto maandsalaris]]+Tabel1[[#This Row],[inhouding premie]]+Tabel1[[#This Row],[Inhouding pensioen]] -> 3170.955484 | AI35: =-IF(Tabel1[[#This Row],[Belastbaar maandsalaris]]*12<=38441, Tabel1[[#This Row],[Belastbaar maandsalaris]]*0.3582, IF(Tabel1[[#This Row],[Belastbaar maandsalaris]]*12<=76817, (38441*0.3582 + (Tabel1[[#This Row],[Belastbaar maandsalaris]]*12-38441)*0.3748)/12, (38441*0.3582 + (76817-38441)*0.3748 + (Tabel1[[#This Row],[Belastbaar maandsalaris]]*12-76817)*0.495)/12))+Tabel1[[#This Row],[Heffingskorting ]] -> -961.6768872 | AJ35: =Lonen!C14/(40*4.33) -> 16.85051963
A36: EMP00029 | B36: Joep | D36: Schouten | E36: Joep Schouten | F36: M | G36: 1974-03-11 | H36: =(TODAY()-Tabel1[[#This Row],[Geboortedatum]])/365.25 -> 51.24709103 | I36: Julianalaan 31 | J36: 3610 CD | K36: Montfoort | L36: Staf | M36: Computerbediening | N36: 2009-01-25 | O36: =(TODAY()-Tabel1[[#This Row],[Datum in dienst]])/365.25 -> 16.36960986 | P36: Vast | Q36: =ROUNDDOWN(Tabel1[[#This Row],[Aantal dienstjaren]],0) -> 16 | R36: Onbepaalde tijd | S36: 3 | T36: 1 | U36: =40*Tabel1[[#This Row],[FTE]] -> 40 | V36: UTA 2 | W36: =(MIN(Lonen!C13*(Tabel1[[#This Row],[Jaarlijkse salarisstijging]])^Tabel1[[#This Row],[Aantal dienstjaren]],Lonen!D13))/174.08 -> 19.99775965 | X36: =(MIN(Lonen!C13*(Tabel1[[#This Row],[Jaarlijkse salarisstijging]])^Tabel1[[#This Row],[Aantal dienstjaren]],Lonen!D13))*Tabel1[[#This Row],[FTE]] -> 3481.21 | Y36: 1.03 | Z36: =Tabel1[[#This Row],[Bruto maandsalaris]]*8% -> 278.4968 | AB36: NVT | AC36: =ABS(IF(Tabel1[[#This Row],[Jaarsalaris]]<=12169,0.08053*Tabel1[[#This Row],[Jaarsalaris]],IF(Tabel1[[#This Row],[Jaarsalaris]]<=26288,980+0.3003*(Tabel1[[#This Row],[Jaarsalaris]]-12169),IF(Tabel1[[#This Row],[Jaarsalaris]]<=43071,5220+0.02258*(Tabel1[[#This Row],[Jaarsalaris]]-26288),IF(Tabel1[[#This Row],[Jaarsalaris]]<=129078,5599-0.0651*(Tabel1[[#This Row],[Jaarsalaris]]-43071),0)))))/12 -> 454.7311731 | AD36: =Tabel1[[#This Row],[Bruto maandsalaris]]*13 -> 45255.73 | AE36: =-Tabel1[[#This Row],[Bruto maandsalaris]]*0.08% -> -2.784968 | AF36: =-((Tabel1[[#This Row],[Jaarsalaris]]-18475)*9.4%)/12 -> -209.782385 | AG36: =IF(Tabel1[[#This Row],[Jaarsalaris]]<=28406, 3068, IF(AD36<=76817, 3068 - 0.06337 * (AD36 - 28406), 0))/12 -> 166.6860508 | AH36: =Tabel1[[#This Row],[Bruto maandsalaris]]+Tabel1[[#This Row],[inhouding premie]]+Tabel1[[#This Row],[Inhouding pensioen]] -> 3268.642647 | AI36: =-IF(Tabel1[[#This Row],[Belastbaar maandsalaris]]*12<=38441, Tabel1[[#This Row],[Belastbaar maandsalaris]]*0.3582, IF(Tabel1[[#This Row],[Belastbaar maandsalaris]]*12<=76817, (38441*0.3582 + (Tabel1[[#This Row],[Belastbaar maandsalaris]]*12-38441)*0.3748)/12, (38441*0.3582 + (76817-38441)*0.3748 + (Tabel1[[#This Row],[Belastbaar maandsalaris]]*12-76817)*0.495)/12))+Tabel1[[#This Row],[Heffingskorting ]] -> -1005.224497 | AJ36: =Lonen!C13/(40*4.33) -> 15.13394919
A37: EMP00040 | B37: Evelien | C37: van | D37: Bragt | E37: Evelien van Bragt | F37: M | G37: 2000-04-03 | H37: =(TODAY()-Tabel1[[#This Row],[Geboortedatum]])/365.25 -> 25.18275154 | I37: Sportlaan 167 | J37: 3784 GH | K37: Woudenberg | L37: Staf | M37: Computerbediening | N37: 2020-12-12 | O37: =(TODAY()-Tabel1[[#This Row],[Datum in dienst]])/365.25 -> 4.490075291 | P37: Vast | Q37: =ROUNDDOWN(Tabel1[[#This Row],[Aantal dienstjaren]],0) -> 4 | R37: Onbepaalde tijd | S37: 3 | T37: 1 | U37: =40*Tabel1[[#This Row],[FTE]] -> 40 | V37: UTA 3 | W37: =(MIN(Lonen!C14*(Tabel1[[#This Row],[Jaarlijkse salarisstijging]])^Tabel1[[#This Row],[Aantal dienstjaren]],Lonen!D14))/174.08 -> 19.14486962 | X37: =(MIN(Lonen!C14*(Tabel1[[#This Row],[Jaarlijkse salarisstijging]])^Tabel1[[#This Row],[Aantal dienstjaren]],Lonen!D14))*Tabel1[[#This Row],[FTE]] -> 3332.738904 | Y37: 1.03 | Z37: =Tabel1[[#This Row],[Bruto maandsalaris]]*8% -> 266.6191123 | AB37: NVT | AC37: =ABS(IF(Tabel1[[#This Row],[Jaarsalaris]]<=12169,0.08053*Tabel1[[#This Row],[Jaarsalaris]],IF(Tabel1[[#This Row],[Jaarsalaris]]<=26288,980+0.3003*(Tabel1[[#This Row],[Jaarsalaris]]-12169),IF(Tabel1[[#This Row],[Jaarsalaris]]<=43071,5220+0.02258*(Tabel1[[#This Row],[Jaarsalaris]]-26288),IF(Tabel1[[#This Row],[Jaarsalaris]]<=129078,5599-0.0651*(Tabel1[[#This Row],[Jaarsalaris]]-43071),0)))))/12 -> 465.2020971 | AD37: =Tabel1[[#This Row],[Bruto maandsalaris]]*13 -> 43325.60575 | AE37: =-Tabel1[[#This Row],[Bruto maandsalaris]]*0.08% -> -2.666191123 | AF37: =-((Tabel1[[#This Row],[Jaarsalaris]]-18475)*9.4%)/12 -> -194.6630784 | AG37: =IF(Tabel1[[#This Row],[Jaarsalaris]]<=28406, 3068, IF(AD37<=76817, 3068 - 0.06337 * (AD37 - 28406), 0))/12 -> 176.8787153 | AH37: =Tabel1[[#This Row],[Bruto maandsalaris]]+Tabel1[[#This Row],[inhouding premie]]+Tabel1[[#This Row],[Inhouding pensioen]] -> 3135.409635 | AI37: =-IF(Tabel1[[#This Row],[Belastbaar maandsalaris]]*12<=38441, Tabel1[[#This Row],[Belastbaar maandsalaris]]*0.3582, IF(Tabel1[[#This Row],[Belastbaar maandsalaris]]*12<=76817, (38441*0.3582 + (Tabel1[[#This Row],[Belastbaar maandsalaris]]*12-38441)*0.3748)/12, (38441*0.3582 + (76817-38441)*0.3748 + (Tabel1[[#This Row],[Belastbaar maandsalaris]]*12-76817)*0.495)/12))+Tabel1[[#This Row],[Heffingskorting ]] -> -946.2250158 | AJ37: =Lonen!C14/(40*4.33) -> 16.85051963
A38: EMP00026 | B38: Kyara | C38: van | D38: Rijnsbergen | E38: Kyara van Rijnsbergen | F38: V | G38: 1970-06-16 | H38: =(TODAY()-Tabel1[[#This Row],[Geboortedatum]])/365.25 -> 54.98151951 | I38: Kastanjelaan 133 | J38: 3910 GH | K38: Woudenberg | L38: Commercie en financïen | M38: Contractmanager | N38: 2014-05-04 | O38: =(TODAY()-Tabel1[[#This Row],[Datum in dienst]])/365.25 -> 11.09924709 | P38: Vast | Q38: =ROUNDDOWN(Tabel1[[#This Row],[Aantal dienstjaren]],0) -> 11 | R38: Onbepaalde tijd | S38: 3 | T38: 0.8 | U38: =40*Tabel1[[#This Row],[FTE]] -> 32 | V38: N.v.t. - boven | W38: =(MIN(Lonen!C18*(Tabel1[[#This Row],[Jaarlijkse salarisstijging]])^Tabel1[[#This Row],[Aantal dienstjaren]],Lonen!D18))/174.08 -> 43.08363971 | X38: =(MIN(Lonen!C18*(Tabel1[[#This Row],[Jaarlijkse salarisstijging]])^Tabel1[[#This Row],[Aantal dienstjaren]],Lonen!D18))*Tabel1[[#This Row],[FTE]] -> 6000 | Y38: 1.03 | Z38: =Tabel1[[#This Row],[Bruto maandsalaris]]*8% -> 480 | AB38: NVT | AC38: =ABS(IF(Tabel1[[#This Row],[Jaarsalaris]]<=12169,0.08053*Tabel1[[#This Row],[Jaarsalaris]],IF(Tabel1[[#This Row],[Jaarsalaris]]<=26288,980+0.3003*(Tabel1[[#This Row],[Jaarsalaris]]-12169),IF(Tabel1[[#This Row],[Jaarsalaris]]<=43071,5220+0.02258*(Tabel1[[#This Row],[Jaarsalaris]]-26288),IF(Tabel1[[#This Row],[Jaarsalaris]]<=129078,5599-0.0651*(Tabel1[[#This Row],[Jaarsalaris]]-43071),0)))))/12 -> 277.0935083 | AD38: =Tabel1[[#This Row],[Bruto maandsalaris]]*13 -> 78000 | AE38: =-Tabel1[[#This Row],[Bruto maandsalaris]]*0.08% -> -4.8 | AF38: =-((Tabel1[[#This Row],[Jaarsalaris]]-18475)*9.4%)/12 -> -466.2791667 | AG38: =IF(Tabel1[[#This Row],[Jaarsalaris]]<=28406, 3068, IF(AD38<=76817, 3068 - 0.06337 * (AD38 - 28406), 0))/12 -> 0 | AH38: =Tabel1[[#This Row],[Bruto maandsalaris]]+Tabel1[[#This Row],[inhouding premie]]+Tabel1[[#This Row],[Inhouding pensioen]] -> 5528.920833 | AI38: =-IF(Tabel1[[#This Row],[Belastbaar maandsalaris]]*12<=38441, Tabel1[[#This Row],[Belastbaar maandsalaris]]*0.3582, IF(Tabel1[[#This Row],[Belastbaar maandsalaris]]*12<=76817, (38441*0.3582 + (Tabel1[[#This Row],[Belastbaar maandsalaris]]*12-38441)*0.3748)/12, (38441*0.3582 + (76817-38441)*0.3748 + (Tabel1[[#This Row],[Belastbaar maandsalaris]]*12-76817)*0.495)/12))+Tabel1[[#This Row],[Heffingskorting ]] -> -2019.062812
A39: EMP00098 | B39: Jan | C39: de | D39: Boer | E39: Jan de Boer | F39: M | G39: 1965-07-27 | H39: =(TODAY()-Tabel1[[#This Row],[Geboortedatum]])/365.25 -> 59.86858316 | I39: Beatrixstraat 159 | J39: 3999 GH | K39: Bilthoven | L39: Commercie en financïen | M39: Contractmanager | N39: 2014-03-18 | O39: =(TODAY()-Tabel1[[#This Row],[Datum in dienst]])/365.25 -> 11.22792608 | P39: Vast | Q39: =ROUNDDOWN(Tabel1[[#This Row],[Aantal dienstjaren]],0) -> 11 | R39: Onbepaalde tijd | S39: 3 | T39: 1 | U39: =40*Tabel1[[#This Row],[FTE]] -> 40 | V39: N.v.t. - boven | W39: =(MIN(Lonen!C18*(Tabel1[[#This Row],[Jaarlijkse salarisstijging]])^Tabel1[[#This Row],[Aantal dienstjaren]],Lonen!D18))/174.08 -> 43.08363971 | X39: =(MIN(Lonen!C18*(Tabel1[[#This Row],[Jaarlijkse salarisstijging]])^Tabel1[[#This Row],[Aantal dienstjaren]],Lonen!D18))*Tabel1[[#This Row],[FTE]] -> 7500 | Y39: 1.03 | Z39: =Tabel1[[#This Row],[Bruto maandsalaris]]*8% -> 600 | AB39: NVT | AC39: =ABS(IF(Tabel1[[#This Row],[Jaarsalaris]]<=12169,0.08053*Tabel1[[#This Row],[Jaarsalaris]],IF(Tabel1[[#This Row],[Jaarsalaris]]<=26288,980+0.3003*(Tabel1[[#This Row],[Jaarsalaris]]-12169),IF(Tabel1[[#This Row],[Jaarsalaris]]<=43071,5220+0.02258*(Tabel1[[#This Row],[Jaarsalaris]]-26288),IF(Tabel1[[#This Row],[Jaarsalaris]]<=129078,5599-0.0651*(Tabel1[[#This Row],[Jaarsalaris]]-43071),0)))))/12 -> 171.3060083 | AD39: =Tabel1[[#This Row],[Bruto maandsalaris]]*13 -> 97500 | AE39: =-Tabel1[[#This Row],[Bruto maandsalaris]]*0.08% -> -6 | AF39: =-((Tabel1[[#This Row],[Jaarsalaris]]-18475)*9.4%)/12 -> -619.0291667 | AG39: =IF(Tabel1[[#This Row],[Jaarsalaris]]<=28406, 3068, IF(AD39<=76817, 3068 - 0.06337 * (AD39 - 28406), 0))/12 -> 0 | AH39: =Tabel1[[#This Row],[Bruto maandsalaris]]+Tabel1[[#This Row],[inhouding premie]]+Tabel1[[#This Row],[Inhouding pensioen]] -> 6874.970833 | AI39: =-IF(Tabel1[[#This Row],[Belastbaar maandsalaris]]*12<=38441, Tabel1[[#This Row],[Belastbaar maandsalaris]]*0.3582, IF(Tabel1[[#This Row],[Belastbaar maandsalaris]]*12<=76817, (38441*0.3582 + (Tabel1[[#This Row],[Belastbaar maandsalaris]]*12-38441)*0.3748)/12, (38441*0.3582 + (76817-38441)*0.3748 + (Tabel1[[#This Row],[Belastbaar maandsalaris]]*12-76817)*0.495)/12))+Tabel1[[#This Row],[Heffingskorting ]] -> -2580.483563
A40: EMP00030 | B40: Tycho | D40: Rousselet | E40: Tycho Rousselet | F40: M | G40: 1967-12-22 | H40: =(TODAY()-Tabel1[[#This Row],[Geboortedatum]])/365.25 -> 57.46475017 | I40: Parkweg 153 | J40: 3951 IJ | K40: Woerden | L40: Staf | M40: Directeur CEO | N40: 2012-12-27 | O40: =(TODAY()-Tabel1[[#This Row],[Datum in dienst]])/365.25 -> 12.44900753 | P40: Vast | Q40: =ROUNDDOWN(Tabel1[[#This Row],[Aantal dienstjaren]],0) -> 12 | R40: Onbepaalde tijd | S40: 3 | T40: 1 | U40: =40*Tabel1[[#This Row],[FTE]] -> 40 | V40: N.v.t. - boven | W40: =(MIN(Lonen!C20*(Tabel1[[#This Row],[Jaarlijkse salarisstijging]])^Tabel1[[#This Row],[Aantal dienstjaren]],Lonen!D20))/174.08 -> 71.80606618 | X40: =(MIN(Lonen!C20*(Tabel1[[#This Row],[Jaarlijkse salarisstijging]])^Tabel1[[#This Row],[Aantal dienstjaren]],Lonen!D20))*Tabel1[[#This Row],[FTE]] -> 12500 | Y40: 1.03 | Z40: =Tabel1[[#This Row],[Bruto maandsalaris]]*8% -> 1000 | AB40: NVT | AC40: =ABS(IF(Tabel1[[#This Row],[Jaarsalaris]]<=12169,0.08053*Tabel1[[#This Row],[Jaarsalaris]],IF(Tabel1[[#This Row],[Jaarsalaris]]<=26288,980+0.3003*(Tabel1[[#This Row],[Jaarsalaris]]-12169),IF(Tabel1[[#This Row],[Jaarsalaris]]<=43071,5220+0.02258*(Tabel1[[#This Row],[Jaarsalaris]]-26288),IF(Tabel1[[#This Row],[Jaarsalaris]]<=129078,5599-0.0651*(Tabel1[[#This Row],[Jaarsalaris]]-43071),0)))))/12 -> 0 | AD40: =Tabel1[[#This Row],[Bruto maandsalaris]]*13 -> 162500 | AE40: =-Tabel1[[#This Row],[Bruto maandsalaris]]*0.08% -> -10 | AF40: =-((Tabel1[[#This Row],[Jaarsalaris]]-18475)*9.4%)/12 -> -1128.195833 | AG40: =IF(Tabel1[[#This Row],[Jaarsalaris]]<=28406, 3068, IF(AD40<=76817, 3068 - 0.06337 * (AD40 - 28406), 0))/12 -> 0 | AH40: =Tabel1[[#This Row],[Bruto maandsalaris]]+Tabel1[[#This Row],[inhouding premie]]+Tabel1[[#This Row],[Inhouding pensioen]] -> 11361.80417 | AI40: =-IF(Tabel1[[#This Row],[Belastbaar maandsalaris]]*12<=38441, Tabel1[[#This Row],[Belastbaar maandsalaris]]*0.3582, IF(Tabel1[[#This Row],[Belastbaar maandsalaris]]*12<=76817, (38441*0.3582 + (Tabel1[[#This Row],[Belastbaar maandsalaris]]*12-38441)*0.3748)/12, (38441*0.3582 + (76817-38441)*0.3748 + (Tabel1[[#This Row],[Belastbaar maandsalaris]]*12-76817)*0.495)/12))+Tabel1[[#This Row],[Heffingskorting ]] -> -4801.466062
A41: EMP00072 | B41: Hans | D41: Pieters | E41: Hans Pieters | F41: M | G41: 1983-12-08 | H41: =(TODAY()-Tabel1[[#This Row],[Geboortedatum]])/365.25 -> 41.50308008 | I41: Julianalaan 180 | J41: 3907 IJ | K41: Driebergen-Rijsenburg | L41: Commercie en financïen | M41: Directeur CFO | N41: 2008-08-10 | O41: =(TODAY()-Tabel1[[#This Row],[Datum in dienst]])/365.25 -> 16.82956879 | P41: Vast | Q41: =ROUNDDOWN(Tabel1[[#This Row],[Aantal dienstjaren]],0) -> 16 | R41: Onbepaalde tijd | S41: 3 | T41: 1 | U41: =40*Tabel1[[#This Row],[FTE]] -> 40 | V41: N.v.t. - boven | W41: =(MIN(Lonen!C19*(Tabel1[[#This Row],[Jaarlijkse salarisstijging]])^Tabel1[[#This Row],[Aantal dienstjaren]],Lonen!D19))/174.08 -> 53.13648897 | X41: =(MIN(Lonen!C19*(Tabel1[[#This Row],[Jaarlijkse salarisstijging]])^Tabel1[[#This Row],[Aantal dienstjaren]],Lonen!D19))*Tabel1[[#This Row],[FTE]] -> 9250 | Y41: 1.03 | Z41: =Tabel1[[#This Row],[Bruto maandsalaris]]*8% -> 740 | AB41: NVT | AC41: =ABS(IF(Tabel1[[#This Row],[Jaarsalaris]]<=12169,0.08053*Tabel1[[#This Row],[Jaarsalaris]],IF(Tabel1[[#This Row],[Jaarsalaris]]<=26288,980+0.3003*(Tabel1[[#This Row],[Jaarsalaris]]-12169),IF(Tabel1[[#This Row],[Jaarsalaris]]<=43071,5220+0.02258*(Tabel1[[#This Row],[Jaarsalaris]]-26288),IF(Tabel1[[#This Row],[Jaarsalaris]]<=129078,5599-0.0651*(Tabel1[[#This Row],[Jaarsalaris]]-43071),0)))))/12 -> 47.88725833 | AD41: =Tabel1[[#This Row],[Bruto maandsalaris]]*13 -> 120250 | AE41: =-Tabel1[[#This Row],[Bruto maandsalaris]]*0.08% -> -7.4 | AF41: =-((Tabel1[[#This Row],[Jaarsalaris]]-18475)*9.4%)/12 -> -797.2375 | AG41: =IF(Tabel1[[#This Row],[Jaarsalaris]]<=28406, 3068, IF(AD41<=76817, 3068 - 0.06337 * (AD41 - 28406), 0))/12 -> 0 | AH41: =Tabel1[[#This Row],[Bruto maandsalaris]]+Tabel1[[#This Row],[inhouding premie]]+Tabel1[[#This Row],[Inhouding pensioen]] -> 8445.3625 | AI41: =-IF(Tabel1[[#This Row],[Belastbaar maandsalaris]]*12<=38441, Tabel1[[#This Row],[Belastbaar maandsalaris]]*0.3582, IF(Tabel1[[#This Row],[Belastbaar maandsalaris]]*12<=76817, (38441*0.3582 + (Tabel1[[#This Row],[Belastbaar maandsalaris]]*12-38441)*0.3748)/12, (38441*0.3582 + (76817-38441)*0.3748 + (Tabel1[[#This Row],[Belastbaar maandsalaris]]*12-76817)*0.495)/12))+Tabel1[[#This Row],[Heffingskorting ]] -> -3357.827438
A42: EMP00050 | B42: Peter | D42: Kof | E42: Peter Kof | F42: M | G42: 1970-05-19 | H42: =(TODAY()-Tabel1[[#This Row],[Geboortedatum]])/365.25 -> 55.05817933 | I42: Beatrixstraat 138 | J42: 3572 AB | K42: Zeist | L42: Voorbereiding | M42: Directeur COO | N42: 2019-04-12 | O42: =(TODAY()-Tabel1[[#This Row],[Datum in dienst]])/365.25 -> 6.160164271 | P42: Vast | Q42: =ROUNDDOWN(Tabel1[[#This Row],[Aantal dienstjaren]],0) -> 6 | R42: Onbepaalde tijd | S42: 3 | T42: 1 | U42: =40*Tabel1[[#This Row],[FTE]] -> 40 | V42: N.v.t. - boven | W42: =(MIN(Lonen!C20*(Tabel1[[#This Row],[Jaarlijkse salarisstijging]])^Tabel1[[#This Row],[Aantal dienstjaren]],Lonen!D20))/174.08 -> 62.02589568 | X42: =(MIN(Lonen!C20*(Tabel1[[#This Row],[Jaarlijkse salarisstijging]])^Tabel1[[#This Row],[Aantal dienstjaren]],Lonen!D20))*Tabel1[[#This Row],[FTE]] -> 10797.46792 | Y42: 1.03 | Z42: =Tabel1[[#This Row],[Bruto maandsalaris]]*8% -> 863.7974336 | AB42: NVT | AC42: =ABS(IF(Tabel1[[#This Row],[Jaarsalaris]]<=12169,0.08053*Tabel1[[#This Row],[Jaarsalaris]],IF(Tabel1[[#This Row],[Jaarsalaris]]<=26288,980+0.3003*(Tabel1[[#This Row],[Jaarsalaris]]-12169),IF(Tabel1[[#This Row],[Jaarsalaris]]<=43071,5220+0.02258*(Tabel1[[#This Row],[Jaarsalaris]]-26288),IF(Tabel1[[#This Row],[Jaarsalaris]]<=129078,5599-0.0651*(Tabel1[[#This Row],[Jaarsalaris]]-43071),0)))))/12 -> 0 | AD42: =Tabel1[[#This Row],[Bruto maandsalaris]]*13 -> 140367.083 | AE42: =-Tabel1[[#This Row],[Bruto maandsalaris]]*0.08% -> -8.637974336 | AF42: =-((Tabel1[[#This Row],[Jaarsalaris]]-18475)*9.4%)/12 -> -954.8213165 | AG42: =IF(Tabel1[[#This Row],[Jaarsalaris]]<=28406, 3068, IF(AD42<=76817, 3068 - 0.06337 * (AD42 - 28406), 0))/12 -> 0 | AH42: =Tabel1[[#This Row],[Bruto maandsalaris]]+Tabel1[[#This Row],[inhouding premie]]+Tabel1[[#This Row],[Inhouding pensioen]] -> 9834.008629 | AI42: =-IF(Tabel1[[#This Row],[Belastbaar maandsalaris]]*12<=38441, Tabel1[[#This Row],[Belastbaar maandsalaris]]*0.3582, IF(Tabel1[[#This Row],[Belastbaar maandsalaris]]*12<=76817, (38441*0.3582 + (Tabel1[[#This Row],[Belastbaar maandsalaris]]*12-38441)*0.3748)/12, (38441*0.3582 + (76817-38441)*0.3748 + (Tabel1[[#This Row],[Belastbaar maandsalaris]]*12-76817)*0.495)/12))+Tabel1[[#This Row],[Heffingskorting ]] -> -4045.207271
A43: EMP00083 | B43: Eddie | D43: Vermeer | E43: Eddie Vermeer | F43: M | G43: 1978-07-23 | H43: =(TODAY()-Tabel1[[#This Row],[Geboortedatum]])/365.25 -> 46.88021903 | I43: Dorpsstraat 199 | J43: 3688 IJ | K43: IJsselstein | L43: Uitvoering | M43: Funderingsspecialist | N43: 2009-10-09 | O43: =(TODAY()-Tabel1[[#This Row],[Datum in dienst]])/365.25 -> 15.6659822 | P43: Vast | Q43: =ROUNDDOWN(Tabel1[[#This Row],[Aantal dienstjaren]],0) -> 15 | R43: Onbepaalde tijd | S43: 3 | T43: 1 | U43: =40*Tabel1[[#This Row],[FTE]] -> 40 | V43: E | W43: =MIN(Lonen!C7*(Tabel1[[#This Row],[Jaarlijkse salarisstijging]])^Tabel1[[#This Row],[Afgeronde dienstjaren]],Lonen!E7) -> 27.105 | X43: =(MIN(Lonen!C7*(Tabel1[[#This Row],[Jaarlijkse salarisstijging]])^Tabel1[[#This Row],[Afgeronde dienstjaren]],Lonen!E7)*174.08)*Tabel1[[#This Row],[FTE]] -> 4718.4384 | Y43: 1.03 | Z43: =Tabel1[[#This Row],[Bruto maandsalaris]]*8% -> 377.475072 | AB43: NVT | AC43: =ABS(IF(Tabel1[[#This Row],[Jaarsalaris]]<=12169,0.08053*Tabel1[[#This Row],[Jaarsalaris]],IF(Tabel1[[#This Row],[Jaarsalaris]]<=26288,980+0.3003*(Tabel1[[#This Row],[Jaarsalaris]]-12169),IF(Tabel1[[#This Row],[Jaarsalaris]]<=43071,5220+0.02258*(Tabel1[[#This Row],[Jaarsalaris]]-26288),IF(Tabel1[[#This Row],[Jaarsalaris]]<=129078,5599-0.0651*(Tabel1[[#This Row],[Jaarsalaris]]-43071),0)))))/12 -> 367.4756402 | AD43: =Tabel1[[#This Row],[Bruto maandsalaris]]*13 -> 61339.6992 | AE43: =-Tabel1[[#This Row],[Bruto maandsalaris]]*0.08% -> -3.77475072 | AF43: =-((Tabel1[[#This Row],[Jaarsalaris]]-18475)*9.4%)/12 -> -335.7734771 | AG43: =IF(Tabel1[[#This Row],[Jaarsalaris]]<=28406, 3068, IF(AD43<=76817, 3068 - 0.06337 * (AD43 - 28406), 0))/12 -> 81.74929014 | AH43: =Tabel1[[#This Row],[Bruto maandsalaris]]+Tabel1[[#This Row],[inhouding premie]]+Tabel1[[#This Row],[Inhouding pensioen]] -> 4378.890172 | AI43: =-IF(Tabel1[[#This Row],[Belastbaar maandsalaris]]*12<=38441, Tabel1[[#This Row],[Belastbaar maandsalaris]]*0.3582, IF(Tabel1[[#This Row],[Belastbaar maandsalaris]]*12<=76817, (38441*0.3582 + (Tabel1[[#This Row],[Belastbaar maandsalaris]]*12-38441)*0.3748)/12, (38441*0.3582 + (76817-38441)*0.3748 + (Tabel1[[#This Row],[Belastbaar maandsalaris]]*12-76817)*0.495)/12))+Tabel1[[#This Row],[Heffingskorting ]] -> -1506.28203 | AJ43: =Lonen!C7 -> 20.85
A44: EMP00049 | B44: Mark | D44: Verbeek | E44: Mark Verbeek | F44: M | G44: 1995-12-08 | H44: =(TODAY()-Tabel1[[#This Row],[Geboortedatum]])/365.25 -> 29.50308008 | I44: Beatrixstraat 79 | J44: 3878 IJ | K44: Baarn | L44: Uitvoering | M44: funderingswerker I | N44: 2013-11-15 | O44: =(TODAY()-Tabel1[[#This Row],[Datum in dienst]])/365.25 -> 11.56468172 | P44: Vast | Q44: =ROUNDDOWN(Tabel1[[#This Row],[Aantal dienstjaren]],0) -> 11 | R44: Onbepaalde tijd | S44: 3 | T44: 0.9 | U44: =40*Tabel1[[#This Row],[FTE]] -> 36 | V44: C | W44: =MIN(Lonen!C5*(Tabel1[[#This Row],[Jaarlijkse salarisstijging]])^Tabel1[[#This Row],[Afgeronde dienstjaren]],Lonen!E5) -> 24.18 | X44: =(MIN(Lonen!C5*(Tabel1[[#This Row],[Jaarlijkse salarisstijging]])^Tabel1[[#This Row],[Afgeronde dienstjaren]],Lonen!E5)*174.08)*Tabel1[[#This Row],[FTE]] -> 3788.32896 | Y44: 1.03 | Z44: =Tabel1[[#This Row],[Bruto maandsalaris]]*8% -> 303.0663168 | AB44: NVT | AC44: =ABS(IF(Tabel1[[#This Row],[Jaarsalaris]]<=12169,0.08053*Tabel1[[#This Row],[Jaarsalaris]],IF(Tabel1[[#This Row],[Jaarsalaris]]<=26288,980+0.3003*(Tabel1[[#This Row],[Jaarsalaris]]-12169),IF(Tabel1[[#This Row],[Jaarsalaris]]<=43071,5220+0.02258*(Tabel1[[#This Row],[Jaarsalaris]]-26288),IF(Tabel1[[#This Row],[Jaarsalaris]]<=129078,5599-0.0651*(Tabel1[[#This Row],[Jaarsalaris]]-43071),0)))))/12 -> 433.0716084 | AD44: =Tabel1[[#This Row],[Bruto maandsalaris]]*13 -> 49248.27648 | AE44: =-Tabel1[[#This Row],[Bruto maandsalaris]]*0.08% -> -3.030663168 | AF44: =-((Tabel1[[#This Row],[Jaarsalaris]]-18475)*9.4%)/12 -> -241.0573324 | AG44: =IF(Tabel1[[#This Row],[Jaarsalaris]]<=28406, 3068, IF(AD44<=76817, 3068 - 0.06337 * (AD44 - 28406), 0))/12 -> 145.6020783 | AH44: =Tabel1[[#This Row],[Bruto maandsalaris]]+Tabel1[[#This Row],[inhouding premie]]+Tabel1[[#This Row],[Inhouding pensioen]] -> 3544.240964 | AI44: =-IF(Tabel1[[#This Row],[Belastbaar maandsalaris]]*12<=38441, Tabel1[[#This Row],[Belastbaar maandsalaris]]*0.3582, IF(Tabel1[[#This Row],[Belastbaar maandsalaris]]*12<=76817, (38441*0.3582 + (Tabel1[[#This Row],[Belastbaar maandsalaris]]*12-38441)*0.3748)/12, (38441*0.3582 + (76817-38441)*0.3748 + (Tabel1[[#This Row],[Belastbaar maandsalaris]]*12-76817)*0.495)/12))+Tabel1[[#This Row],[Heffingskorting ]] -> -1129.602719 | AJ44: =Lonen!C5 -> 18.6
A45: EMP00058 | B45: Stefan | D45: Jansen | E45: Stefan Jansen | F45: M | G45: 1965-01-05 | H45: =(TODAY()-Tabel1[[#This Row],[Geboortedatum]])/365.25 -> 60.42436687 | I45: Kastanjelaan 168 | J45: 3963 GH | K45: Woerden | L45: Uitvoering | M45: funderingswerker I | N45: 2017-07-02 | O45: =(TODAY()-Tabel1[[#This Row],[Datum in dienst]])/365.25 -> 7.937029432 | P45: Vast | Q45: =ROUNDDOWN(Tabel1[[#This Row],[Aantal dienstjaren]],0) -> 7 | R45: Onbepaalde tijd | S45: 3 | T45: 0.8 | U45: =40*Tabel1[[#This Row],[FTE]] -> 32 | V45: C | W45: =MIN(Lonen!C5*(Tabel1[[#This Row],[Jaarlijkse salarisstijging]])^Tabel1[[#This Row],[Afgeronde dienstjaren]],Lonen!E5) -> 22.8756539 | X45: =(MIN(Lonen!C5*(Tabel1[[#This Row],[Jaarlijkse salarisstijging]])^Tabel1[[#This Row],[Afgeronde dienstjaren]],Lonen!E5)*174.08)*Tabel1[[#This Row],[FTE]] -> 3185.755064 | Y45: 1.03 | Z45: =Tabel1[[#This Row],[Bruto maandsalaris]]*8% -> 254.8604051 | AB45: NVT | AC45: =ABS(IF(Tabel1[[#This Row],[Jaarsalaris]]<=12169,0.08053*Tabel1[[#This Row],[Jaarsalaris]],IF(Tabel1[[#This Row],[Jaarsalaris]]<=26288,980+0.3003*(Tabel1[[#This Row],[Jaarsalaris]]-12169),IF(Tabel1[[#This Row],[Jaarsalaris]]<=43071,5220+0.02258*(Tabel1[[#This Row],[Jaarsalaris]]-26288),IF(Tabel1[[#This Row],[Jaarsalaris]]<=129078,5599-0.0651*(Tabel1[[#This Row],[Jaarsalaris]]-43071),0)))))/12 -> 463.4636251 | AD45: =Tabel1[[#This Row],[Bruto maandsalaris]]*13 -> 41414.81584 | AE45: =-Tabel1[[#This Row],[Bruto maandsalaris]]*0.08% -> -2.548604051 | AF45: =-((Tabel1[[#This Row],[Jaarsalaris]]-18475)*9.4%)/12 -> -179.695224 | AG45: =IF(Tabel1[[#This Row],[Jaarsalaris]]<=28406, 3068, IF(AD45<=76817, 3068 - 0.06337 * (AD45 - 28406), 0))/12 -> 186.9692784 | AH45: =Tabel1[[#This Row],[Bruto maandsalaris]]+Tabel1[[#This Row],[inhouding premie]]+Tabel1[[#This Row],[Inhouding pensioen]] -> 3003.511236 | AI45: =-IF(Tabel1[[#This Row],[Belastbaar maandsalaris]]*12<=38441, Tabel1[[#This Row],[Belastbaar maandsalaris]]*0.3582, IF(Tabel1[[#This Row],[Belastbaar maandsalaris]]*12<=76817, (38441*0.3582 + (Tabel1[[#This Row],[Belastbaar maandsalaris]]*12-38441)*0.3748)/12, (38441*0.3582 + (76817-38441)*0.3748 + (Tabel1[[#This Row],[Belastbaar maandsalaris]]*12-76817)*0.495)/12))+Tabel1[[#This Row],[Heffingskorting ]] -> -888.8884464 | AJ45: =Lonen!C5 -> 18.6
A46: EMP00062 | B46: Jan | D46: Jansen | E46: Jan Jansen | F46: M | G46: 1994-11-17 | H46: =(TODAY()-Tabel1[[#This Row],[Geboortedatum]])/365.25 -> 30.55989049 | I46: Beatrixstraat 30 | J46: 3571 EF | K46: Bunnik | L46: Uitvoering | M46: Funderingswerker I | N46: 2023-08-02 | O46: =(TODAY()-Tabel1[[#This Row],[Datum in dienst]])/365.25 -> 1.853524983 | P46: Vast | Q46: =ROUNDDOWN(Tabel1[[#This Row],[Aantal dienstjaren]],0) -> 1 | R46: Onbepaalde tijd | S46: 2 | T46: 0.9 | U46: =40*Tabel1[[#This Row],[FTE]] -> 36 | V46: C | W46: =MIN(Lonen!C5*(Tabel1[[#This Row],[Jaarlijkse salarisstijging]])^Tabel1[[#This Row],[Afgeronde dienstjaren]],Lonen!E5) -> 19.158 | X46: =(MIN(Lonen!C5*(Tabel1[[#This Row],[Jaarlijkse salarisstijging]])^Tabel1[[#This Row],[Afgeronde dienstjaren]],Lonen!E5)*174.08)*Tabel1[[#This Row],[FTE]] -> 3001.522176 | Y46: 1.03 | Z46: =Tabel1[[#This Row],[Bruto maandsalaris]]*8% -> 240.1217741 | AB46: NVT | AC46: =ABS(IF(Tabel1[[#This Row],[Jaarsalaris]]<=12169,0.08053*Tabel1[[#This Row],[Jaarsalaris]],IF(Tabel1[[#This Row],[Jaarsalaris]]<=26288,980+0.3003*(Tabel1[[#This Row],[Jaarsalaris]]-12169),IF(Tabel1[[#This Row],[Jaarsalaris]]<=43071,5220+0.02258*(Tabel1[[#This Row],[Jaarsalaris]]-26288),IF(Tabel1[[#This Row],[Jaarsalaris]]<=129078,5599-0.0651*(Tabel1[[#This Row],[Jaarsalaris]]-43071),0)))))/12 -> 458.9569816 | AD46: =Tabel1[[#This Row],[Bruto maandsalaris]]*13 -> 39019.78829 | AE46: =-Tabel1[[#This Row],[Bruto maandsalaris]]*0.08% -> -2.401217741 | AF46: =-((Tabel1[[#This Row],[Jaarsalaris]]-18475)*9.4%)/12 -> -160.9341749 | AG46: =IF(Tabel1[[#This Row],[Jaarsalaris]]<=28406, 3068, IF(AD46<=76817, 3068 - 0.06337 * (AD46 - 28406), 0))/12 -> 199.6170197 | AH46: =Tabel1[[#This Row],[Bruto maandsalaris]]+Tabel1[[#This Row],[inhouding premie]]+Tabel1[[#This Row],[Inhouding pensioen]] -> 2838.186783 | AI46: =-IF(Tabel1[[#This Row],[Belastbaar maandsalaris]]*12<=38441, Tabel1[[#This Row],[Belastbaar maandsalaris]]*0.3582, IF(Tabel1[[#This Row],[Belastbaar maandsalaris]]*12<=76817, (38441*0.3582 + (Tabel1[[#This Row],[Belastbaar maandsalaris]]*12-38441)*0.3748)/12, (38441*0.3582 + (76817-38441)*0.3748 + (Tabel1[[#This Row],[Belastbaar maandsalaris]]*12-76817)*0.495)/12))+Tabel1[[#This Row],[Heffingskorting ]] -> -817.0214861 | AJ46: =Lonen!C5 -> 18.6
A47: EMP00087 | B47: Jan | D47: Dijkstra | E47: Jan Dijkstra | F47: M | G47: 1985-04-01 | H47: =(TODAY()-Tabel1[[#This Row],[Geboortedatum]])/365.25 -> 40.1889117 | I47: Beatrixstraat 186 | J47: 3485 AB | K47: Amersfoort | L47: Uitvoering | M47: funderingswerker I | N47: 2015-08-15 | O47: =(TODAY()-Tabel1[[#This Row],[Datum in dienst]])/365.25 -> 9.817932923 | P47: Vast | Q47: =ROUNDDOWN(Tabel1[[#This Row],[Aantal dienstjaren]],0) -> 9 | R47: Onbepaalde tijd | S47: 3 | T47: 1 | U47: =40*Tabel1[[#This Row],[FTE]] -> 40 | V47: C | W47: =MIN(Lonen!C5*(Tabel1[[#This Row],[Jaarlijkse salarisstijging]])^Tabel1[[#This Row],[Afgeronde dienstjaren]],Lonen!E5) -> 24.18 | X47: =(MIN(Lonen!C5*(Tabel1[[#This Row],[Jaarlijkse salarisstijging]])^Tabel1[[#This Row],[Afgeronde dienstjaren]],Lonen!E5)*174.08)*Tabel1[[#This Row],[FTE]] -> 4209.2544 | Y47: 1.03 | Z47: =Tabel1[[#This Row],[Bruto maandsalaris]]*8% -> 336.740352 | AB47: NVT | AC47: =ABS(IF(Tabel1[[#This Row],[Jaarsalaris]]<=12169,0.08053*Tabel1[[#This Row],[Jaarsalaris]],IF(Tabel1[[#This Row],[Jaarsalaris]]<=26288,980+0.3003*(Tabel1[[#This Row],[Jaarsalaris]]-12169),IF(Tabel1[[#This Row],[Jaarsalaris]]<=43071,5220+0.02258*(Tabel1[[#This Row],[Jaarsalaris]]-26288),IF(Tabel1[[#This Row],[Jaarsalaris]]<=129078,5599-0.0651*(Tabel1[[#This Row],[Jaarsalaris]]-43071),0)))))/12 -> 403.3858418 | AD47: =Tabel1[[#This Row],[Bruto maandsalaris]]*13 -> 54720.3072 | AE47: =-Tabel1[[#This Row],[Bruto maandsalaris]]*0.08% -> -3.36740352 | AF47: =-((Tabel1[[#This Row],[Jaarsalaris]]-18475)*9.4%)/12 -> -283.9215731 | AG47: =IF(Tabel1[[#This Row],[Jaarsalaris]]<=28406, 3068, IF(AD47<=76817, 3068 - 0.06337 * (AD47 - 28406), 0))/12 -> 116.7051961 | AH47: =Tabel1[[#This Row],[Bruto maandsalaris]]+Tabel1[[#This Row],[inhouding premie]]+Tabel1[[#This Row],[Inhouding pensioen]] -> 3921.965423 | AI47: =-IF(Tabel1[[#This Row],[Belastbaar maandsalaris]]*12<=38441, Tabel1[[#This Row],[Belastbaar maandsalaris]]*0.3582, IF(Tabel1[[#This Row],[Belastbaar maandsalaris]]*12<=76817, (38441*0.3582 + (Tabel1[[#This Row],[Belastbaar maandsalaris]]*12-38441)*0.3748)/12, (38441*0.3582 + (76817-38441)*0.3748 + (Tabel1[[#This Row],[Belastbaar maandsalaris]]*12-76817)*0.495)/12))+Tabel1[[#This Row],[Heffingskorting ]] -> -1300.070728 | AJ47: =Lonen!C5 -> 18.6
A48: EMP00012 | B48: Swen | C48: van | D48: Luin | E48: Swen van Luin | F48: M | G48: 1968-07-14 | H48: =(TODAY()-Tabel1[[#This Row],[Geboortedatum]])/365.25 -> 56.90349076 | I48: Prins Hendriklaan 47 | J48: 3667 GH | K48: Houten | L48: Uitvoering | M48: Funderingswerker II | N48: 2012-12-22 | O48: =(TODAY()-Tabel1[[#This Row],[Datum in dienst]])/365.25 -> 12.46269678 | P48: Vast | Q48: =ROUNDDOWN(Tabel1[[#This Row],[Aantal dienstjaren]],0) -> 12 | R48: Onbepaalde tijd | S48: 3 | T48: 0.8 | U48: =40*Tabel1[[#This Row],[FTE]] -> 32 | V48: B | W48: =MIN(Lonen!C4*(Tabel1[[#This Row],[Jaarlijkse salarisstijging]])^Tabel1[[#This Row],[Afgeronde dienstjaren]],Lonen!E4) -> 22.776 | X48: =(MIN(Lonen!C4*(Tabel1[[#This Row],[Jaarlijkse salarisstijging]])^Tabel1[[#This Row],[Afgeronde dienstjaren]],Lonen!E4)*174.08)*Tabel1[[#This Row],[FTE]] -> 3171.876864 | Y48: 1.03 | Z48: =Tabel1[[#This Row],[Bruto maandsalaris]]*8% -> 253.7501491 | AB48: NVT | AC48: =ABS(IF(Tabel1[[#This Row],[Jaarsalaris]]<=12169,0.08053*Tabel1[[#This Row],[Jaarsalaris]],IF(Tabel1[[#This Row],[Jaarsalaris]]<=26288,980+0.3003*(Tabel1[[#This Row],[Jaarsalaris]]-12169),IF(Tabel1[[#This Row],[Jaarsalaris]]<=43071,5220+0.02258*(Tabel1[[#This Row],[Jaarsalaris]]-26288),IF(Tabel1[[#This Row],[Jaarsalaris]]<=129078,5599-0.0651*(Tabel1[[#This Row],[Jaarsalaris]]-43071),0)))))/12 -> 463.1241412 | AD48: =Tabel1[[#This Row],[Bruto maandsalaris]]*13 -> 41234.39923 | AE48: =-Tabel1[[#This Row],[Bruto maandsalaris]]*0.08% -> -2.537501491 | AF48: =-((Tabel1[[#This Row],[Jaarsalaris]]-18475)*9.4%)/12 -> -178.2819607 | AG48: =IF(Tabel1[[#This Row],[Jaarsalaris]]<=28406, 3068, IF(AD48<=76817, 3068 - 0.06337 * (AD48 - 28406), 0))/12 -> 187.9220284 | AH48: =Tabel1[[#This Row],[Bruto maandsalaris]]+Tabel1[[#This Row],[inhouding premie]]+Tabel1[[#This Row],[Inhouding pensioen]] -> 2991.057402 | AI48: =-IF(Tabel1[[#This Row],[Belastbaar maandsalaris]]*12<=38441, Tabel1[[#This Row],[Belastbaar maandsalaris]]*0.3582, IF(Tabel1[[#This Row],[Belastbaar maandsalaris]]*12<=76817, (38441*0.3582 + (Tabel1[[#This Row],[Belastbaar maandsalaris]]*12-38441)*0.3748)/12, (38441*0.3582 + (76817-38441)*0.3748 + (Tabel1[[#This Row],[Belastbaar maandsalaris]]*12-76817)*0.495)/12))+Tabel1[[#This Row],[Heffingskorting ]] -> -883.474733 | AJ48: =Lonen!C4 -> 17.52
A49: EMP00054 | B49: Pieter | D49: Pieters | E49: Pieter Pieters | F49: M | G49: 1976-11-18 | H49: =(TODAY()-Tabel1[[#This Row],[Geboortedatum]])/365.25 -> 48.55578371 | I49: Parkweg 148 | J49: 3739 AB | K49: Soest | L49: Uitvoering | M49: Funderingswerker II | N49: 2008-08-14 | O49: =(TODAY()-Tabel1[[#This Row],[Datum in dienst]])/365.25 -> 16.81861739 | P49: Vast | Q49: =ROUNDDOWN(Tabel1[[#This Row],[Aantal dienstjaren]],0) -> 16 | R49: Onbepaalde tijd | S49: 3 | T49: 1 | U49: =40*Tabel1[[#This Row],[FTE]] -> 40 | V49: B | W49: =MIN(Lonen!C4*(Tabel1[[#This Row],[Jaarlijkse salarisstijging]])^Tabel1[[#This Row],[Afgeronde dienstjaren]],Lonen!E4) -> 22.776 | X49: =(MIN(Lonen!C4*(Tabel1[[#This Row],[Jaarlijkse salarisstijging]])^Tabel1[[#This Row],[Afgeronde dienstjaren]],Lonen!E4)*174.08)*Tabel1[[#This Row],[FTE]] -> 3964.84608 | Y49: 1.03 | Z49: =Tabel1[[#This Row],[Bruto maandsalaris]]*8% -> 317.1876864 | AB49: NVT | AC49: =ABS(IF(Tabel1[[#This Row],[Jaarsalaris]]<=12169,0.08053*Tabel1[[#This Row],[Jaarsalaris]],IF(Tabel1[[#This Row],[Jaarsalaris]]<=26288,980+0.3003*(Tabel1[[#This Row],[Jaarsalaris]]-12169),IF(Tabel1[[#This Row],[Jaarsalaris]]<=43071,5220+0.02258*(Tabel1[[#This Row],[Jaarsalaris]]-26288),IF(Tabel1[[#This Row],[Jaarsalaris]]<=129078,5599-0.0651*(Tabel1[[#This Row],[Jaarsalaris]]-43071),0)))))/12 -> 420.6227385 | AD49: =Tabel1[[#This Row],[Bruto maandsalaris]]*13 -> 51542.99904 | AE49: =-Tabel1[[#This Row],[Bruto maandsalaris]]*0.08% -> -3.171876864 | AF49: =-((Tabel1[[#This Row],[Jaarsalaris]]-18475)*9.4%)/12 -> -259.0326591 | AG49: =IF(Tabel1[[#This Row],[Jaarsalaris]]<=28406, 3068, IF(AD49<=76817, 3068 - 0.06337 * (AD49 - 28406), 0))/12 -> 133.4840309 | AH49: =Tabel1[[#This Row],[Bruto maandsalaris]]+Tabel1[[#This Row],[inhouding premie]]+Tabel1[[#This Row],[Inhouding pensioen]] -> 3702.641544 | AI49: =-IF(Tabel1[[#This Row],[Belastbaar maandsalaris]]*12<=38441, Tabel1[[#This Row],[Belastbaar maandsalaris]]*0.3582, IF(Tabel1[[#This Row],[Belastbaar maandsalaris]]*12<=76817, (38441*0.3582 + (Tabel1[[#This Row],[Belastbaar maandsalaris]]*12-38441)*0.3748)/12, (38441*0.3582 + (76817-38441)*0.3748 + (Tabel1[[#This Row],[Belastbaar maandsalaris]]*12-76817)*0.495)/12))+Tabel1[[#This Row],[Heffingskorting ]] -> -1201.089303 | AJ49: =Lonen!C4 -> 17.52
A50: EMP00078 | B50: Sjors | D50: Dijkstra | E50: Sjors Dijkstra | F50: M | G50: 1981-09-04 | H50: =(TODAY()-Tabel1[[#This Row],[Geboortedatum]])/365.25 -> 43.76180698 | I50: Sportlaan 128 | J50: 3438 AB | K50: Blaricum | L50: Uitvoering | M50: Funderingswerker II | N50: 2007-07-23 | O50: =(TODAY()-Tabel1[[#This Row],[Datum in dienst]])/365.25 -> 17.88090349 | P50: Vast | Q50: =ROUNDDOWN(Tabel1[[#This Row],[Aantal dienstjaren]],0) -> 17 | R50: Onbepaalde tijd | S50: 3 | T50: 1 | U50: =40*Tabel1[[#This Row],[FTE]] -> 40 | V50: B | W50: =MIN(Lonen!C4*(Tabel1[[#This Row],[Jaarlijkse salarisstijging]])^Tabel1[[#This Row],[Afgeronde dienstjaren]],Lonen!E4) -> 22.776 | X50: =(MIN(Lonen!C4*(Tabel1[[#This Row],[Jaarlijkse salarisstijging]])^Tabel1[[#This Row],[Afgeronde dienstjaren]],Lonen!E4)*174.08)*Tabel1[[#This Row],[FTE]] -> 3964.84608 | Y50: 1.03 | Z50: =Tabel1[[#This Row],[Bruto maandsalaris]]*8% -> 317.1876864 | AB50: NVT | AC50: =ABS(IF(Tabel1[[#This Row],[Jaarsalaris]]<=12169,0.08053*Tabel1[[#This Row],[Jaarsalaris]],IF(Tabel1[[#This Row],[Jaarsalaris]]<=26288,980+0.3003*(Tabel1[[#This Row],[Jaarsalaris]]-12169),IF(Tabel1[[#This Row],[Jaarsalaris]]<=43071,5220+0.02258*(Tabel1[[#This Row],[Jaarsalaris]]-26288),IF(Tabel1[[#This Row],[Jaarsalaris]]<=129078,5599-0.0651*(Tabel1[[#This Row],[Jaarsalaris]]-43071),0)))))/12 -> 420.6227385 | AD50: =Tabel1[[#This Row],[Bruto maandsalaris]]*13 -> 51542.99904 | AE50: =-Tabel1[[#This Row],[Bruto maandsalaris]]*0.08% -> -3.171876864 | AF50: =-((Tabel1[[#This Row],[Jaarsalaris]]-18475)*9.4%)/12 -> -259.0326591 | AG50: =IF(Tabel1[[#This Row],[Jaarsalaris]]<=28406, 3068, IF(AD50<=76817, 3068 - 0.06337 * (AD50 - 28406), 0))/12 -> 133.4840309 | AH50: =Tabel1[[#This Row],[Bruto maandsalaris]]+Tabel1[[#This Row],[inhouding premie]]+Tabel1[[#This Row],[Inhouding pensioen]] -> 3702.641544 | AI50: =-IF(Tabel1[[#This Row],[Belastbaar maandsalaris]]*12<=38441, Tabel1[[#This Row],[Belastbaar maandsalaris]]*0.3582, IF(Tabel1[[#This Row],[Belastbaar maandsalaris]]*12<=76817, (38441*0.3582 + (Tabel1[[#This Row],[Belastbaar maandsalaris]]*12-38441)*0.3748)/12, (38441*0.3582 + (76817-38441)*0.3748 + (Tabel1[[#This Row],[Belastbaar maandsalaris]]*12-76817)*0.495)/12))+Tabel1[[#This Row],[Heffingskorting ]] -> -1201.089303 | AJ50: =Lonen!C4 -> 17.52
A51: EMP00022 | B51: Lenny | C51: van | D51: Beek | E51: Lenny van Beek | F51: M | G51: 1994-09-05 | H51: =(TODAY()-Tabel1[[#This Row],[Geboortedatum]])/365.25 -> 30.75975359 | I51: Prins Hendriklaan 198 | J51: 3983 CD | K51: Amersfoort | L51: Uitvoering | M51: Heier I | N51: 2017-03-07 | O51: =(TODAY()-Tabel1[[#This Row],[Datum in dienst]])/365.25 -> 8.257357974 | P51: Vast | Q51: =ROUNDDOWN(Tabel1[[#This Row],[Aantal dienstjaren]],0) -> 8 | R51: Onbepaalde tijd | S51: 3 | T51: 1 | U51: =40*Tabel1[[#This Row],[FTE]] -> 40 | V51: B | W51: =MIN(Lonen!C4*(Tabel1[[#This Row],[Jaarlijkse salarisstijging]])^Tabel1[[#This Row],[Afgeronde dienstjaren]],Lonen!E4) -> 22.19381183 | X51: =(MIN(Lonen!C4*(Tabel1[[#This Row],[Jaarlijkse salarisstijging]])^Tabel1[[#This Row],[Afgeronde dienstjaren]],Lonen!E4)*174.08)*Tabel1[[#This Row],[FTE]] -> 3863.498763 | Y51: 1.03 | Z51: =Tabel1[[#This Row],[Bruto maandsalaris]]*8% -> 309.079901 | AB51: NVT | AC51: =ABS(IF(Tabel1[[#This Row],[Jaarsalaris]]<=12169,0.08053*Tabel1[[#This Row],[Jaarsalaris]],IF(Tabel1[[#This Row],[Jaarsalaris]]<=26288,980+0.3003*(Tabel1[[#This Row],[Jaarsalaris]]-12169),IF(Tabel1[[#This Row],[Jaarsalaris]]<=43071,5220+0.02258*(Tabel1[[#This Row],[Jaarsalaris]]-26288),IF(Tabel1[[#This Row],[Jaarsalaris]]<=129078,5599-0.0651*(Tabel1[[#This Row],[Jaarsalaris]]-43071),0)))))/12 -> 427.7702581 | AD51: =Tabel1[[#This Row],[Bruto maandsalaris]]*13 -> 50225.48391 | AE51: =-Tabel1[[#This Row],[Bruto maandsalaris]]*0.08% -> -3.09079901 | AF51: =-((Tabel1[[#This Row],[Jaarsalaris]]-18475)*9.4%)/12 -> -248.712124 | AG51: =IF(Tabel1[[#This Row],[Jaarsalaris]]<=28406, 3068, IF(AD51<=76817, 3068 - 0.06337 * (AD51 - 28406), 0))/12 -> 140.4416087 | AH51: =Tabel1[[#This Row],[Bruto maandsalaris]]+Tabel1[[#This Row],[inhouding premie]]+Tabel1[[#This Row],[Inhouding pensioen]] -> 3611.69584 | AI51: =-IF(Tabel1[[#This Row],[Belastbaar maandsalaris]]*12<=38441, Tabel1[[#This Row],[Belastbaar maandsalaris]]*0.3582, IF(Tabel1[[#This Row],[Belastbaar maandsalaris]]*12<=76817, (38441*0.3582 + (Tabel1[[#This Row],[Belastbaar maandsalaris]]*12-38441)*0.3748)/12, (38441*0.3582 + (76817-38441)*0.3748 + (Tabel1[[#This Row],[Belastbaar maandsalaris]]*12-76817)*0.495)/12))+Tabel1[[#This Row],[Heffingskorting ]] -> -1160.045275 | AJ51: =Lonen!C4 -> 17.52
A52: EMP00067 | B52: Sander | D52: Mulder | E52: Sander Mulder | F52: M | G52: 1990-09-10 | H52: =(TODAY()-Tabel1[[#This Row],[Geboortedatum]])/365.25 -> 34.74606434 | I52: Rijnlaan 200 | J52: 3616 CD | K52: Blaricum | L52: Uitvoering | M52: Heier II | N52: 2013-03-13 | O52: =(TODAY()-Tabel1[[#This Row],[Datum in dienst]])/365.25 -> 12.24093087 | P52: Vast | Q52: =ROUNDDOWN(Tabel1[[#This Row],[Aantal dienstjaren]],0) -> 12 | R52: Onbepaalde tijd | S52: 3 | T52: 1 | U52: =40*Tabel1[[#This Row],[FTE]] -> 40 | V52: A | W52: =MIN(Lonen!C3*(Tabel1[[#This Row],[Jaarlijkse salarisstijging]])^Tabel1[[#This Row],[Afgeronde dienstjaren]],Lonen!E3) -> 21.528 | X52: =(MIN(Lonen!C3*(Tabel1[[#This Row],[Jaarlijkse salarisstijging]])^Tabel1[[#This Row],[Afgeronde dienstjaren]],Lonen!E3)*174.08)*Tabel1[[#This Row],[FTE]] -> 3747.59424 | Y52: 1.03 | Z52: =Tabel1[[#This Row],[Bruto maandsalaris]]*8% -> 299.8075392 | AB52: NVT | AC52: =ABS(IF(Tabel1[[#This Row],[Jaarsalaris]]<=12169,0.08053*Tabel1[[#This Row],[Jaarsalaris]],IF(Tabel1[[#This Row],[Jaarsalaris]]<=26288,980+0.3003*(Tabel1[[#This Row],[Jaarsalaris]]-12169),IF(Tabel1[[#This Row],[Jaarsalaris]]<=43071,5220+0.02258*(Tabel1[[#This Row],[Jaarsalaris]]-26288),IF(Tabel1[[#This Row],[Jaarsalaris]]<=129078,5599-0.0651*(Tabel1[[#This Row],[Jaarsalaris]]-43071),0)))))/12 -> 435.9444246 | AD52: =Tabel1[[#This Row],[Bruto maandsalaris]]*13 -> 48718.72512 | AE52: =-Tabel1[[#This Row],[Bruto maandsalaris]]*0.08% -> -2.998075392 | AF52: =-((Tabel1[[#This Row],[Jaarsalaris]]-18475)*9.4%)/12 -> -236.9091801 | AG52: =IF(Tabel1[[#This Row],[Jaarsalaris]]<=28406, 3068, IF(AD52<=76817, 3068 - 0.06337 * (AD52 - 28406), 0))/12 -> 148.3985508 | AH52: =Tabel1[[#This Row],[Bruto maandsalaris]]+Tabel1[[#This Row],[inhouding premie]]+Tabel1[[#This Row],[Inhouding pensioen]] -> 3507.686985 | AI52: =-IF(Tabel1[[#This Row],[Belastbaar maandsalaris]]*12<=38441, Tabel1[[#This Row],[Belastbaar maandsalaris]]*0.3582, IF(Tabel1[[#This Row],[Belastbaar maandsalaris]]*12<=76817, (38441*0.3582 + (Tabel1[[#This Row],[Belastbaar maandsalaris]]*12-38441)*0.3748)/12, (38441*0.3582 + (76817-38441)*0.3748 + (Tabel1[[#This Row],[Belastbaar maandsalaris]]*12-76817)*0.495)/12))+Tabel1[[#This Row],[Heffingskorting ]] -> -1113.105814 | AJ52: =Lonen!C3 -> 16.56
A53: EMP00068 | B53: Bram | D53: Berends | E53: Bram Berends | F53: M | G53: 1971-04-10 | H53: =(TODAY()-Tabel1[[#This Row],[Geboortedatum]])/365.25 -> 54.16563997 | I53: Beatrixstraat 146 | J53: 3735 EF | K53: Houten | L53: Uitvoering | M53: Heier II | N53: 2005-01-20 | O53: =(TODAY()-Tabel1[[#This Row],[Datum in dienst]])/365.25 -> 20.38329911 | P53: Vast | Q53: =ROUNDDOWN(Tabel1[[#This Row],[Aantal dienstjaren]],0) -> 20 | R53: Onbepaalde tijd | S53: 3 | T53: 1 | U53: =40*Tabel1[[#This Row],[FTE]] -> 40 | V53: A | W53: =MIN(Lonen!C3*(Tabel1[[#This Row],[Jaarlijkse salarisstijging]])^Tabel1[[#This Row],[Afgeronde dienstjaren]],Lonen!E3) -> 21.528 | X53: =(MIN(Lonen!C3*(Tabel1[[#This Row],[Jaarlijkse salarisstijging]])^Tabel1[[#This Row],[Afgeronde dienstjaren]],Lonen!E3)*174.08)*Tabel1[[#This Row],[FTE]] -> 3747.59424 | Y53: 1.03 | Z53: =Tabel1[[#This Row],[Bruto maandsalaris]]*8% -> 299.8075392 | AB53: NVT | AC53: =ABS(IF(Tabel1[[#This Row],[Jaarsalaris]]<=12169,0.08053*Tabel1[[#This Row],[Jaarsalaris]],IF(Tabel1[[#This Row],[Jaarsalaris]]<=26288,980+0.3003*(Tabel1[[#This Row],[Jaarsalaris]]-12169),IF(Tabel1[[#This Row],[Jaarsalaris]]<=43071,5220+0.02258*(Tabel1[[#This Row],[Jaarsalaris]]-26288),IF(Tabel1[[#This Row],[Jaarsalaris]]<=129078,5599-0.0651*(Tabel1[[#This Row],[Jaarsalaris]]-43071),0)))))/12 -> 435.9444246 | AD53: =Tabel1[[#This Row],[Bruto maandsalaris]]*13 -> 48718.72512 | AE53: =-Tabel1[[#This Row],[Bruto maandsalaris]]*0.08% -> -2.998075392 | AF53: =-((Tabel1[[#This Row],[Jaarsalaris]]-18475)*9.4%)/12 -> -236.9091801 | AG53: =IF(Tabel1[[#This Row],[Jaarsalaris]]<=28406, 3068, IF(AD53<=76817, 3068 - 0.06337 * (AD53 - 28406), 0))/12 -> 148.3985508 | AH53: =Tabel1[[#This Row],[Bruto maandsalaris]]+Tabel1[[#This Row],[inhouding premie]]+Tabel1[[#This Row],[Inhouding pensioen]] -> 3507.686985 | AI53: =-IF(Tabel1[[#This Row],[Belastbaar maandsalaris]]*12<=38441, Tabel1[[#This Row],[Belastbaar maandsalaris]]*0.3582, IF(Tabel1[[#This Row],[Belastbaar maandsalaris]]*12<=76817, (38441*0.3582 + (Tabel1[[#This Row],[Belastbaar maandsalaris]]*12-38441)*0.3748)/12, (38441*0.3582 + (76817-38441)*0.3748 + (Tabel1[[#This Row],[Belastbaar maandsalaris]]*12-76817)*0.495)/12))+Tabel1[[#This Row],[Heffingskorting ]] -> -1113.105814 | AJ53: =Lonen!C3 -> 16.56
A54: EMP00074 | B54: Kees | D54: Spoelstra | E54: Kees Spoelstra | F54: M | G54: 1982-03-27 | H54: =(TODAY()-Tabel1[[#This Row],[Geboortedatum]])/365.25 -> 43.20328542 | I54: Prins Hendriklaan 192 | J54: 3401 EF | K54: Maarssen | L54: Uitvoering | M54: Heier II | N54: 2011-04-12 | O54: =(TODAY()-Tabel1[[#This Row],[Datum in dienst]])/365.25 -> 14.16016427 | P54: Vast | Q54: =ROUNDDOWN(Tabel1[[#This Row],[Aantal dienstjaren]],0) -> 14 | R54: Onbepaalde tijd | S54: 2 | T54: 0.6 | U54: =40*Tabel1[[#This Row],[FTE]] -> 24 | V54: A | W54: =MIN(Lonen!C3*(Tabel1[[#This Row],[Jaarlijkse salarisstijging]])^Tabel1[[#This Row],[Afgeronde dienstjaren]],Lonen!E3) -> 21.528 | X54: =(MIN(Lonen!C3*(Tabel1[[#This Row],[Jaarlijkse salarisstijging]])^Tabel1[[#This Row],[Afgeronde dienstjaren]],Lonen!E3)*174.08)*Tabel1[[#This Row],[FTE]] -> 2248.556544 | Y54: 1.03 | Z54: =Tabel1[[#This Row],[Bruto maandsalaris]]*8% -> 179.8845235 | AB54: NVT | AC54: =ABS(IF(Tabel1[[#This Row],[Jaarsalaris]]<=12169,0.08053*Tabel1[[#This Row],[Jaarsalaris]],IF(Tabel1[[#This Row],[Jaarsalaris]]<=26288,980+0.3003*(Tabel1[[#This Row],[Jaarsalaris]]-12169),IF(Tabel1[[#This Row],[Jaarsalaris]]<=43071,5220+0.02258*(Tabel1[[#This Row],[Jaarsalaris]]-26288),IF(Tabel1[[#This Row],[Jaarsalaris]]<=129078,5599-0.0651*(Tabel1[[#This Row],[Jaarsalaris]]-43071),0)))))/12 -> 440.5381873 | AD54: =Tabel1[[#This Row],[Bruto maandsalaris]]*13 -> 29231.23507 | AE54: =-Tabel1[[#This Row],[Bruto maandsalaris]]*0.08% -> -1.798845235 | AF54: =-((Tabel1[[#This Row],[Jaarsalaris]]-18475)*9.4%)/12 -> -84.25717473 | AG54: =IF(Tabel1[[#This Row],[Jaarsalaris]]<=28406, 3068, IF(AD54<=76817, 3068 - 0.06337 * (AD54 - 28406), 0))/12 -> 251.3087378 | AH54: =Tabel1[[#This Row],[Bruto maandsalaris]]+Tabel1[[#This Row],[inhouding premie]]+Tabel1[[#This Row],[Inhouding pensioen]] -> 2162.500524 | AI54: =-IF(Tabel1[[#This Row],[Belastbaar maandsalaris]]*12<=38441, Tabel1[[#This Row],[Belastbaar maandsalaris]]*0.3582, IF(Tabel1[[#This Row],[Belastbaar maandsalaris]]*12<=76817, (38441*0.3582 + (Tabel1[[#This Row],[Belastbaar maandsalaris]]*12-38441)*0.3748)/12, (38441*0.3582 + (76817-38441)*0.3748 + (Tabel1[[#This Row],[Belastbaar maandsalaris]]*12-76817)*0.495)/12))+Tabel1[[#This Row],[Heffingskorting ]] -> -523.2989499 | AJ54: =Lonen!C3 -> 16.56
A55: EMP00004 | B55: Tyler | C55: van | D55: Luxemburg | E55: Tyler van Luxemburg | F55: M | G55: 1979-10-02 | H55: =(TODAY()-Tabel1[[#This Row],[Geboortedatum]])/365.25 -> 45.68651608 | I55: Rijnlaan 16 | J55: 3839 AB | K55: Zeist | L55: Staf | M55: HR-Manager | N55: 2017-05-16 | O55: =(TODAY()-Tabel1[[#This Row],[Datum in dienst]])/365.25 -> 8.065708419 | P55: Vast | Q55: =ROUNDDOWN(Tabel1[[#This Row],[Aantal dienstjaren]],0) -> 8 | R55: Onbepaalde tijd | S55: 3 | T55: 1 | U55: =40*Tabel1[[#This Row],[FTE]] -> 40 | V55: UTA 6 | W55: =(MIN(Lonen!C17*(Tabel1[[#This Row],[Jaarlijkse salarisstijging]])^Tabel1[[#This Row],[Aantal dienstjaren]],Lonen!D17))/174.08 -> 32.59357643 | X55: =(MIN(Lonen!C16*(Tabel1[[#This Row],[Jaarlijkse salarisstijging]])^Tabel1[[#This Row],[Aantal dienstjaren]],Lonen!D16))*Tabel1[[#This Row],[FTE]] -> 4839.242248 | Y55: 1.03 | Z55: =Tabel1[[#This Row],[Bruto maandsalaris]]*8% -> 387.1393798 | AB55: NVT | AC55: =ABS(IF(Tabel1[[#This Row],[Jaarsalaris]]<=12169,0.08053*Tabel1[[#This Row],[Jaarsalaris]],IF(Tabel1[[#This Row],[Jaarsalaris]]<=26288,980+0.3003*(Tabel1[[#This Row],[Jaarsalaris]]-12169),IF(Tabel1[[#This Row],[Jaarsalaris]]<=43071,5220+0.02258*(Tabel1[[#This Row],[Jaarsalaris]]-26288),IF(Tabel1[[#This Row],[Jaarsalaris]]<=129078,5599-0.0651*(Tabel1[[#This Row],[Jaarsalaris]]-43071),0)))))/12 -> 358.9559488 | AD55: =Tabel1[[#This Row],[Bruto maandsalaris]]*13 -> 62910.14922 | AE55: =-Tabel1[[#This Row],[Bruto maandsalaris]]*0.08% -> -3.871393798 | AF55: =-((Tabel1[[#This Row],[Jaarsalaris]]-18475)*9.4%)/12 -> -348.0753356 | AG55: =IF(Tabel1[[#This Row],[Jaarsalaris]]<=28406, 3068, IF(AD55<=76817, 3068 - 0.06337 * (AD55 - 28406), 0))/12 -> 73.45600533 | AH55: =Tabel1[[#This Row],[Bruto maandsalaris]]+Tabel1[[#This Row],[inhouding premie]]+Tabel1[[#This Row],[Inhouding pensioen]] -> 4487.295518 | AI55: =-IF(Tabel1[[#This Row],[Belastbaar maandsalaris]]*12<=38441, Tabel1[[#This Row],[Belastbaar maandsalaris]]*0.3582, IF(Tabel1[[#This Row],[Belastbaar maandsalaris]]*12<=76817, (38441*0.3582 + (Tabel1[[#This Row],[Belastbaar maandsalaris]]*12-38441)*0.3748)/12, (38441*0.3582 + (76817-38441)*0.3748 + (Tabel1[[#This Row],[Belastbaar maandsalaris]]*12-76817)*0.495)/12))+Tabel1[[#This Row],[Heffingskorting ]] -> -1555.205638 | AJ55: =Lonen!C17/(40*4.33) -> 25.8102194
A56: EMP00020 | B56: Samuel | C56: van | D56: Dongen | E56: Samuel van Dongen | F56: M | G56: 1987-01-26 | H56: =(TODAY()-Tabel1[[#This Row],[Geboortedatum]])/365.25 -> 38.36824093 | I56: Laan van Vollenhove 155 | J56: 3777 EF | K56: Nieuwegein | L56: Staf | M56: HR-medewerker | N56: 2011-04-02 | O56: =(TODAY()-Tabel1[[#This Row],[Datum in dienst]])/365.25 -> 14.18754278 | P56: Vast | Q56: =ROUNDDOWN(Tabel1[[#This Row],[Aantal dienstjaren]],0) -> 14 | R56: Onbepaalde tijd | S56: 3 | T56: 0.8 | U56: =40*Tabel1[[#This Row],[FTE]] -> 32 | V56: UTA 3 | W56: =(MIN(Lonen!C14*(Tabel1[[#This Row],[Jaarlijkse salarisstijging]])^Tabel1[[#This Row],[Aantal dienstjaren]],Lonen!D14))/174.08 -> 22.54716222 | X56: =(MIN(Lonen!C14*(Tabel1[[#This Row],[Jaarlijkse salarisstijging]])^Tabel1[[#This Row],[Aantal dienstjaren]],Lonen!D14))*Tabel1[[#This Row],[FTE]] -> 3140.008 | Y56: 1.03 | Z56: =Tabel1[[#This Row],[Bruto maandsalaris]]*8% -> 251.20064 | AB56: NVT | AC56: =ABS(IF(Tabel1[[#This Row],[Jaarsalaris]]<=12169,0.08053*Tabel1[[#This Row],[Jaarsalaris]],IF(Tabel1[[#This Row],[Jaarsalaris]]<=26288,980+0.3003*(Tabel1[[#This Row],[Jaarsalaris]]-12169),IF(Tabel1[[#This Row],[Jaarsalaris]]<=43071,5220+0.02258*(Tabel1[[#This Row],[Jaarsalaris]]-26288),IF(Tabel1[[#This Row],[Jaarsalaris]]<=129078,5599-0.0651*(Tabel1[[#This Row],[Jaarsalaris]]-43071),0)))))/12 -> 462.3445757 | AD56: =Tabel1[[#This Row],[Bruto maandsalaris]]*13 -> 40820.104 | AE56: =-Tabel1[[#This Row],[Bruto maandsalaris]]*0.08% -> -2.5120064 | AF56: =-((Tabel1[[#This Row],[Jaarsalaris]]-18475)*9.4%)/12 -> -175.036648 | AG56: =IF(Tabel1[[#This Row],[Jaarsalaris]]<=28406, 3068, IF(AD56<=76817, 3068 - 0.06337 * (AD56 - 28406), 0))/12 -> 190.1098525 | AH56: =Tabel1[[#This Row],[Bruto maandsalaris]]+Tabel1[[#This Row],[inhouding premie]]+Tabel1[[#This Row],[Inhouding pensioen]] -> 2962.459346 | AI56: =-IF(Tabel1[[#This Row],[Belastbaar maandsalaris]]*12<=38441, Tabel1[[#This Row],[Belastbaar maandsalaris]]*0.3582, IF(Tabel1[[#This Row],[Belastbaar maandsalaris]]*12<=76817, (38441*0.3582 + (Tabel1[[#This Row],[Belastbaar maandsalaris]]*12-38441)*0.3748)/12, (38441*0.3582 + (76817-38441)*0.3748 + (Tabel1[[#This Row],[Belastbaar maandsalaris]]*12-76817)*0.495)/12))+Tabel1[[#This Row],[Heffingskorting ]] -> -871.0430851 | AJ56: =Lonen!C14/(40*4.33) -> 16.85051963
A57: EMP00041 | B57: Lars | D57: Weeldenburg | E57: Lars Weeldenburg | F57: M | G57: 1991-01-20 | H57: =(TODAY()-Tabel1[[#This Row],[Geboortedatum]])/365.25 -> 34.38466804 | I57: Dorpsstraat 126 | J57: 3533 EF | K57: Montfoort | L57: Uitvoering | M57: Kabellasser I | N57: 2020-02-26 | O57: =(TODAY()-Tabel1[[#This Row],[Datum in dienst]])/365.25 -> 5.284052019 | P57: Vast | Q57: =ROUNDDOWN(Tabel1[[#This Row],[Aantal dienstjaren]],0) -> 5 | R57: Onbepaalde tijd | S57: 2 | T57: 1 | U57: =40*Tabel1[[#This Row],[FTE]] -> 40 | V57: C | W57: =MIN(Lonen!C5*(Tabel1[[#This Row],[Jaarlijkse salarisstijging]])^Tabel1[[#This Row],[Afgeronde dienstjaren]],Lonen!E5) -> 21.56249778 | X57: =(MIN(Lonen!C5*(Tabel1[[#This Row],[Jaarlijkse salarisstijging]])^Tabel1[[#This Row],[Afgeronde dienstjaren]],Lonen!E5)*174.08)*Tabel1[[#This Row],[FTE]] -> 3753.599614 | Y57: 1.03 | Z57: =Tabel1[[#This Row],[Bruto maandsalaris]]*8% -> 300.2879691 | AB57: NVT | AC57: =ABS(IF(Tabel1[[#This Row],[Jaarsalaris]]<=12169,0.08053*Tabel1[[#This Row],[Jaarsalaris]],IF(Tabel1[[#This Row],[Jaarsalaris]]<=26288,980+0.3003*(Tabel1[[#This Row],[Jaarsalaris]]-12169),IF(Tabel1[[#This Row],[Jaarsalaris]]<=43071,5220+0.02258*(Tabel1[[#This Row],[Jaarsalaris]]-26288),IF(Tabel1[[#This Row],[Jaarsalaris]]<=129078,5599-0.0651*(Tabel1[[#This Row],[Jaarsalaris]]-43071),0)))))/12 -> 435.5208956 | AD57: =Tabel1[[#This Row],[Bruto maandsalaris]]*13 -> 48796.79498 | AE57: =-Tabel1[[#This Row],[Bruto maandsalaris]]*0.08% -> -3.002879691 | AF57: =-((Tabel1[[#This Row],[Jaarsalaris]]-18475)*9.4%)/12 -> -237.5207273 | AG57: =IF(Tabel1[[#This Row],[Jaarsalaris]]<=28406, 3068, IF(AD57<=76817, 3068 - 0.06337 * (AD57 - 28406), 0))/12 -> 147.9862768 | AH57: =Tabel1[[#This Row],[Bruto maandsalaris]]+Tabel1[[#This Row],[inhouding premie]]+Tabel1[[#This Row],[Inhouding pensioen]] -> 3513.076007 | AI57: =-IF(Tabel1[[#This Row],[Belastbaar maandsalaris]]*12<=38441, Tabel1[[#This Row],[Belastbaar maandsalaris]]*0.3582, IF(Tabel1[[#This Row],[Belastbaar maandsalaris]]*12<=76817, (38441*0.3582 + (Tabel1[[#This Row],[Belastbaar maandsalaris]]*12-38441)*0.3748)/12, (38441*0.3582 + (76817-38441)*0.3748 + (Tabel1[[#This Row],[Belastbaar maandsalaris]]*12-76817)*0.495)/12))+Tabel1[[#This Row],[Heffingskorting ]] -> -1115.537894 | AJ57: =Lonen!C5 -> 18.6
A58: EMP00044 | B58: Chris | C58: van | D58: Leuven | E58: Chris van Leuven | F58: M | G58: 1979-02-26 | H58: =(TODAY()-Tabel1[[#This Row],[Geboortedatum]])/365.25 -> 46.28336756 | I58: Prins Hendriklaan 180 | J58: 3889 IJ | K58: Culemborg | L58: Uitvoering | M58: Kabellasser I | N58: 2014-02-24 | O58: =(TODAY()-Tabel1[[#This Row],[Datum in dienst]])/365.25 -> 11.2881588 | P58: Vast | Q58: =ROUNDDOWN(Tabel1[[#This Row],[Aantal dienstjaren]],0) -> 11 | R58: Onbepaalde tijd | S58: 2 | T58: 1 | U58: =40*Tabel1[[#This Row],[FTE]] -> 40 | V58: C | W58: =MIN(Lonen!C5*(Tabel1[[#This Row],[Jaarlijkse salarisstijging]])^Tabel1[[#This Row],[Afgeronde dienstjaren]],Lonen!E5) -> 24.18 | X58: =(MIN(Lonen!C5*(Tabel1[[#This Row],[Jaarlijkse salarisstijging]])^Tabel1[[#This Row],[Afgeronde dienstjaren]],Lonen!E5)*174.08)*Tabel1[[#This Row],[FTE]] -> 4209.2544 | Y58: 1.03 | Z58: =Tabel1[[#This Row],[Bruto maandsalaris]]*8% -> 336.740352 | AB58: NVT | AC58: =ABS(IF(Tabel1[[#This Row],[Jaarsalaris]]<=12169,0.08053*Tabel1[[#This Row],[Jaarsalaris]],IF(Tabel1[[#This Row],[Jaarsalaris]]<=26288,980+0.3003*(Tabel1[[#This Row],[Jaarsalaris]]-12169),IF(Tabel1[[#This Row],[Jaarsalaris]]<=43071,5220+0.02258*(Tabel1[[#This Row],[Jaarsalaris]]-26288),IF(Tabel1[[#This Row],[Jaarsalaris]]<=129078,5599-0.0651*(Tabel1[[#This Row],[Jaarsalaris]]-43071),0)))))/12 -> 403.3858418 | AD58: =Tabel1[[#This Row],[Bruto maandsalaris]]*13 -> 54720.3072 | AE58: =-Tabel1[[#This Row],[Bruto maandsalaris]]*0.08% -> -3.36740352 | AF58: =-((Tabel1[[#This Row],[Jaarsalaris]]-18475)*9.4%)/12 -> -283.9215731 | AG58: =IF(Tabel1[[#This Row],[Jaarsalaris]]<=28406, 3068, IF(AD58<=76817, 3068 - 0.06337 * (AD58 - 28406), 0))/12 -> 116.7051961 | AH58: =Tabel1[[#This Row],[Bruto maandsalaris]]+Tabel1[[#This Row],[inhouding premie]]+Tabel1[[#This Row],[Inhouding pensioen]] -> 3921.965423 | AI58: =-IF(Tabel1[[#This Row],[Belastbaar maandsalaris]]*12<=38441, Tabel1[[#This Row],[Belastbaar maandsalaris]]*0.3582, IF(Tabel1[[#This Row],[Belastbaar maandsalaris]]*12<=76817, (38441*0.3582 + (Tabel1[[#This Row],[Belastbaar maandsalaris]]*12-38441)*0.3748)/12, (38441*0.3582 + (76817-38441)*0.3748 + (Tabel1[[#This Row],[Belastbaar maandsalaris]]*12-76817)*0.495)/12))+Tabel1[[#This Row],[Heffingskorting ]] -> -1300.070728 | AJ58: =Lonen!C5 -> 18.6
A59: EMP00046 | B59: Pim | C59: van de | D59: Biesenbos | E59: Pim van de Biesenbos | F59: M | G59: 1999-03-06 | H59: =(TODAY()-Tabel1[[#This Row],[Geboortedatum]])/365.25 -> 26.26146475 | I59: Rijnlaan 91 | J59: 3748 IJ | K59: Zeist | L59: Uitvoering | M59: Kabellasser II | N59: 2021-04-18 | O59: =(TODAY()-Tabel1[[#This Row],[Datum in dienst]])/365.25 -> 4.142368241 | P59: Vast | Q59: =ROUNDDOWN(Tabel1[[#This Row],[Aantal dienstjaren]],0) -> 4 | R59: Onbepaalde tijd | S59: 3 | T59: 0.4 | U59: =40*Tabel1[[#This Row],[FTE]] -> 16 | V59: B | W59: =MIN(Lonen!C4*(Tabel1[[#This Row],[Jaarlijkse salarisstijging]])^Tabel1[[#This Row],[Afgeronde dienstjaren]],Lonen!E4) -> 19.71891435 | X59: =(MIN(Lonen!C4*(Tabel1[[#This Row],[Jaarlijkse salarisstijging]])^Tabel1[[#This Row],[Afgeronde dienstjaren]],Lonen!E4)*174.08)*Tabel1[[#This Row],[FTE]] -> 1373.067444 | Y59: 1.03 | Z59: =Tabel1[[#This Row],[Bruto maandsalaris]]*8% -> 109.8453955 | AB59: NVT | AC59: =ABS(IF(Tabel1[[#This Row],[Jaarsalaris]]<=12169,0.08053*Tabel1[[#This Row],[Jaarsalaris]],IF(Tabel1[[#This Row],[Jaarsalaris]]<=26288,980+0.3003*(Tabel1[[#This Row],[Jaarsalaris]]-12169),IF(Tabel1[[#This Row],[Jaarsalaris]]<=43071,5220+0.02258*(Tabel1[[#This Row],[Jaarsalaris]]-26288),IF(Tabel1[[#This Row],[Jaarsalaris]]<=129078,5599-0.0651*(Tabel1[[#This Row],[Jaarsalaris]]-43071),0)))))/12 -> 223.8306079 | AD59: =Tabel1[[#This Row],[Bruto maandsalaris]]*13 -> 17849.87677 | AE59: =-Tabel1[[#This Row],[Bruto maandsalaris]]*0.08% -> -1.098453955 | AF59: =-((Tabel1[[#This Row],[Jaarsalaris]]-18475)*9.4%)/12 -> 4.896798609 | AG59: =IF(Tabel1[[#This Row],[Jaarsalaris]]<=28406, 3068, IF(AD59<=76817, 3068 - 0.06337 * (AD59 - 28406), 0))/12 -> 255.6666667 | AH59: =Tabel1[[#This Row],[Bruto maandsalaris]]+Tabel1[[#This Row],[inhouding premie]]+Tabel1[[#This Row],[Inhouding pensioen]] -> 1376.865789 | AI59: =-IF(Tabel1[[#This Row],[Belastbaar maandsalaris]]*12<=38441, Tabel1[[#This Row],[Belastbaar maandsalaris]]*0.3582, IF(Tabel1[[#This Row],[Belastbaar maandsalaris]]*12<=76817, (38441*0.3582 + (Tabel1[[#This Row],[Belastbaar maandsalaris]]*12-38441)*0.3748)/12, (38441*0.3582 + (76817-38441)*0.3748 + (Tabel1[[#This Row],[Belastbaar maandsalaris]]*12-76817)*0.495)/12))+Tabel1[[#This Row],[Heffingskorting ]] -> -237.5266589 | AJ59: =Lonen!C4 -> 17.52
A60: EMP00047 | B60: Ingmar | D60: Ooms | E60: Ingmar Ooms | F60: M | G60: 1985-12-05 | H60: =(TODAY()-Tabel1[[#This Row],[Geboortedatum]])/365.25 -> 39.50992471 | I60: Waterstraat 140 | J60: 3778 IJ | K60: Culemborg | L60: Uitvoering | M60: Kabellasser II | N60: 2009-02-25 | O60: =(TODAY()-Tabel1[[#This Row],[Datum in dienst]])/365.25 -> 16.28473648 | P60: Vast | Q60: =ROUNDDOWN(Tabel1[[#This Row],[Aantal dienstjaren]],0) -> 16 | R60: Onbepaalde tijd | S60: 3 | T60: 1 | U60: =40*Tabel1[[#This Row],[FTE]] -> 40 | V60: B | W60: =MIN(Lonen!C4*(Tabel1[[#This Row],[Jaarlijkse salarisstijging]])^Tabel1[[#This Row],[Afgeronde dienstjaren]],Lonen!E4) -> 22.776 | X60: =(MIN(Lonen!C4*(Tabel1[[#This Row],[Jaarlijkse salarisstijging]])^Tabel1[[#This Row],[Afgeronde dienstjaren]],Lonen!E4)*174.08)*Tabel1[[#This Row],[FTE]] -> 3964.84608 | Y60: 1.03 | Z60: =Tabel1[[#This Row],[Bruto maandsalaris]]*8% -> 317.1876864 | AB60: NVT | AC60: =ABS(IF(Tabel1[[#This Row],[Jaarsalaris]]<=12169,0.08053*Tabel1[[#This Row],[Jaarsalaris]],IF(Tabel1[[#This Row],[Jaarsalaris]]<=26288,980+0.3003*(Tabel1[[#This Row],[Jaarsalaris]]-12169),IF(Tabel1[[#This Row],[Jaarsalaris]]<=43071,5220+0.02258*(Tabel1[[#This Row],[Jaarsalaris]]-26288),IF(Tabel1[[#This Row],[Jaarsalaris]]<=129078,5599-0.0651*(Tabel1[[#This Row],[Jaarsalaris]]-43071),0)))))/12 -> 420.6227385 | AD60: =Tabel1[[#This Row],[Bruto maandsalaris]]*13 -> 51542.99904 | AE60: =-Tabel1[[#This Row],[Bruto maandsalaris]]*0.08% -> -3.171876864 | AF60: =-((Tabel1[[#This Row],[Jaarsalaris]]-18475)*9.4%)/12 -> -259.0326591 | AG60: =IF(Tabel1[[#This Row],[Jaarsalaris]]<=28406, 3068, IF(AD60<=76817, 3068 - 0.06337 * (AD60 - 28406), 0))/12 -> 133.4840309 | AH60: =Tabel1[[#This Row],[Bruto maandsalaris]]+Tabel1[[#This Row],[inhouding premie]]+Tabel1[[#This Row],[Inhouding pensioen]] -> 3702.641544 | AI60: =-IF(Tabel1[[#This Row],[Belastbaar maandsalaris]]*12<=38441, Tabel1[[#This Row],[Belastbaar maandsalaris]]*0.3582, IF(Tabel1[[#This Row],[Belastbaar maandsalaris]]*12<=76817, (38441*0.3582 + (Tabel1[[#This Row],[Belastbaar maandsalaris]]*12-38441)*0.3748)/12, (38441*0.3582 + (76817-38441)*0.3748 + (Tabel1[[#This Row],[Belastbaar maandsalaris]]*12-76817)*0.495)/12))+Tabel1[[#This Row],[Heffingskorting ]] -> -1201.089303 | AJ60: =Lonen!C4 -> 17.52
A61: EMP00064 | B61: Sander | D61: Pieters | E61: Sander Pieters | F61: M | G61: 1990-04-02 | H61: =(TODAY()-Tabel1[[#This Row],[Geboortedatum]])/365.25 -> 35.18685832 | I61: Dorpsstraat 6 | J61: 3809 GH | K61: Driebergen-Rijsenburg | L61: Staf | M61: KAM-Coördinator | N61: 2021-07-13 | O61: =(TODAY()-Tabel1[[#This Row],[Datum in dienst]])/365.25 -> 3.906913073 | P61: Vast | Q61: =ROUNDDOWN(Tabel1[[#This Row],[Aantal dienstjaren]],0) -> 3 | R61: Onbepaalde tijd | S61: 3 | T61: 1 | U61: =40*Tabel1[[#This Row],[FTE]] -> 40 | V61: UTA 4 | W61: =(MIN(Lonen!C15*(Tabel1[[#This Row],[Jaarlijkse salarisstijging]])^Tabel1[[#This Row],[Aantal dienstjaren]],Lonen!D15))/174.08 -> 21.32126519 | X61: =(MIN(Lonen!C15*(personeelsoverzicht!Y2)^Tabel1[[#This Row],[Afgeronde dienstjaren]],Lonen!D15))*Tabel1[[#This Row],[FTE]] -> 3613.429644 | Y61: 1.03 | Z61: =Tabel1[[#This Row],[Bruto maandsalaris]]*8% -> 289.0743715 | AB61: NVT | AC61: =ABS(IF(Tabel1[[#This Row],[Jaarsalaris]]<=12169,0.08053*Tabel1[[#This Row],[Jaarsalaris]],IF(Tabel1[[#This Row],[Jaarsalaris]]<=26288,980+0.3003*(Tabel1[[#This Row],[Jaarsalaris]]-12169),IF(Tabel1[[#This Row],[Jaarsalaris]]<=43071,5220+0.02258*(Tabel1[[#This Row],[Jaarsalaris]]-26288),IF(Tabel1[[#This Row],[Jaarsalaris]]<=129078,5599-0.0651*(Tabel1[[#This Row],[Jaarsalaris]]-43071),0)))))/12 -> 445.4063827 | AD61: =Tabel1[[#This Row],[Bruto maandsalaris]]*13 -> 46974.58537 | AE61: =-Tabel1[[#This Row],[Bruto maandsalaris]]*0.08% -> -2.890743715 | AF61: =-((Tabel1[[#This Row],[Jaarsalaris]]-18475)*9.4%)/12 -> -223.246752 | AG61: =IF(Tabel1[[#This Row],[Jaarsalaris]]<=28406, 3068, IF(AD61<=76817, 3068 - 0.06337 * (AD61 - 28406), 0))/12 -> 157.6090621 | AH61: =Tabel1[[#This Row],[Bruto maandsalaris]]+Tabel1[[#This Row],[inhouding premie]]+Tabel1[[#This Row],[Inhouding pensioen]] -> 3387.292148 | AI61: =-IF(Tabel1[[#This Row],[Belastbaar maandsalaris]]*12<=38441, Tabel1[[#This Row],[Belastbaar maandsalaris]]*0.3582, IF(Tabel1[[#This Row],[Belastbaar maandsalaris]]*12<=76817, (38441*0.3582 + (Tabel1[[#This Row],[Belastbaar maandsalaris]]*12-38441)*0.3748)/12, (38441*0.3582 + (76817-38441)*0.3748 + (Tabel1[[#This Row],[Belastbaar maandsalaris]]*12-76817)*0.495)/12))+Tabel1[[#This Row],[Heffingskorting ]] -> -1058.771318 | AJ61: =Lonen!C15/(40*4.33) -> 19.09237875
A62: EMP00092 | B62: Elise | D62: Jansen | E62: Elise Jansen | F62: V | G62: 1968-01-18 | H62: =(TODAY()-Tabel1[[#This Row],[Geboortedatum]])/365.25 -> 57.3908282 | I62: Beatrixstraat 124 | J62: 3782 EF | K62: Woerden | L62: Staf | M62: KAM-Coördinator | N62: 2011-04-26 | O62: =(TODAY()-Tabel1[[#This Row],[Datum in dienst]])/365.25 -> 14.12183436 | P62: Vast | Q62: =ROUNDDOWN(Tabel1[[#This Row],[Aantal dienstjaren]],0) -> 14 | R62: Onbepaalde tijd | S62: 3 | T62: 1 | U62: =40*Tabel1[[#This Row],[FTE]] -> 40 | V62: UTA 5 | W62: =(MIN(Lonen!C16*(Tabel1[[#This Row],[Jaarlijkse salarisstijging]])^Tabel1[[#This Row],[Aantal dienstjaren]],Lonen!D16))/174.08 -> 30.30261949 | X62: =(MIN(Lonen!C16*(Tabel1[[#This Row],[Jaarlijkse salarisstijging]])^Tabel1[[#This Row],[Aantal dienstjaren]],Lonen!D16))*Tabel1[[#This Row],[FTE]] -> 5275.08 | Y62: 1.03 | Z62: =Tabel1[[#This Row],[Bruto maandsalaris]]*8% -> 422.0064 | AB62: NVT | AC62: =ABS(IF(Tabel1[[#This Row],[Jaarsalaris]]<=12169,0.08053*Tabel1[[#This Row],[Jaarsalaris]],IF(Tabel1[[#This Row],[Jaarsalaris]]<=26288,980+0.3003*(Tabel1[[#This Row],[Jaarsalaris]]-12169),IF(Tabel1[[#This Row],[Jaarsalaris]]<=43071,5220+0.02258*(Tabel1[[#This Row],[Jaarsalaris]]-26288),IF(Tabel1[[#This Row],[Jaarsalaris]]<=129078,5599-0.0651*(Tabel1[[#This Row],[Jaarsalaris]]-43071),0)))))/12 -> 328.2184913 | AD62: =Tabel1[[#This Row],[Bruto maandsalaris]]*13 -> 68576.04 | AE62: =-Tabel1[[#This Row],[Bruto maandsalaris]]*0.08% -> -4.220064 | AF62: =-((Tabel1[[#This Row],[Jaarsalaris]]-18475)*9.4%)/12 -> -392.4581467 | AG62: =IF(Tabel1[[#This Row],[Jaarsalaris]]<=28406, 3068, IF(AD62<=76817, 3068 - 0.06337 * (AD62 - 28406), 0))/12 -> 43.53538043 | AH62: =Tabel1[[#This Row],[Bruto maandsalaris]]+Tabel1[[#This Row],[inhouding premie]]+Tabel1[[#This Row],[Inhouding pensioen]] -> 4878.401789 | AI62: =-IF(Tabel1[[#This Row],[Belastbaar maandsalaris]]*12<=38441, Tabel1[[#This Row],[Belastbaar maandsalaris]]*0.3582, IF(Tabel1[[#This Row],[Belastbaar maandsalaris]]*12<=76817, (38441*0.3582 + (Tabel1[[#This Row],[Belastbaar maandsalaris]]*12-38441)*0.3748)/12, (38441*0.3582 + (76817-38441)*0.3748 + (Tabel1[[#This Row],[Belastbaar maandsalaris]]*12-76817)*0.495)/12))+Tabel1[[#This Row],[Heffingskorting ]] -> -1731.712894 | AJ62: =Lonen!C16/(40*4.33) -> 22.01345266
A63: EMP00086 | B63: Kees | C63: de | D63: Boer | E63: Kees de Boer | F63: M | G63: 1998-10-28 | H63: =(TODAY()-Tabel1[[#This Row],[Geboortedatum]])/365.25 -> 26.6146475 | I63: Zonstraat 29 | J63: 3671 IJ | K63: Nieuwegein | L63: Uitvoering | M63: Leerling machinist | N63: 2021-05-11 | O63: =(TODAY()-Tabel1[[#This Row],[Datum in dienst]])/365.25 -> 4.079397673 | P63: Vast | Q63: =ROUNDDOWN(Tabel1[[#This Row],[Aantal dienstjaren]],0) -> 4 | R63: Onbepaalde tijd | S63: 3 | T63: 1 | U63: =40*Tabel1[[#This Row],[FTE]] -> 40 | V63: A | W63: =MIN(Lonen!C3*(Tabel1[[#This Row],[Jaarlijkse salarisstijging]])^Tabel1[[#This Row],[Afgeronde dienstjaren]],Lonen!E3) -> 18.63842589 | X63: =(MIN(Lonen!C3*(Tabel1[[#This Row],[Jaarlijkse salarisstijging]])^Tabel1[[#This Row],[Afgeronde dienstjaren]],Lonen!E3)*174.08)*Tabel1[[#This Row],[FTE]] -> 3244.57718 | Y63: 1.03 | Z63: =Tabel1[[#This Row],[Bruto maandsalaris]]*8% -> 259.5661744 | AB63: NVT | AC63: =ABS(IF(Tabel1[[#This Row],[Jaarsalaris]]<=12169,0.08053*Tabel1[[#This Row],[Jaarsalaris]],IF(Tabel1[[#This Row],[Jaarsalaris]]<=26288,980+0.3003*(Tabel1[[#This Row],[Jaarsalaris]]-12169),IF(Tabel1[[#This Row],[Jaarsalaris]]<=43071,5220+0.02258*(Tabel1[[#This Row],[Jaarsalaris]]-26288),IF(Tabel1[[#This Row],[Jaarsalaris]]<=129078,5599-0.0651*(Tabel1[[#This Row],[Jaarsalaris]]-43071),0)))))/12 -> 464.9025121 | AD63: =Tabel1[[#This Row],[Bruto maandsalaris]]*13 -> 42179.50333 | AE63: =-Tabel1[[#This Row],[Bruto maandsalaris]]*0.08% -> -2.595661744 | AF63: =-((Tabel1[[#This Row],[Jaarsalaris]]-18475)*9.4%)/12 -> -185.6852761 | AG63: =IF(Tabel1[[#This Row],[Jaarsalaris]]<=28406, 3068, IF(AD63<=76817, 3068 - 0.06337 * (AD63 - 28406), 0))/12 -> 182.9310911 | AH63: =Tabel1[[#This Row],[Bruto maandsalaris]]+Tabel1[[#This Row],[inhouding premie]]+Tabel1[[#This Row],[Inhouding pensioen]] -> 3056.296242 | AI63: =-IF(Tabel1[[#This Row],[Belastbaar maandsalaris]]*12<=38441, Tabel1[[#This Row],[Belastbaar maandsalaris]]*0.3582, IF(Tabel1[[#This Row],[Belastbaar maandsalaris]]*12<=76817, (38441*0.3582 + (Tabel1[[#This Row],[Belastbaar maandsalaris]]*12-38441)*0.3748)/12, (38441*0.3582 + (76817-38441)*0.3748 + (Tabel1[[#This Row],[Belastbaar maandsalaris]]*12-76817)*0.495)/12))+Tabel1[[#This Row],[Heffingskorting ]] -> -911.8342226 | AJ63: =Lonen!C3 -> 16.56
A64: EMP00089 | B64: Pieter | D64: Mulder | E64: Pieter Mulder | F64: M | G64: 1995-08-05 | H64: =(TODAY()-Tabel1[[#This Row],[Geboortedatum]])/365.25 -> 29.84531143 | I64: Rijnlaan 18 | J64: 3817 GH | K64: Baarn | L64: Uitvoering | M64: Leerling machinist | N64: 2019-05-22 | O64: =(TODAY()-Tabel1[[#This Row],[Datum in dienst]])/365.25 -> 6.05065024 | P64: Tijdelijk | Q64: =ROUNDDOWN(Tabel1[[#This Row],[Aantal dienstjaren]],0) -> 6 | R64: 2025-05-22 | S64: 2 | T64: 1 | U64: =40*Tabel1[[#This Row],[FTE]] -> 40 | V64: A | W64: =MIN(Lonen!C3*(Tabel1[[#This Row],[Jaarlijkse salarisstijging]])^Tabel1[[#This Row],[Afgeronde dienstjaren]],Lonen!E3) -> 19.77350603 | X64: =(MIN(Lonen!C3*(Tabel1[[#This Row],[Jaarlijkse salarisstijging]])^Tabel1[[#This Row],[Afgeronde dienstjaren]],Lonen!E3)*174.08)*Tabel1[[#This Row],[FTE]] -> 3442.17193 | Y64: 1.03 | Z64: =Tabel1[[#This Row],[Bruto maandsalaris]]*8% -> 275.3737544 | AB64: NVT | AC64: =ABS(IF(Tabel1[[#This Row],[Jaarsalaris]]<=12169,0.08053*Tabel1[[#This Row],[Jaarsalaris]],IF(Tabel1[[#This Row],[Jaarsalaris]]<=26288,980+0.3003*(Tabel1[[#This Row],[Jaarsalaris]]-12169),IF(Tabel1[[#This Row],[Jaarsalaris]]<=43071,5220+0.02258*(Tabel1[[#This Row],[Jaarsalaris]]-26288),IF(Tabel1[[#This Row],[Jaarsalaris]]<=129078,5599-0.0651*(Tabel1[[#This Row],[Jaarsalaris]]-43071),0)))))/12 -> 457.484333 | AD64: =Tabel1[[#This Row],[Bruto maandsalaris]]*13 -> 44748.23509 | AE64: =-Tabel1[[#This Row],[Bruto maandsalaris]]*0.08% -> -2.753737544 | AF64: =-((Tabel1[[#This Row],[Jaarsalaris]]-18475)*9.4%)/12 -> -205.8070082 | AG64: =IF(Tabel1[[#This Row],[Jaarsalaris]]<=28406, 3068, IF(AD64<=76817, 3068 - 0.06337 * (AD64 - 28406), 0))/12 -> 169.3660469 | AH64: =Tabel1[[#This Row],[Bruto maandsalaris]]+Tabel1[[#This Row],[inhouding premie]]+Tabel1[[#This Row],[Inhouding pensioen]] -> 3233.611184 | AI64: =-IF(Tabel1[[#This Row],[Belastbaar maandsalaris]]*12<=38441, Tabel1[[#This Row],[Belastbaar maandsalaris]]*0.3582, IF(Tabel1[[#This Row],[Belastbaar maandsalaris]]*12<=76817, (38441*0.3582 + (Tabel1[[#This Row],[Belastbaar maandsalaris]]*12-38441)*0.3748)/12, (38441*0.3582 + (76817-38441)*0.3748 + (Tabel1[[#This Row],[Belastbaar maandsalaris]]*12-76817)*0.495)/12))+Tabel1[[#This Row],[Heffingskorting ]] -> -989.4147082 | AJ64: =Lonen!C3 -> 16.56
A65: EMP00076 | B65: Daan | D65: Dijkstra | E65: Daan Dijkstra | F65: M | G65: 1994-06-24 | H65: =(TODAY()-Tabel1[[#This Row],[Geboortedatum]])/365.25 -> 30.9596167 | I65: Valkenierstraat 172 | J65: 3461 EF | K65: Baarn | L65: Uitvoering | M65: Machinist mobiele hei-installatie | N65: 2017-01-19 | O65: =(TODAY()-Tabel1[[#This Row],[Datum in dienst]])/365.25 -> 8.386036961 | P65: Vast | Q65: =ROUNDDOWN(Tabel1[[#This Row],[Aantal dienstjaren]],0) -> 8 | R65: Onbepaalde tijd | S65: 3 | T65: 1 | U65: =40*Tabel1[[#This Row],[FTE]] -> 40 | V65: D | W65: =MIN(Lonen!C6*(Tabel1[[#This Row],[Jaarlijkse salarisstijging]])^Tabel1[[#This Row],[Afgeronde dienstjaren]],Lonen!E6) -> 25.17072152 | X65: =(MIN(Lonen!C6*(Tabel1[[#This Row],[Jaarlijkse salarisstijging]])^Tabel1[[#This Row],[Afgeronde dienstjaren]],Lonen!E6)*174.08)*Tabel1[[#This Row],[FTE]] -> 4381.719202 | Y65: 1.03 | Z65: =Tabel1[[#This Row],[Bruto maandsalaris]]*8% -> 350.5375361 | AB65: NVT | AC65: =ABS(IF(Tabel1[[#This Row],[Jaarsalaris]]<=12169,0.08053*Tabel1[[#This Row],[Jaarsalaris]],IF(Tabel1[[#This Row],[Jaarsalaris]]<=26288,980+0.3003*(Tabel1[[#This Row],[Jaarsalaris]]-12169),IF(Tabel1[[#This Row],[Jaarsalaris]]<=43071,5220+0.02258*(Tabel1[[#This Row],[Jaarsalaris]]-26288),IF(Tabel1[[#This Row],[Jaarsalaris]]<=129078,5599-0.0651*(Tabel1[[#This Row],[Jaarsalaris]]-43071),0)))))/12 -> 391.2227616 | AD65: =Tabel1[[#This Row],[Bruto maandsalaris]]*13 -> 56962.34962 | AE65: =-Tabel1[[#This Row],[Bruto maandsalaris]]*0.08% -> -3.505375361 | AF65: =-((Tabel1[[#This Row],[Jaarsalaris]]-18475)*9.4%)/12 -> -301.4842387 | AG65: =IF(Tabel1[[#This Row],[Jaarsalaris]]<=28406, 3068, IF(AD65<=76817, 3068 - 0.06337 * (AD65 - 28406), 0))/12 -> 104.8653437 | AH65: =Tabel1[[#This Row],[Bruto maandsalaris]]+Tabel1[[#This Row],[inhouding premie]]+Tabel1[[#This Row],[Inhouding pensioen]] -> 4076.729588 | AI65: =-IF(Tabel1[[#This Row],[Belastbaar maandsalaris]]*12<=38441, Tabel1[[#This Row],[Belastbaar maandsalaris]]*0.3582, IF(Tabel1[[#This Row],[Belastbaar maandsalaris]]*12<=76817, (38441*0.3582 + (Tabel1[[#This Row],[Belastbaar maandsalaris]]*12-38441)*0.3748)/12, (38441*0.3582 + (76817-38441)*0.3748 + (Tabel1[[#This Row],[Belastbaar maandsalaris]]*12-76817)*0.495)/12))+Tabel1[[#This Row],[Heffingskorting ]] -> -1369.916189 | AJ65: =Lonen!C6 -> 19.87
A66: EMP00073 | B66: Daan | C66: de | D66: Vries | E66: =B66 & IF(C66="", " ", " " & C66 & " ") & D66 -> Daan de Vries | F66: M | G66: 1973-05-15 | H66: =(TODAY()-Tabel1[[#This Row],[Geboortedatum]])/365.25 -> 52.06844627 | I66: Waterstraat 191 | J66: 3409 IJ | K66: Leusden | L66: Uitvoering | M66: Machinist mobiele kraan | N66: 2018-07-01 | O66: =(TODAY()-Tabel1[[#This Row],[Datum in dienst]])/365.25 -> 6.940451745 | P66: Vast | Q66: =ROUNDDOWN(Tabel1[[#This Row],[Aantal dienstjaren]],0) -> 6 | R66: Onbepaalde tijd | S66: 3 | T66: 1 | U66: =40*Tabel1[[#This Row],[FTE]] -> 40 | V66: D | W66: =MIN(Lonen!C6*(Tabel1[[#This Row],[Jaarlijkse salarisstijging]])^Tabel1[[#This Row],[Afgeronde dienstjaren]],Lonen!E6) -> 23.72581913 | X66: =(MIN(Lonen!C6*(Tabel1[[#This Row],[Jaarlijkse salarisstijging]])^Tabel1[[#This Row],[Afgeronde dienstjaren]],Lonen!E6)*174.08)*Tabel1[[#This Row],[FTE]] -> 4130.190595 | Y66: 1.03 | Z66: =Tabel1[[#This Row],[Bruto maandsalaris]]*8% -> 330.4152476 | AB66: NVT | AC66: =ABS(IF(Tabel1[[#This Row],[Jaarsalaris]]<=12169,0.08053*Tabel1[[#This Row],[Jaarsalaris]],IF(Tabel1[[#This Row],[Jaarsalaris]]<=26288,980+0.3003*(Tabel1[[#This Row],[Jaarsalaris]]-12169),IF(Tabel1[[#This Row],[Jaarsalaris]]<=43071,5220+0.02258*(Tabel1[[#This Row],[Jaarsalaris]]-26288),IF(Tabel1[[#This Row],[Jaarsalaris]]<=129078,5599-0.0651*(Tabel1[[#This Row],[Jaarsalaris]]-43071),0)))))/12 -> 408.9618167 | AD66: =Tabel1[[#This Row],[Bruto maandsalaris]]*13 -> 53692.47773 | AE66: =-Tabel1[[#This Row],[Bruto maandsalaris]]*0.08% -> -3.304152476 | AF66: =-((Tabel1[[#This Row],[Jaarsalaris]]-18475)*9.4%)/12 -> -275.8702422 | AG66: =IF(Tabel1[[#This Row],[Jaarsalaris]]<=28406, 3068, IF(AD66<=76817, 3068 - 0.06337 * (AD66 - 28406), 0))/12 -> 122.1329922 | AH66: =Tabel1[[#This Row],[Bruto maandsalaris]]+Tabel1[[#This Row],[inhouding premie]]+Tabel1[[#This Row],[Inhouding pensioen]] -> 3851.0162 | AI66: =-IF(Tabel1[[#This Row],[Belastbaar maandsalaris]]*12<=38441, Tabel1[[#This Row],[Belastbaar maandsalaris]]*0.3582, IF(Tabel1[[#This Row],[Belastbaar maandsalaris]]*12<=76817, (38441*0.3582 + (Tabel1[[#This Row],[Belastbaar maandsalaris]]*12-38441)*0.3748)/12, (38441*0.3582 + (76817-38441)*0.3748 + (Tabel1[[#This Row],[Belastbaar maandsalaris]]*12-76817)*0.495)/12))+Tabel1[[#This Row],[Heffingskorting ]] -> -1268.051163 | AJ66: =Lonen!C6 -> 19.87
A67: EMP00001 | B67: Tijn | D67: Vos | E67: Tijn Vos | F67: M | G67: 1991-07-20 | H67: =(TODAY()-Tabel1[[#This Row],[Geboortedatum]])/365.25 -> 33.88911704 | I67: Zonstraat 141 | J67: 3459 IJ | K67: Montfoort | L67: Uitvoering | M67: Magazijn bediende | N67: 2021-02-08 | O67: =(TODAY()-Tabel1[[#This Row],[Datum in dienst]])/365.25 -> 4.331279945 | P67: Vast | Q67: =ROUNDDOWN(Tabel1[[#This Row],[Aantal dienstjaren]],0) -> 4 | R67: Onbepaalde tijd | S67: 3 | T67: 1 | U67: =40*Tabel1[[#This Row],[FTE]] -> 40 | V67: A | W67: =MIN(Lonen!C3*(Tabel1[[#This Row],[Jaarlijkse salarisstijging]])^Tabel1[[#This Row],[Afgeronde dienstjaren]],Lonen!E3) -> 18.63842589 | X67: =(MIN(Lonen!C6*(Tabel1[[#This Row],[Jaarlijkse salarisstijging]])^Tabel1[[#This Row],[Afgeronde dienstjaren]],Lonen!E6)*174.08)*Tabel1[[#This Row],[FTE]] -> 3893.100758 | Y67: 1.03 | Z67: =Tabel1[[#This Row],[Bruto maandsalaris]]*8% -> 311.4480607 | AB67: NVT | AC67: =ABS(IF(Tabel1[[#This Row],[Jaarsalaris]]<=12169,0.08053*Tabel1[[#This Row],[Jaarsalaris]],IF(Tabel1[[#This Row],[Jaarsalaris]]<=26288,980+0.3003*(Tabel1[[#This Row],[Jaarsalaris]]-12169),IF(Tabel1[[#This Row],[Jaarsalaris]]<=43071,5220+0.02258*(Tabel1[[#This Row],[Jaarsalaris]]-26288),IF(Tabel1[[#This Row],[Jaarsalaris]]<=129078,5599-0.0651*(Tabel1[[#This Row],[Jaarsalaris]]-43071),0)))))/12 -> 425.6825774 | AD67: =Tabel1[[#This Row],[Bruto maandsalaris]]*13 -> 50610.30986 | AE67: =-Tabel1[[#This Row],[Bruto maandsalaris]]*0.08% -> -3.114480607 | AF67: =-((Tabel1[[#This Row],[Jaarsalaris]]-18475)*9.4%)/12 -> -251.7265939 | AG67: =IF(Tabel1[[#This Row],[Jaarsalaris]]<=28406, 3068, IF(AD67<=76817, 3068 - 0.06337 * (AD67 - 28406), 0))/12 -> 138.409407 | AH67: =Tabel1[[#This Row],[Bruto maandsalaris]]+Tabel1[[#This Row],[inhouding premie]]+Tabel1[[#This Row],[Inhouding pensioen]] -> 3638.259684 | AI67: =-IF(Tabel1[[#This Row],[Belastbaar maandsalaris]]*12<=38441, Tabel1[[#This Row],[Belastbaar maandsalaris]]*0.3582, IF(Tabel1[[#This Row],[Belastbaar maandsalaris]]*12<=76817, (38441*0.3582 + (Tabel1[[#This Row],[Belastbaar maandsalaris]]*12-38441)*0.3748)/12, (38441*0.3582 + (76817-38441)*0.3748 + (Tabel1[[#This Row],[Belastbaar maandsalaris]]*12-76817)*0.495)/12))+Tabel1[[#This Row],[Heffingskorting ]] -> -1172.033606 | AJ67: =Lonen!C6 -> 19.87
A68: EMP00043 | B68: Lizz | C68: van | D68: Embden | E68: Lizz van Embden | F68: V | G68: 1978-06-15 | H68: =(TODAY()-Tabel1[[#This Row],[Geboortedatum]])/365.25 -> 46.98425736 | I68: Kastanjelaan 39 | J68: 3427 AB | K68: Montfoort | L68: Uitvoering | M68: Magazijn bediende | N68: 2006-10-12 | O68: =(TODAY()-Tabel1[[#This Row],[Datum in dienst]])/365.25 -> 18.65845311 | P68: Vast | Q68: =ROUNDDOWN(Tabel1[[#This Row],[Aantal dienstjaren]],0) -> 18 | R68: Onbepaalde tijd | S68: 3 | T68: 0.8 | U68: =40*Tabel1[[#This Row],[FTE]] -> 32 | V68: A | W68: =MIN(Lonen!C3*(Tabel1[[#This Row],[Jaarlijkse salarisstijging]])^Tabel1[[#This Row],[Afgeronde dienstjaren]],Lonen!E3) -> 21.528 | X68: =(MIN(Lonen!C15*(personeelsoverzicht!Y2)^Tabel1[[#This Row],[Afgeronde dienstjaren]],Lonen!D15))*Tabel1[[#This Row],[FTE]] -> 3609.656 | Y68: 1.03 | Z68: =Tabel1[[#This Row],[Bruto maandsalaris]]*8% -> 288.77248 | AB68: NVT | AC68: =ABS(IF(Tabel1[[#This Row],[Jaarsalaris]]<=12169,0.08053*Tabel1[[#This Row],[Jaarsalaris]],IF(Tabel1[[#This Row],[Jaarsalaris]]<=26288,980+0.3003*(Tabel1[[#This Row],[Jaarsalaris]]-12169),IF(Tabel1[[#This Row],[Jaarsalaris]]<=43071,5220+0.02258*(Tabel1[[#This Row],[Jaarsalaris]]-26288),IF(Tabel1[[#This Row],[Jaarsalaris]]<=129078,5599-0.0651*(Tabel1[[#This Row],[Jaarsalaris]]-43071),0)))))/12 -> 445.6725189 | AD68: =Tabel1[[#This Row],[Bruto maandsalaris]]*13 -> 46925.528 | AE68: =-Tabel1[[#This Row],[Bruto maandsalaris]]*0.08% -> -2.8877248 | AF68: =-((Tabel1[[#This Row],[Jaarsalaris]]-18475)*9.4%)/12 -> -222.8624693 | AG68: =IF(Tabel1[[#This Row],[Jaarsalaris]]<=28406, 3068, IF(AD68<=76817, 3068 - 0.06337 * (AD68 - 28406), 0))/12 -> 157.8681259 | AH68: =Tabel1[[#This Row],[Bruto maandsalaris]]+Tabel1[[#This Row],[inhouding premie]]+Tabel1[[#This Row],[Inhouding pensioen]] -> 3383.905806 | AI68: =-IF(Tabel1[[#This Row],[Belastbaar maandsalaris]]*12<=38441, Tabel1[[#This Row],[Belastbaar maandsalaris]]*0.3582, IF(Tabel1[[#This Row],[Belastbaar maandsalaris]]*12<=76817, (38441*0.3582 + (Tabel1[[#This Row],[Belastbaar maandsalaris]]*12-38441)*0.3748)/12, (38441*0.3582 + (76817-38441)*0.3748 + (Tabel1[[#This Row],[Belastbaar maandsalaris]]*12-76817)*0.495)/12))+Tabel1[[#This Row],[Heffingskorting ]] -> -1057.243053 | AJ68: =Lonen!C15/(40*4.33) -> 19.09237875
A69: EMP00079 | B69: Lucas | D69: Peridok | E69: Lucas Peridok | F69: M | G69: 2001-06-11 | H69: =(TODAY()-Tabel1[[#This Row],[Geboortedatum]])/365.25 -> 23.9945243 | I69: Beatrixstraat 63 | J69: 3493 AB | K69: Baarn | L69: Uitvoering | M69: Magazijn bediende | N69: 2022-11-16 | O69: =(TODAY()-Tabel1[[#This Row],[Datum in dienst]])/365.25 -> 2.562628337 | P69: Vast | Q69: =ROUNDDOWN(Tabel1[[#This Row],[Aantal dienstjaren]],0) -> 2 | R69: Onbepaalde tijd | S69: 3 | T69: 0.9 | U69: =40*Tabel1[[#This Row],[FTE]] -> 36 | V69: A | W69: =MIN(Lonen!C3*(Tabel1[[#This Row],[Jaarlijkse salarisstijging]])^Tabel1[[#This Row],[Afgeronde dienstjaren]],Lonen!E3) -> 17.568504 | X69: =(MIN(Lonen!C18*(Tabel1[[#This Row],[Jaarlijkse salarisstijging]])^Tabel1[[#This Row],[Aantal dienstjaren]],Lonen!D18))*Tabel1[[#This Row],[FTE]] -> 5339.520211 | Y69: 1.03 | Z69: =Tabel1[[#This Row],[Bruto maandsalaris]]*8% -> 427.1616169 | AB69: NVT | AC69: =ABS(IF(Tabel1[[#This Row],[Jaarsalaris]]<=12169,0.08053*Tabel1[[#This Row],[Jaarsalaris]],IF(Tabel1[[#This Row],[Jaarsalaris]]<=26288,980+0.3003*(Tabel1[[#This Row],[Jaarsalaris]]-12169),IF(Tabel1[[#This Row],[Jaarsalaris]]<=43071,5220+0.02258*(Tabel1[[#This Row],[Jaarsalaris]]-26288),IF(Tabel1[[#This Row],[Jaarsalaris]]<=129078,5599-0.0651*(Tabel1[[#This Row],[Jaarsalaris]]-43071),0)))))/12 -> 323.6738455 | AD69: =Tabel1[[#This Row],[Bruto maandsalaris]]*13 -> 69413.76274 | AE69: =-Tabel1[[#This Row],[Bruto maandsalaris]]*0.08% -> -4.271616169 | AF69: =-((Tabel1[[#This Row],[Jaarsalaris]]-18475)*9.4%)/12 -> -399.0203082 | AG69: =IF(Tabel1[[#This Row],[Jaarsalaris]]<=28406, 3068, IF(AD69<=76817, 3068 - 0.06337 * (AD69 - 28406), 0))/12 -> 39.11150625 | AH69: =Tabel1[[#This Row],[Bruto maandsalaris]]+Tabel1[[#This Row],[inhouding premie]]+Tabel1[[#This Row],[Inhouding pensioen]] -> 4936.228287 | AI69: =-IF(Tabel1[[#This Row],[Belastbaar maandsalaris]]*12<=38441, Tabel1[[#This Row],[Belastbaar maandsalaris]]*0.3582, IF(Tabel1[[#This Row],[Belastbaar maandsalaris]]*12<=76817, (38441*0.3582 + (Tabel1[[#This Row],[Belastbaar maandsalaris]]*12-38441)*0.3748)/12, (38441*0.3582 + (76817-38441)*0.3748 + (Tabel1[[#This Row],[Belastbaar maandsalaris]]*12-76817)*0.495)/12))+Tabel1[[#This Row],[Heffingskorting ]] -> -1757.810139
A70: EMP00045 | B70: Kate | C70: de | D70: Pauw | E70: Kate de Pauw | F70: V | G70: 1997-06-20 | H70: =(TODAY()-Tabel1[[#This Row],[Geboortedatum]])/365.25 -> 27.96988364 | I70: Laan van Vollenhove 104 | J70: 3990 CD | K70: Zeist | L70: Commercie en financïen | M70: Marketing manager | N70: 2019-06-11 | O70: =(TODAY()-Tabel1[[#This Row],[Datum in dienst]])/365.25 -> 5.995893224 | P70: Vast | Q70: =ROUNDDOWN(Tabel1[[#This Row],[Aantal dienstjaren]],0) -> 5 | R70: Onbepaalde tijd | S70: 3 | T70: 1 | U70: =40*Tabel1[[#This Row],[FTE]] -> 40 | V70: UTA 6 | W70: =(MIN(Lonen!C17*(Tabel1[[#This Row],[Jaarlijkse salarisstijging]])^Tabel1[[#This Row],[Aantal dienstjaren]],Lonen!D17))/174.08 -> 30.65923643 | X70: =(MIN(Lonen!C16*(Tabel1[[#This Row],[Jaarlijkse salarisstijging]])^Tabel1[[#This Row],[Aantal dienstjaren]],Lonen!D16))*Tabel1[[#This Row],[FTE]] -> 4552.0464 | Y70: 1.03 | Z70: =Tabel1[[#This Row],[Bruto maandsalaris]]*8% -> 364.163712 | AB70: NVT | AC70: =ABS(IF(Tabel1[[#This Row],[Jaarsalaris]]<=12169,0.08053*Tabel1[[#This Row],[Jaarsalaris]],IF(Tabel1[[#This Row],[Jaarsalaris]]<=26288,980+0.3003*(Tabel1[[#This Row],[Jaarsalaris]]-12169),IF(Tabel1[[#This Row],[Jaarsalaris]]<=43071,5220+0.02258*(Tabel1[[#This Row],[Jaarsalaris]]-26288),IF(Tabel1[[#This Row],[Jaarsalaris]]<=129078,5599-0.0651*(Tabel1[[#This Row],[Jaarsalaris]]-43071),0)))))/12 -> 379.210436 | AD70: =Tabel1[[#This Row],[Bruto maandsalaris]]*13 -> 59176.6032 | AE70: =-Tabel1[[#This Row],[Bruto maandsalaris]]*0.08% -> -3.64163712 | AF70: =-((Tabel1[[#This Row],[Jaarsalaris]]-18475)*9.4%)/12 -> -318.829225 | AG70: =IF(Tabel1[[#This Row],[Jaarsalaris]]<=28406, 3068, IF(AD70<=76817, 3068 - 0.06337 * (AD70 - 28406), 0))/12 -> 93.17223962 | AH70: =Tabel1[[#This Row],[Bruto maandsalaris]]+Tabel1[[#This Row],[inhouding premie]]+Tabel1[[#This Row],[Inhouding pensioen]] -> 4229.575538 | AI70: =-IF(Tabel1[[#This Row],[Belastbaar maandsalaris]]*12<=38441, Tabel1[[#This Row],[Belastbaar maandsalaris]]*0.3582, IF(Tabel1[[#This Row],[Belastbaar maandsalaris]]*12<=76817, (38441*0.3582 + (Tabel1[[#This Row],[Belastbaar maandsalaris]]*12-38441)*0.3748)/12, (38441*0.3582 + (76817-38441)*0.3748 + (Tabel1[[#This Row],[Belastbaar maandsalaris]]*12-76817)*0.495)/12))+Tabel1[[#This Row],[Heffingskorting ]] -> -1438.895955 | AJ70: =Lonen!C17/(40*4.33) -> 25.8102194
A71: EMP00032 | B71: Thijmen | C71: van der | D71: Veen | E71: Thijmen van der Veen | F71: M | G71: 1983-03-01 | H71: =(TODAY()-Tabel1[[#This Row],[Geboortedatum]])/365.25 -> 42.275154 | I71: Waterstraat 137 | J71: 3887 AB | K71: De Bilt | L71: Commercie en financïen | M71: Marketing medewerker | N71: 2005-09-01 | O71: =(TODAY()-Tabel1[[#This Row],[Datum in dienst]])/365.25 -> 19.77002053 | P71: Vast | Q71: =ROUNDDOWN(Tabel1[[#This Row],[Aantal dienstjaren]],0) -> 19 | R71: Onbepaalde tijd | S71: 3 | T71: 1 | U71: =40*Tabel1[[#This Row],[FTE]] -> 40 | V71: UTA 4 | W71: =(MIN(Lonen!C15*(Tabel1[[#This Row],[Jaarlijkse salarisstijging]])^Tabel1[[#This Row],[Aantal dienstjaren]],Lonen!D15))/174.08 -> 25.91951976 | X71: =(MIN(Lonen!C15*(personeelsoverzicht!Y2)^Tabel1[[#This Row],[Afgeronde dienstjaren]],Lonen!D15))*Tabel1[[#This Row],[FTE]] -> 4512.07 | Y71: 1.03 | Z71: =Tabel1[[#This Row],[Bruto maandsalaris]]*8% -> 360.9656 | AB71: NVT | AC71: =ABS(IF(Tabel1[[#This Row],[Jaarsalaris]]<=12169,0.08053*Tabel1[[#This Row],[Jaarsalaris]],IF(Tabel1[[#This Row],[Jaarsalaris]]<=26288,980+0.3003*(Tabel1[[#This Row],[Jaarsalaris]]-12169),IF(Tabel1[[#This Row],[Jaarsalaris]]<=43071,5220+0.02258*(Tabel1[[#This Row],[Jaarsalaris]]-26288),IF(Tabel1[[#This Row],[Jaarsalaris]]<=129078,5599-0.0651*(Tabel1[[#This Row],[Jaarsalaris]]-43071),0)))))/12 -> 382.0297716 | AD71: =Tabel1[[#This Row],[Bruto maandsalaris]]*13 -> 58656.91 | AE71: =-Tabel1[[#This Row],[Bruto maandsalaris]]*0.08% -> -3.609656 | AF71: =-((Tabel1[[#This Row],[Jaarsalaris]]-18475)*9.4%)/12 -> -314.758295 | AG71: =IF(Tabel1[[#This Row],[Jaarsalaris]]<=28406, 3068, IF(AD71<=76817, 3068 - 0.06337 * (AD71 - 28406), 0))/12 -> 95.91665278 | AH71: =Tabel1[[#This Row],[Bruto maandsalaris]]+Tabel1[[#This Row],[inhouding premie]]+Tabel1[[#This Row],[Inhouding pensioen]] -> 4193.702049 | AI71: =-IF(Tabel1[[#This Row],[Belastbaar maandsalaris]]*12<=38441, Tabel1[[#This Row],[Belastbaar maandsalaris]]*0.3582, IF(Tabel1[[#This Row],[Belastbaar maandsalaris]]*12<=76817, (38441*0.3582 + (Tabel1[[#This Row],[Belastbaar maandsalaris]]*12-38441)*0.3748)/12, (38441*0.3582 + (76817-38441)*0.3748 + (Tabel1[[#This Row],[Belastbaar maandsalaris]]*12-76817)*0.495)/12))+Tabel1[[#This Row],[Heffingskorting ]] -> -1422.706159 | AJ71: =Lonen!C15/(40*4.33) -> 19.09237875
A72: EMP00035 | B72: Olivier | D72: Cornelisse | E72: Olivier Cornelisse | F72: M | G72: 1986-10-26 | H72: =(TODAY()-Tabel1[[#This Row],[Geboortedatum]])/365.25 -> 38.6201232 | I72: Waterstraat 116 | J72: 3738 EF | K72: Bunnik | L72: Commercie en financïen | M72: Marketing medewerker | N72: 2020-10-23 | O72: =(TODAY()-Tabel1[[#This Row],[Datum in dienst]])/365.25 -> 4.62696783 | P72: Vast | Q72: =ROUNDDOWN(Tabel1[[#This Row],[Aantal dienstjaren]],0) -> 4 | R72: 2025-10-23 | S72: 2 | T72: 0.6 | U72: =40*Tabel1[[#This Row],[FTE]] -> 24 | V72: UTA 4 | W72: =(MIN(Lonen!C15*(Tabel1[[#This Row],[Jaarlijkse salarisstijging]])^Tabel1[[#This Row],[Aantal dienstjaren]],Lonen!D15))/174.08 -> 21.77992985 | X72: =(MIN(Lonen!C15*(personeelsoverzicht!Y2)^Tabel1[[#This Row],[Afgeronde dienstjaren]],Lonen!D15))*Tabel1[[#This Row],[FTE]] -> 2233.09952 | Y72: 1.03 | Z72: =Tabel1[[#This Row],[Bruto maandsalaris]]*8% -> 178.6479616 | AB72: NVT | AC72: =ABS(IF(Tabel1[[#This Row],[Jaarsalaris]]<=12169,0.08053*Tabel1[[#This Row],[Jaarsalaris]],IF(Tabel1[[#This Row],[Jaarsalaris]]<=26288,980+0.3003*(Tabel1[[#This Row],[Jaarsalaris]]-12169),IF(Tabel1[[#This Row],[Jaarsalaris]]<=43071,5220+0.02258*(Tabel1[[#This Row],[Jaarsalaris]]-26288),IF(Tabel1[[#This Row],[Jaarsalaris]]<=129078,5599-0.0651*(Tabel1[[#This Row],[Jaarsalaris]]-43071),0)))))/12 -> 440.1600828 | AD72: =Tabel1[[#This Row],[Bruto maandsalaris]]*13 -> 29030.29376 | AE72: =-Tabel1[[#This Row],[Bruto maandsalaris]]*0.08% -> -1.786479616 | AF72: =-((Tabel1[[#This Row],[Jaarsalaris]]-18475)*9.4%)/12 -> -82.68313443 | AG72: =IF(Tabel1[[#This Row],[Jaarsalaris]]<=28406, 3068, IF(AD72<=76817, 3068 - 0.06337 * (AD72 - 28406), 0))/12 -> 252.3698754 | AH72: =Tabel1[[#This Row],[Bruto maandsalaris]]+Tabel1[[#This Row],[inhouding premie]]+Tabel1[[#This Row],[Inhouding pensioen]] -> 2148.629906 | AI72: =-IF(Tabel1[[#This Row],[Belastbaar maandsalaris]]*12<=38441, Tabel1[[#This Row],[Belastbaar maandsalaris]]*0.3582, IF(Tabel1[[#This Row],[Belastbaar maandsalaris]]*12<=76817, (38441*0.3582 + (Tabel1[[#This Row],[Belastbaar maandsalaris]]*12-38441)*0.3748)/12, (38441*0.3582 + (76817-38441)*0.3748 + (Tabel1[[#This Row],[Belastbaar maandsalaris]]*12-76817)*0.495)/12))+Tabel1[[#This Row],[Heffingskorting ]] -> -517.2693568 | AJ72: =Lonen!C15/(40*4.33) -> 19.09237875
A73: EMP00039 | B73: Luc | D73: Estey | E73: Luc Estey | F73: M | G73: 1998-07-14 | H73: =(TODAY()-Tabel1[[#This Row],[Geboortedatum]])/365.25 -> 26.90485969 | I73: Prins Hendriklaan 72 | J73: 3547 AB | K73: IJsselstein | L73: Commercie en financïen | M73: Marketing medewerker | N73: 2020-10-13 | O73: =(TODAY()-Tabel1[[#This Row],[Datum in dienst]])/365.25 -> 4.654346338 | P73: Vast | Q73: =ROUNDDOWN(Tabel1[[#This Row],[Aantal dienstjaren]],0) -> 4 | R73: Onbepaalde tijd | S73: 3 | T73: 1 | U73: =40*Tabel1[[#This Row],[FTE]] -> 40 | V73: UTA 4 | W73: =(MIN(Lonen!C15*(Tabel1[[#This Row],[Jaarlijkse salarisstijging]])^Tabel1[[#This Row],[Aantal dienstjaren]],Lonen!D15))/174.08 -> 21.79756296 | X73: =(MIN(Lonen!C15*(personeelsoverzicht!Y2)^Tabel1[[#This Row],[Afgeronde dienstjaren]],Lonen!D15))*Tabel1[[#This Row],[FTE]] -> 3721.832533 | Y73: 1.03 | Z73: =Tabel1[[#This Row],[Bruto maandsalaris]]*8% -> 297.7466026 | AB73: NVT | AC73: =ABS(IF(Tabel1[[#This Row],[Jaarsalaris]]<=12169,0.08053*Tabel1[[#This Row],[Jaarsalaris]],IF(Tabel1[[#This Row],[Jaarsalaris]]<=26288,980+0.3003*(Tabel1[[#This Row],[Jaarsalaris]]-12169),IF(Tabel1[[#This Row],[Jaarsalaris]]<=43071,5220+0.02258*(Tabel1[[#This Row],[Jaarsalaris]]-26288),IF(Tabel1[[#This Row],[Jaarsalaris]]<=129078,5599-0.0651*(Tabel1[[#This Row],[Jaarsalaris]]-43071),0)))))/12 -> 437.7612689 | AD73: =Tabel1[[#This Row],[Bruto maandsalaris]]*13 -> 48383.82293 | AE73: =-Tabel1[[#This Row],[Bruto maandsalaris]]*0.08% -> -2.977466026 | AF73: =-((Tabel1[[#This Row],[Jaarsalaris]]-18475)*9.4%)/12 -> -234.2857796 | AG73: =IF(Tabel1[[#This Row],[Jaarsalaris]]<=28406, 3068, IF(AD73<=76817, 3068 - 0.06337 * (AD73 - 28406), 0))/12 -> 150.1671134 | AH73: =Tabel1[[#This Row],[Bruto maandsalaris]]+Tabel1[[#This Row],[inhouding premie]]+Tabel1[[#This Row],[Inhouding pensioen]] -> 3484.569287 | AI73: =-IF(Tabel1[[#This Row],[Belastbaar maandsalaris]]*12<=38441, Tabel1[[#This Row],[Belastbaar maandsalaris]]*0.3582, IF(Tabel1[[#This Row],[Belastbaar maandsalaris]]*12<=76817, (38441*0.3582 + (Tabel1[[#This Row],[Belastbaar maandsalaris]]*12-38441)*0.3748)/12, (38441*0.3582 + (76817-38441)*0.3748 + (Tabel1[[#This Row],[Belastbaar maandsalaris]]*12-76817)*0.495)/12))+Tabel1[[#This Row],[Heffingskorting ]] -> -1102.672739 | AJ73: =Lonen!C15/(40*4.33) -> 19.09237875
A74: EMP00091 | B74: Erik | D74: Pieters | E74: Erik Pieters | F74: M | G74: 1988-11-04 | H74: =(TODAY()-Tabel1[[#This Row],[Geboortedatum]])/365.25 -> 36.59411362 | I74: Beatrixstraat 43 | J74: 3780 GH | K74: Driebergen-Rijsenburg | L74: Uitvoering | M74: Mechanisch stamper | N74: 2018-06-08 | O74: =(TODAY()-Tabel1[[#This Row],[Datum in dienst]])/365.25 -> 7.003422313 | P74: Vast | Q74: =ROUNDDOWN(Tabel1[[#This Row],[Aantal dienstjaren]],0) -> 7 | R74: Onbepaalde tijd | S74: 3 | T74: 0.9 | U74: =40*Tabel1[[#This Row],[FTE]] -> 36 | V74: B | W74: =MIN(Lonen!C4*(Tabel1[[#This Row],[Jaarlijkse salarisstijging]])^Tabel1[[#This Row],[Afgeronde dienstjaren]],Lonen!E4) -> 21.54739012 | X74: =(MIN(Lonen!C4*(Tabel1[[#This Row],[Jaarlijkse salarisstijging]])^Tabel1[[#This Row],[Afgeronde dienstjaren]],Lonen!E4)*174.08)*Tabel1[[#This Row],[FTE]] -> 3375.872705 | Y74: 1.03 | Z74: =Tabel1[[#This Row],[Bruto maandsalaris]]*8% -> 270.0698164 | AB74: NVT | AC74: =ABS(IF(Tabel1[[#This Row],[Jaarsalaris]]<=12169,0.08053*Tabel1[[#This Row],[Jaarsalaris]],IF(Tabel1[[#This Row],[Jaarsalaris]]<=26288,980+0.3003*(Tabel1[[#This Row],[Jaarsalaris]]-12169),IF(Tabel1[[#This Row],[Jaarsalaris]]<=43071,5220+0.02258*(Tabel1[[#This Row],[Jaarsalaris]]-26288),IF(Tabel1[[#This Row],[Jaarsalaris]]<=129078,5599-0.0651*(Tabel1[[#This Row],[Jaarsalaris]]-43071),0)))))/12 -> 462.1600858 | AD74: =Tabel1[[#This Row],[Bruto maandsalaris]]*13 -> 43886.34517 | AE74: =-Tabel1[[#This Row],[Bruto maandsalaris]]*0.08% -> -2.700698164 | AF74: =-((Tabel1[[#This Row],[Jaarsalaris]]-18475)*9.4%)/12 -> -199.0555371 | AG74: =IF(Tabel1[[#This Row],[Jaarsalaris]]<=28406, 3068, IF(AD74<=76817, 3068 - 0.06337 * (AD74 - 28406), 0))/12 -> 173.9175439 | AH74: =Tabel1[[#This Row],[Bruto maandsalaris]]+Tabel1[[#This Row],[inhouding premie]]+Tabel1[[#This Row],[Inhouding pensioen]] -> 3174.11647 | AI74: =-IF(Tabel1[[#This Row],[Belastbaar maandsalaris]]*12<=38441, Tabel1[[#This Row],[Belastbaar maandsalaris]]*0.3582, IF(Tabel1[[#This Row],[Belastbaar maandsalaris]]*12<=76817, (38441*0.3582 + (Tabel1[[#This Row],[Belastbaar maandsalaris]]*12-38441)*0.3748)/12, (38441*0.3582 + (76817-38441)*0.3748 + (Tabel1[[#This Row],[Belastbaar maandsalaris]]*12-76817)*0.495)/12))+Tabel1[[#This Row],[Heffingskorting ]] -> -963.0509756 | AJ74: =Lonen!C4 -> 17.52
A75: EMP00103 | B75: Jan | D75: Vorst | E75: Jan Vorst | F75: M | G75: 1966-01-08 | H75: =(TODAY()-Tabel1[[#This Row],[Geboortedatum]])/365.25 -> 59.41683778 | I75: Sportlaan 8 | J75: 3633 CD | K75: Vianen | L75: Uitvoering | M75: Mechanisch stamper | N75: 2013-03-03 | O75: =(TODAY()-Tabel1[[#This Row],[Datum in dienst]])/365.25 -> 12.26830938 | P75: Vast | Q75: =ROUNDDOWN(Tabel1[[#This Row],[Aantal dienstjaren]],0) -> 12 | R75: Onbepaalde tijd | S75: 3 | T75: 0.8 | U75: =40*Tabel1[[#This Row],[FTE]] -> 32 | V75: B | W75: =MIN(Lonen!C4*(Tabel1[[#This Row],[Jaarlijkse salarisstijging]])^Tabel1[[#This Row],[Afgeronde dienstjaren]],Lonen!E4) -> 22.776 | X75: =(MIN(Lonen!C4*(Tabel1[[#This Row],[Jaarlijkse salarisstijging]])^Tabel1[[#This Row],[Afgeronde dienstjaren]],Lonen!E4)*174.08)*Tabel1[[#This Row],[FTE]] -> 3171.876864 | Y75: 1.03 | Z75: =Tabel1[[#This Row],[Bruto maandsalaris]]*8% -> 253.7501491 | AB75: NVT | AC75: =ABS(IF(Tabel1[[#This Row],[Jaarsalaris]]<=12169,0.08053*Tabel1[[#This Row],[Jaarsalaris]],IF(Tabel1[[#This Row],[Jaarsalaris]]<=26288,980+0.3003*(Tabel1[[#This Row],[Jaarsalaris]]-12169),IF(Tabel1[[#This Row],[Jaarsalaris]]<=43071,5220+0.02258*(Tabel1[[#This Row],[Jaarsalaris]]-26288),IF(Tabel1[[#This Row],[Jaarsalaris]]<=129078,5599-0.0651*(Tabel1[[#This Row],[Jaarsalaris]]-43071),0)))))/12 -> 463.1241412 | AD75: =Tabel1[[#This Row],[Bruto maandsalaris]]*13 -> 41234.39923 | AE75: =-Tabel1[[#This Row],[Bruto maandsalaris]]*0.08% -> -2.537501491 | AF75: =-((Tabel1[[#This Row],[Jaarsalaris]]-18475)*9.4%)/12 -> -178.2819607 | AG75: =IF(Tabel1[[#This Row],[Jaarsalaris]]<=28406, 3068, IF(AD75<=76817, 3068 - 0.06337 * (AD75 - 28406), 0))/12 -> 187.9220284 | AH75: =Tabel1[[#This Row],[Bruto maandsalaris]]+Tabel1[[#This Row],[inhouding premie]]+Tabel1[[#This Row],[Inhouding pensioen]] -> 2991.057402 | AI75: =-IF(Tabel1[[#This Row],[Belastbaar maandsalaris]]*12<=38441, Tabel1[[#This Row],[Belastbaar maandsalaris]]*0.3582, IF(Tabel1[[#This Row],[Belastbaar maandsalaris]]*12<=76817, (38441*0.3582 + (Tabel1[[#This Row],[Belastbaar maandsalaris]]*12-38441)*0.3748)/12, (38441*0.3582 + (76817-38441)*0.3748 + (Tabel1[[#This Row],[Belastbaar maandsalaris]]*12-76817)*0.495)/12))+Tabel1[[#This Row],[Heffingskorting ]] -> -883.474733 | AJ75: =Lonen!C4 -> 17.52
A76: EMP00063 | B76: Ryan | C76: de | D76: Vries | E76: Ryan de Vries | F76: M | G76: 1966-02-01 | H76: =(TODAY()-Tabel1[[#This Row],[Geboortedatum]])/365.25 -> 59.35112936 | I76: Parkweg 168 | J76: 3750 AB | K76: Bilthoven | L76: Voorbereiding | M76: Planner | N76: 2016-01-07 | O76: =(TODAY()-Tabel1[[#This Row],[Datum in dienst]])/365.25 -> 9.420944559 | P76: Vast | Q76: =ROUNDDOWN(Tabel1[[#This Row],[Aantal dienstjaren]],0) -> 9 | R76: Onbepaalde tijd | S76: 3 | T76: 1 | U76: =40*Tabel1[[#This Row],[FTE]] -> 40 | V76: UTA 4 | W76: =(MIN(Lonen!C15*(Tabel1[[#This Row],[Jaarlijkse salarisstijging]])^Tabel1[[#This Row],[Aantal dienstjaren]],Lonen!D15))/174.08 -> 25.09561443 | X76: =(MIN(Lonen!C15*(personeelsoverzicht!Y2)^Tabel1[[#This Row],[Afgeronde dienstjaren]],Lonen!D15))*Tabel1[[#This Row],[FTE]] -> 4314.623964 | Y76: 1.03 | Z76: =Tabel1[[#This Row],[Bruto maandsalaris]]*8% -> 345.1699171 | AB76: NVT | AC76: =ABS(IF(Tabel1[[#This Row],[Jaarsalaris]]<=12169,0.08053*Tabel1[[#This Row],[Jaarsalaris]],IF(Tabel1[[#This Row],[Jaarsalaris]]<=26288,980+0.3003*(Tabel1[[#This Row],[Jaarsalaris]]-12169),IF(Tabel1[[#This Row],[Jaarsalaris]]<=43071,5220+0.02258*(Tabel1[[#This Row],[Jaarsalaris]]-26288),IF(Tabel1[[#This Row],[Jaarsalaris]]<=129078,5599-0.0651*(Tabel1[[#This Row],[Jaarsalaris]]-43071),0)))))/12 -> 395.9546533 | AD76: =Tabel1[[#This Row],[Bruto maandsalaris]]*13 -> 56090.11154 | AE76: =-Tabel1[[#This Row],[Bruto maandsalaris]]*0.08% -> -3.451699171 | AF76: =-((Tabel1[[#This Row],[Jaarsalaris]]-18475)*9.4%)/12 -> -294.651707 | AG76: =IF(Tabel1[[#This Row],[Jaarsalaris]]<=28406, 3068, IF(AD76<=76817, 3068 - 0.06337 * (AD76 - 28406), 0))/12 -> 109.4714877 | AH76: =Tabel1[[#This Row],[Bruto maandsalaris]]+Tabel1[[#This Row],[inhouding premie]]+Tabel1[[#This Row],[Inhouding pensioen]] -> 4016.520558 | AI76: =-IF(Tabel1[[#This Row],[Belastbaar maandsalaris]]*12<=38441, Tabel1[[#This Row],[Belastbaar maandsalaris]]*0.3582, IF(Tabel1[[#This Row],[Belastbaar maandsalaris]]*12<=76817, (38441*0.3582 + (Tabel1[[#This Row],[Belastbaar maandsalaris]]*12-38441)*0.3748)/12, (38441*0.3582 + (76817-38441)*0.3748 + (Tabel1[[#This Row],[Belastbaar maandsalaris]]*12-76817)*0.495)/12))+Tabel1[[#This Row],[Heffingskorting ]] -> -1342.743701 | AJ76: =Lonen!C15/(40*4.33) -> 19.09237875
A77: EMP00097 | B77: Lucas | D77: Mensink | E77: Lucas Mensink | F77: M | G77: 1969-03-17 | H77: =(TODAY()-Tabel1[[#This Row],[Geboortedatum]])/365.25 -> 56.22997947 | I77: Sportlaan 64 | J77: 3941 IJ | K77: Vianen | L77: Voorbereiding | M77: Planner | N77: 2006-09-21 | O77: =(TODAY()-Tabel1[[#This Row],[Datum in dienst]])/365.25 -> 18.71594798 | P77: Vast | Q77: =ROUNDDOWN(Tabel1[[#This Row],[Aantal dienstjaren]],0) -> 18 | R77: Onbepaalde tijd | S77: 3 | T77: 1 | U77: =40*Tabel1[[#This Row],[FTE]] -> 40 | V77: UTA 4 | W77: =(MIN(Lonen!C15*(Tabel1[[#This Row],[Jaarlijkse salarisstijging]])^Tabel1[[#This Row],[Aantal dienstjaren]],Lonen!D15))/174.08 -> 25.91951976 | X77: =(MIN(Lonen!C15*(Tabel1[[#This Row],[Jaarlijkse salarisstijging]])^Tabel1[[#This Row],[Aantal dienstjaren]],Lonen!D15))*Tabel1[[#This Row],[FTE]] -> 4512.07 | Y77: 1.03 | Z77: =Tabel1[[#This Row],[Bruto maandsalaris]]*8% -> 360.9656 | AB77: NVT | AC77: =ABS(IF(Tabel1[[#This Row],[Jaarsalaris]]<=12169,0.08053*Tabel1[[#This Row],[Jaarsalaris]],IF(Tabel1[[#This Row],[Jaarsalaris]]<=26288,980+0.3003*(Tabel1[[#This Row],[Jaarsalaris]]-12169),IF(Tabel1[[#This Row],[Jaarsalaris]]<=43071,5220+0.02258*(Tabel1[[#This Row],[Jaarsalaris]]-26288),IF(Tabel1[[#This Row],[Jaarsalaris]]<=129078,5599-0.0651*(Tabel1[[#This Row],[Jaarsalaris]]-43071),0)))))/12 -> 382.0297716 | AD77: =Tabel1[[#This Row],[Bruto maandsalaris]]*13 -> 58656.91 | AE77: =-Tabel1[[#This Row],[Bruto maandsalaris]]*0.08% -> -3.609656 | AF77: =-((Tabel1[[#This Row],[Jaarsalaris]]-18475)*9.4%)/12 -> -314.758295 | AG77: =IF(Tabel1[[#This Row],[Jaarsalaris]]<=28406, 3068, IF(AD77<=76817, 3068 - 0.06337 * (AD77 - 28406), 0))/12 -> 95.91665278 | AH77: =Tabel1[[#This Row],[Bruto maandsalaris]]+Tabel1[[#This Row],[inhouding premie]]+Tabel1[[#This Row],[Inhouding pensioen]] -> 4193.702049 | AI77: =-IF(Tabel1[[#This Row],[Belastbaar maandsalaris]]*12<=38441, Tabel1[[#This Row],[Belastbaar maandsalaris]]*0.3582, IF(Tabel1[[#This Row],[Belastbaar maandsalaris]]*12<=76817, (38441*0.3582 + (Tabel1[[#This Row],[Belastbaar maandsalaris]]*12-38441)*0.3748)/12, (38441*0.3582 + (76817-38441)*0.3748 + (Tabel1[[#This Row],[Belastbaar maandsalaris]]*12-76817)*0.495)/12))+Tabel1[[#This Row],[Heffingskorting ]] -> -1422.706159 | AJ77: =Lonen!C15/(40*4.33) -> 19.09237875
A78: EMP00077 | B78: Bram | D78: Dijkstra | E78: Bram Dijkstra | F78: M | G78: 1989-02-10 | H78: =(TODAY()-Tabel1[[#This Row],[Geboortedatum]])/365.25 -> 36.32580424 | I78: Kastanjelaan 98 | J78: 3658 AB | K78: De Bilt | L78: Uitvoering | M78: Projectleider | N78: 2020-06-13 | O78: =(TODAY()-Tabel1[[#This Row],[Datum in dienst]])/365.25 -> 4.988364134 | P78: Vast | Q78: =ROUNDDOWN(Tabel1[[#This Row],[Aantal dienstjaren]],0) -> 4 | R78: Onbepaalde tijd | S78: 2 | T78: 1 | U78: =40*Tabel1[[#This Row],[FTE]] -> 40 | V78: N.v.t. - boven | W78: =(MIN(Lonen!C18*(Tabel1[[#This Row],[Jaarlijkse salarisstijging]])^Tabel1[[#This Row],[Aantal dienstjaren]],Lonen!D18))/174.08 -> 36.61428543 | X78: =(MIN(Lonen!C18*(Tabel1[[#This Row],[Jaarlijkse salarisstijging]])^Tabel1[[#This Row],[Aantal dienstjaren]],Lonen!D18))*Tabel1[[#This Row],[FTE]] -> 6373.814807 | Y78: 1.03 | Z78: =Tabel1[[#This Row],[Bruto maandsalaris]]*8% -> 509.9051846 | AB78: NVT | AC78: =ABS(IF(Tabel1[[#This Row],[Jaarsalaris]]<=12169,0.08053*Tabel1[[#This Row],[Jaarsalaris]],IF(Tabel1[[#This Row],[Jaarsalaris]]<=26288,980+0.3003*(Tabel1[[#This Row],[Jaarsalaris]]-12169),IF(Tabel1[[#This Row],[Jaarsalaris]]<=43071,5220+0.02258*(Tabel1[[#This Row],[Jaarsalaris]]-26288),IF(Tabel1[[#This Row],[Jaarsalaris]]<=129078,5599-0.0651*(Tabel1[[#This Row],[Jaarsalaris]]-43071),0)))))/12 -> 250.730219 | AD78: =Tabel1[[#This Row],[Bruto maandsalaris]]*13 -> 82859.5925 | AE78: =-Tabel1[[#This Row],[Bruto maandsalaris]]*0.08% -> -5.099051846 | AF78: =-((Tabel1[[#This Row],[Jaarsalaris]]-18475)*9.4%)/12 -> -504.3459745 | AG78: =IF(Tabel1[[#This Row],[Jaarsalaris]]<=28406, 3068, IF(AD78<=76817, 3068 - 0.06337 * (AD78 - 28406), 0))/12 -> 0 | AH78: =Tabel1[[#This Row],[Bruto maandsalaris]]+Tabel1[[#This Row],[inhouding premie]]+Tabel1[[#This Row],[Inhouding pensioen]] -> 5864.369781 | AI78: =-IF(Tabel1[[#This Row],[Belastbaar maandsalaris]]*12<=38441, Tabel1[[#This Row],[Belastbaar maandsalaris]]*0.3582, IF(Tabel1[[#This Row],[Belastbaar maandsalaris]]*12<=76817, (38441*0.3582 + (Tabel1[[#This Row],[Belastbaar maandsalaris]]*12-38441)*0.3748)/12, (38441*0.3582 + (76817-38441)*0.3748 + (Tabel1[[#This Row],[Belastbaar maandsalaris]]*12-76817)*0.495)/12))+Tabel1[[#This Row],[Heffingskorting ]] -> -2144.789077
A79: EMP00088 | B79: Jan | D79: Mulder | E79: Jan Mulder | F79: M | G79: 1977-09-24 | H79: =(TODAY()-Tabel1[[#This Row],[Geboortedatum]])/365.25 -> 47.70704997 | I79: Rijnlaan 166 | J79: 3753 CD | K79: Woerden | L79: Uitvoering | M79: Projectleider | N79: 2019-12-18 | O79: =(TODAY()-Tabel1[[#This Row],[Datum in dienst]])/365.25 -> 5.475701574 | P79: Vast | Q79: =ROUNDDOWN(Tabel1[[#This Row],[Aantal dienstjaren]],0) -> 5 | R79: Onbepaalde tijd | S79: 2 | T79: 1 | U79: =40*Tabel1[[#This Row],[FTE]] -> 40 | V79: N.v.t. - boven | W79: =(MIN(Lonen!C18*(Tabel1[[#This Row],[Jaarlijkse salarisstijging]])^Tabel1[[#This Row],[Aantal dienstjaren]],Lonen!D18))/174.08 -> 37.14553545 | X79: =(MIN(Lonen!C18*(Tabel1[[#This Row],[Jaarlijkse salarisstijging]])^Tabel1[[#This Row],[Aantal dienstjaren]],Lonen!D18))*Tabel1[[#This Row],[FTE]] -> 6466.29481 | Y79: 1.03 | Z79: =Tabel1[[#This Row],[Bruto maandsalaris]]*8% -> 517.3035848 | AB79: NVT | AC79: =ABS(IF(Tabel1[[#This Row],[Jaarsalaris]]<=12169,0.08053*Tabel1[[#This Row],[Jaarsalaris]],IF(Tabel1[[#This Row],[Jaarsalaris]]<=26288,980+0.3003*(Tabel1[[#This Row],[Jaarsalaris]]-12169),IF(Tabel1[[#This Row],[Jaarsalaris]]<=43071,5220+0.02258*(Tabel1[[#This Row],[Jaarsalaris]]-26288),IF(Tabel1[[#This Row],[Jaarsalaris]]<=129078,5599-0.0651*(Tabel1[[#This Row],[Jaarsalaris]]-43071),0)))))/12 -> 244.2080668 | AD79: =Tabel1[[#This Row],[Bruto maandsalaris]]*13 -> 84061.83254 | AE79: =-Tabel1[[#This Row],[Bruto maandsalaris]]*0.08% -> -5.173035848 | AF79: =-((Tabel1[[#This Row],[Jaarsalaris]]-18475)*9.4%)/12 -> -513.7635215 | AG79: =IF(Tabel1[[#This Row],[Jaarsalaris]]<=28406, 3068, IF(AD79<=76817, 3068 - 0.06337 * (AD79 - 28406), 0))/12 -> 0 | AH79: =Tabel1[[#This Row],[Bruto maandsalaris]]+Tabel1[[#This Row],[inhouding premie]]+Tabel1[[#This Row],[Inhouding pensioen]] -> 5947.358253 | AI79: =-IF(Tabel1[[#This Row],[Belastbaar maandsalaris]]*12<=38441, Tabel1[[#This Row],[Belastbaar maandsalaris]]*0.3582, IF(Tabel1[[#This Row],[Belastbaar maandsalaris]]*12<=76817, (38441*0.3582 + (Tabel1[[#This Row],[Belastbaar maandsalaris]]*12-38441)*0.3748)/12, (38441*0.3582 + (76817-38441)*0.3748 + (Tabel1[[#This Row],[Belastbaar maandsalaris]]*12-76817)*0.495)/12))+Tabel1[[#This Row],[Heffingskorting ]] -> -2175.893157
A80: EMP00096 | B80: Sander | D80: Vermeer | E80: Sander Vermeer | F80: M | G80: 1983-06-21 | H80: =(TODAY()-Tabel1[[#This Row],[Geboortedatum]])/365.25 -> 41.96851472 | I80: Waterstraat 191 | J80: 3480 IJ | K80: De Bilt | L80: Uitvoering | M80: Projectleider | N80: 2010-11-22 | O80: =(TODAY()-Tabel1[[#This Row],[Datum in dienst]])/365.25 -> 14.54620123 | P80: Vast | Q80: =ROUNDDOWN(Tabel1[[#This Row],[Aantal dienstjaren]],0) -> 14 | R80: Onbepaalde tijd | S80: 3 | T80: 1 | U80: =40*Tabel1[[#This Row],[FTE]] -> 40 | V80: N.v.t. - boven | W80: =(MIN(Lonen!C18*(Tabel1[[#This Row],[Jaarlijkse salarisstijging]])^Tabel1[[#This Row],[Aantal dienstjaren]],Lonen!D18))/174.08 -> 39.23468437 | X80: =(MIN(Lonen!C18*(Tabel1[[#This Row],[Jaarlijkse salarisstijging]])^Tabel1[[#This Row],[Aantal dienstjaren]],Lonen!D18))*Tabel1[[#This Row],[FTE]] -> 6829.973855 | Y80: 1.015 | Z80: =Tabel1[[#This Row],[Bruto maandsalaris]]*8% -> 546.3979084 | AB80: NVT | AC80: =ABS(IF(Tabel1[[#This Row],[Jaarsalaris]]<=12169,0.08053*Tabel1[[#This Row],[Jaarsalaris]],IF(Tabel1[[#This Row],[Jaarsalaris]]<=26288,980+0.3003*(Tabel1[[#This Row],[Jaarsalaris]]-12169),IF(Tabel1[[#This Row],[Jaarsalaris]]<=43071,5220+0.02258*(Tabel1[[#This Row],[Jaarsalaris]]-26288),IF(Tabel1[[#This Row],[Jaarsalaris]]<=129078,5599-0.0651*(Tabel1[[#This Row],[Jaarsalaris]]-43071),0)))))/12 -> 218.5596022 | AD80: =Tabel1[[#This Row],[Bruto maandsalaris]]*13 -> 88789.66012 | AE80: =-Tabel1[[#This Row],[Bruto maandsalaris]]*0.08% -> -5.463979084 | AF80: =-((Tabel1[[#This Row],[Jaarsalaris]]-18475)*9.4%)/12 -> -550.7981709 | AG80: =IF(Tabel1[[#This Row],[Jaarsalaris]]<=28406, 3068, IF(AD80<=76817, 3068 - 0.06337 * (AD80 - 28406), 0))/12 -> 0 | AH80: =Tabel1[[#This Row],[Bruto maandsalaris]]+Tabel1[[#This Row],[inhouding premie]]+Tabel1[[#This Row],[Inhouding pensioen]] -> 6273.711705 | AI80: =-IF(Tabel1[[#This Row],[Belastbaar maandsalaris]]*12<=38441, Tabel1[[#This Row],[Belastbaar maandsalaris]]*0.3582, IF(Tabel1[[#This Row],[Belastbaar maandsalaris]]*12<=76817, (38441*0.3582 + (Tabel1[[#This Row],[Belastbaar maandsalaris]]*12-38441)*0.3748)/12, (38441*0.3582 + (76817-38441)*0.3748 + (Tabel1[[#This Row],[Belastbaar maandsalaris]]*12-76817)*0.495)/12))+Tabel1[[#This Row],[Heffingskorting ]] -> -2298.21043
A81: EMP00017 | B81: Jesper | C81: van | D81: Waas | E81: Jesper van Waas | F81: M | G81: 1969-09-03 | H81: =(TODAY()-Tabel1[[#This Row],[Geboortedatum]])/365.25 -> 55.76454483 | I81: Prins Hendriklaan 111 | J81: 3613 GH | K81: Soest | L81: Commercie en financïen | M81: Salarisadministrateur | N81: 2022-06-21 | O81: =(TODAY()-Tabel1[[#This Row],[Datum in dienst]])/365.25 -> 2.967830253 | P81: Tijdelijk | Q81: =ROUNDDOWN(Tabel1[[#This Row],[Aantal dienstjaren]],0) -> 2 | R81: 2025-06-21 | S81: 3 | T81: 1 | U81: =40*Tabel1[[#This Row],[FTE]] -> 40 | V81: UTA 5 | W81: =(MIN(Lonen!C16*(Tabel1[[#This Row],[Jaarlijkse salarisstijging]])^Tabel1[[#This Row],[Aantal dienstjaren]],Lonen!D16))/174.08 -> 23.91034692 | X81: =(MIN(Lonen!C16*(Tabel1[[#This Row],[Jaarlijkse salarisstijging]])^Tabel1[[#This Row],[Aantal dienstjaren]],Lonen!D16))*Tabel1[[#This Row],[FTE]] -> 4162.313192 | Y81: 1.03 | Z81: =Tabel1[[#This Row],[Bruto maandsalaris]]*8% -> 332.9850554 | AB81: NVT | AC81: =ABS(IF(Tabel1[[#This Row],[Jaarsalaris]]<=12169,0.08053*Tabel1[[#This Row],[Jaarsalaris]],IF(Tabel1[[#This Row],[Jaarsalaris]]<=26288,980+0.3003*(Tabel1[[#This Row],[Jaarsalaris]]-12169),IF(Tabel1[[#This Row],[Jaarsalaris]]<=43071,5220+0.02258*(Tabel1[[#This Row],[Jaarsalaris]]-26288),IF(Tabel1[[#This Row],[Jaarsalaris]]<=129078,5599-0.0651*(Tabel1[[#This Row],[Jaarsalaris]]-43071),0)))))/12 -> 406.6963705 | AD81: =Tabel1[[#This Row],[Bruto maandsalaris]]*13 -> 54110.0715 | AE81: =-Tabel1[[#This Row],[Bruto maandsalaris]]*0.08% -> -3.329850554 | AF81: =-((Tabel1[[#This Row],[Jaarsalaris]]-18475)*9.4%)/12 -> -279.1413934 | AG81: =IF(Tabel1[[#This Row],[Jaarsalaris]]<=28406, 3068, IF(AD81<=76817, 3068 - 0.06337 * (AD81 - 28406), 0))/12 -> 119.9277491 | AH81: =Tabel1[[#This Row],[Bruto maandsalaris]]+Tabel1[[#This Row],[inhouding premie]]+Tabel1[[#This Row],[Inhouding pensioen]] -> 3879.841948 | AI81: =-IF(Tabel1[[#This Row],[Belastbaar maandsalaris]]*12<=38441, Tabel1[[#This Row],[Belastbaar maandsalaris]]*0.3582, IF(Tabel1[[#This Row],[Belastbaar maandsalaris]]*12<=76817, (38441*0.3582 + (Tabel1[[#This Row],[Belastbaar maandsalaris]]*12-38441)*0.3748)/12, (38441*0.3582 + (76817-38441)*0.3748 + (Tabel1[[#This Row],[Belastbaar maandsalaris]]*12-76817)*0.495)/12))+Tabel1[[#This Row],[Heffingskorting ]] -> -1281.060296 | AJ81: =Lonen!C16/(40*4.33) -> 22.01345266
A82: EMP00082 | B82: Daan | D82: Koning | E82: Daan Koning | F82: M | G82: 1972-03-26 | H82: =(TODAY()-Tabel1[[#This Row],[Geboortedatum]])/365.25 -> 53.20465435 | I82: Laan van Vollenhove 156 | J82: 3485 EF | K82: Bilthoven | L82: Staf | M82: Secretares | N82: 2021-07-18 | O82: =(TODAY()-Tabel1[[#This Row],[Datum in dienst]])/365.25 -> 3.893223819 | P82: Vast | Q82: =ROUNDDOWN(Tabel1[[#This Row],[Aantal dienstjaren]],0) -> 3 | R82: Onbepaalde tijd | S82: 3 | T82: 0.8 | U82: =40*Tabel1[[#This Row],[FTE]] -> 32 | V82: UTA 3 | W82: =(MIN(Lonen!C14*(Tabel1[[#This Row],[Jaarlijkse salarisstijging]])^Tabel1[[#This Row],[Aantal dienstjaren]],Lonen!D14))/174.08 -> 18.81007368 | X82: =(MIN(Lonen!C15*(personeelsoverzicht!Y2)^Tabel1[[#This Row],[Afgeronde dienstjaren]],Lonen!D15))*Tabel1[[#This Row],[FTE]] -> 2890.743715 | Y82: 1.03 | Z82: =Tabel1[[#This Row],[Bruto maandsalaris]]*8% -> 231.2594972 | AB82: NVT | AC82: =ABS(IF(Tabel1[[#This Row],[Jaarsalaris]]<=12169,0.08053*Tabel1[[#This Row],[Jaarsalaris]],IF(Tabel1[[#This Row],[Jaarsalaris]]<=26288,980+0.3003*(Tabel1[[#This Row],[Jaarsalaris]]-12169),IF(Tabel1[[#This Row],[Jaarsalaris]]<=43071,5220+0.02258*(Tabel1[[#This Row],[Jaarsalaris]]-26288),IF(Tabel1[[#This Row],[Jaarsalaris]]<=129078,5599-0.0651*(Tabel1[[#This Row],[Jaarsalaris]]-43071),0)))))/12 -> 456.2471558 | AD82: =Tabel1[[#This Row],[Bruto maandsalaris]]*13 -> 37579.66829 | AE82: =-Tabel1[[#This Row],[Bruto maandsalaris]]*0.08% -> -2.312594972 | AF82: =-((Tabel1[[#This Row],[Jaarsalaris]]-18475)*9.4%)/12 -> -149.653235 | AG82: =IF(Tabel1[[#This Row],[Jaarsalaris]]<=28406, 3068, IF(AD82<=76817, 3068 - 0.06337 * (AD82 - 28406), 0))/12 -> 207.2220534 | AH82: =Tabel1[[#This Row],[Bruto maandsalaris]]+Tabel1[[#This Row],[inhouding premie]]+Tabel1[[#This Row],[Inhouding pensioen]] -> 2738.777885 | AI82: =-IF(Tabel1[[#This Row],[Belastbaar maandsalaris]]*12<=38441, Tabel1[[#This Row],[Belastbaar maandsalaris]]*0.3582, IF(Tabel1[[#This Row],[Belastbaar maandsalaris]]*12<=76817, (38441*0.3582 + (Tabel1[[#This Row],[Belastbaar maandsalaris]]*12-38441)*0.3748)/12, (38441*0.3582 + (76817-38441)*0.3748 + (Tabel1[[#This Row],[Belastbaar maandsalaris]]*12-76817)*0.495)/12))+Tabel1[[#This Row],[Heffingskorting ]] -> -773.808185 | AJ82: =Lonen!C15/(40*4.33) -> 19.09237875
A83: EMP00100 | B83: Elise | D83: Dijkstra | E83: Elise Dijkstra | F83: V | G83: 1987-12-09 | H83: =(TODAY()-Tabel1[[#This Row],[Geboortedatum]])/365.25 -> 37.50034223 | I83: Laan van Vollenhove 189 | J83: 3519 GH | K83: Driebergen-Rijsenburg | L83: Commercie en financïen | M83: Secretaresse | N83: 2022-03-25 | O83: =(TODAY()-Tabel1[[#This Row],[Datum in dienst]])/365.25 -> 3.208761123 | P83: Vast | Q83: =ROUNDDOWN(Tabel1[[#This Row],[Aantal dienstjaren]],0) -> 3 | R83: Onbepaalde tijd | S83: 3 | T83: 0.8 | U83: =40*Tabel1[[#This Row],[FTE]] -> 32 | V83: UTA 3 | W83: =(MIN(Lonen!C14*(Tabel1[[#This Row],[Jaarlijkse salarisstijging]])^Tabel1[[#This Row],[Aantal dienstjaren]],Lonen!D14))/174.08 -> 18.43333413 | X83: =(MIN(Lonen!C13*(Tabel1[[#This Row],[Jaarlijkse salarisstijging]])^Tabel1[[#This Row],[Aantal dienstjaren]],Lonen!D13))*Tabel1[[#This Row],[FTE]] -> 2305.588163 | Y83: 1.03 | Z83: =Tabel1[[#This Row],[Bruto maandsalaris]]*8% -> 184.4470531 | AB83: NVT | AC83: =ABS(IF(Tabel1[[#This Row],[Jaarsalaris]]<=12169,0.08053*Tabel1[[#This Row],[Jaarsalaris]],IF(Tabel1[[#This Row],[Jaarsalaris]]<=26288,980+0.3003*(Tabel1[[#This Row],[Jaarsalaris]]-12169),IF(Tabel1[[#This Row],[Jaarsalaris]]<=43071,5220+0.02258*(Tabel1[[#This Row],[Jaarsalaris]]-26288),IF(Tabel1[[#This Row],[Jaarsalaris]]<=129078,5599-0.0651*(Tabel1[[#This Row],[Jaarsalaris]]-43071),0)))))/12 -> 441.9332758 | AD83: =Tabel1[[#This Row],[Bruto maandsalaris]]*13 -> 29972.64612 | AE83: =-Tabel1[[#This Row],[Bruto maandsalaris]]*0.08% -> -1.844470531 | AF83: =-((Tabel1[[#This Row],[Jaarsalaris]]-18475)*9.4%)/12 -> -90.06489462 | AG83: =IF(Tabel1[[#This Row],[Jaarsalaris]]<=28406, 3068, IF(AD83<=76817, 3068 - 0.06337 * (AD83 - 28406), 0))/12 -> 247.3934696 | AH83: =Tabel1[[#This Row],[Bruto maandsalaris]]+Tabel1[[#This Row],[inhouding premie]]+Tabel1[[#This Row],[Inhouding pensioen]] -> 2213.678798 | AI83: =-IF(Tabel1[[#This Row],[Belastbaar maandsalaris]]*12<=38441, Tabel1[[#This Row],[Belastbaar maandsalaris]]*0.3582, IF(Tabel1[[#This Row],[Belastbaar maandsalaris]]*12<=76817, (38441*0.3582 + (Tabel1[[#This Row],[Belastbaar maandsalaris]]*12-38441)*0.3748)/12, (38441*0.3582 + (76817-38441)*0.3748 + (Tabel1[[#This Row],[Belastbaar maandsalaris]]*12-76817)*0.495)/12))+Tabel1[[#This Row],[Heffingskorting ]] -> -545.5462759 | AJ83: =Lonen!C12/(40*4.33) -> 13.79411085
A84: EMP00101 | B84: Marieke | D84: Feenstra | E84: Marieke Feenstra | F84: V | G84: 1994-01-10 | H84: =(TODAY()-Tabel1[[#This Row],[Geboortedatum]])/365.25 -> 31.41136208 | I84: Dorpsstraat 76 | J84: 3973 GH | K84: Bilthoven | L84: Voorbereiding | M84: Secretaresse | N84: 2020-10-26 | O84: =(TODAY()-Tabel1[[#This Row],[Datum in dienst]])/365.25 -> 4.618754278 | P84: Vast | Q84: =ROUNDDOWN(Tabel1[[#This Row],[Aantal dienstjaren]],0) -> 4 | R84: Onbepaalde tijd | S84: 3 | T84: 0.8 | U84: =40*Tabel1[[#This Row],[FTE]] -> 32 | V84: UTA 3 | W84: =(MIN(Lonen!C14*(Tabel1[[#This Row],[Jaarlijkse salarisstijging]])^Tabel1[[#This Row],[Aantal dienstjaren]],Lonen!D14))/174.08 -> 19.21782765 | X84: =(MIN(Lonen!C13*(Tabel1[[#This Row],[Jaarlijkse salarisstijging]])^Tabel1[[#This Row],[Aantal dienstjaren]],Lonen!D13))*Tabel1[[#This Row],[FTE]] -> 2403.710346 | Y84: 1.03 | Z84: =Tabel1[[#This Row],[Bruto maandsalaris]]*8% -> 192.2968277 | AB84: NVT | AC84: =ABS(IF(Tabel1[[#This Row],[Jaarsalaris]]<=12169,0.08053*Tabel1[[#This Row],[Jaarsalaris]],IF(Tabel1[[#This Row],[Jaarsalaris]]<=26288,980+0.3003*(Tabel1[[#This Row],[Jaarsalaris]]-12169),IF(Tabel1[[#This Row],[Jaarsalaris]]<=43071,5220+0.02258*(Tabel1[[#This Row],[Jaarsalaris]]-26288),IF(Tabel1[[#This Row],[Jaarsalaris]]<=129078,5599-0.0651*(Tabel1[[#This Row],[Jaarsalaris]]-43071),0)))))/12 -> 444.3335079 | AD84: =Tabel1[[#This Row],[Bruto maandsalaris]]*13 -> 31248.2345 | AE84: =-Tabel1[[#This Row],[Bruto maandsalaris]]*0.08% -> -1.922968277 | AF84: =-((Tabel1[[#This Row],[Jaarsalaris]]-18475)*9.4%)/12 -> -100.0570036 | AG84: =IF(Tabel1[[#This Row],[Jaarsalaris]]<=28406, 3068, IF(AD84<=76817, 3068 - 0.06337 * (AD84 - 28406), 0))/12 -> 240.6573 | AH84: =Tabel1[[#This Row],[Bruto maandsalaris]]+Tabel1[[#This Row],[inhouding premie]]+Tabel1[[#This Row],[Inhouding pensioen]] -> 2301.730374 | AI84: =-IF(Tabel1[[#This Row],[Belastbaar maandsalaris]]*12<=38441, Tabel1[[#This Row],[Belastbaar maandsalaris]]*0.3582, IF(Tabel1[[#This Row],[Belastbaar maandsalaris]]*12<=76817, (38441*0.3582 + (Tabel1[[#This Row],[Belastbaar maandsalaris]]*12-38441)*0.3748)/12, (38441*0.3582 + (76817-38441)*0.3748 + (Tabel1[[#This Row],[Belastbaar maandsalaris]]*12-76817)*0.495)/12))+Tabel1[[#This Row],[Heffingskorting ]] -> -583.8225201 | AJ84: =Lonen!C13/(40*4.33) -> 15.13394919
A85: EMP00013 | B85: Casper | D85: Hellevoort | E85: Casper Hellevoort | F85: M | G85: 1984-07-21 | H85: =(TODAY()-Tabel1[[#This Row],[Geboortedatum]])/365.25 -> 40.8843258 | I85: Beatrixstraat 137 | J85: 3978 CD | K85: Soest | L85: Uitvoering | M85: Sloper I | N85: 2013-11-18 | O85: =(TODAY()-Tabel1[[#This Row],[Datum in dienst]])/365.25 -> 11.55646817 | P85: Vast | Q85: =ROUNDDOWN(Tabel1[[#This Row],[Aantal dienstjaren]],0) -> 11 | R85: Onbepaalde tijd | S85: 3 | T85: 1 | U85: =40*Tabel1[[#This Row],[FTE]] -> 40 | V85: C | W85: =MIN(Lonen!C5*(Tabel1[[#This Row],[Jaarlijkse salarisstijging]])^Tabel1[[#This Row],[Afgeronde dienstjaren]],Lonen!E5) -> 24.18 | X85: =(MIN(Lonen!C15*(personeelsoverzicht!Y2)^Tabel1[[#This Row],[Afgeronde dienstjaren]],Lonen!D15))*Tabel1[[#This Row],[FTE]] -> 4512.07 | Y85: 1.03 | Z85: =Tabel1[[#This Row],[Bruto maandsalaris]]*8% -> 360.9656 | AB85: NVT | AC85: =ABS(IF(Tabel1[[#This Row],[Jaarsalaris]]<=12169,0.08053*Tabel1[[#This Row],[Jaarsalaris]],IF(Tabel1[[#This Row],[Jaarsalaris]]<=26288,980+0.3003*(Tabel1[[#This Row],[Jaarsalaris]]-12169),IF(Tabel1[[#This Row],[Jaarsalaris]]<=43071,5220+0.02258*(Tabel1[[#This Row],[Jaarsalaris]]-26288),IF(Tabel1[[#This Row],[Jaarsalaris]]<=129078,5599-0.0651*(Tabel1[[#This Row],[Jaarsalaris]]-43071),0)))))/12 -> 382.0297716 | AD85: =Tabel1[[#This Row],[Bruto maandsalaris]]*13 -> 58656.91 | AE85: =-Tabel1[[#This Row],[Bruto maandsalaris]]*0.08% -> -3.609656 | AF85: =-((Tabel1[[#This Row],[Jaarsalaris]]-18475)*9.4%)/12 -> -314.758295 | AG85: =IF(Tabel1[[#This Row],[Jaarsalaris]]<=28406, 3068, IF(AD85<=76817, 3068 - 0.06337 * (AD85 - 28406), 0))/12 -> 95.91665278 | AH85: =Tabel1[[#This Row],[Bruto maandsalaris]]+Tabel1[[#This Row],[inhouding premie]]+Tabel1[[#This Row],[Inhouding pensioen]] -> 4193.702049 | AI85: =-IF(Tabel1[[#This Row],[Belastbaar maandsalaris]]*12<=38441, Tabel1[[#This Row],[Belastbaar maandsalaris]]*0.3582, IF(Tabel1[[#This Row],[Belastbaar maandsalaris]]*12<=76817, (38441*0.3582 + (Tabel1[[#This Row],[Belastbaar maandsalaris]]*12-38441)*0.3748)/12, (38441*0.3582 + (76817-38441)*0.3748 + (Tabel1[[#This Row],[Belastbaar maandsalaris]]*12-76817)*0.495)/12))+Tabel1[[#This Row],[Heffingskorting ]] -> -1422.706159 | AJ85: =Lonen!C15/(40*4.33) -> 19.09237875
A86: EMP00021 | B86: Elias | C86: van | D86: Eelden | E86: Elias van Eelden | F86: M | G86: 1992-04-18 | H86: =(TODAY()-Tabel1[[#This Row],[Geboortedatum]])/365.25 -> 33.14168378 | I86: Sportlaan 167 | J86: 3784 GH | K86: Woudenberg | L86: Uitvoering | M86: Sloper II | N86: 2020-09-16 | O86: =(TODAY()-Tabel1[[#This Row],[Datum in dienst]])/365.25 -> 4.728268309 | P86: Vast | Q86: =ROUNDDOWN(Tabel1[[#This Row],[Aantal dienstjaren]],0) -> 4 | R86: Onbepaalde tijd | S86: 3 | T86: 0.8 | U86: =40*Tabel1[[#This Row],[FTE]] -> 32 | V86: B | W86: =MIN(Lonen!C7*(Tabel1[[#This Row],[Jaarlijkse salarisstijging]])^Tabel1[[#This Row],[Afgeronde dienstjaren]],Lonen!E7) -> 23.46685869 | X86: =(MIN(Lonen!C15*(personeelsoverzicht!Y2)^Tabel1[[#This Row],[Afgeronde dienstjaren]],Lonen!D15))*Tabel1[[#This Row],[FTE]] -> 2977.466026 | Y86: 1.03 | Z86: =Tabel1[[#This Row],[Bruto maandsalaris]]*8% -> 238.1972821 | AB86: NVT | AC86: =ABS(IF(Tabel1[[#This Row],[Jaarsalaris]]<=12169,0.08053*Tabel1[[#This Row],[Jaarsalaris]],IF(Tabel1[[#This Row],[Jaarsalaris]]<=26288,980+0.3003*(Tabel1[[#This Row],[Jaarsalaris]]-12169),IF(Tabel1[[#This Row],[Jaarsalaris]]<=43071,5220+0.02258*(Tabel1[[#This Row],[Jaarsalaris]]-26288),IF(Tabel1[[#This Row],[Jaarsalaris]]<=129078,5599-0.0651*(Tabel1[[#This Row],[Jaarsalaris]]-43071),0)))))/12 -> 458.3685281 | AD86: =Tabel1[[#This Row],[Bruto maandsalaris]]*13 -> 38707.05834 | AE86: =-Tabel1[[#This Row],[Bruto maandsalaris]]*0.08% -> -2.381972821 | AF86: =-((Tabel1[[#This Row],[Jaarsalaris]]-18475)*9.4%)/12 -> -158.484457 | AG86: =IF(Tabel1[[#This Row],[Jaarsalaris]]<=28406, 3068, IF(AD86<=76817, 3068 - 0.06337 * (AD86 - 28406), 0))/12 -> 201.2684944 | AH86: =Tabel1[[#This Row],[Bruto maandsalaris]]+Tabel1[[#This Row],[inhouding premie]]+Tabel1[[#This Row],[Inhouding pensioen]] -> 2816.599596 | AI86: =-IF(Tabel1[[#This Row],[Belastbaar maandsalaris]]*12<=38441, Tabel1[[#This Row],[Belastbaar maandsalaris]]*0.3582, IF(Tabel1[[#This Row],[Belastbaar maandsalaris]]*12<=76817, (38441*0.3582 + (Tabel1[[#This Row],[Belastbaar maandsalaris]]*12-38441)*0.3748)/12, (38441*0.3582 + (76817-38441)*0.3748 + (Tabel1[[#This Row],[Belastbaar maandsalaris]]*12-76817)*0.495)/12))+Tabel1[[#This Row],[Heffingskorting ]] -> -807.6374811 | AJ86: =Lonen!C15/(40*4.33) -> 19.09237875
A87: EMP00027 | B87: Stan | C87: de | D87: Man | E87: Stan de Man | F87: M | G87: 1992-02-12 | H87: =(TODAY()-Tabel1[[#This Row],[Geboortedatum]])/365.25 -> 33.32238193 | I87: Zonstraat 128 | J87: 3572 EF | K87: Soest | L87: Uitvoering | M87: Stelleur I | N87: 2016-09-21 | O87: =(TODAY()-Tabel1[[#This Row],[Datum in dienst]])/365.25 -> 8.714579055 | P87: Vast | Q87: =ROUNDDOWN(Tabel1[[#This Row],[Aantal dienstjaren]],0) -> 8 | R87: Onbepaalde tijd | S87: 3 | T87: 1 | U87: =40*Tabel1[[#This Row],[FTE]] -> 40 | V87: C | W87: =MIN(Lonen!C5*(Tabel1[[#This Row],[Jaarlijkse salarisstijging]])^Tabel1[[#This Row],[Afgeronde dienstjaren]],Lonen!E5) -> 23.56192351 | X87: =(MIN(Lonen!C5*(Tabel1[[#This Row],[Jaarlijkse salarisstijging]])^Tabel1[[#This Row],[Afgeronde dienstjaren]],Lonen!E5)*174.08)*Tabel1[[#This Row],[FTE]] -> 4101.659645 | Y87: 1.03 | Z87: =Tabel1[[#This Row],[Bruto maandsalaris]]*8% -> 328.1327716 | AB87: NVT | AC87: =ABS(IF(Tabel1[[#This Row],[Jaarsalaris]]<=12169,0.08053*Tabel1[[#This Row],[Jaarsalaris]],IF(Tabel1[[#This Row],[Jaarsalaris]]<=26288,980+0.3003*(Tabel1[[#This Row],[Jaarsalaris]]-12169),IF(Tabel1[[#This Row],[Jaarsalaris]]<=43071,5220+0.02258*(Tabel1[[#This Row],[Jaarsalaris]]-26288),IF(Tabel1[[#This Row],[Jaarsalaris]]<=129078,5599-0.0651*(Tabel1[[#This Row],[Jaarsalaris]]-43071),0)))))/12 -> 410.9739618 | AD87: =Tabel1[[#This Row],[Bruto maandsalaris]]*13 -> 53321.57539 | AE87: =-Tabel1[[#This Row],[Bruto maandsalaris]]*0.08% -> -3.281327716 | AF87: =-((Tabel1[[#This Row],[Jaarsalaris]]-18475)*9.4%)/12 -> -272.9648405 | AG87: =IF(Tabel1[[#This Row],[Jaarsalaris]]<=28406, 3068, IF(AD87<=76817, 3068 - 0.06337 * (AD87 - 28406), 0))/12 -> 124.0916656 | AH87: =Tabel1[[#This Row],[Bruto maandsalaris]]+Tabel1[[#This Row],[inhouding premie]]+Tabel1[[#This Row],[Inhouding pensioen]] -> 3825.413477 | AI87: =-IF(Tabel1[[#This Row],[Belastbaar maandsalaris]]*12<=38441, Tabel1[[#This Row],[Belastbaar maandsalaris]]*0.3582, IF(Tabel1[[#This Row],[Belastbaar maandsalaris]]*12<=76817, (38441*0.3582 + (Tabel1[[#This Row],[Belastbaar maandsalaris]]*12-38441)*0.3748)/12, (38441*0.3582 + (76817-38441)*0.3748 + (Tabel1[[#This Row],[Belastbaar maandsalaris]]*12-76817)*0.495)/12))+Tabel1[[#This Row],[Heffingskorting ]] -> -1256.496589 | AJ87: =Lonen!C5 -> 18.6
A88: EMP00031 | B88: Sam | D88: Brandon | E88: Sam Brandon | F88: M | G88: 1980-08-12 | H88: =(TODAY()-Tabel1[[#This Row],[Geboortedatum]])/365.25 -> 44.82409309 | I88: Sportlaan 186 | J88: 3993 IJ | K88: Baarn | L88: Uitvoering | M88: Stelleur I | N88: 2013-06-19 | O88: =(TODAY()-Tabel1[[#This Row],[Datum in dienst]])/365.25 -> 11.97262149 | P88: Vast | Q88: =ROUNDDOWN(Tabel1[[#This Row],[Aantal dienstjaren]],0) -> 11 | R88: Onbepaalde tijd | S88: 2 | T88: 1 | U88: =40*Tabel1[[#This Row],[FTE]] -> 40 | V88: C | W88: =MIN(Lonen!C5*(Tabel1[[#This Row],[Jaarlijkse salarisstijging]])^Tabel1[[#This Row],[Afgeronde dienstjaren]],Lonen!E5) -> 24.18 | X88: =(MIN(Lonen!C5*(Tabel1[[#This Row],[Jaarlijkse salarisstijging]])^Tabel1[[#This Row],[Afgeronde dienstjaren]],Lonen!E5)*174.08)*Tabel1[[#This Row],[FTE]] -> 4209.2544 | Y88: 1.03 | Z88: =Tabel1[[#This Row],[Bruto maandsalaris]]*8% -> 336.740352 | AB88: NVT | AC88: =ABS(IF(Tabel1[[#This Row],[Jaarsalaris]]<=12169,0.08053*Tabel1[[#This Row],[Jaarsalaris]],IF(Tabel1[[#This Row],[Jaarsalaris]]<=26288,980+0.3003*(Tabel1[[#This Row],[Jaarsalaris]]-12169),IF(Tabel1[[#This Row],[Jaarsalaris]]<=43071,5220+0.02258*(Tabel1[[#This Row],[Jaarsalaris]]-26288),IF(Tabel1[[#This Row],[Jaarsalaris]]<=129078,5599-0.0651*(Tabel1[[#This Row],[Jaarsalaris]]-43071),0)))))/12 -> 403.3858418 | AD88: =Tabel1[[#This Row],[Bruto maandsalaris]]*13 -> 54720.3072 | AE88: =-Tabel1[[#This Row],[Bruto maandsalaris]]*0.08% -> -3.36740352 | AF88: =-((Tabel1[[#This Row],[Jaarsalaris]]-18475)*9.4%)/12 -> -283.9215731 | AG88: =IF(Tabel1[[#This Row],[Jaarsalaris]]<=28406, 3068, IF(AD88<=76817, 3068 - 0.06337 * (AD88 - 28406), 0))/12 -> 116.7051961 | AH88: =Tabel1[[#This Row],[Bruto maandsalaris]]+Tabel1[[#This Row],[inhouding premie]]+Tabel1[[#This Row],[Inhouding pensioen]] -> 3921.965423 | AI88: =-IF(Tabel1[[#This Row],[Belastbaar maandsalaris]]*12<=38441, Tabel1[[#This Row],[Belastbaar maandsalaris]]*0.3582, IF(Tabel1[[#This Row],[Belastbaar maandsalaris]]*12<=76817, (38441*0.3582 + (Tabel1[[#This Row],[Belastbaar maandsalaris]]*12-38441)*0.3748)/12, (38441*0.3582 + (76817-38441)*0.3748 + (Tabel1[[#This Row],[Belastbaar maandsalaris]]*12-76817)*0.495)/12))+Tabel1[[#This Row],[Heffingskorting ]] -> -1300.070728 | AJ88: =Lonen!C5 -> 18.6
A89: EMP00033 | B89: Rowan | C89: van der | D89: Flaas | E89: Rowan van der Flaas | F89: M | G89: 1973-05-17 | H89: =(TODAY()-Tabel1[[#This Row],[Geboortedatum]])/365.25 -> 52.06297057 | I89: Sportlaan 105 | J89: 3528 AB | K89: Montfoort | L89: Uitvoering | M89: Stelleur II | N89: 2015-12-13 | O89: =(TODAY()-Tabel1[[#This Row],[Datum in dienst]])/365.25 -> 9.489390828 | P89: Vast | Q89: =ROUNDDOWN(Tabel1[[#This Row],[Aantal dienstjaren]],0) -> 9 | R89: Onbepaalde tijd | S89: 3 | T89: 0.4 | U89: =40*Tabel1[[#This Row],[FTE]] -> 16 | V89: B | W89: =MIN(Lonen!C4*(Tabel1[[#This Row],[Jaarlijkse salarisstijging]])^Tabel1[[#This Row],[Afgeronde dienstjaren]],Lonen!E4) -> 22.776 | X89: =(MIN(Lonen!C4*(Tabel1[[#This Row],[Jaarlijkse salarisstijging]])^Tabel1[[#This Row],[Afgeronde dienstjaren]],Lonen!E4)*174.08)*Tabel1[[#This Row],[FTE]] -> 1585.938432 | Y89: 1.03 | Z89: =Tabel1[[#This Row],[Bruto maandsalaris]]*8% -> 126.8750746 | AB89: NVT | AC89: =ABS(IF(Tabel1[[#This Row],[Jaarsalaris]]<=12169,0.08053*Tabel1[[#This Row],[Jaarsalaris]],IF(Tabel1[[#This Row],[Jaarsalaris]]<=26288,980+0.3003*(Tabel1[[#This Row],[Jaarsalaris]]-12169),IF(Tabel1[[#This Row],[Jaarsalaris]]<=43071,5220+0.02258*(Tabel1[[#This Row],[Jaarsalaris]]-26288),IF(Tabel1[[#This Row],[Jaarsalaris]]<=129078,5599-0.0651*(Tabel1[[#This Row],[Jaarsalaris]]-43071),0)))))/12 -> 293.0828621 | AD89: =Tabel1[[#This Row],[Bruto maandsalaris]]*13 -> 20617.19962 | AE89: =-Tabel1[[#This Row],[Bruto maandsalaris]]*0.08% -> -1.268750746 | AF89: =-((Tabel1[[#This Row],[Jaarsalaris]]-18475)*9.4%)/12 -> -16.78056366 | AG89: =IF(Tabel1[[#This Row],[Jaarsalaris]]<=28406, 3068, IF(AD89<=76817, 3068 - 0.06337 * (AD89 - 28406), 0))/12 -> 255.6666667 | AH89: =Tabel1[[#This Row],[Bruto maandsalaris]]+Tabel1[[#This Row],[inhouding premie]]+Tabel1[[#This Row],[Inhouding pensioen]] -> 1567.889118 | AI89: =-IF(Tabel1[[#This Row],[Belastbaar maandsalaris]]*12<=38441, Tabel1[[#This Row],[Belastbaar maandsalaris]]*0.3582, IF(Tabel1[[#This Row],[Belastbaar maandsalaris]]*12<=76817, (38441*0.3582 + (Tabel1[[#This Row],[Belastbaar maandsalaris]]*12-38441)*0.3748)/12, (38441*0.3582 + (76817-38441)*0.3748 + (Tabel1[[#This Row],[Belastbaar maandsalaris]]*12-76817)*0.495)/12))+Tabel1[[#This Row],[Heffingskorting ]] -> -305.9512153 | AJ89: =Lonen!C4 -> 17.52
A90: EMP00034 | B90: Collin | D90: Genefaas | E90: Collin Genefaas | F90: M | G90: 1982-01-12 | H90: =(TODAY()-Tabel1[[#This Row],[Geboortedatum]])/365.25 -> 43.40588638 | I90: Prins Hendriklaan 28 | J90: 3681 IJ | K90: Bilthoven | L90: Uitvoering | M90: Stelleur II | N90: 2019-01-15 | O90: =(TODAY()-Tabel1[[#This Row],[Datum in dienst]])/365.25 -> 6.39835729 | P90: Vast | Q90: =ROUNDDOWN(Tabel1[[#This Row],[Aantal dienstjaren]],0) -> 6 | R90: Onbepaalde tijd | S90: 3 | T90: 1 | U90: =40*Tabel1[[#This Row],[FTE]] -> 40 | V90: B | W90: =MIN(Lonen!C4*(Tabel1[[#This Row],[Jaarlijkse salarisstijging]])^Tabel1[[#This Row],[Afgeronde dienstjaren]],Lonen!E4) -> 20.91979624 | X90: =(MIN(Lonen!C4*(Tabel1[[#This Row],[Jaarlijkse salarisstijging]])^Tabel1[[#This Row],[Afgeronde dienstjaren]],Lonen!E4)*174.08)*Tabel1[[#This Row],[FTE]] -> 3641.718129 | Y90: 1.03 | Z90: =Tabel1[[#This Row],[Bruto maandsalaris]]*8% -> 291.3374503 | AB90: NVT | AC90: =ABS(IF(Tabel1[[#This Row],[Jaarsalaris]]<=12169,0.08053*Tabel1[[#This Row],[Jaarsalaris]],IF(Tabel1[[#This Row],[Jaarsalaris]]<=26288,980+0.3003*(Tabel1[[#This Row],[Jaarsalaris]]-12169),IF(Tabel1[[#This Row],[Jaarsalaris]]<=43071,5220+0.02258*(Tabel1[[#This Row],[Jaarsalaris]]-26288),IF(Tabel1[[#This Row],[Jaarsalaris]]<=129078,5599-0.0651*(Tabel1[[#This Row],[Jaarsalaris]]-43071),0)))))/12 -> 443.4113373 | AD90: =Tabel1[[#This Row],[Bruto maandsalaris]]*13 -> 47342.33567 | AE90: =-Tabel1[[#This Row],[Bruto maandsalaris]]*0.08% -> -2.913374503 | AF90: =-((Tabel1[[#This Row],[Jaarsalaris]]-18475)*9.4%)/12 -> -226.1274628 | AG90: =IF(Tabel1[[#This Row],[Jaarsalaris]]<=28406, 3068, IF(AD90<=76817, 3068 - 0.06337 * (AD90 - 28406), 0))/12 -> 155.667034 | AH90: =Tabel1[[#This Row],[Bruto maandsalaris]]+Tabel1[[#This Row],[inhouding premie]]+Tabel1[[#This Row],[Inhouding pensioen]] -> 3412.677291 | AI90: =-IF(Tabel1[[#This Row],[Belastbaar maandsalaris]]*12<=38441, Tabel1[[#This Row],[Belastbaar maandsalaris]]*0.3582, IF(Tabel1[[#This Row],[Belastbaar maandsalaris]]*12<=76817, (38441*0.3582 + (Tabel1[[#This Row],[Belastbaar maandsalaris]]*12-38441)*0.3748)/12, (38441*0.3582 + (76817-38441)*0.3748 + (Tabel1[[#This Row],[Belastbaar maandsalaris]]*12-76817)*0.495)/12))+Tabel1[[#This Row],[Heffingskorting ]] -> -1070.227698 | AJ90: =Lonen!C4 -> 17.52
A91: EMP00038 | B91: Jason | D91: Linschoten | E91: Jason Linschoten | F91: M | G91: 1981-08-21 | H91: =(TODAY()-Tabel1[[#This Row],[Geboortedatum]])/365.25 -> 43.80013689 | I91: Waterstraat 99 | J91: 3808 IJ | K91: Bunnik | L91: Uitvoering | M91: Voorman | N91: 2011-03-11 | O91: =(TODAY()-Tabel1[[#This Row],[Datum in dienst]])/365.25 -> 14.2477755 | P91: Vast | Q91: =ROUNDDOWN(Tabel1[[#This Row],[Aantal dienstjaren]],0) -> 14 | R91: Onbepaalde tijd | S91: 3 | T91: 1 | U91: =40*Tabel1[[#This Row],[FTE]] -> 40 | V91: E | W91: =MIN(Lonen!C7*(Tabel1[[#This Row],[Jaarlijkse salarisstijging]])^Tabel1[[#This Row],[Afgeronde dienstjaren]],Lonen!E7) -> 27.105 | X91: =(MIN(Lonen!C7*(Tabel1[[#This Row],[Jaarlijkse salarisstijging]])^Tabel1[[#This Row],[Afgeronde dienstjaren]],Lonen!E7)*174.08)*Tabel1[[#This Row],[FTE]] -> 4718.4384 | Y91: 1.03 | Z91: =Tabel1[[#This Row],[Bruto maandsalaris]]*8% -> 377.475072 | AB91: NVT | AC91: =ABS(IF(Tabel1[[#This Row],[Jaarsalaris]]<=12169,0.08053*Tabel1[[#This Row],[Jaarsalaris]],IF(Tabel1[[#This Row],[Jaarsalaris]]<=26288,980+0.3003*(Tabel1[[#This Row],[Jaarsalaris]]-12169),IF(Tabel1[[#This Row],[Jaarsalaris]]<=43071,5220+0.02258*(Tabel1[[#This Row],[Jaarsalaris]]-26288),IF(Tabel1[[#This Row],[Jaarsalaris]]<=129078,5599-0.0651*(Tabel1[[#This Row],[Jaarsalaris]]-43071),0)))))/12 -> 367.4756402 | AD91: =Tabel1[[#This Row],[Bruto maandsalaris]]*13 -> 61339.6992 | AE91: =-Tabel1[[#This Row],[Bruto maandsalaris]]*0.08% -> -3.77475072 | AF91: =-((Tabel1[[#This Row],[Jaarsalaris]]-18475)*9.4%)/12 -> -335.7734771 | AG91: =IF(Tabel1[[#This Row],[Jaarsalaris]]<=28406, 3068, IF(AD91<=76817, 3068 - 0.06337 * (AD91 - 28406), 0))/12 -> 81.74929014 | AH91: =Tabel1[[#This Row],[Bruto maandsalaris]]+Tabel1[[#This Row],[inhouding premie]]+Tabel1[[#This Row],[Inhouding pensioen]] -> 4378.890172 | AI91: =-IF(Tabel1[[#This Row],[Belastbaar maandsalaris]]*12<=38441, Tabel1[[#This Row],[Belastbaar maandsalaris]]*0.3582, IF(Tabel1[[#This Row],[Belastbaar maandsalaris]]*12<=76817, (38441*0.3582 + (Tabel1[[#This Row],[Belastbaar maandsalaris]]*12-38441)*0.3748)/12, (38441*0.3582 + (76817-38441)*0.3748 + (Tabel1[[#This Row],[Belastbaar maandsalaris]]*12-76817)*0.495)/12))+Tabel1[[#This Row],[Heffingskorting ]] -> -1506.28203 | AJ91: =Lonen!C7 -> 20.85
A92: EMP00053 | B92: Kees | D92: Vermeer | E92: Kees Vermeer | F92: M | G92: 1984-07-27 | H92: =(TODAY()-Tabel1[[#This Row],[Geboortedatum]])/365.25 -> 40.8678987 | I92: Stationsweg 126 | J92: 3645 EF | K92: Driebergen-Rijsenburg | L92: Uitvoering | M92: Voorman | N92: 2022-09-16 | O92: =(TODAY()-Tabel1[[#This Row],[Datum in dienst]])/365.25 -> 2.729637235 | P92: Tijdelijk | Q92: =ROUNDDOWN(Tabel1[[#This Row],[Aantal dienstjaren]],0) -> 2 | R92: 2025-09-16 | S92: 1 | T92: 1 | U92: =40*Tabel1[[#This Row],[FTE]] -> 40 | V92: E | W92: =MIN(Lonen!C7*(Tabel1[[#This Row],[Jaarlijkse salarisstijging]])^Tabel1[[#This Row],[Afgeronde dienstjaren]],Lonen!E7) -> 22.119765 | X92: =(MIN(Lonen!C7*(Tabel1[[#This Row],[Jaarlijkse salarisstijging]])^Tabel1[[#This Row],[Afgeronde dienstjaren]],Lonen!E7)*174.08)*Tabel1[[#This Row],[FTE]] -> 3850.608691 | Y92: 1.03 | Z92: =Tabel1[[#This Row],[Bruto maandsalaris]]*8% -> 308.0486953 | AB92: NVT | AC92: =ABS(IF(Tabel1[[#This Row],[Jaarsalaris]]<=12169,0.08053*Tabel1[[#This Row],[Jaarsalaris]],IF(Tabel1[[#This Row],[Jaarsalaris]]<=26288,980+0.3003*(Tabel1[[#This Row],[Jaarsalaris]]-12169),IF(Tabel1[[#This Row],[Jaarsalaris]]<=43071,5220+0.02258*(Tabel1[[#This Row],[Jaarsalaris]]-26288),IF(Tabel1[[#This Row],[Jaarsalaris]]<=129078,5599-0.0651*(Tabel1[[#This Row],[Jaarsalaris]]-43071),0)))))/12 -> 428.6793304 | AD92: =Tabel1[[#This Row],[Bruto maandsalaris]]*13 -> 50057.91299 | AE92: =-Tabel1[[#This Row],[Bruto maandsalaris]]*0.08% -> -3.080486953 | AF92: =-((Tabel1[[#This Row],[Jaarsalaris]]-18475)*9.4%)/12 -> -247.3994851 | AG92: =IF(Tabel1[[#This Row],[Jaarsalaris]]<=28406, 3068, IF(AD92<=76817, 3068 - 0.06337 * (AD92 - 28406), 0))/12 -> 141.3265228 | AH92: =Tabel1[[#This Row],[Bruto maandsalaris]]+Tabel1[[#This Row],[inhouding premie]]+Tabel1[[#This Row],[Inhouding pensioen]] -> 3600.128719 | AI92: =-IF(Tabel1[[#This Row],[Belastbaar maandsalaris]]*12<=38441, Tabel1[[#This Row],[Belastbaar maandsalaris]]*0.3582, IF(Tabel1[[#This Row],[Belastbaar maandsalaris]]*12<=76817, (38441*0.3582 + (Tabel1[[#This Row],[Belastbaar maandsalaris]]*12-38441)*0.3748)/12, (38441*0.3582 + (76817-38441)*0.3748 + (Tabel1[[#This Row],[Belastbaar maandsalaris]]*12-76817)*0.495)/12))+Tabel1[[#This Row],[Heffingskorting ]] -> -1154.825004 | AJ92: =Lonen!C7 -> 20.85
A93: EMP00060 | B93: Lucas | D93: Pieters | E93: Lucas Pieters | F93: M | G93: 1987-01-05 | H93: =(TODAY()-Tabel1[[#This Row],[Geboortedatum]])/365.25 -> 38.4257358 | I93: Stationsweg 163 | J93: 3944 EF | K93: Soest | L93: Uitvoering | M93: Voorman | N93: 2014-03-10 | O93: =(TODAY()-Tabel1[[#This Row],[Datum in dienst]])/365.25 -> 11.24982888 | P93: Vast | Q93: =ROUNDDOWN(Tabel1[[#This Row],[Aantal dienstjaren]],0) -> 11 | R93: Onbepaalde tijd | S93: 3 | T93: 0.6 | U93: =40*Tabel1[[#This Row],[FTE]] -> 24 | V93: UTA 3 | W93: =(MIN(Lonen!C14*(Tabel1[[#This Row],[Jaarlijkse salarisstijging]])^Tabel1[[#This Row],[Aantal dienstjaren]],Lonen!D14))/174.08 -> 22.54716222 | X93: =(MIN(Lonen!C14*(Tabel1[[#This Row],[Jaarlijkse salarisstijging]])^Tabel1[[#This Row],[Aantal dienstjaren]],Lonen!D14))*Tabel1[[#This Row],[FTE]] -> 2355.006 | Y93: 1.03 | Z93: =Tabel1[[#This Row],[Bruto maandsalaris]]*8% -> 188.40048 | AB93: NVT | AC93: =ABS(IF(Tabel1[[#This Row],[Jaarsalaris]]<=12169,0.08053*Tabel1[[#This Row],[Jaarsalaris]],IF(Tabel1[[#This Row],[Jaarsalaris]]<=26288,980+0.3003*(Tabel1[[#This Row],[Jaarsalaris]]-12169),IF(Tabel1[[#This Row],[Jaarsalaris]]<=43071,5220+0.02258*(Tabel1[[#This Row],[Jaarsalaris]]-26288),IF(Tabel1[[#This Row],[Jaarsalaris]]<=129078,5599-0.0651*(Tabel1[[#This Row],[Jaarsalaris]]-43071),0)))))/12 -> 443.1421184 | AD93: =Tabel1[[#This Row],[Bruto maandsalaris]]*13 -> 30615.078 | AE93: =-Tabel1[[#This Row],[Bruto maandsalaris]]*0.08% -> -1.8840048 | AF93: =-((Tabel1[[#This Row],[Jaarsalaris]]-18475)*9.4%)/12 -> -95.09727767 | AG93: =IF(Tabel1[[#This Row],[Jaarsalaris]]<=28406, 3068, IF(AD93<=76817, 3068 - 0.06337 * (AD93 - 28406), 0))/12 -> 244.0008939 | AH93: =Tabel1[[#This Row],[Bruto maandsalaris]]+Tabel1[[#This Row],[inhouding premie]]+Tabel1[[#This Row],[Inhouding pensioen]] -> 2258.024718 | AI93: =-IF(Tabel1[[#This Row],[Belastbaar maandsalaris]]*12<=38441, Tabel1[[#This Row],[Belastbaar maandsalaris]]*0.3582, IF(Tabel1[[#This Row],[Belastbaar maandsalaris]]*12<=76817, (38441*0.3582 + (Tabel1[[#This Row],[Belastbaar maandsalaris]]*12-38441)*0.3748)/12, (38441*0.3582 + (76817-38441)*0.3748 + (Tabel1[[#This Row],[Belastbaar maandsalaris]]*12-76817)*0.495)/12))+Tabel1[[#This Row],[Heffingskorting ]] -> -564.8235599 | AJ93: =Lonen!C14/(40*4.33) -> 16.85051963
A94: EMP00066 | B94: Marc | D94: Bakker | E94: Marc Bakker | F94: M | G94: 1970-11-24 | H94: =(TODAY()-Tabel1[[#This Row],[Geboortedatum]])/365.25 -> 54.54072553 | I94: Rijnlaan 68 | J94: 3880 EF | K94: Nieuwegein | L94: Uitvoering | M94: Voorman | N94: 2012-08-10 | O94: =(TODAY()-Tabel1[[#This Row],[Datum in dienst]])/365.25 -> 12.82956879 | P94: Vast | Q94: =ROUNDDOWN(Tabel1[[#This Row],[Aantal dienstjaren]],0) -> 12 | R94: Onbepaalde tijd | S94: 3 | T94: 0.9 | U94: =40*Tabel1[[#This Row],[FTE]] -> 36 | V94: E | W94: =MIN(Lonen!C7*(Tabel1[[#This Row],[Jaarlijkse salarisstijging]])^Tabel1[[#This Row],[Afgeronde dienstjaren]],Lonen!E7) -> 27.105 | X94: =(MIN(Lonen!C7*(Tabel1[[#This Row],[Jaarlijkse salarisstijging]])^Tabel1[[#This Row],[Afgeronde dienstjaren]],Lonen!E7)*174.08)*Tabel1[[#This Row],[FTE]] -> 4246.59456 | Y94: 1.03 | Z94: =Tabel1[[#This Row],[Bruto maandsalaris]]*8% -> 339.7275648 | AB94: NVT | AC94: =ABS(IF(Tabel1[[#This Row],[Jaarsalaris]]<=12169,0.08053*Tabel1[[#This Row],[Jaarsalaris]],IF(Tabel1[[#This Row],[Jaarsalaris]]<=26288,980+0.3003*(Tabel1[[#This Row],[Jaarsalaris]]-12169),IF(Tabel1[[#This Row],[Jaarsalaris]]<=43071,5220+0.02258*(Tabel1[[#This Row],[Jaarsalaris]]-26288),IF(Tabel1[[#This Row],[Jaarsalaris]]<=129078,5599-0.0651*(Tabel1[[#This Row],[Jaarsalaris]]-43071),0)))))/12 -> 400.752427 | AD94: =Tabel1[[#This Row],[Bruto maandsalaris]]*13 -> 55205.72928 | AE94: =-Tabel1[[#This Row],[Bruto maandsalaris]]*0.08% -> -3.397275648 | AF94: =-((Tabel1[[#This Row],[Jaarsalaris]]-18475)*9.4%)/12 -> -287.724046 | AG94: =IF(Tabel1[[#This Row],[Jaarsalaris]]<=28406, 3068, IF(AD94<=76817, 3068 - 0.06337 * (AD94 - 28406), 0))/12 -> 114.141763 | AH94: =Tabel1[[#This Row],[Bruto maandsalaris]]+Tabel1[[#This Row],[inhouding premie]]+Tabel1[[#This Row],[Inhouding pensioen]] -> 3955.473238 | AI94: =-IF(Tabel1[[#This Row],[Belastbaar maandsalaris]]*12<=38441, Tabel1[[#This Row],[Belastbaar maandsalaris]]*0.3582, IF(Tabel1[[#This Row],[Belastbaar maandsalaris]]*12<=76817, (38441*0.3582 + (Tabel1[[#This Row],[Belastbaar maandsalaris]]*12-38441)*0.3748)/12, (38441*0.3582 + (76817-38441)*0.3748 + (Tabel1[[#This Row],[Belastbaar maandsalaris]]*12-76817)*0.495)/12))+Tabel1[[#This Row],[Heffingskorting ]] -> -1315.19289 | AJ94: =Lonen!C7 -> 20.85
A95: EMP00069 | B95: Daan | D95: Mulder | E95: Daan Mulder | F95: M | G95: 1974-08-09 | H95: =(TODAY()-Tabel1[[#This Row],[Geboortedatum]])/365.25 -> 50.83367556 | I95: Stationsweg 161 | J95: 3413 GH | K95: De Bilt | L95: Uitvoering | M95: Voorman | N95: 2015-03-10 | O95: =(TODAY()-Tabel1[[#This Row],[Datum in dienst]])/365.25 -> 10.25051335 | P95: Vast | Q95: =ROUNDDOWN(Tabel1[[#This Row],[Aantal dienstjaren]],0) -> 10 | R95: Onbepaalde tijd | S95: 3 | T95: 1 | U95: =40*Tabel1[[#This Row],[FTE]] -> 40 | V95: E | W95: =MIN(Lonen!C7*(Tabel1[[#This Row],[Jaarlijkse salarisstijging]])^Tabel1[[#This Row],[Afgeronde dienstjaren]],Lonen!E7) -> 27.105 | X95: =(MIN(Lonen!C7*(Tabel1[[#This Row],[Jaarlijkse salarisstijging]])^Tabel1[[#This Row],[Afgeronde dienstjaren]],Lonen!E7)*174.08)*Tabel1[[#This Row],[FTE]] -> 4718.4384 | Y95: 1.03 | Z95: =Tabel1[[#This Row],[Bruto maandsalaris]]*8% -> 377.475072 | AB95: NVT | AC95: =ABS(IF(Tabel1[[#This Row],[Jaarsalaris]]<=12169,0.08053*Tabel1[[#This Row],[Jaarsalaris]],IF(Tabel1[[#This Row],[Jaarsalaris]]<=26288,980+0.3003*(Tabel1[[#This Row],[Jaarsalaris]]-12169),IF(Tabel1[[#This Row],[Jaarsalaris]]<=43071,5220+0.02258*(Tabel1[[#This Row],[Jaarsalaris]]-26288),IF(Tabel1[[#This Row],[Jaarsalaris]]<=129078,5599-0.0651*(Tabel1[[#This Row],[Jaarsalaris]]-43071),0)))))/12 -> 367.4756402 | AD95: =Tabel1[[#This Row],[Bruto maandsalaris]]*13 -> 61339.6992 | AE95: =-Tabel1[[#This Row],[Bruto maandsalaris]]*0.08% -> -3.77475072 | AF95: =-((Tabel1[[#This Row],[Jaarsalaris]]-18475)*9.4%)/12 -> -335.7734771 | AG95: =IF(Tabel1[[#This Row],[Jaarsalaris]]<=28406, 3068, IF(AD95<=76817, 3068 - 0.06337 * (AD95 - 28406), 0))/12 -> 81.74929014 | AH95: =Tabel1[[#This Row],[Bruto maandsalaris]]+Tabel1[[#This Row],[inhouding premie]]+Tabel1[[#This Row],[Inhouding pensioen]] -> 4378.890172 | AI95: =-IF(Tabel1[[#This Row],[Belastbaar maandsalaris]]*12<=38441, Tabel1[[#This Row],[Belastbaar maandsalaris]]*0.3582, IF(Tabel1[[#This Row],[Belastbaar maandsalaris]]*12<=76817, (38441*0.3582 + (Tabel1[[#This Row],[Belastbaar maandsalaris]]*12-38441)*0.3748)/12, (38441*0.3582 + (76817-38441)*0.3748 + (Tabel1[[#This Row],[Belastbaar maandsalaris]]*12-76817)*0.495)/12))+Tabel1[[#This Row],[Heffingskorting ]] -> -1506.28203 | AJ95: =Lonen!C7 -> 20.85
A96: EMP00042 | B96: Chris | D96: Hoes | E96: Chris Hoes | F96: M | G96: 1972-01-03 | H96: =(TODAY()-Tabel1[[#This Row],[Geboortedatum]])/365.25 -> 53.43189596 | I96: Prins Hendriklaan 78 | J96: 3900 IJ | K96: Houten | L96: Uitvoering | M96: Wegmarkeerder I | N96: 2007-11-02 | O96: =(TODAY()-Tabel1[[#This Row],[Datum in dienst]])/365.25 -> 17.60164271 | P96: Vast | Q96: =ROUNDDOWN(Tabel1[[#This Row],[Aantal dienstjaren]],0) -> 17 | R96: Onbepaalde tijd | S96: 3 | T96: 1 | U96: =40*Tabel1[[#This Row],[FTE]] -> 40 | V96: C | W96: =MIN(Lonen!C5*(Tabel1[[#This Row],[Jaarlijkse salarisstijging]])^Tabel1[[#This Row],[Afgeronde dienstjaren]],Lonen!E5) -> 24.18 | X96: =(MIN(Lonen!C5*(Tabel1[[#This Row],[Jaarlijkse salarisstijging]])^Tabel1[[#This Row],[Afgeronde dienstjaren]],Lonen!E5)*174.08)*Tabel1[[#This Row],[FTE]] -> 4209.2544 | Y96: 1.03 | Z96: =Tabel1[[#This Row],[Bruto maandsalaris]]*8% -> 336.740352 | AB96: NVT | AC96: =ABS(IF(Tabel1[[#This Row],[Jaarsalaris]]<=12169,0.08053*Tabel1[[#This Row],[Jaarsalaris]],IF(Tabel1[[#This Row],[Jaarsalaris]]<=26288,980+0.3003*(Tabel1[[#This Row],[Jaarsalaris]]-12169),IF(Tabel1[[#This Row],[Jaarsalaris]]<=43071,5220+0.02258*(Tabel1[[#This Row],[Jaarsalaris]]-26288),IF(Tabel1[[#This Row],[Jaarsalaris]]<=129078,5599-0.0651*(Tabel1[[#This Row],[Jaarsalaris]]-43071),0)))))/12 -> 403.3858418 | AD96: =Tabel1[[#This Row],[Bruto maandsalaris]]*13 -> 54720.3072 | AE96: =-Tabel1[[#This Row],[Bruto maandsalaris]]*0.08% -> -3.36740352 | AF96: =-((Tabel1[[#This Row],[Jaarsalaris]]-18475)*9.4%)/12 -> -283.9215731 | AG96: =IF(Tabel1[[#This Row],[Jaarsalaris]]<=28406, 3068, IF(AD96<=76817, 3068 - 0.06337 * (AD96 - 28406), 0))/12 -> 116.7051961 | AH96: =Tabel1[[#This Row],[Bruto maandsalaris]]+Tabel1[[#This Row],[inhouding premie]]+Tabel1[[#This Row],[Inhouding pensioen]] -> 3921.965423 | AI96: =-IF(Tabel1[[#This Row],[Belastbaar maandsalaris]]*12<=38441, Tabel1[[#This Row],[Belastbaar maandsalaris]]*0.3582, IF(Tabel1[[#This Row],[Belastbaar maandsalaris]]*12<=76817, (38441*0.3582 + (Tabel1[[#This Row],[Belastbaar maandsalaris]]*12-38441)*0.3748)/12, (38441*0.3582 + (76817-38441)*0.3748 + (Tabel1[[#This Row],[Belastbaar maandsalaris]]*12-76817)*0.495)/12))+Tabel1[[#This Row],[Heffingskorting ]] -> -1300.070728 | AJ96: =Lonen!C5 -> 18.6
A97: EMP00009 | B97: Stan | D97: Peterse | E97: Stan Peterse | F97: M | G97: 1995-10-13 | H97: =(TODAY()-Tabel1[[#This Row],[Geboortedatum]])/365.25 -> 29.65639973 | I97: Kerklaan 55 | J97: 3923 AB | K97: IJsselstein | L97: Uitvoering | M97: Wegmarkeerder II | N97: 2019-07-14 | O97: =(TODAY()-Tabel1[[#This Row],[Datum in dienst]])/365.25 -> 5.905544148 | P97: Vast | Q97: =ROUNDDOWN(Tabel1[[#This Row],[Aantal dienstjaren]],0) -> 5 | R97: Onbepaalde tijd | S97: 3 | T97: 1 | U97: =40*Tabel1[[#This Row],[FTE]] -> 40 | V97: B | W97: =MIN(Lonen!C4*(Tabel1[[#This Row],[Jaarlijkse salarisstijging]])^Tabel1[[#This Row],[Afgeronde dienstjaren]],Lonen!E4) -> 20.31048178 | X97: =(MIN(Lonen!C4*(Tabel1[[#This Row],[Jaarlijkse salarisstijging]])^Tabel1[[#This Row],[Afgeronde dienstjaren]],Lonen!E4)*174.08)*Tabel1[[#This Row],[FTE]] -> 3535.648669 | Y97: 1.03 | Z97: =Tabel1[[#This Row],[Bruto maandsalaris]]*8% -> 282.8518935 | AB97: NVT | AC97: =ABS(IF(Tabel1[[#This Row],[Jaarsalaris]]<=12169,0.08053*Tabel1[[#This Row],[Jaarsalaris]],IF(Tabel1[[#This Row],[Jaarsalaris]]<=26288,980+0.3003*(Tabel1[[#This Row],[Jaarsalaris]]-12169),IF(Tabel1[[#This Row],[Jaarsalaris]]<=43071,5220+0.02258*(Tabel1[[#This Row],[Jaarsalaris]]-26288),IF(Tabel1[[#This Row],[Jaarsalaris]]<=129078,5599-0.0651*(Tabel1[[#This Row],[Jaarsalaris]]-43071),0)))))/12 -> 450.891886 | AD97: =Tabel1[[#This Row],[Bruto maandsalaris]]*13 -> 45963.43269 | AE97: =-Tabel1[[#This Row],[Bruto maandsalaris]]*0.08% -> -2.828518935 | AF97: =-((Tabel1[[#This Row],[Jaarsalaris]]-18475)*9.4%)/12 -> -215.3260561 | AG97: =IF(Tabel1[[#This Row],[Jaarsalaris]]<=28406, 3068, IF(AD97<=76817, 3068 - 0.06337 * (AD97 - 28406), 0))/12 -> 162.9487909 | AH97: =Tabel1[[#This Row],[Bruto maandsalaris]]+Tabel1[[#This Row],[inhouding premie]]+Tabel1[[#This Row],[Inhouding pensioen]] -> 3317.494094 | AI97: =-IF(Tabel1[[#This Row],[Belastbaar maandsalaris]]*12<=38441, Tabel1[[#This Row],[Belastbaar maandsalaris]]*0.3582, IF(Tabel1[[#This Row],[Belastbaar maandsalaris]]*12<=76817, (38441*0.3582 + (Tabel1[[#This Row],[Belastbaar maandsalaris]]*12-38441)*0.3748)/12, (38441*0.3582 + (76817-38441)*0.3748 + (Tabel1[[#This Row],[Belastbaar maandsalaris]]*12-76817)*0.495)/12))+Tabel1[[#This Row],[Heffingskorting ]] -> -1027.271279 | AJ97: =Lonen!C4 -> 17.52
A98: EMP00052 | B98: Kees | D98: Mulder | E98: =B98 & IF(C98="", " ", " " & C98 & " ") & D98 -> Kees Mulder | F98: M | G98: 1968-09-15 | H98: =(TODAY()-Tabel1[[#This Row],[Geboortedatum]])/365.25 -> 56.73100616 | I98: Stationsweg 109 | J98: 3466 GH | K98: Amersfoort | L98: Uitvoering | M98: Wegmarkeerder III | N98: 2019-10-14 | O98: =(TODAY()-Tabel1[[#This Row],[Datum in dienst]])/365.25 -> 5.653661875 | P98: Vast | Q98: =ROUNDDOWN(Tabel1[[#This Row],[Aantal dienstjaren]],0) -> 5 | R98: Onbepaalde tijd | S98: 3 | T98: 0.8 | U98: =40*Tabel1[[#This Row],[FTE]] -> 32 | V98: A | W98: =MIN(Lonen!C3*(Tabel1[[#This Row],[Jaarlijkse salarisstijging]])^Tabel1[[#This Row],[Afgeronde dienstjaren]],Lonen!E3) -> 19.19757867 | X98: =(MIN(Lonen!C3*(Tabel1[[#This Row],[Jaarlijkse salarisstijging]])^Tabel1[[#This Row],[Afgeronde dienstjaren]],Lonen!E3)*174.08)*Tabel1[[#This Row],[FTE]] -> 2673.531596 | Y98: 1.03 | Z98: =Tabel1[[#This Row],[Bruto maandsalaris]]*8% -> 213.8825277 | AB98: NVT | AC98: =ABS(IF(Tabel1[[#This Row],[Jaarsalaris]]<=12169,0.08053*Tabel1[[#This Row],[Jaarsalaris]],IF(Tabel1[[#This Row],[Jaarsalaris]]<=26288,980+0.3003*(Tabel1[[#This Row],[Jaarsalaris]]-12169),IF(Tabel1[[#This Row],[Jaarsalaris]]<=43071,5220+0.02258*(Tabel1[[#This Row],[Jaarsalaris]]-26288),IF(Tabel1[[#This Row],[Jaarsalaris]]<=129078,5599-0.0651*(Tabel1[[#This Row],[Jaarsalaris]]-43071),0)))))/12 -> 450.9337854 | AD98: =Tabel1[[#This Row],[Bruto maandsalaris]]*13 -> 34755.91075 | AE98: =-Tabel1[[#This Row],[Bruto maandsalaris]]*0.08% -> -2.138825277 | AF98: =-((Tabel1[[#This Row],[Jaarsalaris]]-18475)*9.4%)/12 -> -127.5338009 | AG98: =IF(Tabel1[[#This Row],[Jaarsalaris]]<=28406, 3068, IF(AD98<=76817, 3068 - 0.06337 * (AD98 - 28406), 0))/12 -> 222.1338463 | AH98: =Tabel1[[#This Row],[Bruto maandsalaris]]+Tabel1[[#This Row],[inhouding premie]]+Tabel1[[#This Row],[Inhouding pensioen]] -> 2543.85897 | AI98: =-IF(Tabel1[[#This Row],[Belastbaar maandsalaris]]*12<=38441, Tabel1[[#This Row],[Belastbaar maandsalaris]]*0.3582, IF(Tabel1[[#This Row],[Belastbaar maandsalaris]]*12<=76817, (38441*0.3582 + (Tabel1[[#This Row],[Belastbaar maandsalaris]]*12-38441)*0.3748)/12, (38441*0.3582 + (76817-38441)*0.3748 + (Tabel1[[#This Row],[Belastbaar maandsalaris]]*12-76817)*0.495)/12))+Tabel1[[#This Row],[Heffingskorting ]] -> -689.0764367 | AJ98: =Lonen!C3 -> 16.56
A99: EMP00059 | B99: Kees | D99: Smit | E99: Kees Smit | F99: M | G99: 1989-11-13 | H99: =(TODAY()-Tabel1[[#This Row],[Geboortedatum]])/365.25 -> 35.57015743 | I99: Zonstraat 85 | J99: 3416 EF | K99: IJsselstein | L99: Voorbereiding | M99: Werkvoorbereider | N99: 2020-02-26 | O99: =(TODAY()-Tabel1[[#This Row],[Datum in dienst]])/365.25 -> 5.284052019 | P99: Vast | Q99: =ROUNDDOWN(Tabel1[[#This Row],[Aantal dienstjaren]],0) -> 5 | R99: Onbepaalde tijd | S99: 3 | T99: 1 | U99: =40*Tabel1[[#This Row],[FTE]] -> 40 | V99: UTA 4 | W99: =(MIN(Lonen!C15*(Tabel1[[#This Row],[Jaarlijkse salarisstijging]])^Tabel1[[#This Row],[Aantal dienstjaren]],Lonen!D15))/174.08 -> 22.20708803 | X99: =(MIN(Lonen!C15*(personeelsoverzicht!Y2)^Tabel1[[#This Row],[Afgeronde dienstjaren]],Lonen!D15))*Tabel1[[#This Row],[FTE]] -> 3833.487509 | Y99: 1.03 | Z99: =Tabel1[[#This Row],[Bruto maandsalaris]]*8% -> 306.6790007 | AB99: NVT | AC99: =ABS(IF(Tabel1[[#This Row],[Jaarsalaris]]<=12169,0.08053*Tabel1[[#This Row],[Jaarsalaris]],IF(Tabel1[[#This Row],[Jaarsalaris]]<=26288,980+0.3003*(Tabel1[[#This Row],[Jaarsalaris]]-12169),IF(Tabel1[[#This Row],[Jaarsalaris]]<=43071,5220+0.02258*(Tabel1[[#This Row],[Jaarsalaris]]-26288),IF(Tabel1[[#This Row],[Jaarsalaris]]<=129078,5599-0.0651*(Tabel1[[#This Row],[Jaarsalaris]]-43071),0)))))/12 -> 429.8868018 | AD99: =Tabel1[[#This Row],[Bruto maandsalaris]]*13 -> 49835.33762 | AE99: =-Tabel1[[#This Row],[Bruto maandsalaris]]*0.08% -> -3.066790007 | AF99: =-((Tabel1[[#This Row],[Jaarsalaris]]-18475)*9.4%)/12 -> -245.655978 | AG99: =IF(Tabel1[[#This Row],[Jaarsalaris]]<=28406, 3068, IF(AD99<=76817, 3068 - 0.06337 * (AD99 - 28406), 0))/12 -> 142.5019063 | AH99: =Tabel1[[#This Row],[Bruto maandsalaris]]+Tabel1[[#This Row],[inhouding premie]]+Tabel1[[#This Row],[Inhouding pensioen]] -> 3584.764741 | AI99: =-IF(Tabel1[[#This Row],[Belastbaar maandsalaris]]*12<=38441, Tabel1[[#This Row],[Belastbaar maandsalaris]]*0.3582, IF(Tabel1[[#This Row],[Belastbaar maandsalaris]]*12<=76817, (38441*0.3582 + (Tabel1[[#This Row],[Belastbaar maandsalaris]]*12-38441)*0.3748)/12, (38441*0.3582 + (76817-38441)*0.3748 + (Tabel1[[#This Row],[Belastbaar maandsalaris]]*12-76817)*0.495)/12))+Tabel1[[#This Row],[Heffingskorting ]] -> -1147.891202 | AJ99: =Lonen!C15/(40*4.33) -> 19.09237875
A100: EMP00075 | B100: Kees | D100: Molenaar | E100: Kees Molenaar | F100: M | G100: 1986-12-21 | H100: =(TODAY()-Tabel1[[#This Row],[Geboortedatum]])/365.25 -> 38.46680356 | I100: Zonstraat 52 | J100: 3970 AB | K100: Blaricum | L100: Voorbereiding | M100: Werkvoorbereider | N100: 2010-09-21 | O100: =(TODAY()-Tabel1[[#This Row],[Datum in dienst]])/365.25 -> 14.71594798 | P100: Vast | Q100: =ROUNDDOWN(Tabel1[[#This Row],[Aantal dienstjaren]],0) -> 14 | R100: Onbepaalde tijd | S100: 2 | T100: 1 | U100: =40*Tabel1[[#This Row],[FTE]] -> 40 | V100: UTA 3 | W100: =(MIN(Lonen!C14*(Tabel1[[#This Row],[Jaarlijkse salarisstijging]])^Tabel1[[#This Row],[Aantal dienstjaren]],Lonen!D14))/174.08 -> 22.54716222 | X100: =(MIN(Lonen!C14*(Tabel1[[#This Row],[Jaarlijkse salarisstijging]])^Tabel1[[#This Row],[Aantal dienstjaren]],Lonen!D14))*Tabel1[[#This Row],[FTE]] -> 3925.01 | Y100: 1.03 | Z100: =Tabel1[[#This Row],[Bruto maandsalaris]]*8% -> 314.0008 | AB100: NVT | AC100: =ABS(IF(Tabel1[[#This Row],[Jaarsalaris]]<=12169,0.08053*Tabel1[[#This Row],[Jaarsalaris]],IF(Tabel1[[#This Row],[Jaarsalaris]]<=26288,980+0.3003*(Tabel1[[#This Row],[Jaarsalaris]]-12169),IF(Tabel1[[#This Row],[Jaarsalaris]]<=43071,5220+0.02258*(Tabel1[[#This Row],[Jaarsalaris]]-26288),IF(Tabel1[[#This Row],[Jaarsalaris]]<=129078,5599-0.0651*(Tabel1[[#This Row],[Jaarsalaris]]-43071),0)))))/12 -> 423.4321781 | AD100: =Tabel1[[#This Row],[Bruto maandsalaris]]*13 -> 51025.13 | AE100: =-Tabel1[[#This Row],[Bruto maandsalaris]]*0.08% -> -3.140008 | AF100: =-((Tabel1[[#This Row],[Jaarsalaris]]-18475)*9.4%)/12 -> -254.9760183 | AG100: =IF(Tabel1[[#This Row],[Jaarsalaris]]<=28406, 3068, IF(AD100<=76817, 3068 - 0.06337 * (AD100 - 28406), 0))/12 -> 136.218811 | AH100: =Tabel1[[#This Row],[Bruto maandsalaris]]+Tabel1[[#This Row],[inhouding premie]]+Tabel1[[#This Row],[Inhouding pensioen]] -> 3666.893974 | AI100: =-IF(Tabel1[[#This Row],[Belastbaar maandsalaris]]*12<=38441, Tabel1[[#This Row],[Belastbaar maandsalaris]]*0.3582, IF(Tabel1[[#This Row],[Belastbaar maandsalaris]]*12<=76817, (38441*0.3582 + (Tabel1[[#This Row],[Belastbaar maandsalaris]]*12-38441)*0.3748)/12, (38441*0.3582 + (76817-38441)*0.3748 + (Tabel1[[#This Row],[Belastbaar maandsalaris]]*12-76817)*0.495)/12))+Tabel1[[#This Row],[Heffingskorting ]] -> -1184.956334 | AJ100: =Lonen!C14/(40*4.33) -> 16.85051963
A101: EMP00094 | B101: Daan | D101: Pieters | E101: Daan Pieters | F101: M | G101: 1976-10-10 | H101: =(TODAY()-Tabel1[[#This Row],[Geboortedatum]])/365.25 -> 48.66255989 | I101: Parkweg 5 | J101: 3639 CD | K101: Maarssen | L101: Voorbereiding | M101: Werkvoorbereider | N101: 2017-08-02 | O101: =(TODAY()-Tabel1[[#This Row],[Datum in dienst]])/365.25 -> 7.852156057 | P101: Vast | Q101: =ROUNDDOWN(Tabel1[[#This Row],[Aantal dienstjaren]],0) -> 7 | R101: Onbepaalde tijd | S101: 3 | T101: 1 | U101: =40*Tabel1[[#This Row],[FTE]] -> 40 | V101: UTA 3 | W101: =(MIN(Lonen!C14*(Tabel1[[#This Row],[Jaarlijkse salarisstijging]])^Tabel1[[#This Row],[Aantal dienstjaren]],Lonen!D14))/174.08 -> 21.14521958 | X101: =(MIN(Lonen!C14*(Tabel1[[#This Row],[Jaarlijkse salarisstijging]])^Tabel1[[#This Row],[Aantal dienstjaren]],Lonen!D14))*Tabel1[[#This Row],[FTE]] -> 3680.959825 | Y101: 1.03 | Z101: =Tabel1[[#This Row],[Bruto maandsalaris]]*8% -> 294.476786 | AB101: NVT | AC101: =ABS(IF(Tabel1[[#This Row],[Jaarsalaris]]<=12169,0.08053*Tabel1[[#This Row],[Jaarsalaris]],IF(Tabel1[[#This Row],[Jaarsalaris]]<=26288,980+0.3003*(Tabel1[[#This Row],[Jaarsalaris]]-12169),IF(Tabel1[[#This Row],[Jaarsalaris]]<=43071,5220+0.02258*(Tabel1[[#This Row],[Jaarsalaris]]-26288),IF(Tabel1[[#This Row],[Jaarsalaris]]<=129078,5599-0.0651*(Tabel1[[#This Row],[Jaarsalaris]]-43071),0)))))/12 -> 440.6438167 | AD101: =Tabel1[[#This Row],[Bruto maandsalaris]]*13 -> 47852.47772 | AE101: =-Tabel1[[#This Row],[Bruto maandsalaris]]*0.08% -> -2.94476786 | AF101: =-((Tabel1[[#This Row],[Jaarsalaris]]-18475)*9.4%)/12 -> -230.1235755 | AG101: =IF(Tabel1[[#This Row],[Jaarsalaris]]<=28406, 3068, IF(AD101<=76817, 3068 - 0.06337 * (AD101 - 28406), 0))/12 -> 152.9730589 | AH101: =Tabel1[[#This Row],[Bruto maandsalaris]]+Tabel1[[#This Row],[inhouding premie]]+Tabel1[[#This Row],[Inhouding pensioen]] -> 3447.891482 | AI101: =-IF(Tabel1[[#This Row],[Belastbaar maandsalaris]]*12<=38441, Tabel1[[#This Row],[Belastbaar maandsalaris]]*0.3582, IF(Tabel1[[#This Row],[Belastbaar maandsalaris]]*12<=76817, (38441*0.3582 + (Tabel1[[#This Row],[Belastbaar maandsalaris]]*12-38441)*0.3748)/12, (38441*0.3582 + (76817-38441)*0.3748 + (Tabel1[[#This Row],[Belastbaar maandsalaris]]*12-76817)*0.495)/12))+Tabel1[[#This Row],[Heffingskorting ]] -> -1086.119952 | AJ101: =Lonen!C14/(40*4.33) -> 16.85051963
A102: EMP00055 | B102: Marieke | D102: Pieters | E102: Marieke Pieters | F102: V | G102: 1993-07-13 | H102: =(TODAY()-Tabel1[[#This Row],[Geboortedatum]])/365.25 -> 31.90691307 | I102: Stationsweg 185 | J102: 3582 GH | K102: Blaricum | L102: Voorbereiding | M102: Werkvoorbereider | N102: 2018-11-26 | O102: =(TODAY()-Tabel1[[#This Row],[Datum in dienst]])/365.25 -> 6.535249829 | P102: Vast | Q102: =ROUNDDOWN(Tabel1[[#This Row],[Aantal dienstjaren]],0) -> 6 | R102: Onbepaalde tijd | S102: 2 | T102: 1 | U102: =40*Tabel1[[#This Row],[FTE]] -> 40 | V102: UTA 5 | W102: =(MIN(Lonen!C16*(Tabel1[[#This Row],[Jaarlijkse salarisstijging]])^Tabel1[[#This Row],[Aantal dienstjaren]],Lonen!D16))/174.08 -> 26.5693937 | X102: =(MIN(Lonen!C16*(Tabel1[[#This Row],[Jaarlijkse salarisstijging]])^Tabel1[[#This Row],[Aantal dienstjaren]],Lonen!D16))*Tabel1[[#This Row],[FTE]] -> 4625.200056 | Y102: 1.03 | Z102: =Tabel1[[#This Row],[Bruto maandsalaris]]*8% -> 370.0160044 | AB102: NVT | AC102: =ABS(IF(Tabel1[[#This Row],[Jaarsalaris]]<=12169,0.08053*Tabel1[[#This Row],[Jaarsalaris]],IF(Tabel1[[#This Row],[Jaarsalaris]]<=26288,980+0.3003*(Tabel1[[#This Row],[Jaarsalaris]]-12169),IF(Tabel1[[#This Row],[Jaarsalaris]]<=43071,5220+0.02258*(Tabel1[[#This Row],[Jaarsalaris]]-26288),IF(Tabel1[[#This Row],[Jaarsalaris]]<=129078,5599-0.0651*(Tabel1[[#This Row],[Jaarsalaris]]-43071),0)))))/12 -> 374.0512744 | AD102: =Tabel1[[#This Row],[Bruto maandsalaris]]*13 -> 60127.60072 | AE102: =-Tabel1[[#This Row],[Bruto maandsalaris]]*0.08% -> -3.700160044 | AF102: =-((Tabel1[[#This Row],[Jaarsalaris]]-18475)*9.4%)/12 -> -326.2787057 | AG102: =IF(Tabel1[[#This Row],[Jaarsalaris]]<=28406, 3068, IF(AD102<=76817, 3068 - 0.06337 * (AD102 - 28406), 0))/12 -> 88.15018019 | AH102: =Tabel1[[#This Row],[Bruto maandsalaris]]+Tabel1[[#This Row],[inhouding premie]]+Tabel1[[#This Row],[Inhouding pensioen]] -> 4295.22119 | AI102: =-IF(Tabel1[[#This Row],[Belastbaar maandsalaris]]*12<=38441, Tabel1[[#This Row],[Belastbaar maandsalaris]]*0.3582, IF(Tabel1[[#This Row],[Belastbaar maandsalaris]]*12<=76817, (38441*0.3582 + (Tabel1[[#This Row],[Belastbaar maandsalaris]]*12-38441)*0.3748)/12, (38441*0.3582 + (76817-38441)*0.3748 + (Tabel1[[#This Row],[Belastbaar maandsalaris]]*12-76817)*0.495)/12))+Tabel1[[#This Row],[Heffingskorting ]] -> -1468.522005 | AJ102: =Lonen!C16/(40*4.33) -> 22.01345266
A103: EMP00071 | B103: Sandra | D103: Koning | E103: Sandra Koning | F103: V | G103: 1980-11-09 | H103: =(TODAY()-Tabel1[[#This Row],[Geboortedatum]])/365.25 -> 44.58042437 | I103: Laan van Vollenhove 180 | J103: 3905 IJ | K103: Montfoort | L103: Voorbereiding | M103: Werkvoorbereider | N103: 2022-02-20 | O103: =(TODAY()-Tabel1[[#This Row],[Datum in dienst]])/365.25 -> 3.299110198 | P103: Vast | Q103: =ROUNDDOWN(Tabel1[[#This Row],[Aantal dienstjaren]],0) -> 3 | R103: Onbepaalde tijd | S103: 3 | T103: 0.7 | U103: =40*Tabel1[[#This Row],[FTE]] -> 28 | V103: UTA 3 | W103: =(MIN(Lonen!C14*(Tabel1[[#This Row],[Jaarlijkse salarisstijging]])^Tabel1[[#This Row],[Aantal dienstjaren]],Lonen!D14))/174.08 -> 18.48262817 | X103: =(MIN(Lonen!C14*(Tabel1[[#This Row],[Jaarlijkse salarisstijging]])^Tabel1[[#This Row],[Aantal dienstjaren]],Lonen!D14))*Tabel1[[#This Row],[FTE]] -> 2252.219139 | Y103: 1.03 | Z103: =Tabel1[[#This Row],[Bruto maandsalaris]]*8% -> 180.1775311 | AB103: NVT | AC103: =ABS(IF(Tabel1[[#This Row],[Jaarsalaris]]<=12169,0.08053*Tabel1[[#This Row],[Jaarsalaris]],IF(Tabel1[[#This Row],[Jaarsalaris]]<=26288,980+0.3003*(Tabel1[[#This Row],[Jaarsalaris]]-12169),IF(Tabel1[[#This Row],[Jaarsalaris]]<=43071,5220+0.02258*(Tabel1[[#This Row],[Jaarsalaris]]-26288),IF(Tabel1[[#This Row],[Jaarsalaris]]<=129078,5599-0.0651*(Tabel1[[#This Row],[Jaarsalaris]]-43071),0)))))/12 -> 440.6277805 | AD103: =Tabel1[[#This Row],[Bruto maandsalaris]]*13 -> 29278.8488 | AE103: =-Tabel1[[#This Row],[Bruto maandsalaris]]*0.08% -> -1.801775311 | AF103: =-((Tabel1[[#This Row],[Jaarsalaris]]-18475)*9.4%)/12 -> -84.63014897 | AG103: =IF(Tabel1[[#This Row],[Jaarsalaris]]<=28406, 3068, IF(AD103<=76817, 3068 - 0.06337 * (AD103 - 28406), 0))/12 -> 251.0572976 | AH103: =Tabel1[[#This Row],[Bruto maandsalaris]]+Tabel1[[#This Row],[inhouding premie]]+Tabel1[[#This Row],[Inhouding pensioen]] -> 2165.787215 | AI103: =-IF(Tabel1[[#This Row],[Belastbaar maandsalaris]]*12<=38441, Tabel1[[#This Row],[Belastbaar maandsalaris]]*0.3582, IF(Tabel1[[#This Row],[Belastbaar maandsalaris]]*12<=76817, (38441*0.3582 + (Tabel1[[#This Row],[Belastbaar maandsalaris]]*12-38441)*0.3748)/12, (38441*0.3582 + (76817-38441)*0.3748 + (Tabel1[[#This Row],[Belastbaar maandsalaris]]*12-76817)*0.495)/12))+Tabel1[[#This Row],[Heffingskorting ]] -> -524.7276826 | AJ103: =Lonen!C14/(40*4.33) -> 16.85051963
A104: EMP00099 | B104: Jan | D104: Peetvader | E104: Jan Peetvader | F104: M | G104: 2000-05-14 | H104: =(TODAY()-Tabel1[[#This Row],[Geboortedatum]])/365.25 -> 25.07049966 | I104: Dorpsstraat 75 | J104: 3556 AB | K104: De Bilt | L104: Voorbereiding | M104: Werkvoorbereider | N104: 2022-07-02 | O104: =(TODAY()-Tabel1[[#This Row],[Datum in dienst]])/365.25 -> 2.937713895 | P104: Vast | Q104: =ROUNDDOWN(Tabel1[[#This Row],[Aantal dienstjaren]],0) -> 2 | R104: Onbepaalde tijd | S104: 3 | T104: 1 | U104: =40*Tabel1[[#This Row],[FTE]] -> 40 | V104: UTA 3 | W104: =(MIN(Lonen!C14*(Tabel1[[#This Row],[Jaarlijkse salarisstijging]])^Tabel1[[#This Row],[Aantal dienstjaren]],Lonen!D14))/174.08 -> 18.2862394 | X104: =(MIN(Lonen!C14*(Tabel1[[#This Row],[Jaarlijkse salarisstijging]])^Tabel1[[#This Row],[Aantal dienstjaren]],Lonen!D14))*Tabel1[[#This Row],[FTE]] -> 3183.268554 | Y104: 1.03 | Z104: =Tabel1[[#This Row],[Bruto maandsalaris]]*8% -> 254.6614843 | AB104: NVT | AC104: =ABS(IF(Tabel1[[#This Row],[Jaarsalaris]]<=12169,0.08053*Tabel1[[#This Row],[Jaarsalaris]],IF(Tabel1[[#This Row],[Jaarsalaris]]<=26288,980+0.3003*(Tabel1[[#This Row],[Jaarsalaris]]-12169),IF(Tabel1[[#This Row],[Jaarsalaris]]<=43071,5220+0.02258*(Tabel1[[#This Row],[Jaarsalaris]]-26288),IF(Tabel1[[#This Row],[Jaarsalaris]]<=129078,5599-0.0651*(Tabel1[[#This Row],[Jaarsalaris]]-43071),0)))))/12 -> 463.4028009 | AD104: =Tabel1[[#This Row],[Bruto maandsalaris]]*13 -> 41382.4912 | AE104: =-Tabel1[[#This Row],[Bruto maandsalaris]]*0.08% -> -2.546614843 | AF104: =-((Tabel1[[#This Row],[Jaarsalaris]]-18475)*9.4%)/12 -> -179.4420144 | AG104: =IF(Tabel1[[#This Row],[Jaarsalaris]]<=28406, 3068, IF(AD104<=76817, 3068 - 0.06337 * (AD104 - 28406), 0))/12 -> 187.1399794 | AH104: =Tabel1[[#This Row],[Bruto maandsalaris]]+Tabel1[[#This Row],[inhouding premie]]+Tabel1[[#This Row],[Inhouding pensioen]] -> 3001.279925 | AI104: =-IF(Tabel1[[#This Row],[Belastbaar maandsalaris]]*12<=38441, Tabel1[[#This Row],[Belastbaar maandsalaris]]*0.3582, IF(Tabel1[[#This Row],[Belastbaar maandsalaris]]*12<=76817, (38441*0.3582 + (Tabel1[[#This Row],[Belastbaar maandsalaris]]*12-38441)*0.3748)/12, (38441*0.3582 + (76817-38441)*0.3748 + (Tabel1[[#This Row],[Belastbaar maandsalaris]]*12-76817)*0.495)/12))+Tabel1[[#This Row],[Heffingskorting ]] -> -887.9184897 | AJ104: =Lonen!C14/(40*4.33) -> 16.85051963

Sheet po-kort (hidden)
C1: Personeelsoverzicht
A2: =Tabel1[[#This Row],[Medewerker ID]] -> EMP00005 | B2: =Tabel1[[#This Row],[Achternaam]] -> Willems | C2: =personeelsoverzicht!E2 -> Marco Willems | D2: Leeftijd | E2: =Tabel1[[#This Row],[Geboortedatum]] -> 1997-01-13 | F2: Datum in dienst | G2: =Tabel1[[#This Row],[Datum in dienst]] -> 2020-03-12 | H2: Functie | I2: =Tabel1[[#This Row],[Functietitel]] -> Accountmanager | J2: Afdeling | K2: =Tabel1[[#This Row],[Afdeling]] -> Commercie en financïen
A3: =Tabel1[[#This Row],[Medewerker ID]] -> EMP00095 | B3: =Tabel1[[#This Row],[Achternaam]] -> Boer | C3: =personeelsoverzicht!E3 -> Lucas de Boer | D3: Leeftijd | E3: =Tabel1[[#This Row],[Geboortedatum]] -> 1993-07-24 | F3: Datum in dienst | G3: =Tabel1[[#This Row],[Datum in dienst]] -> 2020-01-24 | H3: Functie | I3: =Tabel1[[#This Row],[Functietitel]] -> Accountmanager | J3: Afdeling | K3: =Tabel1[[#This Row],[Afdeling]] -> Commercie en financïen
A4: =Tabel1[[#This Row],[Medewerker ID]] -> EMP00090 | B4: =Tabel1[[#This Row],[Achternaam]] -> Vries | C4: =personeelsoverzicht!E4 -> Elma de Vries | D4: Leeftijd | E4: =Tabel1[[#This Row],[Geboortedatum]] -> 1998-12-02 | F4: Datum in dienst | G4: =Tabel1[[#This Row],[Datum in dienst]] -> 2020-09-02 | H4: Functie | I4: =Tabel1[[#This Row],[Functietitel]] -> Administratief medewerker | J4: Afdeling | K4: =Tabel1[[#This Row],[Afdeling]] -> Commercie en financïen
A5: =Tabel1[[#This Row],[Medewerker ID]] -> EMP00102 | B5: =Tabel1[[#This Row],[Achternaam]] -> Jansen | C5: =personeelsoverzicht!E5 -> Sandra Jansen | D5: Leeftijd | E5: =Tabel1[[#This Row],[Geboortedatum]] -> 1994-12-10 | F5: Datum in dienst | G5: =Tabel1[[#This Row],[Datum in dienst]] -> 2023-10-26 | H5: Functie | I5: =Tabel1[[#This Row],[Functietitel]] -> Administratief medewerker | J5: Afdeling | K5: =Tabel1[[#This Row],[Afdeling]] -> Commercie en financïen
A6: =Tabel1[[#This Row],[Medewerker ID]] -> EMP00002 | B6: =Tabel1[[#This Row],[Achternaam]] -> Bos | C6: =personeelsoverzicht!E6 -> Eelco Bos | D6: Leeftijd | E6: =Tabel1[[#This Row],[Geboortedatum]] -> 1972-06-08 | F6: Datum in dienst | G6: =Tabel1[[#This Row],[Datum in dienst]] -> 2011-03-08 | H6: Functie | I6: =Tabel1[[#This Row],[Functietitel]] -> All-round lasser buisleidingen | J6: Afdeling | K6: =Tabel1[[#This Row],[Afdeling]] -> Uitvoering
A7: =Tabel1[[#This Row],[Medewerker ID]] -> EMP00003 | B7: =Tabel1[[#This Row],[Achternaam]] -> Loo | C7: =personeelsoverzicht!E7 -> Ayoub van der Loo | D7: Leeftijd | E7: =Tabel1[[#This Row],[Geboortedatum]] -> 1978-06-04 | F7: Datum in dienst | G7: =Tabel1[[#This Row],[Datum in dienst]] -> 2010-10-15 | H7: Functie | I7: =Tabel1[[#This Row],[Functietitel]] -> All-round lasser buisleidingen | J7: Afdeling | K7: =Tabel1[[#This Row],[Afdeling]] -> Uitvoering
A8: =Tabel1[[#This Row],[Medewerker ID]] -> EMP00084 | B8: =Tabel1[[#This Row],[Achternaam]] -> Jansen | C8: =personeelsoverzicht!E8 -> Sanne Jansen | D8: Leeftijd | E8: =Tabel1[[#This Row],[Geboortedatum]] -> 1979-04-04 | F8: Datum in dienst | G8: =Tabel1[[#This Row],[Datum in dienst]] -> 2012-07-18 | H8: Functie | I8: =Tabel1[[#This Row],[Functietitel]] -> Bedrijfsjurist | J8: Afdeling | K8: =Tabel1[[#This Row],[Afdeling]] -> Staf
A9: =Tabel1[[#This Row],[Medewerker ID]] -> EMP00093 | B9: =Tabel1[[#This Row],[Achternaam]] -> Bakker | C9: =personeelsoverzicht!E9 -> Jan Bakker | D9: Leeftijd | E9: =Tabel1[[#This Row],[Geboortedatum]] -> 1984-03-26 | F9: Datum in dienst | G9: =Tabel1[[#This Row],[Datum in dienst]] -> 2010-03-21 | H9: Functie | I9: =Tabel1[[#This Row],[Functietitel]] -> Bedrijfsjurist | J9: Afdeling | K9: =Tabel1[[#This Row],[Afdeling]] -> Staf
A10: =Tabel1[[#This Row],[Medewerker ID]] -> EMP00065 | B10: =Tabel1[[#This Row],[Achternaam]] -> Boer | C10: =personeelsoverzicht!E10 -> Bram de Boer | D10: Leeftijd | E10: =Tabel1[[#This Row],[Geboortedatum]] -> 1976-02-15 | F10: Datum in dienst | G10: =Tabel1[[#This Row],[Datum in dienst]] -> 2009-05-21 | H10: Functie | I10: =Tabel1[[#This Row],[Functietitel]] -> Beheerder magazijn | J10: Afdeling | K10: =Tabel1[[#This Row],[Afdeling]] -> Uitvoering
A11: =Tabel1[[#This Row],[Medewerker ID]] -> EMP00023 | B11: =Tabel1[[#This Row],[Achternaam]] -> Melet | C11: =personeelsoverzicht!E11 -> Jules Melet | D11: Leeftijd | E11: =Tabel1[[#This Row],[Geboortedatum]] -> 1966-07-21 | F11: Datum in dienst | G11: =Tabel1[[#This Row],[Datum in dienst]] -> 2020-07-12 | H11: Functie | I11: =Tabel1[[#This Row],[Functietitel]] -> Beheerder materieel | J11: Afdeling | K11: =Tabel1[[#This Row],[Afdeling]] -> Uitvoering
A12: =Tabel1[[#This Row],[Medewerker ID]] -> EMP00014 | B12: =Tabel1[[#This Row],[Achternaam]] -> Graven | C12: =personeelsoverzicht!E12 -> Mano van Graven | D12: Leeftijd | E12: =Tabel1[[#This Row],[Geboortedatum]] -> 1976-10-27 | F12: Datum in dienst | G12: =Tabel1[[#This Row],[Datum in dienst]] -> 2005-07-21 | H12: Functie | I12: =Tabel1[[#This Row],[Functietitel]] -> Betonstorter | J12: Afdeling | K12: =Tabel1[[#This Row],[Afdeling]] -> Uitvoering
A13: =Tabel1[[#This Row],[Medewerker ID]] -> EMP00036 | B13: =Tabel1[[#This Row],[Achternaam]] -> Louws | C13: =personeelsoverzicht!E13 -> Zack Louws | D13: Leeftijd | E13: =Tabel1[[#This Row],[Geboortedatum]] -> 1966-01-07 | F13: Datum in dienst | G13: =Tabel1[[#This Row],[Datum in dienst]] -> 2008-05-22 | H13: Functie | I13: =Tabel1[[#This Row],[Functietitel]] -> Betonstorter | J13: Afdeling | K13: =Tabel1[[#This Row],[Afdeling]] -> Uitvoering
A14: =Tabel1[[#This Row],[Medewerker ID]] -> EMP00008 | B14: =Tabel1[[#This Row],[Achternaam]] -> Krabbe | C14: =personeelsoverzicht!E14 -> Michael Krabbe | D14: Leeftijd | E14: =Tabel1[[#This Row],[Geboortedatum]] -> 1977-06-07 | F14: Datum in dienst | G14: =Tabel1[[#This Row],[Datum in dienst]] -> 2014-02-10 | H14: Functie | I14: =Tabel1[[#This Row],[Functietitel]] -> Betonwerker I | J14: Afdeling | K14: =Tabel1[[#This Row],[Afdeling]] -> Uitvoering
A15: =Tabel1[[#This Row],[Medewerker ID]] -> EMP00011 | B15: =Tabel1[[#This Row],[Achternaam]] -> Belpere | C15: =personeelsoverzicht!E15 -> Luuk Belpere | D15: Leeftijd | E15: =Tabel1[[#This Row],[Geboortedatum]] -> 1988-04-12 | F15: Datum in dienst | G15: =Tabel1[[#This Row],[Datum in dienst]] -> 2017-08-27 | H15: Functie | I15: =Tabel1[[#This Row],[Functietitel]] -> Betonwerker I | J15: Afdeling | K15: =Tabel1[[#This Row],[Afdeling]] -> Uitvoering
A16: =Tabel1[[#This Row],[Medewerker ID]] -> EMP00015 | B16: =Tabel1[[#This Row],[Achternaam]] -> Geffen | C16: =personeelsoverzicht!E16 -> Ewout van Geffen | D16: Leeftijd | E16: =Tabel1[[#This Row],[Geboortedatum]] -> 1993-01-04 | F16: Datum in dienst | G16: =Tabel1[[#This Row],[Datum in dienst]] -> 2023-04-14 | H16: Functie | I16: =Tabel1[[#This Row],[Functietitel]] -> Betonwerker I | J16: Afdeling | K16: =Tabel1[[#This Row],[Afdeling]] -> Uitvoering
A17: =Tabel1[[#This Row],[Medewerker ID]] -> EMP00018 | B17: =Tabel1[[#This Row],[Achternaam]] -> Bruchem | C17: =personeelsoverzicht!E17 -> Bryan van Bruchem | D17: Leeftijd | E17: =Tabel1[[#This Row],[Geboortedatum]] -> 1965-02-16 | F17: Datum in dienst | G17: =Tabel1[[#This Row],[Datum in dienst]] -> 2008-12-13 | H17: Functie | I17: =Tabel1[[#This Row],[Functietitel]] -> Betonwerker II | J17: Afdeling | K17: =Tabel1[[#This Row],[Afdeling]] -> Uitvoering
A18: =Tabel1[[#This Row],[Medewerker ID]] -> EMP00024 | B18: =Tabel1[[#This Row],[Achternaam]] -> Bruijn | C18: =personeelsoverzicht!E18 -> Ismo de Bruijn | D18: Leeftijd | E18: =Tabel1[[#This Row],[Geboortedatum]] -> 1990-08-04 | F18: Datum in dienst | G18: =Tabel1[[#This Row],[Datum in dienst]] -> 2007-02-17 | H18: Functie | I18: =Tabel1[[#This Row],[Functietitel]] -> Betonwerker II | J18: Afdeling | K18: =Tabel1[[#This Row],[Afdeling]] -> Uitvoering
A19: =Tabel1[[#This Row],[Medewerker ID]] -> EMP00025 | B19: =Tabel1[[#This Row],[Achternaam]] -> Zwart | C19: =personeelsoverzicht!E19 -> Rick Zwart | D19: Leeftijd | E19: =Tabel1[[#This Row],[Geboortedatum]] -> 1979-12-01 | F19: Datum in dienst | G19: =Tabel1[[#This Row],[Datum in dienst]] -> 2006-09-13 | H19: Functie | I19: =Tabel1[[#This Row],[Functietitel]] -> Betonwerker II | J19: Afdeling | K19: =Tabel1[[#This Row],[Afdeling]] -> Uitvoering
A20: =Tabel1[[#This Row],[Medewerker ID]] -> EMP00028 | B20: =Tabel1[[#This Row],[Achternaam]] -> Spreuwel | C20: =personeelsoverzicht!E20 -> Lenhart van Spreuwel | D20: Leeftijd | E20: =Tabel1[[#This Row],[Geboortedatum]] -> 1971-04-05 | F20: Datum in dienst | G20: =Tabel1[[#This Row],[Datum in dienst]] -> 2021-11-09 | H20: Functie | I20: =Tabel1[[#This Row],[Functietitel]] -> Betonwerker II | J20: Afdeling | K20: =Tabel1[[#This Row],[Afdeling]] -> Uitvoering
A21: =Tabel1[[#This Row],[Medewerker ID]] -> EMP00037 | B21: =Tabel1[[#This Row],[Achternaam]] -> Hoogh | C21: =personeelsoverzicht!E21 -> Gijs de Hoogh | D21: Leeftijd | E21: =Tabel1[[#This Row],[Geboortedatum]] -> 1989-04-10 | F21: Datum in dienst | G21: =Tabel1[[#This Row],[Datum in dienst]] -> 2018-07-07 | H21: Functie | I21: =Tabel1[[#This Row],[Functietitel]] -> Betonwerker II | J21: Afdeling | K21: =Tabel1[[#This Row],[Afdeling]] -> Uitvoering
A22: =Tabel1[[#This Row],[Medewerker ID]] -> EMP00080 | B22: =Tabel1[[#This Row],[Achternaam]] -> Adema | C22: =personeelsoverzicht!E22 -> Lucas Adema | D22: Leeftijd | E22: =Tabel1[[#This Row],[Geboortedatum]] -> 1975-01-07 | F22: Datum in dienst | G22: =Tabel1[[#This Row],[Datum in dienst]] -> 2014-11-12 | H22: Functie | I22: =Tabel1[[#This Row],[Functietitel]] -> Boorassistent | J22: Afdeling | K22: =Tabel1[[#This Row],[Afdeling]] -> Uitvoering
A23: =Tabel1[[#This Row],[Medewerker ID]] -> EMP00081 | B23: =Tabel1[[#This Row],[Achternaam]] -> Jansen | C23: =personeelsoverzicht!E23 -> Sven Jansen | D23: Leeftijd | E23: =Tabel1[[#This Row],[Geboortedatum]] -> 1991-01-06 | F23: Datum in dienst | G23: =Tabel1[[#This Row],[Datum in dienst]] -> 2016-09-10 | H23: Functie | I23: =Tabel1[[#This Row],[Functietitel]] -> Boorassistent | J23: Afdeling | K23: =Tabel1[[#This Row],[Afdeling]] -> Uitvoering
A24: =Tabel1[[#This Row],[Medewerker ID]] -> EMP00085 | B24: =Tabel1[[#This Row],[Achternaam]] -> Bakker | C24: =personeelsoverzicht!E24 -> Simon Bakker | D24: Leeftijd | E24: =Tabel1[[#This Row],[Geboortedatum]] -> 1983-02-23 | F24: Datum in dienst | G24: =Tabel1[[#This Row],[Datum in dienst]] -> 2013-11-25 | H24: Functie | I24: =Tabel1[[#This Row],[Functietitel]] -> Boorassistent | J24: Afdeling | K24: =Tabel1[[#This Row],[Afdeling]] -> Uitvoering
A25: =Tabel1[[#This Row],[Medewerker ID]] -> EMP00048 | B25: =Tabel1[[#This Row],[Achternaam]] -> Kremer | C25: =personeelsoverzicht!E25 -> Jorrit Kremer | D25: Leeftijd | E25: =Tabel1[[#This Row],[Geboortedatum]] -> 1977-03-10 | F25: Datum in dienst | G25: =Tabel1[[#This Row],[Datum in dienst]] -> 2012-06-04 | H25: Functie | I25: =Tabel1[[#This Row],[Functietitel]] -> Boormeester I | J25: Afdeling | K25: =Tabel1[[#This Row],[Afdeling]] -> Uitvoering
A26: =Tabel1[[#This Row],[Medewerker ID]] -> EMP00057 | B26: =Tabel1[[#This Row],[Achternaam]] -> Vries | C26: =personeelsoverzicht!E26 -> Jan de Vries | D26: Leeftijd | E26: =Tabel1[[#This Row],[Geboortedatum]] -> 1969-07-21 | F26: Datum in dienst | G26: =Tabel1[[#This Row],[Datum in dienst]] -> 2010-02-17 | H26: Functie | I26: =Tabel1[[#This Row],[Functietitel]] -> Boormeester I | J26: Afdeling | K26: =Tabel1[[#This Row],[Afdeling]] -> Uitvoering
A27: =Tabel1[[#This Row],[Medewerker ID]] -> EMP00051 | B27: =Tabel1[[#This Row],[Achternaam]] -> Boer | C27: =personeelsoverzicht!E27 -> Pieter de Boer | D27: Leeftijd | E27: =Tabel1[[#This Row],[Geboortedatum]] -> 1988-05-15 | F27: Datum in dienst | G27: =Tabel1[[#This Row],[Datum in dienst]] -> 2015-04-08 | H27: Functie | I27: =Tabel1[[#This Row],[Functietitel]] -> Boormeester II | J27: Afdeling | K27: =Tabel1[[#This Row],[Afdeling]] -> Uitvoering
A28: =Tabel1[[#This Row],[Medewerker ID]] -> EMP00070 | B28: =Tabel1[[#This Row],[Achternaam]] -> Koning | C28: =personeelsoverzicht!E28 -> Evert Koning | D28: Leeftijd | E28: =Tabel1[[#This Row],[Geboortedatum]] -> 1967-06-19 | F28: Datum in dienst | G28: =Tabel1[[#This Row],[Datum in dienst]] -> 2019-06-12 | H28: Functie | I28: =Tabel1[[#This Row],[Functietitel]] -> Boormeester II | J28: Afdeling | K28: =Tabel1[[#This Row],[Afdeling]] -> Uitvoering
A29: =Tabel1[[#This Row],[Medewerker ID]] -> EMP00006 | B29: =Tabel1[[#This Row],[Achternaam]] -> Bellemans | C29: =personeelsoverzicht!E29 -> Olaf Bellemans | D29: Leeftijd | E29: =Tabel1[[#This Row],[Geboortedatum]] -> 1999-11-20 | F29: Datum in dienst | G29: =Tabel1[[#This Row],[Datum in dienst]] -> 2022-08-14 | H29: Functie | I29: =Tabel1[[#This Row],[Functietitel]] -> Bouwhelper | J29: Afdeling | K29: =Tabel1[[#This Row],[Afdeling]] -> Uitvoering
A30: =Tabel1[[#This Row],[Medewerker ID]] -> EMP00010 | B30: =Tabel1[[#This Row],[Achternaam]] -> Huberts | C30: =personeelsoverzicht!E30 -> Thijs Huberts | D30: Leeftijd | E30: =Tabel1[[#This Row],[Geboortedatum]] -> 1998-02-09 | F30: Datum in dienst | G30: =Tabel1[[#This Row],[Datum in dienst]] -> 2021-11-02 | H30: Functie | I30: =Tabel1[[#This Row],[Functietitel]] -> Bouwhelper | J30: Afdeling | K30: =Tabel1[[#This Row],[Afdeling]] -> Uitvoering
A31: =Tabel1[[#This Row],[Medewerker ID]] -> EMP00016 | B31: =Tabel1[[#This Row],[Achternaam]] -> Stael | C31: =personeelsoverzicht!E31 -> Hamza van der Stael | D31: Leeftijd | E31: =Tabel1[[#This Row],[Geboortedatum]] -> 2001-10-02 | F31: Datum in dienst | G31: =Tabel1[[#This Row],[Datum in dienst]] -> 2023-07-20 | H31: Functie | I31: =Tabel1[[#This Row],[Functietitel]] -> Bouwhelper | J31: Afdeling | K31: =Tabel1[[#This Row],[Afdeling]] -> Uitvoering
A32: =Tabel1[[#This Row],[Medewerker ID]] -> EMP00019 | B32: =Tabel1[[#This Row],[Achternaam]] -> Geest | C32: =personeelsoverzicht!E32 -> Adriaan van Geest | D32: Leeftijd | E32: =Tabel1[[#This Row],[Geboortedatum]] -> 2000-06-25 | F32: Datum in dienst | G32: =Tabel1[[#This Row],[Datum in dienst]] -> 2024-02-20 | H32: Functie | I32: =Tabel1[[#This Row],[Functietitel]] -> Bouwhelper | J32: Afdeling | K32: =Tabel1[[#This Row],[Afdeling]] -> Uitvoering
A33: =Tabel1[[#This Row],[Medewerker ID]] -> EMP00056 | B33: =Tabel1[[#This Row],[Achternaam]] -> Koning | C33: =personeelsoverzicht!E33 -> Hans Koning | D33: Leeftijd | E33: =Tabel1[[#This Row],[Geboortedatum]] -> 2001-12-22 | F33: Datum in dienst | G33: =Tabel1[[#This Row],[Datum in dienst]] -> 2021-02-28 | H33: Functie | I33: =Tabel1[[#This Row],[Functietitel]] -> Bouwhelper | J33: Afdeling | K33: =Tabel1[[#This Row],[Afdeling]] -> Uitvoering
A34: =Tabel1[[#This Row],[Medewerker ID]] -> EMP00007 | B34: =Tabel1[[#This Row],[Achternaam]] -> Bovene | C34: =personeelsoverzicht!E34 -> Sepp van Bovene | D34: Leeftijd | E34: =Tabel1[[#This Row],[Geboortedatum]] -> 1985-09-22 | F34: Datum in dienst | G34: =Tabel1[[#This Row],[Datum in dienst]] -> 2019-10-19 | H34: Functie | I34: =Tabel1[[#This Row],[Functietitel]] -> Calculator/Kostendeskundige | J34: Afdeling | K34: =Tabel1[[#This Row],[Afdeling]] -> Voorbereiding
A35: =Tabel1[[#This Row],[Medewerker ID]] -> EMP00061 | B35: =Tabel1[[#This Row],[Achternaam]] -> Boer | C35: =personeelsoverzicht!E35 -> Hans de Boer | D35: Leeftijd | E35: =Tabel1[[#This Row],[Geboortedatum]] -> 1991-09-23 | F35: Datum in dienst | G35: =Tabel1[[#This Row],[Datum in dienst]] -> 2020-07-19 | H35: Functie | I35: =Tabel1[[#This Row],[Functietitel]] -> Calculator/Kostendeskundige | J35: Afdeling | K35: =Tabel1[[#This Row],[Afdeling]] -> Voorbereiding
A36: =Tabel1[[#This Row],[Medewerker ID]] -> EMP00029 | B36: =Tabel1[[#This Row],[Achternaam]] -> Schouten | C36: =personeelsoverzicht!E36 -> Joep Schouten | D36: Leeftijd | E36: =Tabel1[[#This Row],[Geboortedatum]] -> 1974-03-11 | F36: Datum in dienst | G36: =Tabel1[[#This Row],[Datum in dienst]] -> 2009-01-25 | H36: Functie | I36: =Tabel1[[#This Row],[Functietitel]] -> Computerbediening | J36: Afdeling | K36: =Tabel1[[#This Row],[Afdeling]] -> Staf
A37: =Tabel1[[#This Row],[Medewerker ID]] -> EMP00040 | B37: =Tabel1[[#This Row],[Achternaam]] -> Bragt | C37: =personeelsoverzicht!E37 -> Evelien van Bragt | D37: Leeftijd | E37: =Tabel1[[#This Row],[Geboortedatum]] -> 2000-04-03 | F37: Datum in dienst | G37: =Tabel1[[#This Row],[Datum in dienst]] -> 2020-12-12 | H37: Functie | I37: =Tabel1[[#This Row],[Functietitel]] -> Computerbediening | J37: Afdeling | K37: =Tabel1[[#This Row],[Afdeling]] -> Staf
A38: =Tabel1[[#This Row],[Medewerker ID]] -> EMP00026 | B38: =Tabel1[[#This Row],[Achternaam]] -> Rijnsbergen | C38: =personeelsoverzicht!E38 -> Kyara van Rijnsbergen | D38: Leeftijd | E38: =Tabel1[[#This Row],[Geboortedatum]] -> 1970-06-16 | F38: Datum in dienst | G38: =Tabel1[[#This Row],[Datum in dienst]] -> 2014-05-04 | H38: Functie | I38: =Tabel1[[#This Row],[Functietitel]] -> Contractmanager | J38: Afdeling | K38: =Tabel1[[#This Row],[Afdeling]] -> Commercie en financïen
A39: =Tabel1[[#This Row],[Medewerker ID]] -> EMP00098 | B39: =Tabel1[[#This Row],[Achternaam]] -> Boer | C39: =personeelsoverzicht!E39 -> Jan de Boer | D39: Leeftijd | E39: =Tabel1[[#This Row],[Geboortedatum]] -> 1965-07-27 | F39: Datum in dienst | G39: =Tabel1[[#This Row],[Datum in dienst]] -> 2014-03-18 | H39: Functie | I39: =Tabel1[[#This Row],[Functietitel]] -> Contractmanager | J39: Afdeling | K39: =Tabel1[[#This Row],[Afdeling]] -> Commercie en financïen
A40: =Tabel1[[#This Row],[Medewerker ID]] -> EMP00030 | B40: =Tabel1[[#This Row],[Achternaam]] -> Rousselet | C40: =personeelsoverzicht!E40 -> Tycho Rousselet | D40: Leeftijd | E40: =Tabel1[[#This Row],[Geboortedatum]] -> 1967-12-22 | F40: Datum in dienst | G40: =Tabel1[[#This Row],[Datum in dienst]] -> 2012-12-27 | H40: Functie | I40: =Tabel1[[#This Row],[Functietitel]] -> Directeur CEO | J40: Afdeling | K40: =Tabel1[[#This Row],[Afdeling]] -> Staf
A41: =Tabel1[[#This Row],[Medewerker ID]] -> EMP00072 | B41: =Tabel1[[#This Row],[Achternaam]] -> Pieters | C41: =personeelsoverzicht!E41 -> Hans Pieters | D41: Leeftijd | E41: =Tabel1[[#This Row],[Geboortedatum]] -> 1983-12-08 | F41: Datum in dienst | G41: =Tabel1[[#This Row],[Datum in dienst]] -> 2008-08-10 | H41: Functie | I41: =Tabel1[[#This Row],[Functietitel]] -> Directeur CFO | J41: Afdeling | K41: =Tabel1[[#This Row],[Afdeling]] -> Commercie en financïen
A42: =Tabel1[[#This Row],[Medewerker ID]] -> EMP00050 | B42: =Tabel1[[#This Row],[Achternaam]] -> Kof | C42: =personeelsoverzicht!E42 -> Peter Kof | D42: Leeftijd | E42: =Tabel1[[#This Row],[Geboortedatum]] -> 1970-05-19 | F42: Datum in dienst | G42: =Tabel1[[#This Row],[Datum in dienst]] -> 2019-04-12 | H42: Functie | I42: =Tabel1[[#This Row],[Functietitel]] -> Directeur COO | J42: Afdeling | K42: =Tabel1[[#This Row],[Afdeling]] -> Voorbereiding
A43: =Tabel1[[#This Row],[Medewerker ID]] -> EMP00083 | B43: =Tabel1[[#This Row],[Achternaam]] -> Vermeer | C43: =personeelsoverzicht!E43 -> Eddie Vermeer | D43: Leeftijd | E43: =Tabel1[[#This Row],[Geboortedatum]] -> 1978-07-23 | F43: Datum in dienst | G43: =Tabel1[[#This Row],[Datum in dienst]] -> 2009-10-09 | H43: Functie | I43: =Tabel1[[#This Row],[Functietitel]] -> Funderingsspecialist | J43: Afdeling | K43: =Tabel1[[#This Row],[Afdeling]] -> Uitvoering
A44: =Tabel1[[#This Row],[Medewerker ID]] -> EMP00049 | B44: =Tabel1[[#This Row],[Achternaam]] -> Verbeek | C44: =personeelsoverzicht!E44 -> Mark Verbeek | D44: Leeftijd | E44: =Tabel1[[#This Row],[Geboortedatum]] -> 1995-12-08 | F44: Datum in dienst | G44: =Tabel1[[#This Row],[Datum in dienst]] -> 2013-11-15 | H44: Functie | I44: =Tabel1[[#This Row],[Functietitel]] -> funderingswerker I | J44: Afdeling | K44: =Tabel1[[#This Row],[Afdeling]] -> Uitvoering
A45: =Tabel1[[#This Row],[Medewerker ID]] -> EMP00058 | B45: =Tabel1[[#This Row],[Achternaam]] -> Jansen | C45: =personeelsoverzicht!E45 -> Stefan Jansen | D45: Leeftijd | E45: =Tabel1[[#This Row],[Geboortedatum]] -> 1965-01-05 | F45: Datum in dienst | G45: =Tabel1[[#This Row],[Datum in dienst]] -> 2017-07-02 | H45: Functie | I45: =Tabel1[[#This Row],[Functietitel]] -> funderingswerker I | J45: Afdeling | K45: =Tabel1[[#This Row],[Afdeling]] -> Uitvoering
A46: =Tabel1[[#This Row],[Medewerker ID]] -> EMP00062 | B46: =Tabel1[[#This Row],[Achternaam]] -> Jansen | C46: =personeelsoverzicht!E46 -> Jan Jansen | D46: Leeftijd | E46: =Tabel1[[#This Row],[Geboortedatum]] -> 1994-11-17 | F46: Datum in dienst | G46: =Tabel1[[#This Row],[Datum in dienst]] -> 2023-08-02 | H46: Functie | I46: =Tabel1[[#This Row],[Functietitel]] -> Funderingswerker I | J46: Afdeling | K46: =Tabel1[[#This Row],[Afdeling]] -> Uitvoering
A47: =Tabel1[[#This Row],[Medewerker ID]] -> EMP00087 | B47: =Tabel1[[#This Row],[Achternaam]] -> Dijkstra | C47: =personeelsoverzicht!E47 -> Jan Dijkstra | D47: Leeftijd | E47: =Tabel1[[#This Row],[Geboortedatum]] -> 1985-04-01 | F47: Datum in dienst | G47: =Tabel1[[#This Row],[Datum in dienst]] -> 2015-08-15 | H47: Functie | I47: =Tabel1[[#This Row],[Functietitel]] -> funderingswerker I | J47: Afdeling | K47: =Tabel1[[#This Row],[Afdeling]] -> Uitvoering
A48: =Tabel1[[#This Row],[Medewerker ID]] -> EMP00012 | B48: =Tabel1[[#This Row],[Achternaam]] -> Luin | C48: =personeelsoverzicht!E48 -> Swen van Luin | D48: Leeftijd | E48: =Tabel1[[#This Row],[Geboortedatum]] -> 1968-07-14 | F48: Datum in dienst | G48: =Tabel1[[#This Row],[Datum in dienst]] -> 2012-12-22 | H48: Functie | I48: =Tabel1[[#This Row],[Functietitel]] -> Funderingswerker II | J48: Afdeling | K48: =Tabel1[[#This Row],[Afdeling]] -> Uitvoering
A49: =Tabel1[[#This Row],[Medewerker ID]] -> EMP00054 | B49: =Tabel1[[#This Row],[Achternaam]] -> Pieters | C49: =personeelsoverzicht!E49 -> Pieter Pieters | D49: Leeftijd | E49: =Tabel1[[#This Row],[Geboortedatum]] -> 1976-11-18 | F49: Datum in dienst | G49: =Tabel1[[#This Row],[Datum in dienst]] -> 2008-08-14 | H49: Functie | I49: =Tabel1[[#This Row],[Functietitel]] -> Funderingswerker II | J49: Afdeling | K49: =Tabel1[[#This Row],[Afdeling]] -> Uitvoering
A50: =Tabel1[[#This Row],[Medewerker ID]] -> EMP00078 | B50: =Tabel1[[#This Row],[Achternaam]] -> Dijkstra | C50: =personeelsoverzicht!E50 -> Sjors Dijkstra | D50: Leeftijd | E50: =Tabel1[[#This Row],[Geboortedatum]] -> 1981-09-04 | F50: Datum in dienst | G50: =Tabel1[[#This Row],[Datum in dienst]] -> 2007-07-23 | H50: Functie | I50: =Tabel1[[#This Row],[Functietitel]] -> Funderingswerker II | J50: Afdeling | K50: =Tabel1[[#This Row],[Afdeling]] -> Uitvoering
A51: =Tabel1[[#This Row],[Medewerker ID]] -> EMP00022 | B51: =Tabel1[[#This Row],[Achternaam]] -> Beek | C51: =personeelsoverzicht!E51 -> Lenny van Beek | D51: Leeftijd | E51: =Tabel1[[#This Row],[Geboortedatum]] -> 1994-09-05 | F51: Datum in dienst | G51: =Tabel1[[#This Row],[Datum in dienst]] -> 2017-03-07 | H51: Functie | I51: =Tabel1[[#This Row],[Functietitel]] -> Heier I | J51: Afdeling | K51: =Tabel1[[#This Row],[Afdeling]] -> Uitvoering
A52: =Tabel1[[#This Row],[Medewerker ID]] -> EMP00067 | B52: =Tabel1[[#This Row],[Achternaam]] -> Mulder | C52: =personeelsoverzicht!E52 -> Sander Mulder | D52: Leeftijd | E52: =Tabel1[[#This Row],[Geboortedatum]] -> 1990-09-10 | F52: Datum in dienst | G52: =Tabel1[[#This Row],[Datum in dienst]] -> 2013-03-13 | H52: Functie | I52: =Tabel1[[#This Row],[Functietitel]] -> Heier II | J52: Afdeling | K52: =Tabel1[[#This Row],[Afdeling]] -> Uitvoering
A53: =Tabel1[[#This Row],[Medewerker ID]] -> EMP00068 | B53: =Tabel1[[#This Row],[Achternaam]] -> Berends | C53: =personeelsoverzicht!E53 -> Bram Berends | D53: Leeftijd | E53: =Tabel1[[#This Row],[Geboortedatum]] -> 1971-04-10 | F53: Datum in dienst | G53: =Tabel1[[#This Row],[Datum in dienst]] -> 2005-01-20 | H53: Functie | I53: =Tabel1[[#This Row],[Functietitel]] -> Heier II | J53: Afdeling | K53: =Tabel1[[#This Row],[Afdeling]] -> Uitvoering
A54: =Tabel1[[#This Row],[Medewerker ID]] -> EMP00074 | B54: =Tabel1[[#This Row],[Achternaam]] -> Spoelstra | C54: =personeelsoverzicht!E54 -> Kees Spoelstra | D54: Leeftijd | E54: =Tabel1[[#This Row],[Geboortedatum]] -> 1982-03-27 | F54: Datum in dienst | G54: =Tabel1[[#This Row],[Datum in dienst]] -> 2011-04-12 | H54: Functie | I54: =Tabel1[[#This Row],[Functietitel]] -> Heier II | J54: Afdeling | K54: =Tabel1[[#This Row],[Afdeling]] -> Uitvoering
A55: =Tabel1[[#This Row],[Medewerker ID]] -> EMP00004 | B55: =Tabel1[[#This Row],[Achternaam]] -> Luxemburg | C55: =personeelsoverzicht!E55 -> Tyler van Luxemburg | D55: Leeftijd | E55: =Tabel1[[#This Row],[Geboortedatum]] -> 1979-10-02 | F55: Datum in dienst | G55: =Tabel1[[#This Row],[Datum in dienst]] -> 2017-05-16 | H55: Functie | I55: =Tabel1[[#This Row],[Functietitel]] -> HR-Manager | J55: Afdeling | K55: =Tabel1[[#This Row],[Afdeling]] -> Staf
A56: =Tabel1[[#This Row],[Medewerker ID]] -> EMP00020 | B56: =Tabel1[[#This Row],[Achternaam]] -> Dongen | C56: =personeelsoverzicht!E56 -> Samuel van Dongen | D56: Leeftijd | E56: =Tabel1[[#This Row],[Geboortedatum]] -> 1987-01-26 | F56: Datum in dienst | G56: =Tabel1[[#This Row],[Datum in dienst]] -> 2011-04-02 | H56: Functie | I56: =Tabel1[[#This Row],[Functietitel]] -> HR-medewerker | J56: Afdeling | K56: =Tabel1[[#This Row],[Afdeling]] -> Staf
A57: =Tabel1[[#This Row],[Medewerker ID]] -> EMP00041 | B57: =Tabel1[[#This Row],[Achternaam]] -> Weeldenburg | C57: =personeelsoverzicht!E57 -> Lars Weeldenburg | D57: Leeftijd | E57: =Tabel1[[#This Row],[Geboortedatum]] -> 1991-01-20 | F57: Datum in dienst | G57: =Tabel1[[#This Row],[Datum in dienst]] -> 2020-02-26 | H57: Functie | I57: =Tabel1[[#This Row],[Functietitel]] -> Kabellasser I | J57: Afdeling | K57: =Tabel1[[#This Row],[Afdeling]] -> Uitvoering
A58: =Tabel1[[#This Row],[Medewerker ID]] -> EMP00044 | B58: =Tabel1[[#This Row],[Achternaam]] -> Leuven | C58: =personeelsoverzicht!E58 -> Chris van Leuven | D58: Leeftijd | E58: =Tabel1[[#This Row],[Geboortedatum]] -> 1979-02-26 | F58: Datum in dienst | G58: =Tabel1[[#This Row],[Datum in dienst]] -> 2014-02-24 | H58: Functie | I58: =Tabel1[[#This Row],[Functietitel]] -> Kabellasser I | J58: Afdeling | K58: =Tabel1[[#This Row],[Afdeling]] -> Uitvoering
A59: =Tabel1[[#This Row],[Medewerker ID]] -> EMP00046 | B59: =Tabel1[[#This Row],[Achternaam]] -> Biesenbos | C59: =personeelsoverzicht!E59 -> Pim van de Biesenbos | D59: Leeftijd | E59: =Tabel1[[#This Row],[Geboortedatum]] -> 1999-03-06 | F59: Datum in dienst | G59: =Tabel1[[#This Row],[Datum in dienst]] -> 2021-04-18 | H59: Functie | I59: =Tabel1[[#This Row],[Functietitel]] -> Kabellasser II | J59: Afdeling | K59: =Tabel1[[#This Row],[Afdeling]] -> Uitvoering
A60: =Tabel1[[#This Row],[Medewerker ID]] -> EMP00047 | B60: =Tabel1[[#This Row],[Achternaam]] -> Ooms | C60: =personeelsoverzicht!E60 -> Ingmar Ooms | D60: Leeftijd | E60: =Tabel1[[#This Row],[Geboortedatum]] -> 1985-12-05 | F60: Datum in dienst | G60: =Tabel1[[#This Row],[Datum in dienst]] -> 2009-02-25 | H60: Functie | I60: =Tabel1[[#This Row],[Functietitel]] -> Kabellasser II | J60: Afdeling | K60: =Tabel1[[#This Row],[Afdeling]] -> Uitvoering
A61: =Tabel1[[#This Row],[Medewerker ID]] -> EMP00064 | B61: =Tabel1[[#This Row],[Achternaam]] -> Pieters | C61: =personeelsoverzicht!E61 -> Sander Pieters | D61: Leeftijd | E61: =Tabel1[[#This Row],[Geboortedatum]] -> 1990-04-02 | F61: Datum in dienst | G61: =Tabel1[[#This Row],[Datum in dienst]] -> 2021-07-13 | H61: Functie | I61: =Tabel1[[#This Row],[Functietitel]] -> KAM-Coördinator | J61: Afdeling | K61: =Tabel1[[#This Row],[Afdeling]] -> Staf
A62: =Tabel1[[#This Row],[Medewerker ID]] -> EMP00092 | B62: =Tabel1[[#This Row],[Achternaam]] -> Jansen | C62: =personeelsoverzicht!E62 -> Elise Jansen | D62: Leeftijd | E62: =Tabel1[[#This Row],[Geboortedatum]] -> 1968-01-18 | F62: Datum in dienst | G62: =Tabel1[[#This Row],[Datum in dienst]] -> 2011-04-26 | H62: Functie | I62: =Tabel1[[#This Row],[Functietitel]] -> KAM-Coördinator | J62: Afdeling | K62: =Tabel1[[#This Row],[Afdeling]] -> Staf
A63: =Tabel1[[#This Row],[Medewerker ID]] -> EMP00086 | B63: =Tabel1[[#This Row],[Achternaam]] -> Boer | C63: =personeelsoverzicht!E63 -> Kees de Boer | D63: Leeftijd | E63: =Tabel1[[#This Row],[Geboortedatum]] -> 1998-10-28 | F63: Datum in dienst | G63: =Tabel1[[#This Row],[Datum in dienst]] -> 2021-05-11 | H63: Functie | I63: =Tabel1[[#This Row],[Functietitel]] -> Leerling machinist | J63: Afdeling | K63: =Tabel1[[#This Row],[Afdeling]] -> Uitvoering
A64: =Tabel1[[#This Row],[Medewerker ID]] -> EMP00089 | B64: =Tabel1[[#This Row],[Achternaam]] -> Mulder | C64: =personeelsoverzicht!E64 -> Pieter Mulder | D64: Leeftijd | E64: =Tabel1[[#This Row],[Geboortedatum]] -> 1995-08-05 | F64: Datum in dienst | G64: =Tabel1[[#This Row],[Datum in dienst]] -> 2019-05-22 | H64: Functie | I64: =Tabel1[[#This Row],[Functietitel]] -> Leerling machinist | J64: Afdeling | K64: =Tabel1[[#This Row],[Afdeling]] -> Uitvoering
A65: =Tabel1[[#This Row],[Medewerker ID]] -> EMP00076 | B65: =Tabel1[[#This Row],[Achternaam]] -> Dijkstra | C65: =personeelsoverzicht!E65 -> Daan Dijkstra | D65: Leeftijd | E65: =Tabel1[[#This Row],[Geboortedatum]] -> 1994-06-24 | F65: Datum in dienst | G65: =Tabel1[[#This Row],[Datum in dienst]] -> 2017-01-19 | H65: Functie | I65: =Tabel1[[#This Row],[Functietitel]] -> Machinist mobiele hei-installatie | J65: Afdeling | K65: =Tabel1[[#This Row],[Afdeling]] -> Uitvoering
A66: =Tabel1[[#This Row],[Medewerker ID]] -> EMP00073 | B66: =Tabel1[[#This Row],[Achternaam]] -> Vries | C66: =personeelsoverzicht!E66 -> Daan de Vries | D66: Leeftijd | E66: =Tabel1[[#This Row],[Geboortedatum]] -> 1973-05-15 | F66: Datum in dienst | G66: =Tabel1[[#This Row],[Datum in dienst]] -> 2018-07-01 | H66: Functie | I66: =Tabel1[[#This Row],[Functietitel]] -> Machinist mobiele kraan | J66: Afdeling | K66: =Tabel1[[#This Row],[Afdeling]] -> Uitvoering
A67: =Tabel1[[#This Row],[Medewerker ID]] -> EMP00001 | B67: =Tabel1[[#This Row],[Achternaam]] -> Vos | C67: =personeelsoverzicht!E67 -> Tijn Vos | D67: Leeftijd | E67: =Tabel1[[#This Row],[Geboortedatum]] -> 1991-07-20 | F67: Datum in dienst | G67: =Tabel1[[#This Row],[Datum in dienst]] -> 2021-02-08 | H67: Functie | I67: =Tabel1[[#This Row],[Functietitel]] -> Magazijn bediende | J67: Afdeling | K67: =Tabel1[[#This Row],[Afdeling]] -> Uitvoering
A68: =Tabel1[[#This Row],[Medewerker ID]] -> EMP00043 | B68: =Tabel1[[#This Row],[Achternaam]] -> Embden | C68: =personeelsoverzicht!E68 -> Lizz van Embden | D68: Leeftijd | E68: =Tabel1[[#This Row],[Geboortedatum]] -> 1978-06-15 | F68: Datum in dienst | G68: =Tabel1[[#This Row],[Datum in dienst]] -> 2006-10-12 | H68: Functie | I68: =Tabel1[[#This Row],[Functietitel]] -> Magazijn bediende | J68: Afdeling | K68: =Tabel1[[#This Row],[Afdeling]] -> Uitvoering
A69: =Tabel1[[#This Row],[Medewerker ID]] -> EMP00079 | B69: =Tabel1[[#This Row],[Achternaam]] -> Peridok | C69: =personeelsoverzicht!E69 -> Lucas Peridok | D69: Leeftijd | E69: =Tabel1[[#This Row],[Geboortedatum]] -> 2001-06-11 | F69: Datum in dienst | G69: =Tabel1[[#This Row],[Datum in dienst]] -> 2022-11-16 | H69: Functie | I69: =Tabel1[[#This Row],[Functietitel]] -> Magazijn bediende | J69: Afdeling | K69: =Tabel1[[#This Row],[Afdeling]] -> Uitvoering
A70: =Tabel1[[#This Row],[Medewerker ID]] -> EMP00045 | B70: =Tabel1[[#This Row],[Achternaam]] -> Pauw | C70: =personeelsoverzicht!E70 -> Kate de Pauw | D70: Leeftijd | E70: =Tabel1[[#This Row],[Geboortedatum]] -> 1997-06-20 | F70: Datum in dienst | G70: =Tabel1[[#This Row],[Datum in dienst]] -> 2019-06-11 | H70: Functie | I70: =Tabel1[[#This Row],[Functietitel]] -> Marketing manager | J70: Afdeling | K70: =Tabel1[[#This Row],[Afdeling]] -> Commercie en financïen
A71: =Tabel1[[#This Row],[Medewerker ID]] -> EMP00032 | B71: =Tabel1[[#This Row],[Achternaam]] -> Veen | C71: =personeelsoverzicht!E71 -> Thijmen van der Veen | D71: Leeftijd | E71: =Tabel1[[#This Row],[Geboortedatum]] -> 1983-03-01 | F71: Datum in dienst | G71: =Tabel1[[#This Row],[Datum in dienst]] -> 2005-09-01 | H71: Functie | I71: =Tabel1[[#This Row],[Functietitel]] -> Marketing medewerker | J71: Afdeling | K71: =Tabel1[[#This Row],[Afdeling]] -> Commercie en financïen
A72: =Tabel1[[#This Row],[Medewerker ID]] -> EMP00035 | B72: =Tabel1[[#This Row],[Achternaam]] -> Cornelisse | C72: =personeelsoverzicht!E72 -> Olivier Cornelisse | D72: Leeftijd | E72: =Tabel1[[#This Row],[Geboortedatum]] -> 1986-10-26 | F72: Datum in dienst | G72: =Tabel1[[#This Row],[Datum in dienst]] -> 2020-10-23 | H72: Functie | I72: =Tabel1[[#This Row],[Functietitel]] -> Marketing medewerker | J72: Afdeling | K72: =Tabel1[[#This Row],[Afdeling]] -> Commercie en financïen
A73: =Tabel1[[#This Row],[Medewerker ID]] -> EMP00039 | B73: =Tabel1[[#This Row],[Achternaam]] -> Estey | C73: =personeelsoverzicht!E73 -> Luc Estey | D73: Leeftijd | E73: =Tabel1[[#This Row],[Geboortedatum]] -> 1998-07-14 | F73: Datum in dienst | G73: =Tabel1[[#This Row],[Datum in dienst]] -> 2020-10-13 | H73: Functie | I73: =Tabel1[[#This Row],[Functietitel]] -> Marketing medewerker | J73: Afdeling | K73: =Tabel1[[#This Row],[Afdeling]] -> Commercie en financïen
A74: =Tabel1[[#This Row],[Medewerker ID]] -> EMP00091 | B74: =Tabel1[[#This Row],[Achternaam]] -> Pieters | C74: =personeelsoverzicht!E74 -> Erik Pieters | D74: Leeftijd | E74: =Tabel1[[#This Row],[Geboortedatum]] -> 1988-11-04 | F74: Datum in dienst | G74: =Tabel1[[#This Row],[Datum in dienst]] -> 2018-06-08 | H74: Functie | I74: =Tabel1[[#This Row],[Functietitel]] -> Mechanisch stamper | J74: Afdeling | K74: =Tabel1[[#This Row],[Afdeling]] -> Uitvoering
A75: =Tabel1[[#This Row],[Medewerker ID]] -> EMP00103 | B75: =Tabel1[[#This Row],[Achternaam]] -> Vorst | C75: =personeelsoverzicht!E75 -> Jan Vorst | D75: Leeftijd | E75: =Tabel1[[#This Row],[Geboortedatum]] -> 1966-01-08 | F75: Datum in dienst | G75: =Tabel1[[#This Row],[Datum in dienst]] -> 2013-03-03 | H75: Functie | I75: =Tabel1[[#This Row],[Functietitel]] -> Mechanisch stamper | J75: Afdeling | K75: =Tabel1[[#This Row],[Afdeling]] -> Uitvoering
A76: =Tabel1[[#This Row],[Medewerker ID]] -> EMP00063 | B76: =Tabel1[[#This Row],[Achternaam]] -> Vries | C76: =personeelsoverzicht!E76 -> Ryan de Vries | D76: Leeftijd | E76: =Tabel1[[#This Row],[Geboortedatum]] -> 1966-02-01 | F76: Datum in dienst | G76: =Tabel1[[#This Row],[Datum in dienst]] -> 2016-01-07 | H76: Functie | I76: =Tabel1[[#This Row],[Functietitel]] -> Planner | J76: Afdeling | K76: =Tabel1[[#This Row],[Afdeling]] -> Voorbereiding
A77: =Tabel1[[#This Row],[Medewerker ID]] -> EMP00097 | B77: =Tabel1[[#This Row],[Achternaam]] -> Mensink | C77: =personeelsoverzicht!E77 -> Lucas Mensink | D77: Leeftijd | E77: =Tabel1[[#This Row],[Geboortedatum]] -> 1969-03-17 | F77: Datum in dienst | G77: =Tabel1[[#This Row],[Datum in dienst]] -> 2006-09-21 | H77: Functie | I77: =Tabel1[[#This Row],[Functietitel]] -> Planner | J77: Afdeling | K77: =Tabel1[[#This Row],[Afdeling]] -> Voorbereiding
A78: =Tabel1[[#This Row],[Medewerker ID]] -> EMP00077 | B78: =Tabel1[[#This Row],[Achternaam]] -> Dijkstra | C78: =personeelsoverzicht!E78 -> Bram Dijkstra | D78: Leeftijd | E78: =Tabel1[[#This Row],[Geboortedatum]] -> 1989-02-10 | F78: Datum in dienst | G78: =Tabel1[[#This Row],[Datum in dienst]] -> 2020-06-13 | H78: Functie | I78: =Tabel1[[#This Row],[Functietitel]] -> Projectleider | J78: Afdeling | K78: =Tabel1[[#This Row],[Afdeling]] -> Uitvoering
A79: =Tabel1[[#This Row],[Medewerker ID]] -> EMP00088 | B79: =Tabel1[[#This Row],[Achternaam]] -> Mulder | C79: =personeelsoverzicht!E79 -> Jan Mulder | D79: Leeftijd | E79: =Tabel1[[#This Row],[Geboortedatum]] -> 1977-09-24 | F79: Datum in dienst | G79: =Tabel1[[#This Row],[Datum in dienst]] -> 2019-12-18 | H79: Functie | I79: =Tabel1[[#This Row],[Functietitel]] -> Projectleider | J79: Afdeling | K79: =Tabel1[[#This Row],[Afdeling]] -> Uitvoering
A80: =Tabel1[[#This Row],[Medewerker ID]] -> EMP00096 | B80: =Tabel1[[#This Row],[Achternaam]] -> Vermeer | C80: =personeelsoverzicht!E80 -> Sander Vermeer | D80: Leeftijd | E80: =Tabel1[[#This Row],[Geboortedatum]] -> 1983-06-21 | F80: Datum in dienst | G80: =Tabel1[[#This Row],[Datum in dienst]] -> 2010-11-22 | H80: Functie | I80: =Tabel1[[#This Row],[Functietitel]] -> Projectleider | J80: Afdeling | K80: =Tabel1[[#This Row],[Afdeling]] -> Uitvoering
A81: =Tabel1[[#This Row],[Medewerker ID]] -> EMP00017 | B81: =Tabel1[[#This Row],[Achternaam]] -> Waas | C81: =personeelsoverzicht!E81 -> Jesper van Waas | D81: Leeftijd | E81: =Tabel1[[#This Row],[Geboortedatum]] -> 1969-09-03 | F81: Datum in dienst | G81: =Tabel1[[#This Row],[Datum in dienst]] -> 2022-06-21 | H81: Functie | I81: =Tabel1[[#This Row],[Functietitel]] -> Salarisadministrateur | J81: Afdeling | K81: =Tabel1[[#This Row],[Afdeling]] -> Commercie en financïen
A82: =Tabel1[[#This Row],[Medewerker ID]] -> EMP00082 | B82: =Tabel1[[#This Row],[Achternaam]] -> Koning | C82: =personeelsoverzicht!E82 -> Daan Koning | D82: Leeftijd | E82: =Tabel1[[#This Row],[Geboortedatum]] -> 1972-03-26 | F82: Datum in dienst | G82: =Tabel1[[#This Row],[Datum in dienst]] -> 2021-07-18 | H82: Functie | I82: =Tabel1[[#This Row],[Functietitel]] -> Secretares | J82: Afdeling | K82: =Tabel1[[#This Row],[Afdeling]] -> Staf
A83: =Tabel1[[#This Row],[Medewerker ID]] -> EMP00100 | B83: =Tabel1[[#This Row],[Achternaam]] -> Dijkstra | C83: =personeelsoverzicht!E83 -> Elise Dijkstra | D83: Leeftijd | E83: =Tabel1[[#This Row],[Geboortedatum]] -> 1987-12-09 | F83: Datum in dienst | G83: =Tabel1[[#This Row],[Datum in dienst]] -> 2022-03-25 | H83: Functie | I83: =Tabel1[[#This Row],[Functietitel]] -> Secretaresse | J83: Afdeling | K83: =Tabel1[[#This Row],[Afdeling]] -> Commercie en financïen
A84: =Tabel1[[#This Row],[Medewerker ID]] -> EMP00101 | B84: =Tabel1[[#This Row],[Achternaam]] -> Feenstra | C84: =personeelsoverzicht!E84 -> Marieke Feenstra | D84: Leeftijd | E84: =Tabel1[[#This Row],[Geboortedatum]] -> 1994-01-10 | F84: Datum in dienst | G84: =Tabel1[[#This Row],[Datum in dienst]] -> 2020-10-26 | H84: Functie | I84: =Tabel1[[#This Row],[Functietitel]] -> Secretaresse | J84: Afdeling | K84: =Tabel1[[#This Row],[Afdeling]] -> Voorbereiding
A85: =Tabel1[[#This Row],[Medewerker ID]] -> EMP00013 | B85: =Tabel1[[#This Row],[Achternaam]] -> Hellevoort | C85: =personeelsoverzicht!E85 -> Casper Hellevoort | D85: Leeftijd | E85: =Tabel1[[#This Row],[Geboortedatum]] -> 1984-07-21 | F85: Datum in dienst | G85: =Tabel1[[#This Row],[Datum in dienst]] -> 2013-11-18 | H85: Functie | I85: =Tabel1[[#This Row],[Functietitel]] -> Sloper I | J85: Afdeling | K85: =Tabel1[[#This Row],[Afdeling]] -> Uitvoering
A86: =Tabel1[[#This Row],[Medewerker ID]] -> EMP00021 | B86: =Tabel1[[#This Row],[Achternaam]] -> Eelden | C86: =personeelsoverzicht!E86 -> Elias van Eelden | D86: Leeftijd | E86: =Tabel1[[#This Row],[Geboortedatum]] -> 1992-04-18 | F86: Datum in dienst | G86: =Tabel1[[#This Row],[Datum in dienst]] -> 2020-09-16 | H86: Functie | I86: =Tabel1[[#This Row],[Functietitel]] -> Sloper II | J86: Afdeling | K86: =Tabel1[[#This Row],[Afdeling]] -> Uitvoering
A87: =Tabel1[[#This Row],[Medewerker ID]] -> EMP00027 | B87: =Tabel1[[#This Row],[Achternaam]] -> Man | C87: =personeelsoverzicht!E87 -> Stan de Man | D87: Leeftijd | E87: =Tabel1[[#This Row],[Geboortedatum]] -> 1992-02-12 | F87: Datum in dienst | G87: =Tabel1[[#This Row],[Datum in dienst]] -> 2016-09-21 | H87: Functie | I87: =Tabel1[[#This Row],[Functietitel]] -> Stelleur I | J87: Afdeling | K87: =Tabel1[[#This Row],[Afdeling]] -> Uitvoering
A88: =Tabel1[[#This Row],[Medewerker ID]] -> EMP00031 | B88: =Tabel1[[#This Row],[Achternaam]] -> Brandon | C88: =personeelsoverzicht!E88 -> Sam Brandon | D88: Leeftijd | E88: =Tabel1[[#This Row],[Geboortedatum]] -> 1980-08-12 | F88: Datum in dienst | G88: =Tabel1[[#This Row],[Datum in dienst]] -> 2013-06-19 | H88: Functie | I88: =Tabel1[[#This Row],[Functietitel]] -> Stelleur I | J88: Afdeling | K88: =Tabel1[[#This Row],[Afdeling]] -> Uitvoering
A89: =Tabel1[[#This Row],[Medewerker ID]] -> EMP00033 | B89: =Tabel1[[#This Row],[Achternaam]] -> Flaas | C89: =personeelsoverzicht!E89 -> Rowan van der Flaas | D89: Leeftijd | E89: =Tabel1[[#This Row],[Geboortedatum]] -> 1973-05-17 | F89: Datum in dienst | G89: =Tabel1[[#This Row],[Datum in dienst]] -> 2015-12-13 | H89: Functie | I89: =Tabel1[[#This Row],[Functietitel]] -> Stelleur II | J89: Afdeling | K89: =Tabel1[[#This Row],[Afdeling]] -> Uitvoering
A90: =Tabel1[[#This Row],[Medewerker ID]] -> EMP00034 | B90: =Tabel1[[#This Row],[Achternaam]] -> Genefaas | C90: =personeelsoverzicht!E90 -> Collin Genefaas | D90: Leeftijd | E90: =Tabel1[[#This Row],[Geboortedatum]] -> 1982-01-12 | F90: Datum in dienst | G90: =Tabel1[[#This Row],[Datum in dienst]] -> 2019-01-15 | H90: Functie | I90: =Tabel1[[#This Row],[Functietitel]] -> Stelleur II | J90: Afdeling | K90: =Tabel1[[#This Row],[Afdeling]] -> Uitvoering
A91: =Tabel1[[#This Row],[Medewerker ID]] -> EMP00038 | B91: =Tabel1[[#This Row],[Achternaam]] -> Linschoten | C91: =personeelsoverzicht!E91 -> Jason Linschoten | D91: Leeftijd | E91: =Tabel1[[#This Row],[Geboortedatum]] -> 1981-08-21 | F91: Datum in dienst | G91: =Tabel1[[#This Row],[Datum in dienst]] -> 2011-03-11 | H91: Functie | I91: =Tabel1[[#This Row],[Functietitel]] -> Voorman | J91: Afdeling | K91: =Tabel1[[#This Row],[Afdeling]] -> Uitvoering
A92: =Tabel1[[#This Row],[Medewerker ID]] -> EMP00053 | B92: =Tabel1[[#This Row],[Achternaam]] -> Vermeer | C92: =personeelsoverzicht!E92 -> Kees Vermeer | D92: Leeftijd | E92: =Tabel1[[#This Row],[Geboortedatum]] -> 1984-07-27 | F92: Datum in dienst | G92: =Tabel1[[#This Row],[Datum in dienst]] -> 2022-09-16 | H92: Functie | I92: =Tabel1[[#This Row],[Functietitel]] -> Voorman | J92: Afdeling | K92: =Tabel1[[#This Row],[Afdeling]] -> Uitvoering
A93: =Tabel1[[#This Row],[Medewerker ID]] -> EMP00060 | B93: =Tabel1[[#This Row],[Achternaam]] -> Pieters | C93: =personeelsoverzicht!E93 -> Lucas Pieters | D93: Leeftijd | E93: =Tabel1[[#This Row],[Geboortedatum]] -> 1987-01-05 | F93: Datum in dienst | G93: =Tabel1[[#This Row],[Datum in dienst]] -> 2014-03-10 | H93: Functie | I93: =Tabel1[[#This Row],[Functietitel]] -> Voorman | J93: Afdeling | K93: =Tabel1[[#This Row],[Afdeling]] -> Uitvoering
A94: =Tabel1[[#This Row],[Medewerker ID]] -> EMP00066 | B94: =Tabel1[[#This Row],[Achternaam]] -> Bakker | C94: =personeelsoverzicht!E94 -> Marc Bakker | D94: Leeftijd | E94: =Tabel1[[#This Row],[Geboortedatum]] -> 1970-11-24 | F94: Datum in dienst | G94: =Tabel1[[#This Row],[Datum in dienst]] -> 2012-08-10 | H94: Functie | I94: =Tabel1[[#This Row],[Functietitel]] -> Voorman | J94: Afdeling | K94: =Tabel1[[#This Row],[Afdeling]] -> Uitvoering
A95: =Tabel1[[#This Row],[Medewerker ID]] -> EMP00069 | B95: =Tabel1[[#This Row],[Achternaam]] -> Mulder | C95: =personeelsoverzicht!E95 -> Daan Mulder | D95: Leeftijd | E95: =Tabel1[[#This Row],[Geboortedatum]] -> 1974-08-09 | F95: Datum in dienst | G95: =Tabel1[[#This Row],[Datum in dienst]] -> 2015-03-10 | H95: Functie | I95: =Tabel1[[#This Row],[Functietitel]] -> Voorman | J95: Afdeling | K95: =Tabel1[[#This Row],[Afdeling]] -> Uitvoering
A96: =Tabel1[[#This Row],[Medewerker ID]] -> EMP00042 | B96: =Tabel1[[#This Row],[Achternaam]] -> Hoes | C96: =personeelsoverzicht!E96 -> Chris Hoes | D96: Leeftijd | E96: =Tabel1[[#This Row],[Geboortedatum]] -> 1972-01-03 | F96: Datum in dienst | G96: =Tabel1[[#This Row],[Datum in dienst]] -> 2007-11-02 | H96: Functie | I96: =Tabel1[[#This Row],[Functietitel]] -> Wegmarkeerder I | J96: Afdeling | K96: =Tabel1[[#This Row],[Afdeling]] -> Uitvoering
A97: =Tabel1[[#This Row],[Medewerker ID]] -> EMP00009 | B97: =Tabel1[[#This Row],[Achternaam]] -> Peterse | C97: =personeelsoverzicht!E97 -> Stan Peterse | D97: Leeftijd | E97: =Tabel1[[#This Row],[Geboortedatum]] -> 1995-10-13 | F97: Datum in dienst | G97: =Tabel1[[#This Row],[Datum in dienst]] -> 2019-07-14 | H97: Functie | I97: =Tabel1[[#This Row],[Functietitel]] -> Wegmarkeerder II | J97: Afdeling | K97: =Tabel1[[#This Row],[Afdeling]] -> Uitvoering
A98: =Tabel1[[#This Row],[Medewerker ID]] -> EMP00052 | B98: =Tabel1[[#This Row],[Achternaam]] -> Mulder | C98: =personeelsoverzicht!E98 -> Kees Mulder | D98: Leeftijd | E98: =Tabel1[[#This Row],[Geboortedatum]] -> 1968-09-15 | F98: Datum in dienst | G98: =Tabel1[[#This Row],[Datum in dienst]] -> 2019-10-14 | H98: Functie | I98: =Tabel1[[#This Row],[Functietitel]] -> Wegmarkeerder III | J98: Afdeling | K98: =Tabel1[[#This Row],[Afdeling]] -> Uitvoering
A99: =Tabel1[[#This Row],[Medewerker ID]] -> EMP00059 | B99: =Tabel1[[#This Row],[Achternaam]] -> Smit | C99: =personeelsoverzicht!E99 -> Kees Smit | D99: Leeftijd | E99: =Tabel1[[#This Row],[Geboortedatum]] -> 1989-11-13 | F99: Datum in dienst | G99: =Tabel1[[#This Row],[Datum in dienst]] -> 2020-02-26 | H99: Functie | I99: =Tabel1[[#This Row],[Functietitel]] -> Werkvoorbereider | J99: Afdeling | K99: =Tabel1[[#This Row],[Afdeling]] -> Voorbereiding
A100: =Tabel1[[#This Row],[Medewerker ID]] -> EMP00075 | B100: =Tabel1[[#This Row],[Achternaam]] -> Molenaar | C100: =personeelsoverzicht!E100 -> Kees Molenaar | D100: Leeftijd | E100: =Tabel1[[#This Row],[Geboortedatum]] -> 1986-12-21 | F100: Datum in dienst | G100: =Tabel1[[#This Row],[Datum in dienst]] -> 2010-09-21 | H100: Functie | I100: =Tabel1[[#This Row],[Functietitel]] -> Werkvoorbereider | J100: Afdeling | K100: =Tabel1[[#This Row],[Afdeling]] -> Voorbereiding
A101: =Tabel1[[#This Row],[Medewerker ID]] -> EMP00094 | B101: =Tabel1[[#This Row],[Achternaam]] -> Pieters | C101: =personeelsoverzicht!E101 -> Daan Pieters | D101: Leeftijd | E101: =Tabel1[[#This Row],[Geboortedatum]] -> 1976-10-10 | F101: Datum in dienst | G101: =Tabel1[[#This Row],[Datum in dienst]] -> 2017-08-02 | H101: Functie | I101: =Tabel1[[#This Row],[Functietitel]] -> Werkvoorbereider | J101: Afdeling | K101: =Tabel1[[#This Row],[Afdeling]] -> Voorbereiding
A102: =Tabel1[[#This Row],[Medewerker ID]] -> EMP00055 | B102: =Tabel1[[#This Row],[Achternaam]] -> Pieters | C102: =personeelsoverzicht!E102 -> Marieke Pieters | D102: Leeftijd | E102: =Tabel1[[#This Row],[Geboortedatum]] -> 1993-07-13 | F102: Datum in dienst | G102: =Tabel1[[#This Row],[Datum in dienst]] -> 2018-11-26 | H102: Functie | I102: =Tabel1[[#This Row],[Functietitel]] -> Werkvoorbereider | J102: Afdeling | K102: =Tabel1[[#This Row],[Afdeling]] -> Voorbereiding
A103: =Tabel1[[#This Row],[Medewerker ID]] -> EMP00071 | B103: =Tabel1[[#This Row],[Achternaam]] -> Koning | C103: =personeelsoverzicht!E103 -> Sandra Koning | D103: Leeftijd | E103: =Tabel1[[#This Row],[Geboortedatum]] -> 1980-11-09 | F103: Datum in dienst | G103: =Tabel1[[#This Row],[Datum in dienst]] -> 2022-02-20 | H103: Functie | I103: =Tabel1[[#This Row],[Functietitel]] -> Werkvoorbereider | J103: Afdeling | K103: =Tabel1[[#This Row],[Afdeling]] -> Voorbereiding
A104: =Tabel1[[#This Row],[Medewerker ID]] -> EMP00099 | B104: =Tabel1[[#This Row],[Achternaam]] -> Peetvader | C104: =personeelsoverzicht!E104 -> Jan Peetvader | D104: Leeftijd | E104: =Tabel1[[#This Row],[Geboortedatum]] -> 2000-05-14 | F104: Datum in dienst | G104: =Tabel1[[#This Row],[Datum in dienst]] -> 2022-07-02 | H104: Functie | I104: =Tabel1[[#This Row],[Functietitel]] -> Werkvoorbereider | J104: Afdeling | K104: =Tabel1[[#This Row],[Afdeling]] -> Voorbereiding

Sheet Loonstrook (hidden)
A1: GRONDIG | F1: LOONSTROOK
A2: Lage weide 419. 3599 ZZ, Utrecht | F2: Medewerker: | G2: Michael Krabbe
A3: KvK: 87654321 | F3: Medewerkernummer: | G3: =_xlfn.XLOOKUP(G2, personeelsoverzicht!E:E, personeelsoverzicht!A:A) -> EMP00008 | J3: januari
F4: Datum in dienst: | G4: =_xlfn.XLOOKUP(G2, personeelsoverzicht!E:E, personeelsoverzicht!N:N) -> 2014-02-10 | J4: februari
F5: Functie: | G5: =_xlfn.XLOOKUP(G2, personeelsoverzicht!E:E,personeelsoverzicht!M:M) -> Betonwerker I | J5: maart
F6: Afdeling: | G6: =_xlfn.XLOOKUP(G2, personeelsoverzicht!E:E,personeelsoverzicht!L:L) -> Uitvoering | J6: april
F7: Periode: | G7: =TODAY() -> 2025-06-09 | J7: mei
F8: Datum van: | G8: december | J8: juni
G9: =DATE(YEAR(TODAY())-IF(MONTH(DATEVALUE("1-"&G8&"-"&YEAR(TODAY())))>MONTH(TODAY()),1,0),MONTH(DATEVALUE("1-"&G8&"-"&YEAR(TODAY()))),1) -> 2024-12-01 | J9: juli
J10: augustus
J11: september
J12: oktober
J13: november
J14: december
A16: Omschrijving | B16: Aantal | C16: Basis | D16: Bruto/Netto | E16: Cumulatief | F16: Normaal | G16: Bijzonder
A17: Salaris (Uit uren gewerkt) | B17: =174.08 -> 174.08 | D17: =_xlfn.XLOOKUP(G2, personeelsoverzicht!E:E,personeelsoverzicht!X:X) -> 4209.2544 | E17: =D17 * (MONTH(G9) - 6 + 1) -> 29464.7808
A18: Salaris (Uit uren ziek) | D18: 0 | E18: =D18 * (MONTH(G9) - 6 + 1) -> 0
A19: Brutoloon | D19: =D17+D18 -> 4209.2544 | E19: =D19 * (MONTH(G9) - 6 + 1) -> 29464.7808
A20: Premie WW/WGA | B20: 0.0008 | D20: =_xlfn.XLOOKUP(G2, personeelsoverzicht!E:E,personeelsoverzicht!AE:AE) -> -3.36740352 | E20: =(D20) * (MONTH(G9) - 6 + 1) -> -23.57182464
A21: Pensioen | B21: 0.094 | D21: =_xlfn.XLOOKUP(G2, personeelsoverzicht!E:E, personeelsoverzicht!AF:AF) -> -283.9215731 | E21: =(D21) * (MONTH(G9) - 6 + 1) -> -1987.451011
A22: Loonheffing | C22: =D19+D20+D21 -> 3921.965423 | D22: =_xlfn.XLOOKUP(G2, personeelsoverzicht!E:E, personeelsoverzicht!AI:AI)+D34 -> -896.6848862 | E22: =(D22) * (MONTH(G9) - 6 + 1) -> -6276.794203
A24: Netto loon | D24: =D19+D20+D21+D22 -> 3025.280537
A25: Te betalen loon | D25: =D24 -> 3025.280537
A31: Vaste gegevens | C31: Grondslagen | F31: Reserveringen:
B32: Periode | D32: periode | E32: cumulatief | G32: Periode | H32: Cumulatief
A33: tabelkleur: | B33: Wit | C33: Loon LH: | D33: =C22 -> 3921.965423 | E33: =D33 * (DATEDIF(DATE(YEAR(G9),1,1),G9,"m")+1) -> 47063.58508 | F33: Vakantietoeslag: | G33: =D17*8% -> 336.740352 | H33: =G33*(DATEDIF(DATE(YEAR(G9) - IF(MONTH(G9)<6,1,0),6,1),G9,"m")+1) -> 2357.182464
A34: Loontijdvak: | B34: Maand | C34: Arbeidskorting | D34: =_xlfn.XLOOKUP(G2, personeelsoverzicht!E:E, personeelsoverzicht!AC:AC) -> 403.3858418 | E34: =D34 * (DATEDIF(DATE(YEAR(G9),1,1),G9,"m")+1) -> 4840.630101 | F34: Eindejaarsuitkering:
A35: Minimumloon: | B35: =_xlfn.XLOOKUP(G2, personeelsoverzicht!E:E, personeelsoverzicht!AJ:AJ) -> 18.6
A36: Percentage BT: | C36: Loonheffing
A37: Heffingskorting: | B37: Toepassen | C37: Normaal tarief: | D37: =+D22 -> -896.6848862 | E37: =D37 * (DATEDIF(DATE(YEAR(G9),1,1),G9,"m")+1) -> -10760.21863
C38: Bijzonder tarief:
A41: Dienstverband | B41: Kostenplaats | C41: Type contract | D41: U/week | E41: PT% | F41: Salaris | G41: Uurloon
A42: Betonwerker II | B42: Grondig | C42: onbepaalde tijd | D42: 40 | E42: =_xlfn.XLOOKUP(G2, personeelsoverzicht!E:E,personeelsoverzicht!T:T) -> 1 | F42: =D19 -> 4209.2544 | G42: 20.92
A44: Loonschaal | B44: Trede | C44: Periodiek
A45: Bouwplaatsmedewerker | B45: B

Sheet Lonen (hidden)
B2: Functiegroep | C2: loon p1 | D2: p2 | E2: Max
B3: A | C3: 16.56 | D3: 17.43 | E3: =C3*1.3 -> 21.528
B4: B | C4: 17.52 | D4: 18.42 | E4: =C4*1.3 -> 22.776
B5: C | C5: 18.6 | D5: 19.54 | E5: =C5*1.3 -> 24.18
B6: D | C6: 19.87 | D6: 20.86 | E6: =C6*1.3 -> 25.831
B7: E | C7: 20.85 | D7: 21.87 | E7: =C7*1.3 -> 27.105
B11: Functieniveau | C11: 1/1/2024 (periode 1) Minimum | D11: 1/1/2024 (periode 1) Maximum | E11: 1/7/2024 (periode 8) Minimum | F11: 1/7/2024 (periode 8) Maximum
B12: 1 | C12: 2389.14 | D12: 3127.85 | E12: 2522.76 | F12: 3287.32
B13: 2 | C13: 2621.2 | D13: 3481.21 | E13: 2762.94 | F13: 3653.05
B14: 3 | C14: 2918.51 | D14: 3925.01 | E14: 3070.66 | F14: 4112.39
B15: 4 | C15: 3306.8 | D15: 4512.07 | E15: 3472.54 | F15: 4719.99
B16: 5 | C16: 3812.73 | D16: 5275.08 | E16: 3996.18 | F16: 5509.71
B17: 6 | C17: 4470.33 | D17: 6263.33 | E17: 4676.79 | F17: 6532.55
B18: 7 (Senior UTA) | C18: 5500 | D18: 7500 | E18: 5750 | F18: 7875
B19: 8 (Projectleider) | C19: 6750 | D19: 9250 | E19: 7000 | F19: 9713
B20: 9 (Directeur/MT) | C20: 9000 | D20: 12500 | E20: 9500 | F20: 13125
B24: Bereken arbeidskorting
A27: =4500*12 -> 54000 | B27: =ABS(IF(A27<=12169,0.08053*A27,IF(A27<=26288,980+0.3003*(A27-12169),IF(A27<=43071,5220+0.02258*(A27-26288),IF(A27<=129078,5599-0.0651*(A27-43071),0)))))/12 -> 407.2935083

Sheet GV (hidden)
B2: Gegevensvelden | D2: jaar en maand
B4: 2023 | D4: 2023-01-01
B5: 2024 | D5: 2023-02-01
B6: 2025 | D6: 2023-03-01
B7: 2026 | D7: 2023-04-01
D8: 2023-05-01
D9: 2023-06-01
D10: 2023-07-01
D11: 2023-08-01
D12: 2023-09-01
D13: 2023-10-01
D14: 2023-11-01
D15: 2023-12-01
D16: 2024-01-01
D17: 2024-02-01
D18: 2024-03-01
D19: 2024-04-01
D20: 2024-05-01
D21: 2024-06-01
D22: 2024-07-01
D23: 2024-08-01
D24: 2024-09-01
D25: 2024-10-01
D26: 2024-11-01
D27: 2024-12-01
D28: 2025-01-01
D29: 2025-02-01
D30: 2025-03-01
D31: 2025-04-01
D32: 2025-05-01
D33: 2025-06-01
D34: 2025-07-01
D35: 2025-08-01
D36: 2025-09-01
D37: 2025-10-01
D38: 2025-11-01
D39: 2025-12-01
D40: 2026-01-01
D41: 2026-02-01
D42: 2026-03-01
D43: 2026-04-01
D44: 2026-05-01
D45: 2026-06-01
D46: 2026-07-01
D47: 2026-08-01
D48: 2026-09-01
D49: 2026-10-01
D50: 2026-11-01
D51: 2026-12-01
